Workbook

Sheet S1A Reads summary
A1: Table S1A. Numbers of reads classified at each step of the bioinformatic pipeline
C3: LDPE | F3: LDPE mean | G3: Weathered LDPE | J3: W-LDPE mean | K3: Wood | N3: Wood mean | O3: Water | R3: Water mean | S3: Mean | T3: Median | U3: Maximum | V3: Minimum
C4: D7 | D4: D8 | E4: D9 | G4: D4 | H4: D5 | I4: D6 | K4: D1 | L4: D2 | M4: D3 | O4: D10 | P4: D11 | Q4: D12
A5: Numbers of reads | B5: Initial | C5: 177649450 | D5: 152625850 | E5: 141244346 | F5: 157173215.3 | G5: 160654002 | H5: 168970182 | I5: 139566358 | J5: 156396847.3 | K5: 138802492 | L5: 158426348 | M5: 141059530 | N5: 146096123.3 | O5: 191848924 | P5: 142756656 | Q5: 160664400 | R5: 165089993.3 | S5: 156189044.8 | T5: 155526099 | U5: 191848924 | V5: 138802492
B6: After Kneaddata | C6: 177269742 | D6: 114203296 | E6: 141021962 | F6: 144165000 | G6: 160290498 | H6: 168632484 | I6: 128901970 | J6: 152608317.3 | K6: 138462592 | L6: 158025064 | M6: 140676394 | N6: 145721350 | O6: 191558876 | P6: 123463454 | Q6: 160311510 | R6: 158444613.3 | S6: 150234820.2 | T6: 149523513 | U6: 191558876 | V6: 114203296
B7: Kraken2 | C7: 48844329 | D7: 73243231 | E7: 40721984 | F7: 54269848 | G7: 50453859 | H7: 48802147 | I7: 43517148 | J7: 47591051.33 | K7: 25327037 | L7: 28909106 | M7: 30493600 | N7: 28243247.67 | O7: 9272642 | P7: 25171794 | Q7: 8490996 | R7: 14311810.67 | S7: 36103989.42 | T7: 35607792 | U7: 73243231 | V7: 8490996
B8: Bracken filtered | C8: 48386981 | D8: 34751232 | E8: 40340235 | F8: 41159482.67 | G8: 49993781 | H8: 48415139 | I8: 32809809 | J8: 43739576.33 | K8: 24866456 | L8: 28392314 | M8: 29941808 | N8: 27733526 | O8: 8953370 | P8: 5853701 | Q8: 8100659 | R8: 7635910 | S8: 30067123.75 | T8: 31375808.5 | U8: 49993781 | V8: 5853701
B9: CARD | C9: 358060 | D9: 253643 | E9: 314725 | F9: 308809.3333 | G9: 419875 | H9: 410686 | I9: 300377 | J9: 376979.3333 | K9: 250534 | L9: 290653 | M9: 280800 | N9: 273995.6667 | O9: 139987 | P9: 82265 | Q9: 126568 | R9: 116273.3333 | S9: 269014.4167 | T9: 285726.5 | U9: 419875 | V9: 82265
A10: Percentage of reads remaining | B10: Initial | C10: =(C5/C$5)*100 -> 100 | D10: 100 | E10: 100 | F10: 100 | G10: =(G5/G$5)*100 -> 100 | H10: 100 | I10: 100 | J10: 100 | K10: =(K5/K$5)*100 -> 100 | L10: 100 | M10: 100 | N10: 100 | O10: =(O5/O$5)*100 -> 100 | P10: 100 | Q10: 100 | R10: 100 | S10: 100 | T10: 100 | U10: 100 | V10: 100
B11: After Kneaddata | C11: 99.78625996 | D11: 74.82565765 | E11: 99.8425537 | F11: 91.48482377 | G11: 99.77373486 | H11: 99.80014344 | I11: 92.35891217 | J11: 97.31093015 | K11: 99.75511967 | L11: 99.74670627 | M11: 99.72838702 | N11: 99.74340432 | O11: 99.84881437 | P11: 86.48525222 | Q11: 99.78035582 | R11: 95.37147414 | S11: 95.9776581 | T11: 99.76442727 | U11: 99.84881437 | V11: 74.82565765
B12: Bracken filtered | C12: =(C8/C$5)*100 -> 27.23733791 | D12: =(D8/D$5)*100 -> 22.76890317 | E12: =(E8/E$5)*100 -> 28.56060164 | F12: 26.18894758 | G12: =(G8/G$5)*100 -> 31.11891417 | H12: =(H8/H$5)*100 -> 28.65306673 | I12: =(I8/I$5)*100 -> 23.50839376 | J12: 27.76012489 | K12: =(K8/K$5)*100 -> 17.91499248 | L12: =(L8/L$5)*100 -> 17.92145963 | M12: =(M8/M$5)*100 -> 21.22636308 | N12: 19.0209384 | O12: =(O8/O$5)*100 -> 4.6668857 | P12: =(P8/P$5)*100 -> 4.100475007 | Q12: =(Q8/Q$5)*100 -> 5.041975074 | R12: 4.603111927 | S12: 19.3932807 | T12: 21.99763313 | U12: 31.11891417 | V12: 4.100475007

Sheet S1B Taxonomic annotation
A1: Table S1B. Taxonomic annotations obtained from Kraken2 with Bracken and a confidence threshold of 0.3
A2: Note that NCBI taxonomy ID's and taxonomy are updated as of version V211 of NCBI RefSeq and GTDB taxonomy is updated as of release 207.
A4: NCBI taxid | B4: Species name (Bracken) | C4: Full NCBI taxonomy | D4: Full GTDB taxonomy | E4: LDPE | J4: Weathered LDPE | O4: Wood | T4: Water
E5: D7 | F5: D8 | G5: D9 | H5: Average reads | I5: Average relative abundance (%) | J5: D4 | K5: D5 | L5: D6 | M5: Average reads | N5: Average relative abundance (%) | O5: D1 | P5: D2 | Q5: D3 | R5: Average reads | S5: Average relative abundance (%) | T5: D10 | U5: D11 | V5: D12 | W5: Average reads | X5: Average relative abundance (%)
A6: 17 | B6: Methylophilus methylotrophus | C6: Bacteria; Proteobacteria; Betaproteobacteria; Nitrosomonadales; Methylophilaceae; Methylophilus | D6: d__Bacteria;p__Proteobacteria;c__Gammaproteobacteria;o__Burkholderiales;f__Methylophilaceae;g__Methylophilus;s__Methylophilus methylotrophus | E6: 439 | F6: 269 | G6: 569 | H6: =AVERAGE(E6:G6) -> 425.6666667 | I6: =(H6/$H$9255)*100 -> 0.001034188574 | J6: 494 | K6: 422 | L6: 148 | M6: =AVERAGE(J6:L6) -> 354.6666667 | N6: =(M6/$M$9255)*100 -> 0.0008108598583 | O6: 154 | P6: 330 | Q6: 373 | R6: =AVERAGE(O6:Q6) -> 285.6666667 | S6: =(R6/$R$9255)*100 -> 0.001030040921 | T6: 8 | U6: 9 | V6: 10 | W6: =AVERAGE(T6:V6) -> 9 | X6: =(W6/$W$9255)*100 -> 0.0001178641445
A7: 21 | B7: Phenylobacterium immobile | C7: Bacteria; Proteobacteria; Alphaproteobacteria; Caulobacterales; Caulobacteraceae; Phenylobacterium | D7: d__Bacteria;p__Proteobacteria;c__Alphaproteobacteria;o__Caulobacterales;f__Caulobacteraceae;g__Phenylobacterium;s__Phenylobacterium immobile | E7: 8069 | F7: 3368 | G7: 3398 | H7: =AVERAGE(E7:G7) -> 4945 | I7: 0.01201424236 | J7: 2584 | K7: 3946 | L7: 2126 | M7: =AVERAGE(J7:L7) -> 2885.333333 | N7: 0.006596619298 | O7: 3503 | P7: 4060 | Q7: 2929 | R7: =AVERAGE(O7:Q7) -> 3497.333333 | S7: =(R7/$R$9255)*100 -> 0.01261048932 | T7: 639 | U7: 254 | V7: 477 | W7: =AVERAGE(T7:V7) -> 456.6666667 | X7: =(W7/$W$9255)*100 -> 0.005980514001
A8: 24 | B8: Shewanella putrefaciens | C8: Bacteria; Proteobacteria; Gammaproteobacteria; Alteromonadales; Shewanellaceae; Shewanella | D8: d__Bacteria;p__Proteobacteria;c__Gammaproteobacteria;o__Enterobacterales;f__Shewanellaceae;g__Shewanella;s__Shewanella putrefaciens | E8: 2316 | F8: 1776 | G8: 2729 | H8: 2273.666667 | I8: 0.005524040924 | J8: 2577 | K8: 3098 | L8: 1687 | M8: 2454 | N8: 0.005610479583 | O8: 2965 | P8: 3184 | Q8: 2437 | R8: 2862 | S8: 0.01031963985 | T8: 534 | U8: 471 | V8: 513 | W8: 506 | X8: 0.006626584127
A9: 34 | B9: Myxococcus xanthus | C9: Bacteria; Proteobacteria; Deltaproteobacteria; Myxococcales; Myxococcaceae; Myxococcus | D9: d__Bacteria;p__Myxococcota;c__Myxococcia;o__Myxococcales;f__Myxococcaceae;g__Myxococcus;s__Myxococcus xanthus | E9: 3 | F9: 7 | G9: 18 | H9: 9.333333333 | I9: 2.267602197e-05 | J9: 0 | K9: 12 | L9: 0 | M9: 4 | N9: 9.145035996e-06 | O9: 10 | P9: 5 | Q9: 3 | R9: 6 | S9: 2.163446509e-05 | T9: 0 | U9: 0 | V9: 0 | W9: 0 | X9: 0
A10: 35 | B10: Corallococcus macrosporus | C10: Bacteria; Proteobacteria; Deltaproteobacteria; Myxococcales; Myxococcaceae; Corallococcus | D10: d__Bacteria;p__Myxococcota;c__Myxococcia;o__Myxococcales;f__Myxococcaceae;g__Corallococcus;s__Corallococcus macrosporus_A | E10: 11 | F10: 0 | G10: 4 | H10: 5 | I10: 1.214786891e-05 | J10: 0 | K10: 11 | L10: 10 | M10: 7 | N10: 1.600381299e-05 | O10: 11 | P10: 10 | Q10: 10 | R10: 10.33333333 | S10: 3.725935654e-05 | T10: 2 | U10: 1 | V10: 0 | W10: 1 | X10: 1.309601606e-05
A11: 51 | B11: Chondromyces apiculatus | C11: Bacteria; Proteobacteria; Deltaproteobacteria; Myxococcales; Polyangiaceae; Chondromyces | D11: d__Bacteria;p__Myxococcota;c__Polyangia;o__Polyangiales;f__Polyangiaceae;g__Chondromyces;s__Chondromyces apiculatus | E11: 46 | F11: 6 | G11: 0 | H11: 17.33333333 | I11: 4.211261223e-05 | J11: 13 | K11: 0 | L11: 0 | M11: 4.333333333 | N11: 9.907122329e-06 | O11: 37 | P11: 26 | Q11: 31 | R11: 31.33333333 | S11: 0.0001129799843 | T11: 0 | U11: 9 | V11: 12 | W11: 7 | X11: 9.167211243e-05
A12: 52 | B12: Chondromyces crocatus | C12: Bacteria; Proteobacteria; Deltaproteobacteria; Myxococcales; Polyangiaceae; Chondromyces | D12: d__Bacteria;p__Myxococcota;c__Polyangia;o__Polyangiales;f__Polyangiaceae;g__Chondromyces;s__Chondromyces crocatus | E12: 15 | F12: 4 | G12: 13 | H12: 10.66666667 | I12: 2.591545368e-05 | J12: 9 | K12: 10 | L12: 7 | M12: 8.666666667 | N12: 1.981424466e-05 | O12: 32 | P12: 5 | Q12: 9 | R12: 15.33333333 | S12: 5.528807745e-05 | T12: 0 | U12: 13 | V12: 0 | W12: 4.333333333 | X12: 5.674940293e-05
A13: 54 | B13: Nannocystis exedens | C13: Bacteria; Proteobacteria; Deltaproteobacteria; Myxococcales; Nannocystaceae; Nannocystis | D13: d__Bacteria;p__Myxococcota;c__Polyangia;o__Nannocystales;f__Nannocystaceae;g__Nannocystis;s__Nannocystis exedens | E13: 238 | F13: 53 | G13: 157 | H13: 149.3333333 | I13: 0.0003628163516 | J13: 131 | K13: 208 | L13: 115 | M13: 151.3333333 | N13: 0.0003459871952 | O13: 315 | P13: 294 | Q13: 343 | R13: 317.3333333 | S13: 0.00114422282 | T13: 47 | U13: 45 | V13: 79 | W13: 57 | X13: 0.0007464729155
A14: 56 | B14: Sorangium cellulosum | C14: Bacteria; Proteobacteria; Deltaproteobacteria; Myxococcales; Polyangiaceae; Sorangium | D14: d__Bacteria;p__Myxococcota;c__Polyangia;o__Polyangiales;f__Polyangiaceae;g__Sorangium;s__Sorangium cellulosum_F | E14: 1379 | F14: 426 | G14: 423 | H14: 742.6666667 | I14: 0.001804363463 | J14: 456 | K14: 537 | L14: 344 | M14: 445.6666667 | N14: 0.001018909427 | O14: 1527 | P14: 1576 | Q14: 1425 | R14: 1509.333333 | S14: 0.005442269884 | T14: 61 | U14: 33 | V14: 317 | W14: 137 | X14: 0.0017941542
A15: 61 | B15: Vitreoscilla stercoraria | C15: Bacteria; Proteobacteria; Betaproteobacteria; Neisseriales; Neisseriaceae; Vitreoscilla | D15: d__Bacteria;p__Proteobacteria;c__Gammaproteobacteria;o__Burkholderiales;f__Neisseriaceae;g__Vitreoscilla;s__Vitreoscilla stercoraria | E15: 509 | F15: 595 | G15: 430 | H15: 511.3333333 | I15: 0.001242322061 | J15: 514 | K15: 414 | L15: 233 | M15: 387 | N15: 0.0008847822326 | O15: 452 | P15: 437 | Q15: 339 | R15: 409.3333333 | S15: 0.001475951285 | T15: 0 | U15: 0 | V15: 37 | W15: 12.33333333 | X15: 0.0001615175314
A16: 63 | B16: Vitreoscilla filiformis | C16: Bacteria; Proteobacteria; Betaproteobacteria; Neisseriales; Neisseriaceae; Vitreoscilla | D16: d__Bacteria;p__Proteobacteria;c__Gammaproteobacteria;o__Burkholderiales;f__Burkholderiaceae;g__Ideonella;s__Ideonella filiformis | E16: 158 | F16: 87 | G16: 107 | H16: 117.3333333 | I16: 0.0002850699905 | J16: 48 | K16: 52 | L16: 47 | M16: 49 | N16: 0.0001120266909 | O16: 56 | P16: 49 | Q16: 43 | R16: 49.33333333 | S16: 0.0001778833796 | T16: 1 | U16: 8 | V16: 2 | W16: 3.666666667 | X16: 4.801872556e-05
A17: 65 | B17: Herpetosiphon aurantiacus | C17: Bacteria; Chloroflexi; Chloroflexia; Herpetosiphonales; Herpetosiphonaceae; Herpetosiphon | D17: d__Bacteria;p__Chloroflexota;c__Chloroflexia;o__Chloroflexales;f__Herpetosiphonaceae;g__Herpetosiphon;s__Herpetosiphon aurantiacus | E17: 78 | F17: 68 | G17: 76 | H17: 74 | I17: 0.0001797884599 | J17: 112 | K17: 0 | L17: 62 | M17: 58 | N17: 0.0001326030219 | O17: 387 | P17: 694 | Q17: 287 | R17: 456 | S17: 0.001644219347 | T17: 0 | U17: 0 | V17: 0 | W17: 0 | X17: 0
A18: 69 | B18: Lysobacter enzymogenes | C18: Bacteria; Proteobacteria; Gammaproteobacteria; Xanthomonadales; Xanthomonadaceae; Lysobacter | D18: d__Bacteria;p__Proteobacteria;c__Gammaproteobacteria;o__Xanthomonadales;f__Xanthomonadaceae;g__Lysobacter;s__Lysobacter enzymogenes | E18: 30 | F18: 0 | G18: 14 | H18: 14.66666667 | I18: 3.563374881e-05 | J18: 95 | K18: 42 | L18: 0 | M18: 45.66666667 | N18: 0.0001044058276 | O18: 92 | P18: 48 | Q18: 127 | R18: 89 | S18: 0.0003209112321 | T18: 0 | U18: 0 | V18: 46 | W18: 15.33333333 | X18: 0.0002008055796
A19: 84 | B19: Hyphomicrobium methylovorum | C19: Bacteria; Proteobacteria; Alphaproteobacteria; Hyphomicrobiales; Hyphomicrobiaceae; Hyphomicrobium | D19: d__Bacteria;p__Proteobacteria;c__Alphaproteobacteria;o__Rhizobiales;f__Hyphomicrobiaceae;g__Hyphomicrobium;s__Hyphomicrobium methylovorum | E19: 1 | F19: 6 | G19: 0 | H19: 2.333333333 | I19: 5.669005493e-06 | J19: 0 | K19: 0 | L19: 0 | M19: 0 | N19: 0 | O19: 8 | P19: 8 | Q19: 0 | R19: 5.333333333 | S19: 1.923063563e-05 | T19: 31 | U19: 14 | V19: 17 | W19: 20.66666667 | X19: 0.0002706509986
A20: 87 | B20: Hyphomonas sp. | C20: Bacteria; Proteobacteria; Alphaproteobacteria; Hyphomonadales; Hyphomonadaceae; Hyphomonas | D20: d__Bacteria;p__Proteobacteria;c__Alphaproteobacteria;o__Caulobacterales;f__Hyphomonadaceae;g__Hyphomonas;s__Hyphomonas sp000682775 | E20: 95 | F20: 7 | G20: 78 | H20: 60 | I20: 0.000145774427 | J20: 40 | K20: 12 | L20: 43 | M20: 31.66666667 | N20: 7.239820163e-05 | O20: 42 | P20: 104 | Q20: 35 | R20: 60.33333333 | S20: 0.0002175465656 | T20: 0 | U20: 26 | V20: 12 | W20: 12.66666667 | X20: 0.0001658828701
A21: 94 | B21: Stella humosa | C21: Bacteria; Proteobacteria; Alphaproteobacteria; Rhodospirillales; Stellaceae; Stella | D21: d__Bacteria;p__Proteobacteria;c__Alphaproteobacteria;o__ATCC43930;f__Stellaceae;g__Stella;s__Stella humosa | E21: 1533 | F21: 874 | G21: 1074 | H21: 1160.333333 | I21: 0.002819115446 | J21: 1013 | K21: 835 | L21: 494 | M21: 780.6666667 | N21: 0.001784806192 | O21: 922 | P21: 1091 | Q21: 975 | R21: 996 | S21: 0.003591321205 | T21: 1140 | U21: 977 | V21: 1354 | W21: 1157 | X21: 0.01515209058
A22: 100 | B22: Ancylobacter aquaticus | C22: Bacteria; Proteobacteria; Alphaproteobacteria; Hyphomicrobiales; Xanthobacteraceae; Ancylobacter | D22: d__Bacteria;p__Proteobacteria;c__Alphaproteobacteria;o__Rhizobiales;f__Xanthobacteraceae;g__Ancylobacter;s__Ancylobacter aquaticus | E22: 75 | F22: 123 | G22: 30 | H22: 76 | I22: 0.0001846476075 | J22: 46 | K22: 17 | L22: 16 | M22: 26.33333333 | N22: 6.02048203e-05 | O22: 88 | P22: 68 | Q22: 31 | R22: 62.33333333 | S22: 0.000224758054 | T22: 163 | U22: 33 | V22: 66 | W22: 87.33333333 | X22: 0.001143718736
A23: 103 | B23: Flectobacillus major | C23: Bacteria; Bacteroidetes; Cytophagia; Cytophagales; Cytophagaceae; Flectobacillus | D23: d__Bacteria;p__Bacteroidota;c__Bacteroidia;o__Cytophagales;f__Spirosomaceae;g__Flectobacillus;s__Flectobacillus major | E23: 2549 | F23: 1930 | G23: 2641 | H23: 2373.333333 | I23: 0.005766188444 | J23: 1397 | K23: 940 | L23: 699 | M23: 1012 | N23: 0.002313694107 | O23: 4979 | P23: 5900 | Q23: 6073 | R23: 5650.666667 | S23: 0.02037485845 | T23: 2141 | U23: 713 | V23: 1226 | W23: 1360 | X23: 0.01781058184
A24: 106 | B24: Runella slithyformis | C24: Bacteria; Bacteroidetes; Cytophagia; Cytophagales; Cytophagaceae; Runella | D24: d__Bacteria;p__Bacteroidota;c__Bacteroidia;o__Cytophagales;f__Spirosomaceae;g__REAB01;s__REAB01 sp004293645 | E24: 738 | F24: 511 | G24: 494 | H24: 581 | I24: 0.001411582368 | J24: 124 | K24: 169 | L24: 168 | M24: 153.6666667 | N24: 0.0003513217995 | O24: 427 | P24: 540 | Q24: 436 | R24: 467.6666667 | S24: 0.001686286362 | T24: 221 | U24: 149 | V24: 205 | W24: 191.6666667 | X24: 0.002510069745
A25: 108 | B25: Spirosoma linguale | C25: Bacteria; Bacteroidetes; Cytophagia; Cytophagales; Cytophagaceae; Spirosoma | D25: d__Bacteria;p__Bacteroidota;c__Bacteroidia;o__Cytophagales;f__Spirosomaceae;g__Spirosoma;s__Spirosoma linguale | E25: 1275 | F25: 742 | G25: 1053 | H25: 1023.333333 | I25: 0.002486263838 | J25: 421 | K25: 499 | L25: 248 | M25: 389.3333333 | N25: 0.0008901168369 | O25: 723 | P25: 513 | Q25: 747 | R25: 661 | S25: 0.002383396904 | T25: 254 | U25: 165 | V25: 123 | W25: 180.6666667 | X25: 0.002366013568
A26: 114 | B26: Gemmata obscuriglobus | C26: Bacteria; Planctomycetes; Planctomycetia; Gemmatales; Gemmataceae; Gemmata | D26: d__Bacteria;p__Planctomycetota;c__Planctomycetia;o__Gemmatales;f__Gemmataceae;g__Gemmata;s__Gemmata obscuriglobus | E26: 13 | F26: 2 | G26: 3 | H26: 6 | I26: 1.45774427e-05 | J26: 2 | K26: 2 | L26: 2 | M26: 2 | N26: 4.572517998e-06 | O26: 6 | P26: 3 | Q26: 16 | R26: 8.333333333 | S26: 3.004786818e-05 | T26: 0 | U26: 3 | V26: 2 | W26: 1.666666667 | X26: 2.182669343e-05
A27: 120 | B27: Planctopirus limnophila | C27: Bacteria; Planctomycetes; Planctomycetia; Planctomycetales; Planctomycetaceae; Planctopirus | D27: d__Bacteria;p__Planctomycetota;c__Planctomycetia;o__Planctomycetales;f__Planctomycetaceae;g__Planctopirus;s__Planctopirus limnophila | E27: 0 | F27: 0 | G27: 0 | H27: 0 | I27: 0 | J27: 0 | K27: 631 | L27: 505 | M27: 378.6666667 | N27: 0.0008657300742 | O27: 1187 | P27: 1262 | Q27: 1217 | R27: 1222 | S27: 0.004406219389 | T27: 0 | U27: 0 | V27: 1594 | W27: 531.3333333 | X27: 0.006958349867
A28: 125 | B28: Pirellula staleyi | C28: Bacteria; Planctomycetes; Planctomycetia; Pirellulales; Pirellulaceae; Pirellula | D28: d__Bacteria;p__Planctomycetota;c__Planctomycetia;o__Pirellulales;f__Pirellulaceae;g__Pirellula;s__Pirellula staleyi | E28: 15 | F28: 30 | G28: 0 | H28: 15 | I28: 3.644360674e-05 | J28: 0 | K28: 22 | L28: 0 | M28: 7.333333333 | N28: 1.676589933e-05 | O28: 4 | P28: 31 | Q28: 4 | R28: 13 | S28: 4.687467436e-05 | T28: 4 | U28: 0 | V28: 2 | W28: 2 | X28: 2.619203212e-05
A29: 147 | B29: Spirochaeta aurantia | C29: Bacteria; Spirochaetes; Spirochaetia; Spirochaetales; Spirochaetaceae; Spirochaeta | E29: 13 | F29: 14 | G29: 29 | H29: 18.66666667 | I29: 4.535204395e-05 | J29: 20 | K29: 52 | L29: 58 | M29: 43.33333333 | N29: 9.907122329e-05 | O29: 49 | P29: 91 | Q29: 22 | R29: 54 | S29: 0.0001947101858 | T29: 9 | U29: 4 | V29: 2 | W29: 5 | X29: 6.54800803e-05
A30: 159 | B30: Brachyspira hyodysenteriae | C30: Bacteria; Spirochaetes; Spirochaetia; Brachyspirales; Brachyspiraceae; Brachyspira | D30: d__Bacteria;p__Spirochaetota;c__Brachyspirae;o__Brachyspirales;f__Brachyspiraceae;g__Brachyspira;s__Brachyspira hyodysenteriae | E30: 0 | F30: 0 | G30: 0 | H30: 0 | I30: 0 | J30: 0 | K30: 0 | L30: 0 | M30: 0 | N30: 0 | O30: 0 | P30: 0 | Q30: 1 | R30: 0.3333333333 | S30: 1.201914727e-06 | T30: 10 | U30: 11 | V30: 9 | W30: 10 | X30: 0.0001309601606
A31: 163 | B31: Treponema bryantii | C31: Bacteria; Spirochaetes; Spirochaetia; Spirochaetales; Treponemataceae; Treponema | D31: d__Bacteria;p__Spirochaetota;c__Spirochaetia;o__Treponematales;f__Treponemataceae;g__Treponema_D;s__Treponema_D bryantii_A | E31: 2 | F31: 0 | G31: 2 | H31: 1.333333333 | I31: 3.23943171e-06 | J31: 0 | K31: 2 | L31: 1 | M31: 1 | N31: 2.286258999e-06 | O31: 0 | P31: 12 | Q31: 9 | R31: 7 | S31: 2.524020927e-05 | T31: 0 | U31: 0 | V31: 0 | W31: 0 | X31: 0
A32: 165 | B32: Treponema saccharophilum | C32: Bacteria; Spirochaetes; Spirochaetia; Spirochaetales; Treponemataceae; Treponema | D32: d__Bacteria;p__Spirochaetota;c__Spirochaetia;o__Treponematales;f__Treponemataceae;g__Treponema_D;s__Treponema_D saccharophilum | E32: 0 | F32: 17 | G32: 0 | H32: 5.666666667 | I32: 1.376758477e-05 | J32: 0 | K32: 32 | L32: 0 | M32: 10.66666667 | N32: 2.438676265e-05 | O32: 0 | P32: 21 | Q32: 0 | R32: 7 | S32: 2.524020927e-05 | T32: 0 | U32: 0 | V32: 0 | W32: 0 | X32: 0
A33: 167 | B33: Treponema succinifaciens | C33: Bacteria; Spirochaetes; Spirochaetia; Spirochaetales; Treponemataceae; Treponema | D33: d__Bacteria;p__Spirochaetota;c__Spirochaetia;o__Treponematales;f__Treponemataceae;g__Treponema_D;s__Treponema_D succinifaciens | E33: 23 | F33: 10 | G33: 0 | H33: 11 | I33: 2.672531161e-05 | J33: 10 | K33: 12 | L33: 7 | M33: 9.666666667 | N33: 2.210050366e-05 | O33: 89 | P33: 124 | Q33: 34 | R33: 82.33333333 | S33: 0.0002968729376 | T33: 7 | U33: 9 | V33: 10 | W33: 8.666666667 | X33: 0.0001134988059
A34: 172 | B34: Leptospira biflexa | C34: Bacteria; Spirochaetes; Spirochaetia; Leptospirales; Leptospiraceae; Leptospira | D34: d__Bacteria;p__Spirochaetota;c__Leptospirae;o__Leptospirales;f__Leptospiraceae;g__Leptospira_A;s__Leptospira_A biflexa | E34: 5138 | F34: 2045 | G34: 2612 | H34: 3265 | I34: 0.007932558401 | J34: 1560 | K34: 5250 | L34: 4565 | M34: 3791.666667 | N34: 0.008668732037 | O34: 10892 | P34: 11451 | Q34: 7097 | R34: 9813.333333 | S34: 0.03538436957 | T34: 1109 | U34: 473 | V34: 872 | W34: 818 | X34: 0.01071254114
A35: 174 | B35: Leptospira borgpetersenii | C35: Bacteria; Spirochaetes; Spirochaetia; Leptospirales; Leptospiraceae; Leptospira | D35: d__Bacteria;p__Spirochaetota;c__Leptospirae;o__Leptospirales;f__Leptospiraceae;g__Leptospira;s__Leptospira borgpetersenii | E35: 0 | F35: 0 | G35: 0 | H35: 0 | I35: 0 | J35: 496 | K35: 0 | L35: 0 | M35: 165.3333333 | N35: 0.0003779948212 | O35: 0 | P35: 0 | Q35: 118 | R35: 39.33333333 | S35: 0.0001418259378 | T35: 0 | U35: 0 | V35: 330 | W35: 110 | X35: 0.001440561767
A36: 183 | B36: Leptonema illini | C36: Bacteria; Spirochaetes; Spirochaetia; Leptospirales; Leptospiraceae; Leptonema | D36: d__Bacteria;p__Spirochaetota;c__Leptospirae;o__Leptospirales;f__Leptonemataceae;g__Leptonema;s__Leptonema illini | E36: 21 | F36: 26 | G36: 11 | H36: 19.33333333 | I36: 4.69717598e-05 | J36: 17 | K36: 9 | L36: 7 | M36: 11 | N36: 2.514884899e-05 | O36: 32 | P36: 25 | Q36: 35 | R36: 30.66666667 | S36: 0.0001105761549 | T36: 4 | U36: 1 | V36: 3 | W36: 2.666666667 | X36: 3.49227095e-05
A37: 189 | B37: Novispirillum itersonii | C37: Bacteria; Proteobacteria; Alphaproteobacteria; Rhodospirillales; Rhodospirillaceae; Novispirillum | D37: d__Bacteria;p__Proteobacteria;c__Alphaproteobacteria;o__Rhodospirillales;f__Rhodospirillaceae;g__Novispirillum;s__Novispirillum itersonii_A | E37: 14 | F37: 6 | G37: 12 | H37: 10.66666667 | I37: 2.591545368e-05 | J37: 15 | K37: 11 | L37: 32 | M37: 19.33333333 | N37: 4.420100731e-05 | O37: 24 | P37: 14 | Q37: 15 | R37: 17.66666667 | S37: 6.370148054e-05 | T37: 0 | U37: 0 | V37: 0 | W37: 0 | X37: 0
A38: 190 | B38: Aquaspirillum serpens | C38: Bacteria; Proteobacteria; Betaproteobacteria; Neisseriales; Chromobacteriaceae; Aquaspirillum | D38: d__Bacteria;p__Proteobacteria;c__Gammaproteobacteria;o__Burkholderiales;f__Aquaspirillaceae;g__Aquaspirillum;s__Aquaspirillum serpens | E38: 167 | F38: 33 | G38: 26 | H38: 75.33333333 | I38: 0.0001830278916 | J38: 35 | K38: 0 | L38: 21 | M38: 18.66666667 | N38: 4.267683465e-05 | O38: 58 | P38: 55 | Q38: 105 | R38: 72.66666667 | S38: 0.0002620174105 | T38: 3 | U38: 8 | V38: 12 | W38: 7.666666667 | X38: 0.0001004027898
A39: 192 | B39: Azospirillum brasilense | C39: Bacteria; Proteobacteria; Alphaproteobacteria; Rhodospirillales; Azospirillaceae; Azospirillum | D39: d__Bacteria;p__Proteobacteria;c__Alphaproteobacteria;o__Azospirillales;f__Azospirillaceae;g__Azospirillum;s__Azospirillum baldaniorum | E39: 0 | F39: 14 | G39: 34 | H39: 16 | I39: 3.887318052e-05 | J39: 0 | K39: 10 | L39: 28 | M39: 12.66666667 | N39: 2.895928065e-05 | O39: 0 | P39: 0 | Q39: 0 | R39: 0 | S39: 0 | T39: 0 | U39: 0 | V39: 0 | W39: 0 | X39: 0
A40: 195 | B40: Campylobacter coli | C40: Bacteria; Proteobacteria; Epsilonproteobacteria; Campylobacterales; Campylobacteraceae; Campylobacter | D40: d__Bacteria;p__Campylobacterota;c__Campylobacteria;o__Campylobacterales;f__Campylobacteraceae;g__Campylobacter_D;s__Campylobacter_D coli | E40: 3194 | F40: 2521 | G40: 2851 | H40: 2855.333333 | I40: 0.006937243008 | J40: 2030 | K40: 2077 | L40: 1961 | M40: 2022.666667 | N40: 0.004624339868 | O40: 5658 | P40: 3838 | Q40: 2817 | R40: 4104.333333 | S40: 0.01479917603 | T40: 41256 | U40: 21750 | V40: 29727 | W40: 30911 | X40: 0.4048109525
A41: 197 | B41: Campylobacter jejuni | C41: Bacteria; Proteobacteria; Epsilonproteobacteria; Campylobacterales; Campylobacteraceae; Campylobacter | D41: d__Bacteria;p__Campylobacterota;c__Campylobacteria;o__Campylobacterales;f__Campylobacteraceae;g__Campylobacter_D;s__Campylobacter_D jejuni | E41: 1552 | F41: 840 | G41: 3700 | H41: 2030.666667 | I41: 0.004933654495 | J41: 1704 | K41: 0 | L41: 1359 | M41: 1021 | N41: 0.002334270438 | O41: 825 | P41: 1401 | Q41: 647 | R41: 957.6666667 | S41: 0.003453101011 | T41: 49 | U41: 0 | V41: 0 | W41: 16.33333333 | X41: 0.0002139015957
A42: 238 | B42: Elizabethkingia meningoseptica | C42: Bacteria; Bacteroidetes; Flavobacteriia; Flavobacteriales; Weeksellaceae; Elizabethkingia | D42: d__Bacteria;p__Bacteroidota;c__Bacteroidia;o__Flavobacteriales;f__Weeksellaceae;g__Elizabethkingia;s__Elizabethkingia meningoseptica | E42: 0 | F42: 0 | G42: 10 | H42: 3.333333333 | I42: 8.098579276e-06 | J42: 10 | K42: 6 | L42: 0 | M42: 5.333333333 | N42: 1.219338133e-05 | O42: 0 | P42: 54 | Q42: 8 | R42: 20.66666667 | S42: 7.451871308e-05 | T42: 0 | U42: 0 | V42: 0 | W42: 0 | X42: 0
A43: 239 | B43: Flavobacterium sp. | C43: Bacteria; Bacteroidetes; Flavobacteriia; Flavobacteriales; Flavobacteriaceae; Flavobacterium | D43: d__Bacteria;p__Bacteroidota;c__Bacteroidia;o__Flavobacteriales;f__Flavobacteriaceae;g__Flavobacterium;s__Flavobacterium sp017989775 | E43: 1080 | F43: 673 | G43: 1219 | H43: 990.6666667 | I43: 0.002406897761 | J43: 727 | K43: 720 | L43: 506 | M43: 651 | N43: 0.001488354608 | O43: 717 | P43: 664 | Q43: 640 | R43: 673.6666667 | S43: 0.002429069663 | T43: 384 | U43: 153 | V43: 224 | W43: 253.6666667 | X43: 0.003322022741
A44: 245 | B44: Flavobacterium aquatile | C44: Bacteria; Bacteroidetes; Flavobacteriia; Flavobacteriales; Flavobacteriaceae; Flavobacterium | D44: d__Bacteria;p__Bacteroidota;c__Bacteroidia;o__Flavobacteriales;f__Flavobacteriaceae;g__Flavobacterium;s__Flavobacterium aquatile | E44: 21378 | F44: 18135 | G44: 24565 | H44: 21359.33333 | I44: 0.05189407628 | J44: 18781 | K44: 18566 | L44: 9557 | M44: 15634.66667 | N44: 0.03574489736 | O44: 9029 | P44: 10924 | Q44: 9903 | R44: 9952 | S44: 0.03588436609 | T44: 5860 | U44: 1505 | V44: 2164 | W44: 3176.333333 | X44: 0.04159731235
A45: 246 | B45: Chryseobacterium balustinum | C45: Bacteria; Bacteroidetes; Flavobacteriia; Flavobacteriales; Weeksellaceae; Chryseobacterium | D45: d__Bacteria;p__Bacteroidota;c__Bacteroidia;o__Flavobacteriales;f__Weeksellaceae;g__Chryseobacterium;s__Chryseobacterium balustinum | E45: 119 | F45: 84 | G45: 94 | H45: 99 | I45: 0.0002405278045 | J45: 117 | K45: 161 | L45: 77 | M45: 118.3333333 | N45: 0.0002705406482 | O45: 162 | P45: 119 | Q45: 116 | R45: 132.3333333 | S45: 0.0004771601467 | T45: 5 | U45: 3 | V45: 3 | W45: 3.666666667 | X45: 4.801872556e-05
A46: 247 | B46: Empedobacter brevis | C46: Bacteria; Bacteroidetes; Flavobacteriia; Flavobacteriales; Weeksellaceae; Empedobacter | D46: d__Bacteria;p__Bacteroidota;c__Bacteroidia;o__Flavobacteriales;f__Weeksellaceae;g__Empedobacter;s__Empedobacter brevis | E46: 114 | F46: 57 | G46: 35 | H46: 68.66666667 | I46: 0.0001668307331 | J46: 53 | K46: 55 | L46: 55 | M46: 54.33333333 | N46: 0.0001242200723 | O46: 109 | P46: 47 | Q46: 115 | R46: 90.33333333 | S46: 0.000325718891 | T46: 0 | U46: 0 | V46: 0 | W46: 0 | X46: 0
A47: 249 | B47: Terrimonas ferruginea | C47: Bacteria; Bacteroidetes; Chitinophagia; Chitinophagales; Chitinophagaceae; Terrimonas | D47: d__Bacteria;p__Bacteroidota;c__Bacteroidia;o__Chitinophagales;f__Chitinophagaceae;g__Terrimonas;s__Terrimonas ferruginea | E47: 0 | F47: 30 | G47: 0 | H47: 10 | I47: 2.429573783e-05 | J47: 0 | K47: 45 | L47: 75 | M47: 40 | N47: 9.145035996e-05 | O47: 39 | P47: 10 | Q47: 20 | R47: 23 | S47: 8.293211617e-05 | T47: 7 | U47: 8 | V47: 0 | W47: 5 | X47: 6.54800803e-05
A48: 250 | B48: Chryseobacterium gleum | C48: Bacteria; Bacteroidetes; Flavobacteriia; Flavobacteriales; Weeksellaceae; Chryseobacterium | D48: d__Bacteria;p__Bacteroidota;c__Bacteroidia;o__Flavobacteriales;f__Weeksellaceae;g__Chryseobacterium;s__Chryseobacterium gleum | E48: 24 | F48: 40 | G48: 43 | H48: 35.66666667 | I48: 8.665479825e-05 | J48: 72 | K48: 26 | L48: 6 | M48: 34.66666667 | N48: 7.925697863e-05 | O48: 14 | P48: 3 | Q48: 7 | R48: 8 | S48: 2.884595345e-05 | T48: 4 | U48: 22 | V48: 0 | W48: 8.666666667 | X48: 0.0001134988059
A49: 253 | B49: Chryseobacterium indologenes | C49: Bacteria; Bacteroidetes; Flavobacteriia; Flavobacteriales; Weeksellaceae; Chryseobacterium | D49: d__Bacteria;p__Bacteroidota;c__Bacteroidia;o__Flavobacteriales;f__Weeksellaceae;g__Chryseobacterium;s__Chryseobacterium indologenes | E49: 330 | F49: 200 | G49: 277 | H49: 269 | I49: 0.0006535553476 | J49: 158 | K49: 311 | L49: 132 | M49: 200.3333333 | N49: 0.0004580138861 | O49: 426 | P49: 536 | Q49: 418 | R49: 460 | S49: 0.001658642323 | T49: 412 | U49: 176 | V49: 306 | W49: 298 | X49: 0.003902612786
A50: 254 | B50: Chryseobacterium indoltheticum | C50: Bacteria; Bacteroidetes; Flavobacteriia; Flavobacteriales; Weeksellaceae; Chryseobacterium | D50: d__Bacteria;p__Bacteroidota;c__Bacteroidia;o__Flavobacteriales;f__Weeksellaceae;g__Chryseobacterium;s__Chryseobacterium indoltheticum | E50: 187 | F50: 97 | G50: 128 | H50: 137.3333333 | I50: 0.0003336614662 | J50: 99 | K50: 131 | L50: 79 | M50: 103 | N50: 0.0002354846769 | O50: 84 | P50: 52 | Q50: 50 | R50: 62 | S50: 0.0002235561392 | T50: 8 | U50: 2 | V50: 1 | W50: 3.666666667 | X50: 4.801872556e-05
A51: 256 | B51: Myroides odoratus | C51: Bacteria; Bacteroidetes; Flavobacteriia; Flavobacteriales; Flavobacteriaceae; Myroides | D51: d__Bacteria;p__Bacteroidota;c__Bacteroidia;o__Flavobacteriales;f__Flavobacteriaceae;g__Flavobacterium;s__Flavobacterium odoratum | E51: 16 | F51: 4 | G51: 2 | H51: 7.333333333 | I51: 1.781687441e-05 | J51: 1 | K51: 6 | L51: 0 | M51: 2.333333333 | N51: 5.334604331e-06 | O51: 14 | P51: 0 | Q51: 4 | R51: 6 | S51: 2.163446509e-05 | T51: 0 | U51: 0 | V51: 0 | W51: 0 | X51: 0
A52: 258 | B52: Sphingobacterium spiritivorum | C52: Bacteria; Bacteroidetes; Sphingobacteriia; Sphingobacteriales; Sphingobacteriaceae; Sphingobacterium | D52: d__Bacteria;p__Bacteroidota;c__Bacteroidia;o__Sphingobacteriales;f__Sphingobacteriaceae;g__Sphingobacterium;s__Sphingobacterium sp002418355 | E52: 136 | F52: 69 | G52: 159 | H52: 121.3333333 | I52: 0.0002947882856 | J52: 73 | K52: 71 | L52: 29 | M52: 57.66666667 | N52: 0.0001318409356 | O52: 20 | P52: 32 | Q52: 46 | R52: 32.66666667 | S52: 0.0001177876433 | T52: 9 | U52: 13 | V52: 8 | W52: 10 | X52: 0.0001309601606
A53: 259 | B53: Sphingobacterium thalpophilum | C53: Bacteria; Bacteroidetes; Sphingobacteriia; Sphingobacteriales; Sphingobacteriaceae; Sphingobacterium | D53: d__Bacteria;p__Bacteroidota;c__Bacteroidia;o__Sphingobacteriales;f__Sphingobacteriaceae;g__Sphingobacterium;s__Sphingobacterium thalpophilum | E53: 9 | F53: 0 | G53: 9 | H53: 6 | I53: 1.45774427e-05 | J53: 0 | K53: 8 | L53: 0 | M53: 2.666666667 | N53: 6.096690664e-06 | O53: 5 | P53: 18 | Q53: 18 | R53: 13.66666667 | S53: 4.927850381e-05 | T53: 0 | U53: 0 | V53: 0 | W53: 0 | X53: 0
A54: 266 | B54: Paracoccus denitrificans | C54: Bacteria; Proteobacteria; Alphaproteobacteria; Rhodobacterales; Rhodobacteraceae; Paracoccus | D54: d__Bacteria;p__Proteobacteria;c__Alphaproteobacteria;o__Rhodobacterales;f__Rhodobacteraceae;g__Paracoccus;s__Paracoccus denitrificans_A | E54: 35 | F54: 19 | G54: 34 | H54: 29.33333333 | I54: 7.126749763e-05 | J54: 4 | K54: 8 | L54: 6 | M54: 6 | N54: 1.371755399e-05 | O54: 10 | P54: 9 | Q54: 16 | R54: 11.66666667 | S54: 4.206701545e-05 | T54: 0 | U54: 0 | V54: 2 | W54: 0.6666666667 | X54: 8.730677374e-06
A55: 280 | B55: Xanthobacter autotrophicus | C55: Bacteria; Proteobacteria; Alphaproteobacteria; Hyphomicrobiales; Xanthobacteraceae; Xanthobacter | D55: d__Bacteria;p__Proteobacteria;c__Alphaproteobacteria;o__Rhizobiales;f__Xanthobacteraceae;g__Xanthobacter;s__Xanthobacter autotrophicus | E55: 231 | F55: 204 | G55: 168 | H55: 201 | I55: 0.0004883443303 | J55: 203 | K55: 97 | L55: 121 | M55: 140.3333333 | N55: 0.0003208383462 | O55: 160 | P55: 257 | Q55: 204 | R55: 207 | S55: 0.0007463890455 | T55: 29 | U55: 25 | V55: 87 | W55: 47 | X55: 0.0006155127549
A56: 281 | B56: Xanthobacter flavus | C56: Bacteria; Proteobacteria; Alphaproteobacteria; Hyphomicrobiales; Xanthobacteraceae; Xanthobacter | D56: d__Bacteria;p__Proteobacteria;c__Alphaproteobacteria;o__Rhizobiales;f__Xanthobacteraceae;g__Xanthobacter;s__Xanthobacter flavus | E56: 28 | F56: 132 | G56: 8 | H56: 56 | I56: 0.0001360561318 | J56: 0 | K56: 105 | L56: 55 | M56: 53.33333333 | N56: 0.0001219338133 | O56: 6 | P56: 37 | Q56: 79 | R56: 40.66666667 | S56: 0.0001466335967 | T56: 0 | U56: 0 | V56: 37 | W56: 12.33333333 | X56: 0.0001615175314
A57: 285 | B57: Comamonas testosteroni | C57: Bacteria; Proteobacteria; Betaproteobacteria; Burkholderiales; Comamonadaceae; Comamonas | D57: d__Bacteria;p__Proteobacteria;c__Gammaproteobacteria;o__Burkholderiales;f__Burkholderiaceae;g__Comamonas;s__Comamonas testosteroni_B | E57: 135953 | F57: 81312 | G57: 106851 | H57: 108038.6667 | I57: 0.2624879121 | J57: 59596 | K57: 81768 | L57: 60045 | M57: 67136.33333 | N57: 0.1534910462 | O57: 72578 | P57: 86000 | Q57: 80496 | R57: 79691.33333 | S57: 0.2873465615 | T57: 3644 | U57: 3715 | V57: 4511 | W57: 3956.666667 | X57: 0.05181657021
A58: 287 | B58: Pseudomonas aeruginosa | C58: Bacteria; Proteobacteria; Gammaproteobacteria; Pseudomonadales; Pseudomonadaceae; Pseudomonas | D58: d__Bacteria;p__Proteobacteria;c__Gammaproteobacteria;o__Pseudomonadales;f__Pseudomonadaceae;g__Pseudomonas;s__Pseudomonas aeruginosa | E58: 718615 | F58: 426967 | G58: 641237 | H58: 595606.3333 | I58: 1.447069532 | J58: 4951007 | K58: 4752729 | L58: 4175478 | M58: 4626404.667 | N58: 10.5771593 | O58: 773215 | P58: 890554 | Q58: 1159910 | R58: 941226.3333 | S58: 3.393821375 | T58: 10982 | U58: 11671 | V58: 17842 | W58: 13498.33333 | X58: 0.1767743901
A59: 292 | B59: Burkholderia cepacia | C59: Bacteria; Proteobacteria; Betaproteobacteria; Burkholderiales; Burkholderiaceae; Burkholderia | D59: d__Bacteria;p__Proteobacteria;c__Gammaproteobacteria;o__Burkholderiales;f__Burkholderiaceae;g__Burkholderia;s__Burkholderia cepacia | E59: 70 | F59: 84 | G59: 61 | H59: 71.66666667 | I59: 0.0001741194544 | J59: 62 | K59: 92 | L59: 61 | M59: 71.66666667 | N59: 0.0001638485616 | O59: 14 | P59: 34 | Q59: 55 | R59: 34.33333333 | S59: 0.0001237972169 | T59: 32 | U59: 0 | V59: 7 | W59: 13 | X59: 0.0001702482088
A60: 293 | B60: Brevundimonas diminuta | C60: Bacteria; Proteobacteria; Alphaproteobacteria; Caulobacterales; Caulobacteraceae; Brevundimonas | D60: d__Bacteria;p__Proteobacteria;c__Alphaproteobacteria;o__Caulobacterales;f__Caulobacteraceae;g__Brevundimonas;s__Brevundimonas sp003938605 | E60: 805 | F60: 483 | G60: 754 | H60: 680.6666667 | I60: 0.001653729888 | J60: 706 | K60: 330 | L60: 647 | M60: 561 | N60: 0.001282591298 | O60: 281 | P60: 548 | Q60: 403 | R60: 410.6666667 | S60: 0.001480758944 | T60: 14 | U60: 21 | V60: 0 | W60: 11.66666667 | X60: 0.000152786854
A61: 294 | B61: Pseudomonas fluorescens | C61: Bacteria; Proteobacteria; Gammaproteobacteria; Pseudomonadales; Pseudomonadaceae; Pseudomonas | D61: d__Bacteria;p__Proteobacteria;c__Gammaproteobacteria;o__Pseudomonadales;f__Pseudomonadaceae;g__Pseudomonas_E;s__Pseudomonas_E fluorescens_BH | E61: 37739 | F61: 21563 | G61: 30447 | H61: 29916.33333 | I61: 0.07268393914 | J61: 73363 | K61: 58967 | L61: 44693 | M61: 59007.66667 | N61: 0.1349068089 | O61: 66081 | P61: 81309 | Q61: 73687 | R61: 73692.33333 | S61: 0.2657157021 | T61: 5847 | U61: 5357 | V61: 6995 | W61: 6066.333333 | X61: 0.07944479876
A62: 296 | B62: Pseudomonas fragi | C62: Bacteria; Proteobacteria; Gammaproteobacteria; Pseudomonadales; Pseudomonadaceae; Pseudomonas | D62: d__Bacteria;p__Proteobacteria;c__Gammaproteobacteria;o__Pseudomonadales;f__Pseudomonadaceae;g__Pseudomonas_E;s__Pseudomonas_E fragi | E62: 4012 | F62: 1576 | G62: 3271 | H62: 2953 | I62: 0.007174531381 | J62: 15732 | K62: 13860 | L62: 12692 | M62: 14094.66667 | N62: 0.0322240585 | O62: 4855 | P62: 5663 | Q62: 7677 | R62: 6065 | S62: 0.02186883846 | T62: 189 | U62: 118 | V62: 189 | W62: 165.3333333 | X62: 0.002165207989
A63: 297 | B63: Hydrogenophilus thermoluteolus | C63: Bacteria; Proteobacteria; Hydrogenophilalia; Hydrogenophilales; Hydrogenophilaceae; Hydrogenophilus | D63: d__Bacteria;p__Proteobacteria;c__Gammaproteobacteria;o__Burkholderiales;f__Rhodocyclaceae;g__Hydrogenophilus;s__Hydrogenophilus thermoluteolus | E63: 20 | F63: 7 | G63: 14 | H63: 13.66666667 | I63: 3.320417503e-05 | J63: 10 | K63: 5 | L63: 5 | M63: 6.666666667 | N63: 1.524172666e-05 | O63: 2 | P63: 14 | Q63: 0 | R63: 5.333333333 | S63: 1.923063563e-05 | T63: 4 | U63: 0 | V63: 0 | W63: 1.333333333 | X63: 1.746135475e-05
A64: 298 | B64: Pseudomonas marginalis | C64: Bacteria; Proteobacteria; Gammaproteobacteria; Pseudomonadales; Pseudomonadaceae; Pseudomonas | D64: d__Bacteria;p__Proteobacteria;c__Gammaproteobacteria;o__Pseudomonadales;f__Pseudomonadaceae;g__Pseudomonas_E;s__Pseudomonas_E marginalis_B | E64: 972 | F64: 351 | G64: 764 | H64: 695.6666667 | I64: 0.001690173495 | J64: 1289 | K64: 925 | L64: 535 | M64: 916.3333333 | N64: 0.002094975329 | O64: 2865 | P64: 3485 | Q64: 2599 | R64: 2983 | S64: 0.01075593489 | T64: 240 | U64: 69 | V64: 206 | W64: 171.6666667 | X64: 0.002248149424
A65: 300 | B65: Pseudomonas mendocina | C65: Bacteria; Proteobacteria; Gammaproteobacteria; Pseudomonadales; Pseudomonadaceae; Pseudomonas | D65: d__Bacteria;p__Proteobacteria;c__Gammaproteobacteria;o__Pseudomonadales;f__Pseudomonadaceae;g__Pseudomonas_E;s__Pseudomonas_E mendocina | E65: 1657 | F65: 875 | G65: 1254 | H65: 1262 | I65: 0.003066122114 | J65: 20958 | K65: 20980 | L65: 17345 | M65: 19761 | N65: 0.04517876408 | O65: 2668 | P65: 3579 | Q65: 4744 | R65: 3663.666667 | S65: 0.01321024477 | T65: 80 | U65: 74 | V65: 131 | W65: 95 | X65: 0.001244121526
A66: 301 | B66: Pseudomonas oleovorans | C66: Bacteria; Proteobacteria; Gammaproteobacteria; Pseudomonadales; Pseudomonadaceae; Pseudomonas | D66: d__Bacteria;p__Proteobacteria;c__Gammaproteobacteria;o__Pseudomonadales;f__Pseudomonadaceae;g__Pseudomonas_E;s__Pseudomonas_E oleovorans | E66: 4001 | F66: 2777 | G66: 3352 | H66: 3376.666667 | I66: 0.008203860807 | J66: 24970 | K66: 24207 | L66: 21877 | M66: 23684.66667 | N66: 0.0541492823 | O66: 3980 | P66: 5580 | Q66: 7768 | R66: 5776 | S66: 0.02082677839 | T66: 151 | U66: 141 | V66: 270 | W66: 187.3333333 | X66: 0.002453320342
A67: 303 | B67: Pseudomonas putida | C67: Bacteria; Proteobacteria; Gammaproteobacteria; Pseudomonadales; Pseudomonadaceae; Pseudomonas | D67: d__Bacteria;p__Proteobacteria;c__Gammaproteobacteria;o__Pseudomonadales;f__Pseudomonadaceae;g__Pseudomonas_E;s__Pseudomonas_E putida | E67: 8601 | F67: 5394 | G67: 5928 | H67: 6641 | I67: 0.01613479949 | J67: 21194 | K67: 18639 | L67: 16869 | M67: 18900.66667 | N67: 0.04321181925 | O67: 9520 | P67: 11642 | Q67: 12309 | R67: 11157 | S67: 0.04022928783 | T67: 134 | U67: 138 | V67: 213 | W67: 161.6666667 | X67: 0.002117189263
A68: 304 | B68: Pelomonas saccharophila | C68: Bacteria; Proteobacteria; Betaproteobacteria; Burkholderiales; Comamonadaceae; Pelomonas | D68: d__Bacteria;p__Proteobacteria;c__Gammaproteobacteria;o__Burkholderiales;f__Burkholderiaceae;g__Pelomonas;s__Pelomonas saccharophila | E68: 1623 | F68: 1018 | G68: 1372 | H68: 1337.666667 | I68: 0.003249959863 | J68: 1551 | K68: 1550 | L68: 1402 | M68: 1501 | N68: 0.003431674757 | O68: 2947 | P68: 3637 | Q68: 3358 | R68: 3314 | S68: 0.01194943622 | T68: 146 | U68: 44 | V68: 231 | W68: 140.3333333 | X68: 0.001837807587
A69: 305 | B69: Ralstonia solanacearum | C69: Bacteria; Proteobacteria; Betaproteobacteria; Burkholderiales; Burkholderiaceae; Ralstonia | D69: d__Bacteria;p__Proteobacteria;c__Gammaproteobacteria;o__Burkholderiales;f__Burkholderiaceae;g__Ralstonia;s__Ralstonia solanacearum | E69: 517 | F69: 340 | G69: 455 | H69: 437.3333333 | I69: 0.001062533601 | J69: 284 | K69: 367 | L69: 367 | M69: 339.3333333 | N69: 0.000775803887 | O69: 184 | P69: 324 | Q69: 247 | R69: 251.6666667 | S69: 0.0009074456189 | T69: 50 | U69: 34 | V69: 43 | W69: 42.33333333 | X69: 0.0005543980132
A70: 306 | B70: Pseudomonas sp. | C70: Bacteria; Proteobacteria; Gammaproteobacteria; Pseudomonadales; Pseudomonadaceae; Pseudomonas | D70: d__Bacteria;p__Proteobacteria;c__Gammaproteobacteria;o__Pseudomonadales;f__Pseudomonadaceae;g__Pseudomonas_E;s__Pseudomonas_E lundensis | E70: 242 | F70: 96 | G70: 0 | H70: 112.6666667 | I70: =(H70/$H$9255)*100 -> 0.0002737319795 | J70: 202 | K70: 289 | L70: 174 | M70: 221.6666667 | N70: =(M70/$M$9255)*100 -> 0.0005067874114 | O70: 57 | P70: 152 | Q70: 88 | R70: 99 | S70: 0.0003569686739 | T70: 0 | U70: 16 | V70: 8 | W70: 8 | X70: 0.0001047681285
A71: 316 | B71: Pseudomonas stutzeri | C71: Bacteria; Proteobacteria; Gammaproteobacteria; Pseudomonadales; Pseudomonadaceae; Pseudomonas | D71: d__Bacteria;p__Proteobacteria;c__Gammaproteobacteria;o__Pseudomonadales;f__Pseudomonadaceae;g__Pseudomonas_A;s__Pseudomonas_A stutzeri_R | E71: 138451 | F71: 83801 | G71: 120340 | H71: =AVERAGE(E71:G71) -> 114197.3333 | I71: 0.2774508471 | J71: 1523290 | K71: 1596342 | L71: 1302662 | M71: =AVERAGE(J71:L71) -> 1474098 | N71: 3.370169818 | O71: 172786 | P71: 208198 | Q71: 255438 | R71: =AVERAGE(O71:Q71) -> 212140.6667 | S71: =(R71/$R$9255)*100 -> 0.7649249744 | T71: 2034 | U71: 2064 | V71: 3456 | W71: =AVERAGE(T71:V71) -> 2518 | X71: =(W71/$W$9255)*100 -> 0.03297576844
A72: 317 | B72: Pseudomonas syringae | C72: Bacteria; Proteobacteria; Gammaproteobacteria; Pseudomonadales; Pseudomonadaceae; Pseudomonas | D72: d__Bacteria;p__Proteobacteria;c__Gammaproteobacteria;o__Pseudomonadales;f__Pseudomonadaceae;g__Pseudomonas_E;s__Pseudomonas_E amygdali | E72: 1555 | F72: 1682 | G72: 1737 | H72: 1658 | I72: 0.004028233332 | J72: 13768 | K72: 12095 | L72: 11761 | M72: 12541.33333 | N72: 0.02867273619 | O72: 6195 | P72: 9043 | Q72: 7225 | R72: 7487.666667 | S72: 0.02699861051 | T72: 564 | U72: 515 | V72: 559 | W72: 546 | X72: 0.007150424769
A73: 329 | B73: Ralstonia pickettii | C73: Bacteria; Proteobacteria; Betaproteobacteria; Burkholderiales; Burkholderiaceae; Ralstonia | D73: d__Bacteria;p__Proteobacteria;c__Gammaproteobacteria;o__Burkholderiales;f__Burkholderiaceae;g__Ralstonia;s__Ralstonia pickettii_B | E73: 34806 | F73: 34445 | G73: 34823 | H73: 34691.33333 | I73: 0.08428515396 | J73: 26094 | K73: 40476 | L73: 34260 | M73: 33610 | N73: 0.07684116495 | O73: 13321 | P73: 15499 | Q73: 13956 | R73: 14258.66667 | S73: 0.05141310437 | T73: 1868 | U73: 1608 | V73: 2447 | W73: 1974.333333 | X73: 0.02585590104
A74: 339 | B74: Xanthomonas campestris | C74: Bacteria; Proteobacteria; Gammaproteobacteria; Xanthomonadales; Xanthomonadaceae; Xanthomonas | D74: d__Bacteria;p__Proteobacteria;c__Gammaproteobacteria;o__Xanthomonadales;f__Xanthomonadaceae;g__Xanthomonas;s__Xanthomonas campestris | E74: 42 | F74: 14 | G74: 380 | H74: 145.3333333 | I74: 0.0003530980564 | J74: 39 | K74: 45 | L74: 13 | M74: 32.33333333 | N74: 7.39223743e-05 | O74: 25 | P74: 55 | Q74: 55 | R74: 45 | S74: 0.0001622584882 | T74: 123 | U74: 0 | V74: 26 | W74: 49.66666667 | X74: 0.0006504354644
A75: 343 | B75: Xanthomonas translucens | C75: Bacteria; Proteobacteria; Gammaproteobacteria; Xanthomonadales; Xanthomonadaceae; Xanthomonas | D75: d__Bacteria;p__Proteobacteria;c__Gammaproteobacteria;o__Xanthomonadales;f__Xanthomonadaceae;g__Xanthomonas_A;s__Xanthomonas_A translucens | E75: 286 | F75: 124 | G75: 88 | H75: 166 | I75: 0.0004033092479 | J75: 35 | K75: 169 | L75: 114 | M75: 106 | N75: 0.0002423434539 | O75: 62 | P75: 135 | Q75: 229 | R75: 142 | S75: 0.0005120156737 | T75: 87 | U75: 27 | V75: 12 | W75: 42 | X75: 0.0005500326746
A76: 346 | B76: Xanthomonas citri | C76: Bacteria; Proteobacteria; Gammaproteobacteria; Xanthomonadales; Xanthomonadaceae; Xanthomonas | D76: d__Bacteria;p__Proteobacteria;c__Gammaproteobacteria;o__Xanthomonadales;f__Xanthomonadaceae;g__Xanthomonas;s__Xanthomonas cissicola | E76: 2027 | F76: 1438 | G76: 717 | H76: 1394 | I76: 0.003386825853 | J76: 2278 | K76: 1217 | L76: 1253 | M76: 1582.666667 | N76: 0.003618385909 | O76: 2520 | P76: 2368 | Q76: 3214 | R76: 2700.666667 | S76: 0.009737913119 | T76: 0 | U76: 0 | V76: 0 | W76: 0 | X76: 0
A77: 347 | B77: Xanthomonas oryzae | C77: Bacteria; Proteobacteria; Gammaproteobacteria; Xanthomonadales; Xanthomonadaceae; Xanthomonas | D77: d__Bacteria;p__Proteobacteria;c__Gammaproteobacteria;o__Xanthomonadales;f__Xanthomonadaceae;g__Xanthomonas;s__Xanthomonas oryzae | E77: 191 | F77: 38 | G77: 83 | H77: 104 | I77: 0.0002526756734 | J77: 373 | K77: 41 | L77: 285 | M77: 233 | N77: 0.0005326983467 | O77: 281 | P77: 165 | Q77: 258 | R77: 234.6666667 | S77: 0.0008461479679 | T77: 37 | U77: 10 | V77: 3 | W77: 16.66666667 | X77: 0.0002182669343
A78: 350 | B78: Zoogloea ramigera | C78: Bacteria; Proteobacteria; Betaproteobacteria; Rhodocyclales; Zoogloeaceae; Zoogloea | D78: d__Bacteria;p__Proteobacteria;c__Gammaproteobacteria;o__Burkholderiales;f__Rhodocyclaceae;g__Zoogloea;s__Zoogloea ramigera | E78: 28464 | F78: 20985 | G78: 23214 | H78: 24221 | I78: 0.05884670659 | J78: 12402 | K78: 11618 | L78: 12556 | M78: 12192 | N78: 0.02787406971 | O78: 17391 | P78: 18473 | Q78: 11767 | R78: 15877 | S78: 0.05724840037 | T78: 711 | U78: 622 | V78: 1054 | W78: 795.6666667 | X78: 0.01042006345
A79: 353 | B79: Azotobacter chroococcum | C79: Bacteria; Proteobacteria; Gammaproteobacteria; Pseudomonadales; Pseudomonadaceae; Azotobacter | D79: d__Bacteria;p__Proteobacteria;c__Gammaproteobacteria;o__Pseudomonadales;f__Pseudomonadaceae;g__Azotobacter;s__Azotobacter chroococcum | E79: 14 | F79: 9 | G79: 10 | H79: 11 | I79: 2.672531161e-05 | J79: 22 | K79: 19 | L79: 26 | M79: 22.33333333 | N79: 5.105978431e-05 | O79: 7 | P79: 4 | Q79: 8 | R79: 6.333333333 | S79: 2.283637981e-05 | T79: 2 | U79: 2 | V79: 4 | W79: 2.666666667 | X79: 3.49227095e-05
A80: 358 | B80: Agrobacterium tumefaciens | C80: Bacteria; Proteobacteria; Alphaproteobacteria; Hyphomicrobiales; Rhizobiaceae; Agrobacterium | D80: d__Bacteria;p__Proteobacteria;c__Alphaproteobacteria;o__Rhizobiales;f__Rhizobiaceae;g__Agrobacterium;s__Agrobacterium tumefaciens | E80: 3430 | F80: 3161 | G80: 2307 | H80: 2966 | I80: 0.00720611584 | J80: 1062 | K80: 856 | L80: 578 | M80: 832 | N80: 0.001902167487 | O80: 3297 | P80: 3171 | Q80: 3303 | R80: 3257 | S80: 0.0117439088 | T80: 196 | U80: 49 | V80: 61 | W80: 102 | X80: 0.001335793638
A81: 359 | B81: Agrobacterium rhizogenes | C81: Bacteria; Proteobacteria; Alphaproteobacteria; Hyphomicrobiales; Rhizobiaceae; Agrobacterium | D81: d__Bacteria;p__Proteobacteria;c__Alphaproteobacteria;o__Rhizobiales;f__Rhizobiaceae;g__Rhizobium;s__Rhizobium rhizogenes | E81: 303 | F81: 249 | G81: 156 | H81: 236 | I81: 0.0005733794127 | J81: 143 | K81: 49 | L81: 29 | M81: 73.66666667 | N81: 0.0001684210796 | O81: 179 | P81: 168 | Q81: 339 | R81: 228.6666667 | S81: 0.0008245135028 | T81: 13 | U81: 17 | V81: 49 | W81: 26.33333333 | X81: 0.0003448617563
A82: 373 | B82: Agrobacterium vitis | C82: Bacteria; Proteobacteria; Alphaproteobacteria; Hyphomicrobiales; Rhizobiaceae; Agrobacterium | D82: d__Bacteria;p__Proteobacteria;c__Alphaproteobacteria;o__Rhizobiales;f__Rhizobiaceae;g__Allorhizobium;s__Allorhizobium vitis | E82: 77 | F82: 99 | G82: 82 | H82: 86 | I82: 0.0002089433453 | J82: 35 | K82: 56 | L82: 17 | M82: 36 | N82: 8.230532396e-05 | O82: 109 | P82: 122 | Q82: 205 | R82: 145.3333333 | S82: 0.000524034821 | T82: 4 | U82: 3 | V82: 10 | W82: 5.666666667 | X82: 7.421075768e-05
A83: 375 | B83: Bradyrhizobium japonicum | C83: Bacteria; Proteobacteria; Alphaproteobacteria; Hyphomicrobiales; Bradyrhizobiaceae; Bradyrhizobium | D83: d__Bacteria;p__Proteobacteria;c__Alphaproteobacteria;o__Rhizobiales;f__Xanthobacteraceae;g__Bradyrhizobium;s__Bradyrhizobium japonicum | E83: 1293 | F83: 337 | G83: 853 | H83: 827.6666667 | I83: 0.002010877234 | J83: 2759 | K83: 1935 | L83: 558 | M83: 1750.666667 | N83: 0.004002477421 | O83: 938 | P83: 1149 | Q83: 827 | R83: 971.3333333 | S83: 0.003502379515 | T83: 391 | U83: 0 | V83: 0 | W83: 130.3333333 | X83: 0.001706847427
A84: 376 | B84: Bradyrhizobium sp. | C84: Bacteria; Proteobacteria; Alphaproteobacteria; Hyphomicrobiales; Bradyrhizobiaceae; Bradyrhizobium | D84: d__Bacteria;p__Proteobacteria;c__Alphaproteobacteria;o__Rhizobiales;f__Xanthobacteraceae;g__Bradyrhizobium;s__Bradyrhizobium sp011516635 | E84: 497 | F84: 685 | G84: 797 | H84: 659.6666667 | I84: 0.001602708839 | J84: 657 | K84: 942 | L84: 152 | M84: 583.6666667 | N84: 0.001334413169 | O84: 491 | P84: 537 | Q84: 474 | R84: 500.6666667 | S84: 0.00180527592 | T84: 68 | U84: 193 | V84: 205 | W84: 155.3333333 | X84: 0.002034247828
A85: 380 | B85: Sinorhizobium fredii | C85: Bacteria; Proteobacteria; Alphaproteobacteria; Hyphomicrobiales; Rhizobiaceae; Sinorhizobium | D85: d__Bacteria;p__Proteobacteria;c__Alphaproteobacteria;o__Rhizobiales;f__Rhizobiaceae;g__Sinorhizobium;s__Sinorhizobium fredii | E85: 2 | F85: 44 | G85: 0 | H85: 15.33333333 | I85: 3.725346467e-05 | J85: 1 | K85: 3 | L85: 20 | M85: 8 | N85: 1.829007199e-05 | O85: 15 | P85: 0 | Q85: 37 | R85: 17.33333333 | S85: 6.249956581e-05 | T85: 22 | U85: 0 | V85: 0 | W85: 7.333333333 | X85: 9.603745111e-05
A86: 381 | B86: Mesorhizobium loti | C86: Bacteria; Proteobacteria; Alphaproteobacteria; Hyphomicrobiales; Phyllobacteriaceae; Mesorhizobium | D86: d__Bacteria;p__Proteobacteria;c__Alphaproteobacteria;o__Rhizobiales;f__Rhizobiaceae;g__Mesorhizobium;s__Mesorhizobium japonicum | E86: 389 | F86: 482 | G86: 575 | H86: 482 | I86: 0.001171054563 | J86: 205 | K86: 616 | L86: 199 | M86: 340 | N86: 0.0007773280596 | O86: 187 | P86: 324 | Q86: 736 | R86: 415.6666667 | S86: 0.001498787665 | T86: 40 | U86: 22 | V86: 55 | W86: 39 | X86: 0.0005107446264
A87: 382 | B87: Sinorhizobium meliloti | C87: Bacteria; Proteobacteria; Alphaproteobacteria; Hyphomicrobiales; Rhizobiaceae; Sinorhizobium | D87: d__Bacteria;p__Proteobacteria;c__Alphaproteobacteria;o__Rhizobiales;f__Rhizobiaceae;g__Sinorhizobium;s__Sinorhizobium meliloti | E87: 23 | F87: 6 | G87: 18 | H87: 15.66666667 | I87: 3.80633226e-05 | J87: 15 | K87: 0 | L87: 1 | M87: 5.333333333 | N87: 1.219338133e-05 | O87: 29 | P87: 14 | Q87: 24 | R87: 22.33333333 | S87: 8.052828671e-05 | T87: 6 | U87: 11 | V87: 50 | W87: 22.33333333 | X87: 0.000292477692
A88: 384 | B88: Rhizobium leguminosarum | C88: Bacteria; Proteobacteria; Alphaproteobacteria; Hyphomicrobiales; Rhizobiaceae; Rhizobium | D88: d__Bacteria;p__Proteobacteria;c__Alphaproteobacteria;o__Rhizobiales;f__Rhizobiaceae;g__Rhizobium;s__Rhizobium acidisoli | E88: 882 | F88: 399 | G88: 635 | H88: 638.6666667 | I88: 0.001551687789 | J88: 280 | K88: 694 | L88: 244 | M88: 406 | N88: 0.0009282211536 | O88: 559 | P88: 1156 | Q88: 871 | R88: 862 | S88: 0.003108151484 | T88: 98 | U88: 67 | V88: 109 | W88: 91.33333333 | X88: 0.0011961028
A89: 396 | B89: Rhizobium phaseoli | C89: Bacteria; Proteobacteria; Alphaproteobacteria; Hyphomicrobiales; Rhizobiaceae; Rhizobium | D89: d__Bacteria;p__Proteobacteria;c__Alphaproteobacteria;o__Rhizobiales;f__Rhizobiaceae;g__Rhizobium;s__Rhizobium phaseoli | E89: 1686 | F89: 1099 | G89: 0 | H89: 928.3333333 | I89: 0.002255454328 | J89: 1125 | K89: 1319 | L89: 0 | M89: 814.6666667 | N89: 0.001862538998 | O89: 1514 | P89: 723 | Q89: 2156 | R89: 1464.333333 | S89: 0.005280011396 | T89: 264 | U89: 0 | V89: 20 | W89: 94.66666667 | X89: 0.001239756187
A90: 399 | B90: Neorhizobium galegae | C90: Bacteria; Proteobacteria; Alphaproteobacteria; Hyphomicrobiales; Rhizobiaceae; Neorhizobium | D90: d__Bacteria;p__Proteobacteria;c__Alphaproteobacteria;o__Rhizobiales;f__Rhizobiaceae;g__Neorhizobium;s__Neorhizobium galegae_B | E90: 89 | F90: 61 | G90: 90 | H90: 80 | I90: 0.0001943659026 | J90: 52 | K90: 39 | L90: 31 | M90: 40.66666667 | N90: 9.297453262e-05 | O90: 167 | P90: 144 | Q90: 139 | R90: 150 | S90: 0.0005408616272 | T90: 6 | U90: 8 | V90: 3 | W90: 5.666666667 | X90: 7.421075768e-05
A91: 405 | B91: Methylobacillus flagellatus | C91: Bacteria; Proteobacteria; Betaproteobacteria; Nitrosomonadales; Methylophilaceae; Methylobacillus | D91: d__Bacteria;p__Proteobacteria;c__Gammaproteobacteria;o__Burkholderiales;f__Methylophilaceae;g__Pseudomethylobacillus;s__Pseudomethylobacillus flagellatus_A | E91: 21 | F91: 12 | G91: 11 | H91: 14.66666667 | I91: 3.563374881e-05 | J91: 0 | K91: 1 | L91: 2 | M91: 1 | N91: 2.286258999e-06 | O91: 6 | P91: 2 | Q91: 0 | R91: 2.666666667 | S91: 9.615317817e-06 | T91: 5 | U91: 2 | V91: 0 | W91: 2.333333333 | X91: 3.055737081e-05
A92: 406 | B92: Methylobacillus glycogenes | C92: Bacteria; Proteobacteria; Betaproteobacteria; Nitrosomonadales; Methylophilaceae; Methylobacillus | D92: d__Bacteria;p__Proteobacteria;c__Gammaproteobacteria;o__Burkholderiales;f__Methylophilaceae;g__Methylobacillus;s__Methylobacillus glycogenes | E92: 0 | F92: 0 | G92: 0 | H92: 0 | I92: 0 | J92: 0 | K92: 0 | L92: 1 | M92: 0.3333333333 | N92: 7.62086333e-07 | O92: 11 | P92: 1 | Q92: 10 | R92: 7.333333333 | S92: 2.6442124e-05 | T92: 0 | U92: 0 | V92: 0 | W92: 0 | X92: 0
A93: 408 | B93: Methylorubrum extorquens | C93: Bacteria; Proteobacteria; Alphaproteobacteria; Hyphomicrobiales; Methylobacteriaceae; Methylorubrum | D93: d__Bacteria;p__Proteobacteria;c__Alphaproteobacteria;o__Rhizobiales;f__Beijerinckiaceae;g__Methylobacterium;s__Methylobacterium extorquens | E93: 276 | F93: 207 | G93: 180 | H93: 221 | I93: 0.000536935806 | J93: 204 | K93: 175 | L93: 104 | M93: 161 | N93: 0.0003680876988 | O93: 328 | P93: 209 | Q93: 391 | R93: 309.3333333 | S93: 0.001115376867 | T93: 1 | U93: 5 | V93: 1 | W93: 2.333333333 | X93: 3.055737081e-05
A94: 415 | B94: Methylobacter luteus | C94: Bacteria; Proteobacteria; Gammaproteobacteria; Methylococcales; Methylococcaceae; Methylobacter | D94: d__Bacteria;p__Proteobacteria;c__Gammaproteobacteria;o__Methylococcales;f__Methylomonadaceae;g__Methylobacter;s__Methylobacter luteus | E94: 266 | F94: 189 | G94: 173 | H94: 209.3333333 | I94: 0.0005085907785 | J94: 168 | K94: 55 | L94: 60 | M94: 94.33333333 | N94: 0.0002156704322 | O94: 159 | P94: 168 | Q94: 292 | R94: 206.3333333 | S94: 0.0007439852161 | T94: 62 | U94: 31 | V94: 10 | W94: 34.33333333 | X94: 0.0004496298848
A95: 421 | B95: Methylomonas methanica | C95: Bacteria; Proteobacteria; Gammaproteobacteria; Methylococcales; Methylococcaceae; Methylomonas | D95: d__Bacteria;p__Proteobacteria;c__Gammaproteobacteria;o__Methylococcales;f__Methylomonadaceae;g__Methylomonas;s__Methylomonas methanica | E95: 258 | F95: 163 | G95: 128 | H95: 183 | I95: 0.0004446120022 | J95: 301 | K95: 160 | L95: 46 | M95: 169 | N95: 0.0003863777708 | O95: 226 | P95: 268 | Q95: 244 | R95: 246 | S95: 0.0008870130686 | T95: 34 | U95: 29 | V95: 27 | W95: 30 | X95: 0.0003928804818
A96: 435 | B96: Acetobacter aceti | C96: Bacteria; Proteobacteria; Alphaproteobacteria; Rhodospirillales; Acetobacteraceae; Acetobacter | D96: d__Bacteria;p__Proteobacteria;c__Alphaproteobacteria;o__Acetobacterales;f__Acetobacteraceae;g__Acetobacter;s__Acetobacter aceti | E96: 0 | F96: 6 | G96: 7 | H96: 4.333333333 | I96: 1.052815306e-05 | J96: 0 | K96: 0 | L96: 9 | M96: 3 | N96: 6.858776997e-06 | O96: 24 | P96: 4 | Q96: 0 | R96: 9.333333333 | S96: 3.365361236e-05 | T96: 0 | U96: 0 | V96: 0 | W96: 0 | X96: 0
A97: 438 | B97: Acetobacter pasteurianus | C97: Bacteria; Proteobacteria; Alphaproteobacteria; Rhodospirillales; Acetobacteraceae; Acetobacter | D97: d__Bacteria;p__Proteobacteria;c__Alphaproteobacteria;o__Acetobacterales;f__Acetobacteraceae;g__Acetobacter;s__Acetobacter pasteurianus | E97: 185 | F97: 24 | G97: 187 | H97: 132 | I97: 0.0003207037393 | J97: 50 | K97: 51 | L97: 38 | M97: 46.33333333 | N97: 0.0001059300003 | O97: 86 | P97: 12 | Q97: 54 | R97: 50.66666667 | S97: 0.0001826910385 | T97: 0 | U97: 0 | V97: 6 | W97: 2 | X97: 2.619203212e-05
A98: 442 | B98: Gluconobacter oxydans | C98: Bacteria; Proteobacteria; Alphaproteobacteria; Rhodospirillales; Acetobacteraceae; Gluconobacter | D98: d__Bacteria;p__Proteobacteria;c__Alphaproteobacteria;o__Acetobacterales;f__Acetobacteraceae;g__Gluconobacter;s__Gluconobacter oxydans | E98: 0 | F98: 8 | G98: 18 | H98: 8.666666667 | I98: 2.105630612e-05 | J98: 0 | K98: 0 | L98: 0 | M98: 0 | N98: 0 | O98: 0 | P98: 0 | Q98: 0 | R98: 0 | S98: 0 | T98: 6 | U98: 0 | V98: 0 | W98: 2 | X98: 2.619203212e-05
A99: 446 | B99: Legionella pneumophila | C99: Bacteria; Proteobacteria; Gammaproteobacteria; Legionellales; Legionellaceae; Legionella | D99: d__Bacteria;p__Proteobacteria;c__Gammaproteobacteria;o__Legionellales;f__Legionellaceae;g__Legionella;s__Legionella pneumophila | E99: 338 | F99: 163 | G99: 274 | H99: 258.3333333 | I99: 0.0006276398939 | J99: 174 | K99: 266 | L99: 178 | M99: 206 | N99: 0.0004709693538 | O99: 267 | P99: 296 | Q99: 343 | R99: 302 | S99: 0.001088934743 | T99: 92 | U99: 90 | V99: 106 | W99: 96 | X99: 0.001257217542
A100: 447 | B100: Fluoribacter bozemanae | C100: Bacteria; Proteobacteria; Gammaproteobacteria; Legionellales; Legionellaceae; Fluoribacter | D100: d__Bacteria;p__Proteobacteria;c__Gammaproteobacteria;o__Legionellales;f__Legionellaceae;g__Legionella;s__Legionella bozemanae | E100: 0 | F100: 3 | G100: 2 | H100: 1.666666667 | I100: 4.049289638e-06 | J100: 0 | K100: 0 | L100: 0 | M100: 0 | N100: 0 | O100: 0 | P100: 0 | Q100: 0 | R100: 0 | S100: 0 | T100: 12 | U100: 0 | V100: 0 | W100: 4 | X100: 5.238406424e-05
A101: 453 | B101: Legionella feeleii | C101: Bacteria; Proteobacteria; Gammaproteobacteria; Legionellales; Legionellaceae; Legionella | D101: d__Bacteria;p__Proteobacteria;c__Gammaproteobacteria;o__Legionellales;f__Legionellaceae;g__Tatlockia;s__Tatlockia feeleii | E101: 1 | F101: 0 | G101: 0 | H101: 0.3333333333 | I101: 8.098579276e-07 | J101: 0 | K101: 0 | L101: 0 | M101: 0 | N101: 0 | O101: 0 | P101: 5 | Q101: 12 | R101: 5.666666667 | S101: 2.043255036e-05 | T101: 2 | U101: 1 | V101: 1 | W101: 1.333333333 | X101: 1.746135475e-05
A102: 470 | B102: Acinetobacter baumannii | C102: Bacteria; Proteobacteria; Gammaproteobacteria; Pseudomonadales; Moraxellaceae; Acinetobacter | D102: d__Bacteria;p__Proteobacteria;c__Gammaproteobacteria;o__Pseudomonadales;f__Moraxellaceae;g__Acinetobacter;s__Acinetobacter baumannii | E102: 55724 | F102: 43447 | G102: 46003 | H102: 48391.33333 | I102: 0.1175703148 | J102: 61959 | K102: 47272 | L102: 44766 | M102: 51332.33333 | N102: 0.117359009 | O102: 65828 | P102: 83635 | Q102: 73010 | R102: 74157.66667 | S102: 0.2673935751 | T102: 40675 | U102: 24139 | V102: 34023 | W102: 32945.66667 | X102: 0.4314569798
A103: 471 | B103: Acinetobacter calcoaceticus | C103: Bacteria; Proteobacteria; Gammaproteobacteria; Pseudomonadales; Moraxellaceae; Acinetobacter | D103: d__Bacteria;p__Proteobacteria;c__Gammaproteobacteria;o__Pseudomonadales;f__Moraxellaceae;g__Acinetobacter;s__Acinetobacter calcoaceticus | E103: 169 | F103: 84 | G103: 115 | H103: 122.6666667 | I103: 0.0002980277174 | J103: 191 | K103: 151 | L103: 80 | M103: 140.6666667 | N103: 0.0003216004325 | O103: 360 | P103: 372 | Q103: 489 | R103: 407 | S103: 0.001467537882 | T103: 8 | U103: 0 | V103: 2 | W103: 3.333333333 | X103: 4.365338687e-05
A104: 472 | B104: Acinetobacter sp. | C104: Bacteria; Proteobacteria; Gammaproteobacteria; Pseudomonadales; Moraxellaceae; Acinetobacter | D104: d__Bacteria;p__Proteobacteria;c__Gammaproteobacteria;o__Pseudomonadales;f__Moraxellaceae;g__Acinetobacter;s__Acinetobacter johnsonii | E104: 207 | F104: 56 | G104: 0 | H104: 87.66666667 | I104: 0.000212992635 | J104: 50 | K104: 103 | L104: 0 | M104: 51 | N104: 0.0001165992089 | O104: 33 | P104: 70 | Q104: 104 | R104: 69 | S104: 0.0002487963485 | T104: 0 | U104: 0 | V104: 0 | W104: 0 | X104: 0
A105: 487 | B105: Neisseria meningitidis | C105: Bacteria; Proteobacteria; Betaproteobacteria; Neisseriales; Neisseriaceae; Neisseria | D105: d__Bacteria;p__Proteobacteria;c__Gammaproteobacteria;o__Burkholderiales;f__Neisseriaceae;g__Neisseria;s__Neisseria meningitidis | E105: 0 | F105: 0 | G105: 0 | H105: 0 | I105: 0 | J105: 0 | K105: 76 | L105: 0 | M105: 25.33333333 | N105: 5.791856131e-05 | O105: 55 | P105: 181 | Q105: 89 | R105: 108.3333333 | S105: 0.0003906222863 | T105: 45 | U105: 54 | V105: 19 | W105: 39.33333333 | X105: 0.0005151099651
A106: 488 | B106: Neisseria mucosa | C106: Bacteria; Proteobacteria; Betaproteobacteria; Neisseriales; Neisseriaceae; Neisseria | D106: d__Bacteria;p__Proteobacteria;c__Gammaproteobacteria;o__Burkholderiales;f__Neisseriaceae;g__Neisseria;s__Neisseria mucosa | E106: 97 | F106: 0 | G106: 216 | H106: 104.3333333 | I106: 0.0002534855313 | J106: 54 | K106: 99 | L106: 0 | M106: 51 | N106: 0.0001165992089 | O106: 121 | P106: 0 | Q106: 150 | R106: 90.33333333 | S106: 0.000325718891 | T106: 0 | U106: 0 | V106: 0 | W106: 0 | X106: 0
A107: 490 | B107: Neisseria sicca | C107: Bacteria; Proteobacteria; Betaproteobacteria; Neisseriales; Neisseriaceae; Neisseria | D107: d__Bacteria;p__Proteobacteria;c__Gammaproteobacteria;o__Burkholderiales;f__Neisseriaceae;g__Neisseria;s__Neisseria sicca_B | E107: 41 | F107: 0 | G107: 0 | H107: 13.66666667 | I107: 3.320417503e-05 | J107: 31 | K107: 0 | L107: 0 | M107: 10.33333333 | N107: 2.362467632e-05 | O107: 48 | P107: 0 | Q107: 0 | R107: 16 | S107: 5.76919069e-05 | T107: 0 | U107: 0 | V107: 0 | W107: 0 | X107: 0
A108: 498 | B108: Psychrobacter immobilis | C108: Bacteria; Proteobacteria; Gammaproteobacteria; Pseudomonadales; Moraxellaceae; Psychrobacter | D108: d__Bacteria;p__Proteobacteria;c__Gammaproteobacteria;o__Pseudomonadales;f__Moraxellaceae;g__Psychrobacter;s__Psychrobacter maritimus | E108: 2076 | F108: 1095 | G108: 2382 | H108: 1851 | I108: 0.004497141072 | J108: 1711 | K108: 1113 | L108: 758 | M108: 1194 | N108: 0.002729793245 | O108: 687 | P108: 751 | Q108: 609 | R108: 682.3333333 | S108: 0.002460319446 | T108: 43 | U108: 15 | V108: 23 | W108: 27 | X108: 0.0003535924336
A109: 502 | B109: Kingella denitrificans | C109: Bacteria; Proteobacteria; Betaproteobacteria; Neisseriales; Neisseriaceae; Kingella | D109: d__Bacteria;p__Proteobacteria;c__Gammaproteobacteria;o__Burkholderiales;f__Neisseriaceae;g__Kingella_A;s__Kingella_A denitrificans | E109: 5 | F109: 0 | G109: 0 | H109: 1.666666667 | I109: 4.049289638e-06 | J109: 0 | K109: 50 | L109: 0 | M109: 16.66666667 | N109: 3.810431665e-05 | O109: 65 | P109: 14 | Q109: 4 | R109: 27.66666667 | S109: 9.975892235e-05 | T109: 0 | U109: 0 | V109: 1 | W109: 0.3333333333 | X109: 4.365338687e-06
A110: 511 | B110: Alcaligenes faecalis | C110: Bacteria; Proteobacteria; Betaproteobacteria; Burkholderiales; Alcaligenaceae; Alcaligenes | D110: d__Bacteria;p__Proteobacteria;c__Gammaproteobacteria;o__Burkholderiales;f__Burkholderiaceae;g__Alcaligenes;s__Alcaligenes faecalis | E110: 543 | F110: 304 | G110: 479 | H110: 442 | I110: 0.001073871612 | J110: 321 | K110: 276 | L110: 259 | M110: 285.3333333 | N110: 0.000652345901 | O110: 222 | P110: 214 | Q110: 243 | R110: 226.3333333 | S110: 0.0008161000997 | T110: 1 | U110: 14 | V110: 17 | W110: 10.66666667 | X110: 0.000139690838
A111: 518 | B111: Bordetella bronchiseptica | C111: Bacteria; Proteobacteria; Betaproteobacteria; Burkholderiales; Alcaligenaceae; Bordetella | D111: d__Bacteria;p__Proteobacteria;c__Gammaproteobacteria;o__Burkholderiales;f__Burkholderiaceae;g__Bordetella;s__Bordetella pertussis | E111: 1124 | F111: 805 | G111: 874 | H111: 934.3333333 | I111: 0.002270031771 | J111: 1453 | K111: 881 | L111: 430 | M111: 921.3333333 | N111: 0.002106406624 | O111: 15 | P111: 1073 | Q111: 236 | R111: 441.3333333 | S111: 0.001591335099 | T111: 8 | U111: 13 | V111: 2 | W111: 7.666666667 | X111: 0.0001004027898
A112: 519 | B112: Bordetella parapertussis | C112: Bacteria; Proteobacteria; Betaproteobacteria; Burkholderiales; Alcaligenaceae; Bordetella | D112: d__Bacteria;p__Proteobacteria;c__Gammaproteobacteria;o__Burkholderiales;f__Burkholderiaceae;g__Bordetella;s__Bordetella pertussis | E112: 57 | F112: 62 | G112: 0 | H112: 39.66666667 | I112: 9.637309338e-05 | J112: 20 | K112: 24 | L112: 0 | M112: 14.66666667 | N112: 3.353179865e-05 | O112: 73 | P112: 0 | Q112: 17 | R112: 30 | S112: 0.0001081723254 | T112: 11 | U112: 28 | V112: 79 | W112: 39.33333333 | X112: 0.0005151099651
A113: 521 | B113: Bordetella avium | C113: Bacteria; Proteobacteria; Betaproteobacteria; Burkholderiales; Alcaligenaceae; Bordetella | D113: d__Bacteria;p__Proteobacteria;c__Gammaproteobacteria;o__Burkholderiales;f__Burkholderiaceae;g__Bordetella;s__Bordetella avium | E113: 0 | F113: 3 | G113: 8 | H113: 3.666666667 | I113: 8.908437204e-06 | J113: 10 | K113: 12 | L113: 19 | M113: 13.66666667 | N113: 3.124553965e-05 | O113: 6 | P113: 0 | Q113: 8 | R113: 4.666666667 | S113: 1.682680618e-05 | T113: 2 | U113: 2 | V113: 0 | W113: 1.333333333 | X113: 1.746135475e-05
A114: 523 | B114: Acidiphilium angustum | C114: Bacteria; Proteobacteria; Alphaproteobacteria; Rhodospirillales; Acetobacteraceae; Acidiphilium | D114: d__Bacteria;p__Proteobacteria;c__Alphaproteobacteria;o__Acetobacterales;f__Acetobacteraceae;g__Acidiphilium;s__Acidiphilium rubrum | E114: 0 | F114: 0 | G114: 0 | H114: 0 | I114: 0 | J114: 168 | K114: 0 | L114: 0 | M114: 56 | N114: 0.0001280305039 | O114: 248 | P114: 108 | Q114: 224 | R114: 193.3333333 | S114: 0.0006971105417 | T114: 0 | U114: 0 | V114: 25 | W114: 8.333333333 | X114: 0.0001091334672
A115: 529 | B115: Brucella anthropi | C115: Bacteria; Proteobacteria; Alphaproteobacteria; Hyphomicrobiales; Brucellaceae; Brucella | D115: d__Bacteria;p__Proteobacteria;c__Alphaproteobacteria;o__Rhizobiales_A;f__Rhizobiaceae_A;g__Ochrobactrum;s__Ochrobactrum anthropi | E115: 3111 | F115: 2698 | G115: 1205 | H115: 2338 | I115: 0.005680343504 | J115: 776 | K115: 1104 | L115: 681 | M115: 853.6666667 | N115: 0.001951703099 | O115: 1186 | P115: 1341 | Q115: 1875 | R115: 1467.333333 | S115: 0.005290828629 | T115: 158 | U115: 51 | V115: 70 | W115: 93 | X115: 0.001217929494
A116: 536 | B116: Chromobacterium violaceum | C116: Bacteria; Proteobacteria; Betaproteobacteria; Neisseriales; Chromobacteriaceae; Chromobacterium | D116: d__Bacteria;p__Proteobacteria;c__Gammaproteobacteria;o__Burkholderiales;f__Chromobacteriaceae;g__Chromobacterium;s__Chromobacterium violaceum | E116: 15 | F116: 2 | G116: 24 | H116: 13.66666667 | I116: 3.320417503e-05 | J116: 12 | K116: 10 | L116: 4 | M116: 8.666666667 | N116: 1.981424466e-05 | O116: 13 | P116: 5 | Q116: 10 | R116: 9.333333333 | S116: 3.365361236e-05 | T116: 0 | U116: 0 | V116: 0 | W116: 0 | X116: 0
A117: 537 | B117: Iodobacter fluviatilis | C117: Bacteria; Proteobacteria; Betaproteobacteria; Neisseriales; Chromobacteriaceae; Iodobacter | D117: d__Bacteria;p__Proteobacteria;c__Gammaproteobacteria;o__Burkholderiales;f__Chitinibacteraceae;g__Iodobacter;s__Iodobacter fluviatilis | E117: 223 | F117: 143 | G117: 274 | H117: 213.3333333 | I117: 0.0005183090737 | J117: 376 | K117: 285 | L117: 171 | M117: 277.3333333 | N117: 0.000634055829 | O117: 74 | P117: 105 | Q117: 69 | R117: 82.66666667 | S117: 0.0002980748523 | T117: 21 | U117: 25 | V117: 4 | W117: 16.66666667 | X117: 0.0002182669343
A118: 539 | B118: Eikenella corrodens | C118: Bacteria; Proteobacteria; Betaproteobacteria; Neisseriales; Neisseriaceae; Eikenella | D118: d__Bacteria;p__Proteobacteria;c__Gammaproteobacteria;o__Burkholderiales;f__Neisseriaceae;g__Eikenella;s__Eikenella corrodens | E118: 23 | F118: 0 | G118: 10 | H118: 11 | I118: 2.672531161e-05 | J118: 0 | K118: 17 | L118: 0 | M118: 5.666666667 | N118: 1.295546766e-05 | O118: 14 | P118: 23 | Q118: 22 | R118: 19.66666667 | S118: 7.09129689e-05 | T118: 0 | U118: 1 | V118: 0 | W118: 0.3333333333 | X118: 4.365338687e-06
A119: 542 | B119: Zymomonas mobilis | C119: Bacteria; Proteobacteria; Alphaproteobacteria; Sphingomonadales; Zymomonadaceae; Zymomonas | D119: d__Bacteria;p__Proteobacteria;c__Alphaproteobacteria;o__Sphingomonadales;f__Sphingomonadaceae;g__Zymomonas;s__Zymomonas mobilis | E119: 171 | F119: 0 | G119: 184 | H119: 118.3333333 | I119: 0.0002874995643 | J119: 263 | K119: 0 | L119: 74 | M119: 112.3333333 | N119: 0.0002568230942 | O119: 270 | P119: 378 | Q119: 137 | R119: 261.6666667 | S119: 0.0009435030608 | T119: 0 | U119: 0 | V119: 0 | W119: 0 | X119: 0
A120: 546 | B120: Citrobacter freundii | C120: Bacteria; Proteobacteria; Gammaproteobacteria; Enterobacterales; Enterobacteriaceae; Citrobacter | D120: d__Bacteria;p__Proteobacteria;c__Gammaproteobacteria;o__Enterobacterales;f__Enterobacteriaceae;g__Citrobacter;s__Citrobacter freundii | E120: 4925 | F120: 2900 | G120: 3968 | H120: 3931 | I120: 0.00955065454 | J120: 2035 | K120: 2899 | L120: 1464 | M120: 2132.666667 | N120: 0.004875828358 | O120: 2817 | P120: 3445 | Q120: 3872 | R120: 3378 | S120: 0.01218020384 | T120: 100 | U120: 79 | V120: 128 | W120: 102.3333333 | X120: 0.001340158977
A121: 548 | B121: Klebsiella aerogenes | C121: Bacteria; Proteobacteria; Gammaproteobacteria; Enterobacterales; Enterobacteriaceae; Klebsiella | D121: d__Bacteria;p__Proteobacteria;c__Gammaproteobacteria;o__Enterobacterales;f__Enterobacteriaceae;g__Klebsiella;s__Klebsiella aerogenes | E121: 14 | F121: 3 | G121: 13 | H121: 10 | I121: 2.429573783e-05 | J121: 13 | K121: 5 | L121: 3 | M121: 7 | N121: 1.600381299e-05 | O121: 5 | P121: 10 | Q121: 4 | R121: 6.333333333 | S121: 2.283637981e-05 | T121: 0 | U121: 4 | V121: 3 | W121: 2.333333333 | X121: 3.055737081e-05
A122: 549 | B122: Pantoea agglomerans | C122: Bacteria; Proteobacteria; Gammaproteobacteria; Enterobacterales; Erwiniaceae; Pantoea | D122: d__Bacteria;p__Proteobacteria;c__Gammaproteobacteria;o__Enterobacterales;f__Enterobacteriaceae;g__Pantoea;s__Pantoea agglomerans | E122: 81 | F122: 50 | G122: 110 | H122: 80.33333333 | I122: 0.0001951757606 | J122: 41 | K122: 20 | L122: 12 | M122: 24.33333333 | N122: 5.563230231e-05 | O122: 14 | P122: 15 | Q122: 52 | R122: 27 | S122: 9.735509289e-05 | T122: 0 | U122: 0 | V122: 6 | W122: 2 | X122: 2.619203212e-05
A123: 550 | B123: Enterobacter cloacae | C123: Bacteria; Proteobacteria; Gammaproteobacteria; Enterobacterales; Enterobacteriaceae; Enterobacter | D123: d__Bacteria;p__Proteobacteria;c__Gammaproteobacteria;o__Enterobacterales;f__Enterobacteriaceae;g__Enterobacter;s__Enterobacter vonholyi | E123: 1337 | F123: 1247 | G123: 1479 | H123: 1354.333333 | I123: 0.00329045276 | J123: 965 | K123: 699 | L123: 290 | M123: 651.3333333 | N123: 0.001489116695 | O123: 732 | P123: 899 | Q123: 837 | R123: 822.6666667 | S123: 0.002966325546 | T123: 24 | U123: 13 | V123: 6 | W123: 14.33333333 | X123: 0.0001877095635
A124: 552 | B124: Erwinia amylovora | C124: Bacteria; Proteobacteria; Gammaproteobacteria; Enterobacterales; Erwiniaceae; Erwinia | D124: d__Bacteria;p__Proteobacteria;c__Gammaproteobacteria;o__Enterobacterales;f__Enterobacteriaceae;g__Erwinia;s__Erwinia amylovora | E124: 0 | F124: 0 | G124: 0 | H124: 0 | I124: 0 | J124: 5 | K124: 0 | L124: 2 | M124: 2.333333333 | N124: 5.334604331e-06 | O124: 3 | P124: 2 | Q124: 2 | R124: 2.333333333 | S124: 8.41340309e-06 | T124: 181 | U124: 82 | V124: 100 | W124: 121 | X124: 0.001584617943
A125: 553 | B125: Pantoea ananatis | C125: Bacteria; Proteobacteria; Gammaproteobacteria; Enterobacterales; Erwiniaceae; Pantoea | D125: d__Bacteria;p__Proteobacteria;c__Gammaproteobacteria;o__Enterobacterales;f__Enterobacteriaceae;g__Pantoea;s__Pantoea ananatis | E125: 23 | F125: 0 | G125: 5 | H125: 9.333333333 | I125: 2.267602197e-05 | J125: 0 | K125: 0 | L125: 0 | M125: 0 | N125: 0 | O125: 8 | P125: 0 | Q125: 6 | R125: 4.666666667 | S125: 1.682680618e-05 | T125: 0 | U125: 0 | V125: 0 | W125: 0 | X125: 0
A126: 554 | B126: Pectobacterium carotovorum | C126: Bacteria; Proteobacteria; Gammaproteobacteria; Enterobacterales; Pectobacteriaceae; Pectobacterium | D126: d__Bacteria;p__Proteobacteria;c__Gammaproteobacteria;o__Enterobacterales;f__Enterobacteriaceae;g__Pectobacterium;s__Pectobacterium carotovorum | E126: 0 | F126: 4 | G126: 2 | H126: 2 | I126: 4.859147566e-06 | J126: 0 | K126: 0 | L126: 2 | M126: 0.6666666667 | N126: 1.524172666e-06 | O126: 2 | P126: 5 | Q126: 27 | R126: 11.33333333 | S126: 4.086510072e-05 | T126: 0 | U126: 0 | V126: 1 | W126: 0.3333333333 | X126: 4.365338687e-06
A127: 562 | B127: Escherichia coli | C127: Bacteria; Proteobacteria; Gammaproteobacteria; Enterobacterales; Enterobacteriaceae; Escherichia | D127: d__Bacteria;p__Proteobacteria;c__Gammaproteobacteria;o__Enterobacterales;f__Enterobacteriaceae;g__Escherichia;s__Escherichia coli | E127: 97387 | F127: 48544 | G127: 104468 | H127: 83466.33333 | I127: 0.2027876152 | J127: 126797 | K127: 132118 | L127: 105099 | M127: 121338 | N127: 0.2774100944 | O127: 87469 | P127: 104019 | Q127: 99467 | R127: 96985 | S127: 0.3497030994 | T127: 671434 | U127: 392561 | V127: 598520 | W127: 554171.6667 | X127: 7.257441047
A128: 565 | B128: Atlantibacter hermannii | C128: Bacteria; Proteobacteria; Gammaproteobacteria; Enterobacterales; Enterobacteriaceae; Atlantibacter | D128: d__Bacteria;p__Proteobacteria;c__Gammaproteobacteria;o__Enterobacterales;f__Enterobacteriaceae;g__Atlantibacter;s__Atlantibacter hermannii_A | E128: 13 | F128: 11 | G128: 0 | H128: 8 | I128: 1.943659026e-05 | J128: 13 | K128: 12 | L128: 2 | M128: 9 | N128: 2.057633099e-05 | O128: 10 | P128: 0 | Q128: 4 | R128: 4.666666667 | S128: 1.682680618e-05 | T128: 0 | U128: 0 | V128: 0 | W128: 0 | X128: 0
A129: 566 | B129: Pseudescherichia vulneris | C129: Bacteria; Proteobacteria; Gammaproteobacteria; Enterobacterales; Enterobacteriaceae; Pseudescherichia | D129: d__Bacteria;p__Proteobacteria;c__Gammaproteobacteria;o__Enterobacterales;f__Enterobacteriaceae;g__Pseudescherichia;s__Pseudescherichia vulneris | E129: 31 | F129: 11 | G129: 18 | H129: 20 | I129: 4.859147566e-05 | J129: 19 | K129: 4 | L129: 131 | M129: 51.33333333 | N129: 0.0001173612953 | O129: 12 | P129: 7 | Q129: 27 | R129: 15.33333333 | S129: 5.528807745e-05 | T129: 0 | U129: 0 | V129: 0 | W129: 0 | X129: 0
A130: 569 | B130: Hafnia alvei | C130: Bacteria; Proteobacteria; Gammaproteobacteria; Enterobacterales; Hafniaceae; Hafnia | D130: d__Bacteria;p__Proteobacteria;c__Gammaproteobacteria;o__Enterobacterales;f__Enterobacteriaceae;g__Hafnia;s__Hafnia alvei | E130: 41 | F130: 12 | G130: 27 | H130: 26.66666667 | I130: 6.478863421e-05 | J130: 16 | K130: 0 | L130: 3 | M130: 6.333333333 | N130: 1.447964033e-05 | O130: 8 | P130: 11 | Q130: 12 | R130: 10.33333333 | S130: 3.725935654e-05 | T130: 0 | U130: 1 | V130: 5 | W130: 2 | X130: 2.619203212e-05
A131: 571 | B131: Klebsiella oxytoca | C131: Bacteria; Proteobacteria; Gammaproteobacteria; Enterobacterales; Enterobacteriaceae; Klebsiella | D131: d__Bacteria;p__Proteobacteria;c__Gammaproteobacteria;o__Enterobacterales;f__Enterobacteriaceae;g__Klebsiella;s__Klebsiella oxytoca | E131: 419 | F131: 298 | G131: 440 | H131: 385.6666667 | I131: 0.0009370056222 | J131: 137 | K131: 89 | L131: 59 | M131: 95 | N131: 0.0002171946049 | O131: 200 | P131: 141 | Q131: 173 | R131: 171.3333333 | S131: 0.0006177841697 | T131: 2 | U131: 2 | V131: 1 | W131: 1.666666667 | X131: 2.182669343e-05
A132: 573 | B132: Klebsiella pneumoniae | C132: Bacteria; Proteobacteria; Gammaproteobacteria; Enterobacterales; Enterobacteriaceae; Klebsiella | D132: d__Bacteria;p__Proteobacteria;c__Gammaproteobacteria;o__Enterobacterales;f__Enterobacteriaceae;g__Klebsiella;s__Klebsiella pneumoniae | E132: 36627 | F132: 18468 | G132: 35979 | H132: 30358 | I132: 0.0737570009 | J132: 32051 | K132: 24795 | L132: 21677 | M132: 26174.33333 | N132: 0.05984130512 | O132: 15260 | P132: 26219 | Q132: 20093 | R132: 20524 | S132: 0.07400429358 | T132: 129338 | U132: 71064 | V132: 105783 | W132: 102061.6667 | X132: 1.336601226
A133: 575 | B133: Raoultella planticola | C133: Bacteria; Proteobacteria; Gammaproteobacteria; Enterobacterales; Enterobacteriaceae; Raoultella | D133: d__Bacteria;p__Proteobacteria;c__Gammaproteobacteria;o__Enterobacterales;f__Enterobacteriaceae;g__Klebsiella;s__Klebsiella planticola | E133: 84 | F133: 148 | G133: 85 | H133: 105.6666667 | I133: 0.000256724963 | J133: 75 | K133: 19 | L133: 14 | M133: 36 | N133: 8.230532396e-05 | O133: 17 | P133: 49 | Q133: 48 | R133: 38 | S133: 0.0001370182789 | T133: 0 | U133: 21 | V133: 23 | W133: 14.66666667 | X133: 0.0001920749022
A134: 577 | B134: Raoultella terrigena | C134: Bacteria; Proteobacteria; Gammaproteobacteria; Enterobacterales; Enterobacteriaceae; Raoultella | D134: d__Bacteria;p__Proteobacteria;c__Gammaproteobacteria;o__Enterobacterales;f__Enterobacteriaceae;g__Klebsiella;s__Klebsiella terrigena | E134: 1800 | F134: 1170 | G134: 1086 | H134: 1352 | I134: =(H134/$H$9255)*100 -> 0.003284783754 | J134: 723 | K134: 159 | L134: 130 | M134: 337.3333333 | N134: =(M134/$M$9255)*100 -> 0.000771231369 | O134: 234 | P134: 350 | Q134: 464 | R134: 349.3333333 | S134: 0.001259606634 | T134: 46 | U134: 26 | V134: 63 | W134: 45 | X134: 0.0005893207227
A135: 580 | B135: Kluyvera cryocrescens | C135: Bacteria; Proteobacteria; Gammaproteobacteria; Enterobacterales; Enterobacteriaceae; Kluyvera | D135: d__Bacteria;p__Proteobacteria;c__Gammaproteobacteria;o__Enterobacterales;f__Enterobacteriaceae;g__Kluyvera;s__Kluyvera cryocrescens | E135: 641 | F135: 352 | G135: 571 | H135: =AVERAGE(E135:G135) -> 521.3333333 | I135: 0.001266617799 | J135: 375 | K135: 255 | L135: 165 | M135: =AVERAGE(J135:L135) -> 265 | N135: 0.0006058586347 | O135: 333 | P135: 355 | Q135: 406 | R135: =AVERAGE(O135:Q135) -> 364.6666667 | S135: =(R135/$R$9255)*100 -> 0.001314894711 | T135: 0 | U135: 1 | V135: 0 | W135: =AVERAGE(T135:V135) -> 0.3333333333 | X135: =(W135/$W$9255)*100 -> 4.365338687e-06
A136: 582 | B136: Morganella morganii | C136: Bacteria; Proteobacteria; Gammaproteobacteria; Enterobacterales; Morganellaceae; Morganella | D136: d__Bacteria;p__Proteobacteria;c__Gammaproteobacteria;o__Enterobacterales;f__Enterobacteriaceae;g__Morganella;s__Morganella morganii | E136: 2585 | F136: 1347 | G136: 2190 | H136: 2040.666667 | I136: 0.004957950233 | J136: 770 | K136: 1677 | L136: 860 | M136: 1102.333333 | N136: 0.002520219503 | O136: 1649 | P136: 2695 | Q136: 2115 | R136: 2153 | S136: 0.007763167222 | T136: 34 | U136: 26 | V136: 15 | W136: 25 | X136: 0.0003274004015
A137: 584 | B137: Proteus mirabilis | C137: Bacteria; Proteobacteria; Gammaproteobacteria; Enterobacterales; Morganellaceae; Proteus | D137: d__Bacteria;p__Proteobacteria;c__Gammaproteobacteria;o__Enterobacterales;f__Enterobacteriaceae;g__Proteus;s__Proteus mirabilis | E137: 88 | F137: 33 | G137: 37 | H137: 52.66666667 | I137: 0.0001279575526 | J137: 0 | K137: 0 | L137: 0 | M137: 0 | N137: 0 | O137: 57 | P137: 101 | Q137: 114 | R137: 90.66666667 | S137: 0.0003269208058 | T137: 0 | U137: 0 | V137: 0 | W137: 0 | X137: 0
A138: 587 | B138: Providencia rettgeri | C138: Bacteria; Proteobacteria; Gammaproteobacteria; Enterobacterales; Morganellaceae; Providencia | D138: d__Bacteria;p__Proteobacteria;c__Gammaproteobacteria;o__Enterobacterales;f__Enterobacteriaceae;g__Providencia;s__Providencia rettgeri_A | E138: 20 | F138: 51 | G138: 21 | H138: 30.66666667 | I138: 7.450692934e-05 | J138: 43 | K138: 66 | L138: 65 | M138: 58 | N138: 0.0001326030219 | O138: 0 | P138: 56 | Q138: 43 | R138: 33 | S138: 0.000118989558 | T138: 0 | U138: 0 | V138: 0 | W138: 0 | X138: 0
A139: 588 | B139: Providencia stuartii | C139: Bacteria; Proteobacteria; Gammaproteobacteria; Enterobacterales; Morganellaceae; Providencia | D139: d__Bacteria;p__Proteobacteria;c__Gammaproteobacteria;o__Enterobacterales;f__Enterobacteriaceae;g__Providencia;s__Providencia stuartii | E139: 33 | F139: 10 | G139: 65 | H139: 36 | I139: 8.746465618e-05 | J139: 49 | K139: 0 | L139: 23 | M139: 24 | N139: 5.487021597e-05 | O139: 38 | P139: 9 | Q139: 4 | R139: 17 | S139: 6.129765108e-05 | T139: 0 | U139: 0 | V139: 7 | W139: 2.333333333 | X139: 3.055737081e-05
A140: 614 | B140: Serratia liquefaciens | C140: Bacteria; Proteobacteria; Gammaproteobacteria; Enterobacterales; Yersiniaceae; Serratia | D140: d__Bacteria;p__Proteobacteria;c__Gammaproteobacteria;o__Enterobacterales;f__Enterobacteriaceae;g__Serratia;s__Serratia liquefaciens | E140: 460 | F140: 279 | G140: 326 | H140: 355 | I140: 0.0008624986929 | J140: 272 | K140: 153 | L140: 81 | M140: 168.6666667 | N140: 0.0003856156845 | O140: 74 | P140: 82 | Q140: 142 | R140: 99.33333333 | S140: 0.0003581705887 | T140: 7 | U140: 4 | V140: 9 | W140: 6.666666667 | X140: 8.730677374e-05
A141: 615 | B141: Serratia marcescens | C141: Bacteria; Proteobacteria; Gammaproteobacteria; Enterobacterales; Yersiniaceae; Serratia | D141: d__Bacteria;p__Proteobacteria;c__Gammaproteobacteria;o__Enterobacterales;f__Enterobacteriaceae;g__Serratia;s__Serratia nevei | E141: 488 | F141: 420 | G141: 310 | H141: 406 | I141: 0.0009864069558 | J141: 252 | K141: 416 | L141: 225 | M141: 297.6666667 | N141: 0.0006805430953 | O141: 230 | P141: 257 | Q141: 270 | R141: 252.3333333 | S141: 0.0009098494484 | T141: 11 | U141: 30 | V141: 55 | W141: 32 | X141: 0.000419072514
A142: 623 | B142: Shigella flexneri | C142: Bacteria; Proteobacteria; Gammaproteobacteria; Enterobacterales; Enterobacteriaceae; Shigella | D142: d__Bacteria;p__Proteobacteria;c__Gammaproteobacteria;o__Enterobacterales;f__Enterobacteriaceae;g__Escherichia;s__Escherichia coli | E142: 0 | F142: 2660 | G142: 0 | H142: 886.6666667 | I142: 0.002154222087 | J142: 0 | K142: 0 | L142: 0 | M142: 0 | N142: 0 | O142: 2796 | P142: 0 | Q142: 1223 | R142: 1339.666667 | S142: 0.004830495288 | T142: 1302 | U142: 714 | V142: 1573 | W142: 1196.333333 | X142: 0.01566720055
A143: 624 | B143: Shigella sonnei | C143: Bacteria; Proteobacteria; Gammaproteobacteria; Enterobacterales; Enterobacteriaceae; Shigella | D143: d__Bacteria;p__Proteobacteria;c__Gammaproteobacteria;o__Enterobacterales;f__Enterobacteriaceae;g__Escherichia;s__Escherichia coli | E143: 0 | F143: 0 | G143: 0 | H143: 0 | I143: 0 | J143: 496 | K143: 0 | L143: 0 | M143: 165.3333333 | N143: 0.0003779948212 | O143: 0 | P143: 0 | Q143: 332 | R143: 110.6666667 | S143: 0.0003990356894 | T143: 0 | U143: 111 | V143: 344 | W143: 151.6666667 | X143: 0.001986229103
A144: 630 | B144: Yersinia enterocolitica | C144: Bacteria; Proteobacteria; Gammaproteobacteria; Enterobacterales; Yersiniaceae; Yersinia | D144: d__Bacteria;p__Proteobacteria;c__Gammaproteobacteria;o__Enterobacterales;f__Enterobacteriaceae;g__Yersinia;s__Yersinia enterocolitica | E144: 1630 | F144: 847 | G144: 1333 | H144: 1270 | I144: 0.003085558704 | J144: 910 | K144: 377 | L144: 278 | M144: 521.6666667 | N144: 0.001192665111 | O144: 510 | P144: 650 | Q144: 640 | R144: 600 | S144: 0.002163446509 | T144: 155 | U144: 74 | V144: 68 | W144: 99 | X144: 0.00129650559
A145: 631 | B145: Yersinia intermedia | C145: Bacteria; Proteobacteria; Gammaproteobacteria; Enterobacterales; Yersiniaceae; Yersinia | D145: d__Bacteria;p__Proteobacteria;c__Gammaproteobacteria;o__Enterobacterales;f__Enterobacteriaceae;g__Yersinia;s__Yersinia intermedia | E145: 5619 | F145: 3214 | G145: 4561 | H145: 4464.666667 | I145: 0.01084723708 | J145: 3407 | K145: 1730 | L145: 1010 | M145: 2049 | N145: 0.004684544689 | O145: 1957 | P145: 2336 | Q145: 2730 | R145: 2341 | S145: 0.008441047128 | T145: 334 | U145: 254 | V145: 282 | W145: 290 | X145: 0.003797844658
A146: 633 | B146: Yersinia pseudotuberculosis | C146: Bacteria; Proteobacteria; Gammaproteobacteria; Enterobacterales; Yersiniaceae; Yersinia | D146: d__Bacteria;p__Proteobacteria;c__Gammaproteobacteria;o__Enterobacterales;f__Enterobacteriaceae;g__Yersinia;s__Yersinia pestis | E146: 12 | F146: 0 | G146: 28 | H146: 13.33333333 | I146: 3.23943171e-05 | J146: 0 | K146: 0 | L146: 0 | M146: 0 | N146: 0 | O146: 5 | P146: 0 | Q146: 0 | R146: 1.666666667 | S146: 6.009573635e-06 | T146: 2 | U146: 0 | V146: 0 | W146: 0.6666666667 | X146: 8.730677374e-06
A147: 634 | B147: Yersinia bercovieri | C147: Bacteria; Proteobacteria; Gammaproteobacteria; Enterobacterales; Yersiniaceae; Yersinia | D147: d__Bacteria;p__Proteobacteria;c__Gammaproteobacteria;o__Enterobacterales;f__Enterobacteriaceae;g__Yersinia;s__Yersinia bercovieri | E147: 39 | F147: 6 | G147: 6 | H147: 17 | I147: 4.130275431e-05 | J147: 17 | K147: 0 | L147: 0 | M147: 5.666666667 | N147: 1.295546766e-05 | O147: 0 | P147: 0 | Q147: 108 | R147: 36 | S147: 0.0001298067905 | T147: 6 | U147: 0 | V147: 0 | W147: 2 | X147: 2.619203212e-05
A148: 644 | B148: Aeromonas hydrophila | C148: Bacteria; Proteobacteria; Gammaproteobacteria; Aeromonadales; Aeromonadaceae; Aeromonas | D148: d__Bacteria;p__Proteobacteria;c__Gammaproteobacteria;o__Enterobacterales;f__Aeromonadaceae;g__Aeromonas;s__Aeromonas hydrophila | E148: 7346 | F148: 4157 | G148: 6836 | H148: 6113 | I148: 0.01485198453 | J148: 5864 | K148: 3538 | L148: 1970 | M148: 3790.666667 | N148: 0.008666445778 | O148: 4149 | P148: 3797 | Q148: 4866 | R148: 4270.666667 | S148: 0.01539893148 | T148: 170 | U148: 241 | V148: 209 | W148: 206.6666667 | X148: 0.002706509986
A149: 645 | B149: Aeromonas salmonicida | C149: Bacteria; Proteobacteria; Gammaproteobacteria; Aeromonadales; Aeromonadaceae; Aeromonas | D149: d__Bacteria;p__Proteobacteria;c__Gammaproteobacteria;o__Enterobacterales;f__Aeromonadaceae;g__Aeromonas;s__Aeromonas salmonicida | E149: 33094 | F149: 19939 | G149: 26130 | H149: 26387.66667 | I149: 0.06411078312 | J149: 23847 | K149: 19000 | L149: 8588 | M149: 17145 | N149: 0.03919791054 | O149: 13757 | P149: 15284 | Q149: 21199 | R149: 16746.66667 | S149: 0.06038419589 | T149: 957 | U149: 641 | V149: 696 | W149: 764.6666667 | X149: 0.01001408695
A150: 646 | B150: Aeromonas sobria | C150: Bacteria; Proteobacteria; Gammaproteobacteria; Aeromonadales; Aeromonadaceae; Aeromonas | D150: d__Bacteria;p__Proteobacteria;c__Gammaproteobacteria;o__Enterobacterales;f__Aeromonadaceae;g__Aeromonas;s__Aeromonas sobria | E150: 1254 | F150: 756 | G150: 1321 | H150: 1110.333333 | I150: 0.002697636757 | J150: 1473 | K150: 775 | L150: 410 | M150: 886 | N150: 0.002025625473 | O150: 1058 | P150: 1383 | Q150: 1100 | R150: 1180.333333 | S150: 0.004255980049 | T150: 58 | U150: 81 | V150: 80 | W150: 73 | X150: 0.0009560091724
A151: 647 | B151: Aeromonas sp. | C151: Bacteria; Proteobacteria; Gammaproteobacteria; Aeromonadales; Aeromonadaceae; Aeromonas | D151: d__Bacteria;p__Proteobacteria;c__Gammaproteobacteria;o__Enterobacterales;f__Aeromonadaceae;g__Aeromonas;s__Aeromonas popoffii | E151: 194 | F151: 104 | G151: 155 | H151: 151 | I151: 0.0003668656412 | J151: 36 | K151: 318 | L151: 54 | M151: 136 | N151: 0.0003109312238 | O151: 187 | P151: 179 | Q151: 430 | R151: 265.3333333 | S151: 0.0009567241228 | T151: 0 | U151: 0 | V151: 6 | W151: 2 | X151: 2.619203212e-05
A152: 648 | B152: Aeromonas caviae | C152: Bacteria; Proteobacteria; Gammaproteobacteria; Aeromonadales; Aeromonadaceae; Aeromonas | D152: d__Bacteria;p__Proteobacteria;c__Gammaproteobacteria;o__Enterobacterales;f__Aeromonadaceae;g__Aeromonas;s__Aeromonas caviae | E152: 57733 | F152: 37133 | G152: 51238 | H152: 48701.33333 | I152: 0.1183234827 | J152: 46548 | K152: 32987 | L152: 18123 | M152: 32552.66667 | N152: 0.0744238271 | O152: 32558 | P152: 38830 | Q152: 49829 | R152: 40405.66667 | S152: 0.1456924975 | T152: 1994 | U152: 1015 | V152: 1208 | W152: 1405.666667 | X152: 0.01840863324
A153: 649 | B153: Aeromonas eucrenophila | C153: Bacteria; Proteobacteria; Gammaproteobacteria; Aeromonadales; Aeromonadaceae; Aeromonas | D153: d__Bacteria;p__Proteobacteria;c__Gammaproteobacteria;o__Enterobacterales;f__Aeromonadaceae;g__Aeromonas;s__Aeromonas eucrenophila | E153: 402 | F153: 220 | G153: 344 | H153: 322 | I153: 0.0007823227581 | J153: 244 | K153: 167 | L153: 92 | M153: 167.6666667 | N153: 0.0003833294255 | O153: 164 | P153: 133 | Q153: 187 | R153: 161.3333333 | S153: 0.0005817267279 | T153: 44 | U153: 13 | V153: 26 | W153: 27.66666667 | X153: 0.000362323111
A154: 650 | B154: Aeromonas jandaei | C154: Bacteria; Proteobacteria; Gammaproteobacteria; Aeromonadales; Aeromonadaceae; Aeromonas | D154: d__Bacteria;p__Proteobacteria;c__Gammaproteobacteria;o__Enterobacterales;f__Aeromonadaceae;g__Aeromonas;s__Aeromonas jandaei | E154: 472 | F154: 414 | G154: 559 | H154: 481.6666667 | I154: 0.001170244705 | J154: 348 | K154: 200 | L154: 69 | M154: 205.6666667 | N154: 0.0004702072674 | O154: 230 | P154: 342 | Q154: 345 | R154: 305.6666667 | S154: 0.001102155805 | T154: 15 | U154: 21 | V154: 14 | W154: 16.66666667 | X154: 0.0002182669343
A155: 651 | B155: Aeromonas media | C155: Bacteria; Proteobacteria; Gammaproteobacteria; Aeromonadales; Aeromonadaceae; Aeromonas | D155: d__Bacteria;p__Proteobacteria;c__Gammaproteobacteria;o__Enterobacterales;f__Aeromonadaceae;g__Aeromonas;s__Aeromonas media | E155: 96559 | F155: 49746 | G155: 77369 | H155: 74558 | I155: 0.1811441621 | J155: 62290 | K155: 44721 | L155: 20871 | M155: 42627.33333 | N155: 0.09745712443 | O155: 44775 | P155: 51157 | Q155: 58325 | R155: 51419 | S155: 0.1854037601 | T155: 1731 | U155: 1199 | V155: 1356 | W155: 1428.666667 | X155: 0.01870984161
A156: 654 | B156: Aeromonas veronii | C156: Bacteria; Proteobacteria; Gammaproteobacteria; Aeromonadales; Aeromonadaceae; Aeromonas | D156: d__Bacteria;p__Proteobacteria;c__Gammaproteobacteria;o__Enterobacterales;f__Aeromonadaceae;g__Aeromonas;s__Aeromonas veronii | E156: 9835 | F156: 5870 | G156: 8850 | H156: 8185 | I156: 0.01988606141 | J156: 9126 | K156: 6239 | L156: 3250 | M156: 6205 | N156: 0.01418623709 | O156: 5868 | P156: 6904 | Q156: 8119 | R156: 6963.666667 | S156: 0.02510920056 | T156: 283 | U156: 287 | V156: 531 | W156: 367 | X156: 0.004806237894
A157: 656 | B157: Aeromonas allosaccharophila | C157: Bacteria; Proteobacteria; Gammaproteobacteria; Aeromonadales; Aeromonadaceae; Aeromonas | D157: d__Bacteria;p__Proteobacteria;c__Gammaproteobacteria;o__Enterobacterales;f__Aeromonadaceae;g__Aeromonas;s__Aeromonas allosaccharophila | E157: 2996 | F157: 1275 | G157: 2369 | H157: 2213.333333 | I157: 0.005377456639 | J157: 2562 | K157: 1244 | L157: 703 | M157: 1503 | N157: 0.003436247275 | O157: 1459 | P157: 1633 | Q157: 2167 | R157: 1753 | S157: 0.00632086955 | T157: 95 | U157: 59 | V157: 34 | W157: 62.66666667 | X157: 0.0008206836732
A158: 666 | B158: Vibrio cholerae | C158: Bacteria; Proteobacteria; Gammaproteobacteria; Vibrionales; Vibrionaceae; Vibrio | D158: d__Bacteria;p__Proteobacteria;c__Gammaproteobacteria;o__Enterobacterales;f__Vibrionaceae;g__Vibrio;s__Vibrio cholerae | E158: 536 | F158: 275 | G158: 2304 | H158: 1038.333333 | I158: 0.002522707444 | J158: 457 | K158: 2481 | L158: 283 | M158: 1073.666667 | N158: 0.002454680078 | O158: 542 | P158: 450 | Q158: 607 | R158: 533 | S158: 0.001921861649 | T158: 13 | U158: 6 | V158: 10 | W158: 9.666666667 | X158: 0.0001265948219
A159: 670 | B159: Vibrio parahaemolyticus | C159: Bacteria; Proteobacteria; Gammaproteobacteria; Vibrionales; Vibrionaceae; Vibrio | D159: d__Bacteria;p__Proteobacteria;c__Gammaproteobacteria;o__Enterobacterales;f__Vibrionaceae;g__Vibrio;s__Vibrio parahaemolyticus | E159: 10 | F159: 4 | G159: 25 | H159: 13 | I159: 3.158445918e-05 | J159: 31 | K159: 5 | L159: 3 | M159: 13 | N159: 2.972136699e-05 | O159: 48 | P159: 18 | Q159: 15 | R159: 27 | S159: 9.735509289e-05 | T159: 6 | U159: 1 | V159: 3 | W159: 3.333333333 | X159: 4.365338687e-05
A160: 672 | B160: Vibrio vulnificus | C160: Bacteria; Proteobacteria; Gammaproteobacteria; Vibrionales; Vibrionaceae; Vibrio | D160: d__Bacteria;p__Proteobacteria;c__Gammaproteobacteria;o__Enterobacterales;f__Vibrionaceae;g__Vibrio;s__Vibrio vulnificus | E160: 3 | F160: 0 | G160: 0 | H160: 1 | I160: 2.429573783e-06 | J160: 4 | K160: 0 | L160: 1 | M160: 1.666666667 | N160: 3.810431665e-06 | O160: 12 | P160: 4 | Q160: 16 | R160: 10.66666667 | S160: 3.846127127e-05 | T160: 2 | U160: 6 | V160: 2 | W160: 3.333333333 | X160: 4.365338687e-05
A161: 727 | B161: Haemophilus influenzae | C161: Bacteria; Proteobacteria; Gammaproteobacteria; Pasteurellales; Pasteurellaceae; Haemophilus | D161: d__Bacteria;p__Proteobacteria;c__Gammaproteobacteria;o__Enterobacterales;f__Pasteurellaceae;g__Haemophilus;s__Haemophilus influenzae_E | E161: 45 | F161: 0 | G161: 0 | H161: 15 | I161: 3.644360674e-05 | J161: 0 | K161: 0 | L161: 0 | M161: 0 | N161: 0 | O161: 0 | P161: 39 | Q161: 45 | R161: 28 | S161: 0.0001009608371 | T161: 0 | U161: 0 | V161: 4 | W161: 1.333333333 | X161: 1.746135475e-05
A162: 729 | B162: Haemophilus parainfluenzae | C162: Bacteria; Proteobacteria; Gammaproteobacteria; Pasteurellales; Pasteurellaceae; Haemophilus | D162: d__Bacteria;p__Proteobacteria;c__Gammaproteobacteria;o__Enterobacterales;f__Pasteurellaceae;g__Haemophilus_D;s__Haemophilus_D parainfluenzae_M | E162: 219 | F162: 109 | G162: 120 | H162: 149.3333333 | I162: 0.0003628163516 | J162: 177 | K162: 188 | L162: 130 | M162: 165 | N162: 0.0003772327348 | O162: 263 | P162: 282 | Q162: 254 | R162: 266.3333333 | S162: 0.0009603298669 | T162: 55 | U162: 21 | V162: 4 | W162: 26.66666667 | X162: 0.000349227095
A163: 756 | B163: Pasteurella langaaensis | C163: Bacteria; Proteobacteria; Gammaproteobacteria; Pasteurellales; Pasteurellaceae; Pasteurella | D163: d__Bacteria;p__Proteobacteria;c__Gammaproteobacteria;o__Enterobacterales;f__Pasteurellaceae;g__Basfia_A;s__Basfia_A langaaensis | E163: 0 | F163: 0 | G163: 0 | H163: 0 | I163: 0 | J163: 0 | K163: 0 | L163: 29 | M163: 9.666666667 | N163: 2.210050366e-05 | O163: 6 | P163: 9 | Q163: 12 | R163: 9 | S163: 3.245169763e-05 | T163: 0 | U163: 3 | V163: 1 | W163: 1.333333333 | X163: 1.746135475e-05
A164: 784 | B164: Orientia tsutsugamushi | C164: Bacteria; Proteobacteria; Alphaproteobacteria; Rickettsiales; Rickettsiaceae; Orientia | D164: d__Bacteria;p__Proteobacteria;c__Alphaproteobacteria;o__Rickettsiales;f__Rickettsiaceae;g__Orientia;s__Orientia tsutsugamushi | E164: 9 | F164: 6 | G164: 3 | H164: 6 | I164: 1.45774427e-05 | J164: 10 | K164: 6 | L164: 2 | M164: 6 | N164: 1.371755399e-05 | O164: 22 | P164: 5 | Q164: 9 | R164: 12 | S164: 4.326893017e-05 | T164: 25 | U164: 19 | V164: 19 | W164: 21 | X164: 0.0002750163373
A165: 817 | B165: Bacteroides fragilis | C165: Bacteria; Bacteroidetes; Bacteroidia; Bacteroidales; Bacteroidaceae; Bacteroides | D165: d__Bacteria;p__Bacteroidota;c__Bacteroidia;o__Bacteroidales;f__Bacteroidaceae;g__Bacteroides;s__Bacteroides fragilis | E165: 219 | F165: 306 | G165: 223 | H165: 249.3333333 | I165: 0.0006057737298 | J165: 232 | K165: 190 | L165: 212 | M165: 211.3333333 | N165: 0.0004831627351 | O165: 226 | P165: 727 | Q165: 1041 | R165: 664.6666667 | S165: 0.002396617966 | T165: 56 | U165: 38 | V165: 24 | W165: 39.33333333 | X165: 0.0005151099651
A166: 818 | B166: Bacteroides thetaiotaomicron | C166: Bacteria; Bacteroidetes; Bacteroidia; Bacteroidales; Bacteroidaceae; Bacteroides | D166: d__Bacteria;p__Bacteroidota;c__Bacteroidia;o__Bacteroidales;f__Bacteroidaceae;g__Bacteroides;s__Bacteroides thetaiotaomicron | E166: 304 | F166: 228 | G166: 246 | H166: 259.3333333 | I166: 0.0006300694677 | J166: 186 | K166: 81 | L166: 180 | M166: 149 | N166: 0.0003406525908 | O166: 445 | P166: 816 | Q166: 452 | R166: 571 | S166: 0.002058879927 | T166: 154 | U166: 48 | V166: 12 | W166: 71.33333333 | X166: 0.000934182479
A167: 820 | B167: Bacteroides uniformis | C167: Bacteria; Bacteroidetes; Bacteroidia; Bacteroidales; Bacteroidaceae; Bacteroides | D167: d__Bacteria;p__Bacteroidota;c__Bacteroidia;o__Bacteroidales;f__Bacteroidaceae;g__Bacteroides;s__Bacteroides uniformis | E167: 2498 | F167: 990 | G167: 2165 | H167: 1884.333333 | I167: 0.004578126865 | J167: 1734 | K167: 1207 | L167: 1261 | M167: 1400.666667 | N167: 0.003202286771 | O167: 2515 | P167: 1961 | Q167: 4431 | R167: 2969 | S167: 0.01070545447 | T167: 129 | U167: 0 | V167: 287 | W167: 138.6666667 | X167: 0.001815980894
A168: 821 | B168: Phocaeicola vulgatus | C168: Bacteria; Bacteroidetes; Bacteroidia; Bacteroidales; Rikenellaceae; Phocaeicola | D168: d__Bacteria;p__Bacteroidota;c__Bacteroidia;o__Bacteroidales;f__Bacteroidaceae;g__Phocaeicola;s__Phocaeicola vulgatus | E168: 1991 | F168: 1345 | G168: 1819 | H168: 1718.333333 | I168: 0.004174817617 | J168: 2186 | K168: 1166 | L168: 787 | M168: 1379.666667 | N168: 0.003154275332 | O168: 2641 | P168: 2750 | Q168: 2515 | R168: 2635.333333 | S168: 0.009502337832 | T168: 425 | U168: 112 | V168: 220 | W168: 252.3333333 | X168: 0.003304561386
A169: 823 | B169: Parabacteroides distasonis | C169: Bacteria; Bacteroidetes; Bacteroidia; Bacteroidales; Tannerellaceae; Parabacteroides | D169: d__Bacteria;p__Bacteroidota;c__Bacteroidia;o__Bacteroidales;f__Tannerellaceae;g__Parabacteroides;s__Parabacteroides distasonis | E169: 587 | F169: 269 | G169: 210 | H169: 355.3333333 | I169: 0.0008633085508 | J169: 447 | K169: 214 | L169: 322 | M169: 327.6666667 | N169: 0.0007491308653 | O169: 381 | P169: 369 | Q169: 656 | R169: 468.6666667 | S169: 0.001689892106 | T169: 80 | U169: 33 | V169: 109 | W169: 74 | X169: 0.0009691051885
A170: 826 | B170: Sebaldella termitidis | C170: Bacteria; Fusobacteria; Fusobacteriia; Fusobacteriales; Leptotrichiaceae; Sebaldella | D170: d__Bacteria;p__Fusobacteriota;c__Fusobacteriia;o__Fusobacteriales;f__Leptotrichiaceae;g__Sebaldella;s__Sebaldella termitidis | E170: 109 | F170: 44 | G170: 126 | H170: 93 | I170: 0.0002259503618 | J170: 80 | K170: 41 | L170: 16 | M170: 45.66666667 | N170: 0.0001044058276 | O170: 49 | P170: 68 | Q170: 95 | R170: 70.66666667 | S170: 0.0002548059221 | T170: 10 | U170: 1 | V170: 2 | W170: 4.333333333 | X170: 5.674940293e-05
A171: 837 | B171: Porphyromonas gingivalis | C171: Bacteria; Bacteroidetes; Bacteroidia; Bacteroidales; Porphyromonadaceae; Porphyromonas | D171: d__Bacteria;p__Bacteroidota;c__Bacteroidia;o__Bacteroidales;f__Porphyromonadaceae;g__Porphyromonas;s__Porphyromonas gingivalis | E171: 1 | F171: 0 | G171: 11 | H171: 4 | I171: 9.718295131e-06 | J171: 0 | K171: 0 | L171: 0 | M171: 0 | N171: 0 | O171: 0 | P171: 0 | Q171: 3 | R171: 1 | S171: 3.605744181e-06 | T171: 0 | U171: 0 | V171: 0 | W171: 0 | X171: 0
A172: 839 | B172: Prevotella ruminicola | C172: Bacteria; Bacteroidetes; Bacteroidia; Bacteroidales; Prevotellaceae; Prevotella | D172: d__Bacteria;p__Bacteroidota;c__Bacteroidia;o__Bacteroidales;f__Bacteroidaceae;g__Prevotella;s__Prevotella ruminicola | E172: 13 | F172: 54 | G172: 38 | H172: 35 | I172: 8.50350824e-05 | J172: 4 | K172: 0 | L172: 22 | M172: 8.666666667 | N172: 1.981424466e-05 | O172: 0 | P172: 19 | Q172: 23 | R172: 14 | S172: 5.048041854e-05 | T172: 7 | U172: 19 | V172: 0 | W172: 8.666666667 | X172: 0.0001134988059
A173: 850 | B173: Fusobacterium mortiferum | C173: Bacteria; Fusobacteria; Fusobacteriia; Fusobacteriales; Fusobacteriaceae; Fusobacterium | D173: d__Bacteria;p__Fusobacteriota;c__Fusobacteriia;o__Fusobacteriales;f__Fusobacteriaceae;g__Fusobacterium_A;s__Fusobacterium_A mortiferum | E173: 58 | F173: 19 | G173: 21 | H173: 32.66666667 | I173: 7.93660769e-05 | J173: 10 | K173: 17 | L173: 29 | M173: 18.66666667 | N173: 4.267683465e-05 | O173: 58 | P173: 51 | Q173: 32 | R173: 47 | S173: 0.0001694699765 | T173: 548 | U173: 333 | V173: 424 | W173: 435 | X173: 0.005696766987
A174: 851 | B174: Fusobacterium nucleatum | C174: Bacteria; Fusobacteria; Fusobacteriia; Fusobacteriales; Fusobacteriaceae; Fusobacterium | D174: d__Bacteria;p__Fusobacteriota;c__Fusobacteriia;o__Fusobacteriales;f__Fusobacteriaceae;g__Fusobacterium;s__Fusobacterium vincentii | E174: 18 | F174: 0 | G174: 0 | H174: 6 | I174: 1.45774427e-05 | J174: 0 | K174: 0 | L174: 0 | M174: 0 | N174: 0 | O174: 0 | P174: 5 | Q174: 13 | R174: 6 | S174: 2.163446509e-05 | T174: 0 | U174: 0 | V174: 0 | W174: 0 | X174: 0
A175: 853 | B175: Faecalibacterium prausnitzii | C175: Bacteria; Firmicutes; Clostridia; Eubacteriales; Oscillospiraceae; Faecalibacterium | D175: d__Bacteria;p__Firmicutes_A;c__Clostridia;o__Oscillospirales;f__Ruminococcaceae;g__Faecalibacterium;s__Faecalibacterium prausnitzii | E175: 7033 | F175: 4205 | G175: 6166 | H175: 5801.333333 | I175: 0.01409476737 | J175: 4921 | K175: 4238 | L175: 3914 | M175: 4357.666667 | N175: 0.009962754631 | O175: 12174 | P175: 13762 | Q175: 14805 | R175: 13580.33333 | S175: 0.0489672079 | T175: 792 | U175: 619 | V175: 853 | W175: 754.6666667 | X175: 0.009883126787
A176: 861 | B176: Fusobacterium ulcerans | C176: Bacteria; Fusobacteria; Fusobacteriia; Fusobacteriales; Fusobacteriaceae; Fusobacterium | D176: d__Bacteria;p__Fusobacteriota;c__Fusobacteriia;o__Fusobacteriales;f__Fusobacteriaceae;g__Fusobacterium_A;s__Fusobacterium_A ulcerans | E176: 0 | F176: 4 | G176: 0 | H176: 1.333333333 | I176: 3.23943171e-06 | J176: 9 | K176: 8 | L176: 0 | M176: 5.666666667 | N176: 1.295546766e-05 | O176: 4 | P176: 6 | Q176: 13 | R176: 7.666666667 | S176: 2.764403872e-05 | T176: 2 | U176: 4 | V176: 0 | W176: 2 | X176: 2.619203212e-05
A177: 863 | B177: Syntrophomonas wolfei | C177: Bacteria; Firmicutes; Clostridia; Eubacteriales; Syntrophomonadaceae; Syntrophomonas | D177: d__Bacteria;p__Firmicutes_B;c__Syntrophomonadia;o__Syntrophomonadales;f__Syntrophomonadaceae;g__Syntrophomonas;s__Syntrophomonas methylbutyratica | E177: 10 | F177: 11 | G177: 26 | H177: 15.66666667 | I177: 3.80633226e-05 | J177: 24 | K177: 0 | L177: 118 | M177: 47.33333333 | N177: 0.0001082162593 | O177: 43 | P177: 54 | Q177: 14 | R177: 37 | S177: 0.0001334125347 | T177: 13 | U177: 0 | V177: 0 | W177: 4.333333333 | X177: 5.674940293e-05
A178: 865 | B178: Pectinatus frisingensis | C178: Bacteria; Firmicutes; Negativicutes; Selenomonadales; Selenomonadaceae; Pectinatus | D178: d__Bacteria;p__Firmicutes_C;c__Negativicutes;o__Selenomonadales;f__Selenomonadaceae;g__Pectinatus;s__Pectinatus frisingensis | E178: 0 | F178: 0 | G178: 2 | H178: 0.6666666667 | I178: 1.619715855e-06 | J178: 2 | K178: 2 | L178: 0 | M178: 1.333333333 | N178: 3.048345332e-06 | O178: 6 | P178: 6 | Q178: 18 | R178: 10 | S178: 3.605744181e-05 | T178: 2 | U178: 1 | V178: 3 | W178: 2 | X178: 2.619203212e-05
A179: 870 | B179: Dichelobacter nodosus | C179: Bacteria; Proteobacteria; Gammaproteobacteria; Cardiobacteriales; Cardiobacteriaceae; Dichelobacter | D179: d__Bacteria;p__Proteobacteria;c__Gammaproteobacteria;o__Cardiobacteriales;f__Cardiobacteriaceae;g__Dichelobacter;s__Dichelobacter nodosus | E179: 0 | F179: 4 | G179: 0 | H179: 1.333333333 | I179: 3.23943171e-06 | J179: 0 | K179: 0 | L179: 17 | M179: 5.666666667 | N179: 1.295546766e-05 | O179: 1 | P179: 4 | Q179: 3 | R179: 2.666666667 | S179: 9.615317817e-06 | T179: 6 | U179: 7 | V179: 0 | W179: 4.333333333 | X179: 5.674940293e-05
A180: 873 | B180: Desulfocurvibacter africanus | C180: Bacteria; Proteobacteria; Deltaproteobacteria; Desulfovibrionales; Desulfovibrionaceae; Desulfocurvibacter | D180: d__Bacteria;p__Desulfobacterota_I;c__Desulfovibrionia;o__Desulfovibrionales;f__Desulfovibrionaceae;g__Desulfocurvibacter;s__Desulfocurvibacter africanus | E180: 5 | F180: 38 | G180: 0 | H180: 14.33333333 | I180: 3.482389089e-05 | J180: 21 | K180: 0 | L180: 0 | M180: 7 | N180: 1.600381299e-05 | O180: 0 | P180: 26 | Q180: 12 | R180: 12.66666667 | S180: 4.567275963e-05 | T180: 0 | U180: 0 | V180: 0 | W180: 0 | X180: 0
A181: 876 | B181: Desulfovibrio desulfuricans | C181: Bacteria; Proteobacteria; Deltaproteobacteria; Desulfovibrionales; Desulfovibrionaceae; Desulfovibrio | D181: d__Bacteria;p__Desulfobacterota_I;c__Desulfovibrionia;o__Desulfovibrionales;f__Desulfovibrionaceae;g__Desulfovibrio;s__Desulfovibrio desulfuricans | E181: 141 | F181: 89 | G181: 128 | H181: 119.3333333 | I181: 0.0002899291381 | J181: 72 | K181: 65 | L181: 33 | M181: 56.66666667 | N181: 0.0001295546766 | O181: 73 | P181: 56 | Q181: 83 | R181: 70.66666667 | S181: 0.0002548059221 | T181: 0 | U181: 0 | V181: 2 | W181: 0.6666666667 | X181: 8.730677374e-06
A182: 881 | B182: Desulfovibrio vulgaris | C182: Bacteria; Proteobacteria; Deltaproteobacteria; Desulfovibrionales; Desulfovibrionaceae; Desulfovibrio | D182: d__Bacteria;p__Desulfobacterota_I;c__Desulfovibrionia;o__Desulfovibrionales;f__Desulfovibrionaceae;g__Nitratidesulfovibrio;s__Nitratidesulfovibrio vulgaris | E182: 0 | F182: 0 | G182: 0 | H182: 0 | I182: 0 | J182: 11 | K182: 21 | L182: 0 | M182: 10.66666667 | N182: 2.438676265e-05 | O182: 13 | P182: 0 | Q182: 7 | R182: 6.666666667 | S182: 2.403829454e-05 | T182: 0 | U182: 0 | V182: 0 | W182: 0 | X182: 0
A183: 894 | B183: Desulfobulbus propionicus | C183: Bacteria; Proteobacteria; Deltaproteobacteria; Desulfobacterales; Desulfobulbaceae; Desulfobulbus | D183: d__Bacteria;p__Desulfobacterota;c__Desulfobulbia;o__Desulfobulbales;f__Desulfobulbaceae;g__Desulfobulbus_A;s__Desulfobulbus_A propionicus_C | E183: 562 | F183: 344 | G183: 375 | H183: 427 | I183: 0.001037428005 | J183: 202 | K183: 76 | L183: 135 | M183: 137.6666667 | N183: 0.0003147416555 | O183: 239 | P183: 306 | Q183: 294 | R183: 279.6666667 | S183: 0.001008406456 | T183: 0 | U183: 0 | V183: 6 | W183: 2 | X183: 2.619203212e-05
A184: 899 | B184: Desulfomicrobium baculatum | C184: Bacteria; Proteobacteria; Deltaproteobacteria; Desulfovibrionales; Desulfomicrobiaceae; Desulfomicrobium | D184: d__Bacteria;p__Desulfobacterota_I;c__Desulfovibrionia;o__Desulfovibrionales;f__Desulfomicrobiaceae;g__Desulfomicrobium;s__Desulfomicrobium baculatum | E184: 308 | F184: 104 | G184: 189 | H184: 200.3333333 | I184: 0.0004867246145 | J184: 227 | K184: 78 | L184: 105 | M184: 136.6666667 | N184: 0.0003124553965 | O184: 202 | P184: 160 | Q184: 209 | R184: 190.3333333 | S184: 0.0006862933092 | T184: 26 | U184: 41 | V184: 10 | W184: 25.66666667 | X184: 0.0003361310789
A185: 901 | B185: Desulfovibrio piger | C185: Bacteria; Proteobacteria; Deltaproteobacteria; Desulfovibrionales; Desulfovibrionaceae; Desulfovibrio | D185: d__Bacteria;p__Desulfobacterota_I;c__Desulfovibrionia;o__Desulfovibrionales;f__Desulfovibrionaceae;g__Desulfovibrio;s__Desulfovibrio sp900556755 | E185: 52 | F185: 47 | G185: 16 | H185: 38.33333333 | I185: 9.313366167e-05 | J185: 31 | K185: 23 | L185: 30 | M185: 28 | N185: 6.401525197e-05 | O185: 55 | P185: 80 | Q185: 83 | R185: 72.66666667 | S185: 0.0002620174105 | T185: 5 | U185: 3 | V185: 0 | W185: 2.666666667 | X185: 3.49227095e-05
A186: 905 | B186: Acidaminococcus fermentans | C186: Bacteria; Firmicutes; Negativicutes; Acidaminococcales; Acidaminococcaceae; Acidaminococcus | D186: d__Bacteria;p__Firmicutes_C;c__Negativicutes;o__Acidaminococcales;f__Acidaminococcaceae;g__Acidaminococcus;s__Acidaminococcus fermentans | E186: 15 | F186: 2 | G186: 6 | H186: 7.666666667 | I186: 1.862673233e-05 | J186: 10 | K186: 8 | L186: 2 | M186: 6.666666667 | N186: 1.524172666e-05 | O186: 109 | P186: 6 | Q186: 14 | R186: 43 | S186: 0.0001550469998 | T186: 0 | U186: 6 | V186: 0 | W186: 2 | X186: 2.619203212e-05
A187: 907 | B187: Megasphaera elsdenii | C187: Bacteria; Firmicutes; Negativicutes; Veillonellales; Veillonellaceae; Megasphaera | D187: d__Bacteria;p__Firmicutes_C;c__Negativicutes;o__Veillonellales;f__Megasphaeraceae;g__Megasphaera;s__Megasphaera elsdenii | E187: 109 | F187: 52 | G187: 94 | H187: 85 | I187: 0.0002065137715 | J187: 78 | K187: 87 | L187: 38 | M187: 67.66666667 | N187: 0.0001547035256 | O187: 157 | P187: 215 | Q187: 203 | R187: 191.6666667 | S187: 0.0006911009681 | T187: 1116 | U187: 563 | V187: 673 | W187: 784 | X187: 0.01026727659
A188: 912 | B188: Nitrobacter hamburgensis | C188: Bacteria; Proteobacteria; Alphaproteobacteria; Hyphomicrobiales; Bradyrhizobiaceae; Nitrobacter | D188: d__Bacteria;p__Proteobacteria;c__Alphaproteobacteria;o__Rhizobiales;f__Xanthobacteraceae;g__Nitrobacter;s__Nitrobacter hamburgensis | E188: 275 | F188: 297 | G188: 766 | H188: 446 | I188: 0.001083589907 | J188: 120 | K188: 458 | L188: 672 | M188: 416.6666667 | N188: 0.0009526079162 | O188: 160 | P188: 518 | Q188: 731 | R188: 469.6666667 | S188: 0.00169349785 | T188: 75 | U188: 18 | V188: 189 | W188: 94 | X188: 0.00123102551
A189: 913 | B189: Nitrobacter winogradskyi | C189: Bacteria; Proteobacteria; Alphaproteobacteria; Hyphomicrobiales; Bradyrhizobiaceae; Nitrobacter | D189: d__Bacteria;p__Proteobacteria;c__Alphaproteobacteria;o__Rhizobiales;f__Xanthobacteraceae;g__Nitrobacter;s__Nitrobacter winogradskyi | E189: 14 | F189: 27 | G189: 21 | H189: 20.66666667 | I189: 5.021119151e-05 | J189: 2 | K189: 9 | L189: 3 | M189: 4.666666667 | N189: 1.066920866e-05 | O189: 8 | P189: 34 | Q189: 6 | R189: 16 | S189: 5.76919069e-05 | T189: 19 | U189: 7 | V189: 32 | W189: 19.33333333 | X189: 0.0002531896438
A190: 915 | B190: Nitrosomonas europaea | C190: Bacteria; Proteobacteria; Betaproteobacteria; Nitrosomonadales; Nitrosomonadaceae; Nitrosomonas | D190: d__Bacteria;p__Proteobacteria;c__Gammaproteobacteria;o__Burkholderiales;f__Nitrosomonadaceae;g__Nitrosomonas;s__Nitrosomonas europaea | E190: 4 | F190: 0 | G190: 0 | H190: 1.333333333 | I190: 3.23943171e-06 | J190: 29 | K190: 13 | L190: 9 | M190: 17 | N190: 3.886640298e-05 | O190: 3 | P190: 10 | Q190: 25 | R190: 12.66666667 | S190: 4.567275963e-05 | T190: 0 | U190: 9 | V190: 0 | W190: 3 | X190: 3.928804818e-05
A191: 916 | B191: Nitrosomonas eutropha | C191: Bacteria; Proteobacteria; Betaproteobacteria; Nitrosomonadales; Nitrosomonadaceae; Nitrosomonas | D191: d__Bacteria;p__Proteobacteria;c__Gammaproteobacteria;o__Burkholderiales;f__Nitrosomonadaceae;g__Nitrosomonas;s__Nitrosomonas eutropha_B | E191: 73 | F191: 60 | G191: 98 | H191: 77 | I191: 0.0001870771813 | J191: 153 | K191: 166 | L191: 197 | M191: 172 | N191: 0.0003932365478 | O191: 35 | P191: 33 | Q191: 77 | R191: 48.33333333 | S191: 0.0001742776354 | T191: 0 | U191: 0 | V191: 0 | W191: 0 | X191: 0
A192: 917 | B192: Nitrosomonas marina | C192: Bacteria; Proteobacteria; Betaproteobacteria; Nitrosomonadales; Nitrosomonadaceae; Nitrosomonas | D192: d__Bacteria;p__Proteobacteria;c__Gammaproteobacteria;o__Burkholderiales;f__Nitrosomonadaceae;g__Nitrosomonas;s__Nitrosomonas marina | E192: 4 | F192: 2 | G192: 1 | H192: 2.333333333 | I192: 5.669005493e-06 | J192: 2 | K192: 5 | L192: 3 | M192: 3.333333333 | N192: 7.62086333e-06 | O192: 14 | P192: 10 | Q192: 2 | R192: 8.666666667 | S192: 3.12497829e-05 | T192: 0 | U192: 0 | V192: 0 | W192: 0 | X192: 0
A193: 920 | B193: Acidithiobacillus ferrooxidans | C193: Bacteria; Proteobacteria; Acidithiobacillia; Acidithiobacillales; Acidithiobacillaceae; Acidithiobacillus | D193: d__Bacteria;p__Proteobacteria;c__Gammaproteobacteria;o__Acidithiobacillales;f__Acidithiobacillaceae;g__Acidithiobacillus;s__Acidithiobacillus ferrooxidans | E193: 40 | F193: 35 | G193: 16 | H193: 30.33333333 | I193: 7.369707141e-05 | J193: 16 | K193: 29 | L193: 5 | M193: 16.66666667 | N193: 3.810431665e-05 | O193: 7 | P193: 13 | Q193: 38 | R193: 19.33333333 | S193: 6.971105417e-05 | T193: 5 | U193: 16 | V193: 5 | W193: 8.666666667 | X193: 0.0001134988059
A194: 924 | B194: Thiobacillus sp. | C194: Bacteria; Proteobacteria; Betaproteobacteria; Nitrosomonadales; Thiobacillaceae; Thiobacillus | D194: d__Bacteria;p__Proteobacteria;c__Gammaproteobacteria;o__Burkholderiales;f__Thiobacillaceae;g__Thiobacillus;s__Thiobacillus sp001899305 | E194: 250 | F194: 45 | G194: 55 | H194: 116.6666667 | I194: 0.0002834502747 | J194: 134 | K194: 151 | L194: 69 | M194: 118 | N194: 0.0002697785619 | O194: 178 | P194: 135 | Q194: 187 | R194: 166.6666667 | S194: 0.0006009573635 | T194: 83 | U194: 55 | V194: 88 | W194: 75.33333333 | X194: 0.0009865665433
A195: 926 | B195: Thiomonas intermedia | C195: Bacteria; Proteobacteria; Betaproteobacteria; Burkholderiales; ; Thiomonas | D195: d__Bacteria;p__Proteobacteria;c__Gammaproteobacteria;o__Burkholderiales;f__Burkholderiaceae;g__Thiomonas;s__Thiomonas arsenitoxydans | E195: 366 | F195: 244 | G195: 243 | H195: 284.3333333 | I195: 0.0006908088122 | J195: 289 | K195: 377 | L195: 320 | M195: 328.6666667 | N195: 0.0007514171243 | O195: 102 | P195: 141 | Q195: 239 | R195: 160.6666667 | S195: 0.0005793228985 | T195: 1 | U195: 17 | V195: 3 | W195: 7 | X195: 9.167211243e-05
A196: 927 | B196: Halothiobacillus neapolitanus | C196: Bacteria; Proteobacteria; Gammaproteobacteria; Chromatiales; Halothiobacillaceae; Halothiobacillus | D196: d__Bacteria;p__Proteobacteria;c__Gammaproteobacteria;o__Halothiobacillales;f__Halothiobacillaceae;g__Halothiobacillus;s__Halothiobacillus neapolitanus | E196: 38 | F196: 4 | G196: 8 | H196: 16.66666667 | I196: 4.049289638e-05 | J196: 11 | K196: 13 | L196: 1 | M196: 8.333333333 | N196: 1.905215832e-05 | O196: 7 | P196: 4 | Q196: 6 | R196: 5.666666667 | S196: 2.043255036e-05 | T196: 3 | U196: 2 | V196: 2 | W196: 2.333333333 | X196: 3.055737081e-05
A197: 930 | B197: Acidithiobacillus thiooxidans | C197: Bacteria; Proteobacteria; Acidithiobacillia; Acidithiobacillales; Acidithiobacillaceae; Acidithiobacillus | D197: d__Bacteria;p__Proteobacteria;c__Gammaproteobacteria;o__Acidithiobacillales;f__Acidithiobacillaceae;g__Acidithiobacillus;s__Acidithiobacillus thiooxidans | E197: 39 | F197: 38 | G197: 36 | H197: 37.66666667 | I197: 9.151394582e-05 | J197: 18 | K197: 21 | L197: 14 | M197: 17.66666667 | N197: 4.039057565e-05 | O197: 26 | P197: 49 | Q197: 22 | R197: 32.33333333 | S197: 0.0001165857285 | T197: 3 | U197: 0 | V197: 7 | W197: 3.333333333 | X197: 4.365338687e-05
A198: 931 | B198: Thiobacillus thioparus | C198: Bacteria; Proteobacteria; Betaproteobacteria; Nitrosomonadales; Thiobacillaceae; Thiobacillus | D198: d__Bacteria;p__Proteobacteria;c__Gammaproteobacteria;o__Burkholderiales;f__Thiobacillaceae;g__Thiobacillus;s__Thiobacillus thioparus | E198: 1147 | F198: 383 | G198: 443 | H198: 657.6666667 | I198: =(H198/$H$9255)*100 -> 0.001597849691 | J198: 559 | K198: 404 | L198: 608 | M198: 523.6666667 | N198: =(M198/$M$9255)*100 -> 0.001197237629 | O198: 414 | P198: 568 | Q198: 548 | R198: 510 | S198: 0.001838929532 | T198: 36 | U198: 56 | V198: 62 | W198: 51.33333333 | X198: 0.0006722621578
A199: 960 | B199: Bacteriovorax stolpii | C199: Bacteria; Proteobacteria; Oligoflexia; Bacteriovoracales; Bacteriovoracaceae; Bacteriovorax | D199: d__Bacteria;p__Bdellovibrionota;c__Bacteriovoracia;o__Bacteriovoracales;f__Bacteriovoracaceae;g__Bacteriovorax;s__Bacteriovorax stolpii | E199: 140 | F199: 105 | G199: 131 | H199: =AVERAGE(E199:G199) -> 125.3333333 | I199: 0.0003045065808 | J199: 153 | K199: 192 | L199: 124 | M199: =AVERAGE(J199:L199) -> 156.3333333 | N199: 0.0003574184902 | O199: 280 | P199: 287 | Q199: 230 | R199: =AVERAGE(O199:Q199) -> 265.6666667 | S199: =(R199/$R$9255)*100 -> 0.0009579260375 | T199: 205 | U199: 86 | V199: 134 | W199: =AVERAGE(T199:V199) -> 141.6666667 | X199: =(W199/$W$9255)*100 -> 0.001855268942
A200: 966 | B200: Oceanospirillum linum | C200: Bacteria; Proteobacteria; Gammaproteobacteria; Oceanospirillales; Oceanospirillaceae; Oceanospirillum | D200: d__Bacteria;p__Proteobacteria;c__Gammaproteobacteria;o__Pseudomonadales;f__Halomonadaceae;g__Oceanospirillum;s__Oceanospirillum linum | E200: 0 | F200: 0 | G200: 0 | H200: 0 | I200: 0 | J200: 0 | K200: 0 | L200: 0 | M200: 0 | N200: 0 | O200: 1 | P200: 1 | Q200: 2 | R200: 1.333333333 | S200: 4.807658908e-06 | T200: 0 | U200: 2 | V200: 11 | W200: 4.333333333 | X200: 5.674940293e-05
A201: 982 | B201: Saccharicrinis fermentans | C201: Bacteria; Bacteroidetes; Bacteroidia; Marinilabiliales; Marinilabiliaceae; Saccharicrinis | D201: d__Bacteria;p__Bacteroidota;c__Bacteroidia;o__Bacteroidales;f__Marinilabiliaceae;g__Saccharicrinis;s__Saccharicrinis fermentans | E201: 24 | F201: 26 | G201: 43 | H201: 31 | I201: 7.531678727e-05 | J201: 0 | K201: 0 | L201: 13 | M201: 4.333333333 | N201: 9.907122329e-06 | O201: 34 | P201: 49 | Q201: 17 | R201: 33.33333333 | S201: 0.0001201914727 | T201: 20 | U201: 0 | V201: 0 | W201: 6.666666667 | X201: 8.730677374e-05
... 2049 more rows

Sheet S1C Beta diversity
A1: Table S1E. Beta diversity compositions
A3: ANOSIM tests
A4: Database | B4: Beta diversity metric | C4: Overall | E4: Wood vs W-LDPE | G4: Wood vs LDPE | I4: Wood vs Water | K4: W-LDPE vs LDPE | M4: W-LDPE vs Water | O4: LDPE vs Water
C5: R | D5: p | E5: R | F5: p | G5: R | H5: p | I5: R | J5: p | K5: R | L5: p | M5: R | N5: p | O5: R | P5: p
A6: Kraken (taxonomy NCBI RefSeq V205) | B6: Bray-Curtis distance | C6: 0.9691358 | D6: 0.001 | E6: 1 | F6: 0.1 | G6: 1 | H6: 0.1 | I6: 1 | J6: 0.1 | K6: 0.74074074 | L6: 0.1 | M6: 1 | N6: 0.1 | O6: 1 | P6: 0.1
A7: Kraken (taxonomy NCBI RefSeq V205) | B7: Robust Aitchison's distance | C7: 0.89814815 | D7: 0.001 | E7: 1 | F7: 0.1 | G7: 1 | H7: 0.1 | I7: 1 | J7: 0.1 | K7: 1 | L7: 0.1 | M7: 1 | N7: 0.1 | O7: 1 | P7: 0.1
A8: Kraken (taxonomy NCBI RefSeq V205) | B8: Weighted UniFrac dissimilarity | C8: 1 | D8: 0.001 | E8: 1 | F8: 0.1 | G8: 1 | H8: 0.1 | I8: 1 | J8: 0.1 | K8: 1 | L8: 0.1 | M8: 1 | N8: 0.1 | O8: 1 | P8: 0.1
A9: CARD (AMR) | B9: Bray-Curtis distance | C9: 0.75 | D9: 0.002 | E9: 0.85185185 | F9: 0.1 | G9: 0.74074074 | H9: 0.1 | I9: 1 | J9: 0.1 | K9: 0.51851852 | L9: 0.2 | M9: 1 | N9: 0.1 | O9: 1 | P9: 0.1
A10: CARD (AMR) | B10: Robust Aitchison's distance | C10: 0.94444444 | D10: 0.001 | E10: 1 | F10: 0.1 | G10: 0.77777778 | H10: 0.1 | I10: 1 | J10: 0.1 | K10: 1 | L10: 0.1 | M10: 1 | N10: 0.1 | O10: 1 | P10: 0.1
A13: PERMANOVA tests
A14: Database | B14: Beta diversity metric | C14: Overall | F14: Wood vs W-LDPE | I14: Wood vs LDPE | L14: Wood vs Water | O14: W-LDPE vs LDPE | R14: W-LDPE vs Water | U14: LDPE vs Water
C15: F | D15: R2 | E15: p | F15: F | G15: R2 | H15: p | I15: F | J15: R2 | K15: p | L15: F | M15: R2 | N15: p | O15: F | P15: R2 | Q15: p | R15: F | S15: R2 | T15: p | U15: F | V15: R2 | W15: p
A16: Kraken (taxonomy NCBI RefSeq V205) | B16: Bray-Curtis distance | C16: 45.90488154 | D16: 0.9450981744 | E16: 0.001 | F16: 15.43446936 | G16: 0.7941801278 | H16: 0.1 | I16: 23.68669746 | J16: 0.8555262864 | K16: 0.1 | L16: 75.97409329 | M16: 0.9499838031 | N16: 0.1 | O16: 6.548656742 | P16: 0.6208048003 | Q16: 0.1 | R16: 61.47090165 | S16: 0.9389041559 | T16: 0.1 | U16: 86.02892985 | V16: 0.9555698373 | W16: 0.1
A17: Kraken (taxonomy NCBI RefSeq V205) | B17: Robust Aitchison's distance | C17: 6.612659495 | D17: 0.7126228112 | E17: 0.001 | F17: 3.183299226 | G17: 0.4431528084 | H17: 0.1 | I17: 2.777880866 | J17: 0.4098450417 | K17: 0.1 | L17: 10.31606788 | M17: 0.7205936691 | N17: 0.1 | O17: 2.668802949 | P17: 0.4001922038 | Q17: 0.1 | R17: 9.017631357 | S17: 0.6927244373 | T17: 0.1 | U17: 9.195878829 | V17: 0.6968750584 | W17: 0.1
A18: Kraken (taxonomy NCBI RefSeq V205) | B18: Weighted UniFrac dissimilarity | C18: 68.3466028 | D18: 0.9624483327 | E18: 0.001 | F18: 26.29758357 | G18: 0.8679762698 | H18: 0.1 | I18: 58.36996553 | J18: 0.9358665671 | K18: 0.1 | L18: 75.42860905 | M18: 0.9496403116 | N18: 0.1 | O18: 26.36427732 | P18: 0.8682662539 | Q18: 0.1 | R18: 77.55716513 | S18: 0.9509546464 | T18: 0.1 | U18: 110.6412481 | V18: 0.9651085446 | W18: 0.1
A19: CARD (AMR) | B19: Bray-Curtis distance | C19: 28.4662132 | D19: 0.91434565 | E19: 0.001 | F19: 12.9415364 | G19: 0.7638939 | H19: 0.1 | I19: 5.53536782 | J19: 0.5805091 | K19: 0.1 | L19: 38.6730042 | M19: 0.90626392 | N19: 0.1 | O19: 4.25302727 | P19: 0.51532936 | Q19: 0.1 | R19: 41.42449 | S19: 0.91194177 | T19: 0.1 | U19: 35.434454 | V19: 0.89856586 | W19: 0.1
A20: CARD (AMR) | B20: Robust Aitchison's distance | C20: 8.64810219 | D20: 0.76431983 | E20: 0.001 | F20: 3.24920832 | G20: 0.44821561 | H20: 0.1 | I20: 2.16683599 | J20: 0.35136916 | K20: 0.1 | L20: 14.1855056 | M20: 0.78004461 | N20: 0.1 | O20: 3.1866939 | P20: 0.44341584 | Q20: 0.1 | R20: 15.2113987 | S20: 0.79179028 | T20: 0.1 | U20: 12.5504563 | V20: 0.75831482 | W20: 0.1
A22: Distance matrix Kraken (taxonomy NCBI RefSeq V205) Bray-Curtis distance
C23: LDPE | F23: Weathered LDPE | I23: Wood | L23: Water
C24: D7 | D24: D8 | E24: D9 | F24: D4 | G24: D5 | H24: D6 | I24: D1 | J24: D2 | K24: D3 | L24: D10 | M24: D11 | N24: D12
A25: LDPE | B25: D7 | C25: 0 | D25: 0.1689029207 | E25: 0.1173201016 | F25: 0.1928605513 | G25: 0.2443693589 | H25: 0.3986991111 | I25: 0.4118493307 | J25: 0.3766332968 | K25: 0.3554191933 | L25: 0.8235638634 | M25: 0.8711009939 | N25: 0.8319720916
B26: D8 | C26: 0.1689029207 | D26: 0 | E26: 0.08370041565 | F26: 0.2076096324 | G26: 0.2203630239 | H26: 0.3392390446 | I26: 0.3589050283 | J26: 0.3377913239 | K26: 0.310358765 | L26: 0.7835841635 | M26: 0.8406788653 | N26: 0.7912771224
B27: D9 | C27: 0.1173201016 | D27: 0.08370041565 | E27: 0 | F27: 0.173592083 | G27: 0.2215019679 | H27: 0.3463333802 | I27: 0.3674326765 | J27: 0.335939978 | K27: 0.3117648842 | L27: 0.7993905295 | M27: 0.8520985958 | N27: 0.8074404655
A28: Weathered LDPE | B28: D4 | C28: 0.1928605513 | D28: 0.2076096324 | E28: 0.173592083 | F28: 0 | G28: 0.09249734679 | H28: 0.2363149472 | I28: 0.4500843752 | J28: 0.4151232307 | K28: 0.3754054155 | L28: 0.83209957 | M28: 0.8762837329 | N28: 0.8380183715
B29: D5 | C29: 0.2443693589 | D29: 0.2203630239 | E29: 0.2215019679 | F29: 0.09249734679 | G29: 0 | H29: 0.2027901575 | I29: 0.4351836365 | J29: 0.3961809149 | K29: 0.3609191793 | L29: 0.8265813393 | M29: 0.8721796891 | N29: 0.8331608093
B30: D6 | C30: 0.3986991111 | D30: 0.3392390446 | E30: 0.3463333802 | F30: 0.2363149472 | G30: 0.2027901575 | H30: 0 | I30: 0.3235283526 | J30: 0.2949085769 | K30: 0.260119783 | L30: 0.772418139 | M30: 0.8249851604 | N30: 0.7744874979
A31: Wood | B31: D1 | C31: 0.4118493307 | D31: 0.3589050283 | E31: 0.3674326765 | F31: 0.4500843752 | G31: 0.4351836365 | H31: 0.3235283526 | I31: 0 | J31: 0.08050869369 | K31: 0.1385962526 | L31: 0.6941664336 | M31: 0.7667327677 | N31: 0.7021491265
B32: D2 | C32: 0.3766332968 | D32: 0.3377913239 | E32: 0.335939978 | F32: 0.4151232307 | G32: 0.3961809149 | H32: 0.2949085769 | I32: 0.08050869369 | J32: 0 | K32: 0.11126157 | L32: 0.7195896586 | M32: 0.7880692396 | N32: 0.7282680148
B33: D3 | C33: 0.3554191933 | D33: 0.310358765 | E33: 0.3117648842 | F33: 0.3754054155 | G33: 0.3609191793 | H33: 0.260119783 | I33: 0.1385962526 | J33: 0.11126157 | K33: 0 | L33: 0.7328934708 | M33: 0.7997843808 | N33: 0.7420639939
A34: Water | B34: D10 | C34: 0.8235638634 | D34: 0.7835841635 | E34: 0.7993905295 | F34: 0.83209957 | G34: 0.8265813393 | H34: 0.772418139 | I34: 0.6941664336 | J34: 0.7195896586 | K34: 0.7328934708 | L34: 0 | M34: 0.2193898442 | N34: 0.1075196366
B35: D11 | C35: 0.8711009939 | D35: 0.8406788653 | E35: 0.8520985958 | F35: 0.8762837329 | G35: 0.8721796891 | H35: 0.8249851604 | I35: 0.7667327677 | J35: 0.7880692396 | K35: 0.7997843808 | L35: 0.2193898442 | M35: 0 | N35: 0.1715965476
B36: D12 | C36: 0.8319720916 | D36: 0.7912771224 | E36: 0.8074404655 | F36: 0.8380183715 | G36: 0.8331608093 | H36: 0.7744874979 | I36: 0.7021491265 | J36: 0.7282680148 | K36: 0.7420639939 | L36: 0.1075196366 | M36: 0.1715965476 | N36: 0
A38: Distance matrix Kraken (taxonomy NCBI RefSeq V205) Robust Aitchison's distance
C39: LDPE | F39: Weathered LDPE | I39: Wood | L39: Water
C40: D7 | D40: D8 | E40: D9 | F40: D4 | G40: D5 | H40: D6 | I40: D1 | J40: D2 | K40: D3 | L40: D10 | M40: D11 | N40: D12
A41: LDPE | B41: D7 | C41: 0 | D41: 79.15072326 | E41: 74.29693863 | F41: 94.57096339 | G41: 98.74710038 | H41: 103.8972524 | I41: 92.45518253 | J41: 92.09169123 | K41: 92.24318218 | L41: 171.5389281 | M41: 181.3946346 | N41: 173.0036644
B42: D8 | C42: 79.15072326 | D42: 0 | E42: 72.38588478 | F42: 91.64856887 | G42: 94.27548076 | H42: 92.84339154 | I42: 94.91570383 | J42: 97.33662144 | K42: 97.56840676 | L42: 154.2105894 | M42: 161.0064972 | N42: 154.3458263
B43: D9 | C43: 74.29693863 | D43: 72.38588478 | E43: 0 | F43: 90.96278067 | G43: 95.94354159 | H43: 99.71915903 | I43: 94.03938455 | J43: 95.37891702 | K43: 96.01100946 | L43: 164.474851 | M43: 172.2518467 | N43: 165.0322162
A44: Weathered LDPE | B44: D4 | C44: 94.57096339 | D44: 91.64856887 | E44: 90.96278067 | F44: 0 | G44: 77.21607581 | H44: 81.27933618 | I44: 99.51331103 | J44: 100.5607378 | K44: 98.44966591 | L44: 170.9118474 | M44: 177.1234808 | N44: 170.4985395
B45: D5 | C45: 98.74710038 | D45: 94.27548076 | E45: 95.94354159 | F45: 77.21607581 | G45: 0 | H45: 76.71196794 | I45: 98.69349429 | J45: 100.8634637 | K45: 99.75682427 | L45: 167.8655541 | M45: 173.8211974 | N45: 167.6628485
B46: D6 | C46: 103.8972524 | D46: 92.84339154 | E46: 99.71915903 | F46: 81.27933618 | G46: 76.71196794 | H46: 0 | I46: 100.5093319 | J46: 104.5028771 | K46: 103.2176286 | L46: 159.6265065 | M46: 164.181042 | N46: 158.2617118
A47: Wood | B47: D1 | C47: 92.45518253 | D47: 94.91570383 | E47: 94.03938455 | F47: 99.51331103 | G47: 98.69349429 | H47: 100.5093319 | I47: 0 | J47: 70.69871981 | K47: 77.17309464 | L47: 165.4900953 | M47: 174.2352907 | N47: 166.508902
B48: D2 | C48: 92.09169123 | D48: 97.33662144 | E48: 95.37891702 | F48: 100.5607378 | G48: 100.8634637 | H48: 104.5028771 | I48: 70.69871981 | J48: 0 | K48: 76.16949373 | L48: 171.8606345 | M48: 182.0802464 | N48: 173.3921317
B49: D3 | C49: 92.24318218 | D49: 97.56840676 | E49: 96.01100946 | F49: 98.44966591 | G49: 99.75682427 | H49: 103.2176286 | I49: 77.17309464 | J49: 76.16949373 | K49: 0 | L49: 174.3298205 | M49: 183.6157422 | N49: 175.3498119
A50: Water | B50: D10 | C50: 171.5389281 | D50: 154.2105894 | E50: 164.474851 | F50: 170.9118474 | G50: 167.8655541 | H50: 159.6265065 | I50: 165.4900953 | J50: 171.8606345 | K50: 174.3298205 | L50: 0 | M50: 97.27514609 | N50: 94.82654787
B51: D11 | C51: 181.3946346 | D51: 161.0064972 | E51: 172.2518467 | F51: 177.1234808 | G51: 173.8211974 | H51: 164.181042 | I51: 174.2352907 | J51: 182.0802464 | K51: 183.6157422 | L51: 97.27514609 | M51: 0 | N51: 95.57504744
B52: D12 | C52: 173.0036644 | D52: 154.3458263 | E52: 165.0322162 | F52: 170.4985395 | G52: 167.6628485 | H52: 158.2617118 | I52: 166.508902 | J52: 173.3921317 | K52: 175.3498119 | L52: 94.82654787 | M52: 95.57504744 | N52: 0
A54: Distance matrix Kraken (taxonomy NCBI RefSeq V205) Weighted UniFrac dissimilarity
C55: LDPE | F55: Weathered LDPE | I55: Wood | L55: Water
C56: D7 | D56: D8 | E56: D9 | F56: D4 | G56: D5 | H56: D6 | I56: D1 | J56: D2 | K56: D3 | L56: D10 | M56: D11 | N56: D12
A57: LDPE | B57: D7 | C57: 0 | D57: 0.409062839 | E57: 0.4800046593 | F57: 2.021045956 | G57: 2.282798383 | H57: 3.038423827 | I57: 2.668322878 | J57: 2.663389111 | K57: 2.34800496 | L57: 6.677864402 | M57: 5.90977792 | N57: 5.786832952
B58: D8 | C58: 0.409062839 | D58: 0 | E58: 0.5772214222 | F58: 2.047793557 | G58: 2.295674615 | H58: 3.111305803 | I58: 2.908116179 | J58: 2.90863478 | K58: 2.596805493 | L58: 6.745963115 | M58: 5.975864954 | N58: 5.860542211
B59: D9 | C59: 0.4800046593 | D59: 0.5772214222 | E59: 0 | F59: 1.993701445 | G59: 2.29834073 | H59: 3.101135934 | I59: 2.588116747 | J59: 2.564234596 | K59: 2.319266129 | L59: 6.552536369 | M59: 5.837003201 | N59: 5.814217906
A60: Weathered LDPE | B60: D4 | C60: 2.021045956 | D60: 2.047793557 | E60: 1.993701445 | F60: 0 | G60: 0.55781353 | H60: 1.404062247 | I60: 2.971370361 | J60: 2.972826867 | K60: 2.507361129 | L60: 6.903744144 | M60: 6.078458319 | N60: 5.931891152
B61: D5 | C61: 2.282798383 | D61: 2.295674615 | E61: 2.29834073 | F61: 0.55781353 | G61: 0 | H61: 0.9867376026 | I61: 2.707363415 | J61: 2.712812534 | K61: 2.354405615 | L61: 6.661001885 | M61: 5.836529281 | N61: 5.687990754
B62: D6 | C62: 3.038423827 | D62: 3.111305803 | E62: 3.101135934 | F62: 1.404062247 | G62: 0.9867376026 | H62: 0 | I62: 2.6670704 | J62: 2.671016115 | K62: 2.525160699 | L62: 6.631317317 | M62: 5.802499833 | N62: 5.650388821
A63: Wood | B63: D1 | C63: 2.668322878 | D63: 2.908116179 | E63: 2.588116747 | F63: 2.971370361 | G63: 2.707363415 | H63: 2.6670704 | I63: 0 | J63: 0.2048291937 | K63: 0.7992951742 | L63: 5.771035683 | M63: 4.956073318 | N63: 4.939463438
B64: D2 | C64: 2.663389111 | D64: 2.90863478 | E64: 2.564234596 | F64: 2.972826867 | G64: 2.712812534 | H64: 2.671016115 | I64: 0.2048291937 | J64: 0 | K64: 0.802233887 | L64: 5.762006944 | M64: 4.993879017 | N64: 4.986551535
B65: D3 | C65: 2.34800496 | D65: 2.596805493 | E65: 2.319266129 | F65: 2.507361129 | G65: 2.354405615 | H65: 2.525160699 | I65: 0.7992951742 | J65: 0.802233887 | K65: 0 | L65: 6.055720396 | M65: 5.236158902 | N65: 5.187026476
A66: Water | B66: D10 | C66: 6.677864402 | D66: 6.745963115 | E66: 6.552536369 | F66: 6.903744144 | G66: 6.661001885 | H66: 6.631317317 | I66: 5.771035683 | J66: 5.762006944 | K66: 6.055720396 | L66: 0 | M66: 1.533129383 | N66: 1.662950956
B67: D11 | C67: 5.90977792 | D67: 5.975864954 | E67: 5.837003201 | F67: 6.078458319 | G67: 5.836529281 | H67: 5.802499833 | I67: 4.956073318 | J67: 4.993879017 | K67: 5.236158902 | L67: 1.533129383 | M67: 0 | N67: 0.4232021919
B68: D12 | C68: 5.786832952 | D68: 5.860542211 | E68: 5.814217906 | F68: 5.931891152 | G68: 5.687990754 | H68: 5.650388821 | I68: 4.939463438 | J68: 4.986551535 | K68: 5.187026476 | L68: 1.662950956 | M68: 0.4232021919 | N68: 0
A70: Distance matrix CARD (AMR) Bray-Curtis distance
C71: LDPE | F71: Weathered LDPE | I71: Wood | L71: Water
C72: D7 | D72: D8 | E72: D9 | F72: D4 | G72: D5 | H72: D6 | I72: D1 | J72: D2 | K72: D3 | L72: D10 | M72: D11 | N72: D12
A73: LDPE | B73: D7 | C73: 0 | D73: 0.1097548 | E73: 0.06469311 | F73: 0.35819265 | G73: 0.32591465 | H73: 0.36438926 | I73: 0.22967586 | J73: 0.22715722 | K73: 0.20110384 | L73: 0.8556408 | M73: 0.8042933 | N73: 0.81015542
B74: D8 | C74: 0.1097548 | D74: 0 | E74: 0.13995661 | F74: 0.42967859 | G74: 0.38700347 | H74: 0.39985304 | I74: 0.24553845 | J74: 0.24562792 | K74: 0.22078964 | L74: 0.8578447 | M74: 0.79929823 | N74: 0.80913034
B75: D9 | C75: 0.06469311 | D75: 0.13995661 | E75: 0 | F75: 0.34170438 | G75: 0.31665126 | H75: 0.35366426 | I75: 0.23943351 | J75: 0.23638155 | K75: 0.21175966 | L75: 0.86035441 | M75: 0.81209178 | N75: 0.81695792
A76: Weathered LDPE | B76: D4 | C76: 0.35819265 | D76: 0.42967859 | E76: 0.34170438 | F76: 0 | G76: 0.0784566 | H76: 0.09455773 | I76: 0.45174766 | J76: 0.45053825 | K76: 0.39417022 | L76: 0.90165591 | M76: 0.87934578 | N76: 0.87291093
B77: D5 | C77: 0.32591465 | D77: 0.38700347 | E77: 0.31665126 | F77: 0.0784566 | G77: 0 | H77: 0.06090478 | I77: 0.41501077 | J77: 0.4132983 | K77: 0.35421879 | L77: 0.89367379 | M77: 0.86724236 | N77: 0.86292511
B78: D6 | C78: 0.36438926 | D78: 0.39985304 | E78: 0.35366426 | F78: 0.09455773 | G78: 0.06090478 | H78: 0 | I78: 0.40771523 | J78: 0.40342053 | K78: 0.35082539 | L78: 0.89326013 | M78: 0.86583363 | N78: 0.86067405
A79: Wood | B79: D1 | C79: 0.22967586 | D79: 0.24553845 | E79: 0.23943351 | F79: 0.45174766 | G79: 0.41501077 | H79: 0.40771523 | I79: 0 | J79: 0.06299109 | K79: 0.10354084 | L79: 0.83944161 | M79: 0.77478777 | N79: 0.78878006
B80: D2 | C80: 0.22715722 | D80: 0.24562792 | E80: 0.23638155 | F80: 0.45053825 | G80: 0.4132983 | H80: 0.40342053 | I80: 0.06299109 | J80: 0 | K80: 0.09489407 | L80: 0.84242737 | M80: 0.77959276 | N80: 0.79208477
B81: D3 | C81: 0.20110384 | D81: 0.22078964 | E81: 0.21175966 | F81: 0.39417022 | G81: 0.35421879 | H81: 0.35082539 | I81: 0.10354084 | J81: 0.09489407 | K81: 0 | L81: 0.85238132 | M81: 0.79856225 | N81: 0.80616085
A82: Water | B82: D10 | C82: 0.8556408 | D82: 0.8578447 | E82: 0.86035441 | F82: 0.90165591 | G82: 0.89367379 | H82: 0.89326013 | I82: 0.83944161 | J82: 0.84242737 | K82: 0.85238132 | L82: 0 | M82: 0.34840435 | N82: 0.11321278
B83: D11 | C83: 0.8042933 | D83: 0.79929823 | E83: 0.81209178 | F83: 0.87934578 | G83: 0.86724236 | H83: 0.86583363 | I83: 0.77478777 | J83: 0.77959276 | K83: 0.79856225 | L83: 0.34840435 | M83: 0 | N83: 0.28601476
B84: D12 | C84: 0.81015542 | D84: 0.80913034 | E84: 0.81695792 | F84: 0.87291093 | G84: 0.86292511 | H84: 0.86067405 | I84: 0.78878006 | J84: 0.79208477 | K84: 0.80616085 | L84: 0.11321278 | M84: 0.28601476 | N84: 0
A86: Distance matrix CARD (AMR) Robust Aitchison's distance
C87: LDPE | F87: Weathered LDPE | I87: Wood | L87: Water
C88: D7 | D88: D8 | E88: D9 | F88: D4 | G88: D5 | H88: D6 | I88: D1 | J88: D2 | K88: D3 | L88: D10 | M88: D11 | N88: D12
A89: LDPE | B89: D7 | C89: 0 | D89: 14.6591661 | E89: 12.6152945 | F89: 17.6498852 | G89: 17.1460577 | H89: 18.8222115 | I89: 15.1465059 | J89: 15.2879935 | K89: 14.6774233 | L89: 33.2758245 | M89: 29.4601357 | N89: 30.926496
B90: D8 | C90: 14.6591661 | D90: 0 | E90: 13.5274561 | F90: 19.5592339 | G90: 19.2847943 | H90: 19.9411058 | I90: 17.2465481 | J90: 16.6722683 | K90: 17.6514433 | L90: 31.8599161 | M90: 27.6741645 | N90: 29.8172728
B91: D9 | C91: 12.6152945 | D91: 13.5274561 | E91: 0 | F91: 17.3723121 | G91: 17.350441 | H91: 17.6759287 | I91: 15.1198202 | J91: 15.243559 | K91: 14.6944318 | L91: 32.0985216 | M91: 28.3604473 | N91: 29.8185515
A92: Weathered LDPE | B92: D4 | C92: 17.6498852 | D92: 19.5592339 | E92: 17.3723121 | F92: 0 | G92: 13.3271337 | H92: 14.6927187 | I92: 17.8055673 | J92: 18.3417737 | K92: 17.0178219 | L92: 36.9311438 | M92: 33.2648874 | N92: 34.5007642
B93: D5 | C93: 17.1460577 | D93: 19.2847943 | E93: 17.350441 | F93: 13.3271337 | G93: 0 | H93: 13.593592 | I93: 17.5988184 | J93: 17.1551369 | K93: 15.8688431 | L93: 35.6560752 | M93: 31.8006359 | N93: 33.1782293
B94: D6 | C94: 18.8222115 | D94: 19.9411058 | E94: 17.6759287 | F94: 14.6927187 | G94: 13.593592 | H94: 0 | I94: 17.3612118 | J94: 17.7866372 | K94: 16.6636252 | L94: 35.447009 | M94: 31.1912086 | N94: 32.0766262
A95: Wood | B95: D1 | C95: 15.1465059 | D95: 17.2465481 | E95: 15.1198202 | F95: 17.8055673 | G95: 17.5988184 | H95: 17.3612118 | I95: 0 | J95: 12.6120059 | K95: 12.1364975 | L95: 33.9096765 | M95: 29.7339918 | N95: 31.6329717
B96: D2 | C96: 15.2879935 | D96: 16.6722683 | E96: 15.243559 | F96: 18.3417737 | G96: 17.1551369 | H96: 17.7866372 | I96: 12.6120059 | J96: 0 | K96: 13.2530744 | L96: 33.4335246 | M96: 29.4359921 | N96: 30.8605285
B97: D3 | C97: 14.6774233 | D97: 17.6514433 | E97: 14.6944318 | F97: 17.0178219 | G97: 15.8688431 | H97: 16.6636252 | I97: 12.1364975 | J97: 13.2530744 | K97: 0 | L97: 33.4102667 | M97: 29.9395777 | N97: 31.1527558
A98: Water | B98: D10 | C98: 33.2758245 | D98: 31.8599161 | E98: 32.0985216 | F98: 36.9311438 | G98: 35.6560752 | H98: 35.447009 | I98: 33.9096765 | J98: 33.4335246 | K98: 33.4102667 | L98: 0 | M98: 14.9562854 | N98: 13.8519063
B99: D11 | C99: 29.4601357 | D99: 27.6741645 | E99: 28.3604473 | F99: 33.2648874 | G99: 31.8006359 | H99: 31.1912086 | I99: 29.7339918 | J99: 29.4359921 | K99: 29.9395777 | L99: 14.9562854 | M99: 0 | N99: 13.9654767
B100: D12 | C100: 30.926496 | D100: 29.8172728 | E100: 29.8185515 | F100: 34.5007642 | G100: 33.1782293 | H100: 32.0766262 | I100: 31.6329717 | J100: 30.8605285 | K100: 31.1527558 | L100: 13.8519063 | M100: 13.9654767 | N100: 0

Sheet S1D Alpha diversity
A1: Table S1D. Alpha diversity metrics for samples annotated with Kraken and Bracken (taxonomy with NCBI RefSeq V205) or CARD RGI.
A3: Database | B3: Alpha diversity metric | C3: LDPE | F3: Weathered LDPE | I3: Wood | L3: Water
C4: D7 | D4: D8 | E4: D9 | F4: D4 | G4: D5 | H4: D6 | I4: D1 | J4: D2 | K4: D3 | L4: D10 | M4: D11 | N4: D12
A5: Kraken (taxonomy NCBI RefSeq V205) | B5: chao1 | C5: 7475.556291 | D5: 6995.307692 | E5: 7293.26776 | F5: 7084.910714 | G5: 6853.432432 | H5: 6772.578358 | I5: 7743.710526 | J5: 7855.5 | K5: 7858.055556 | L5: 5365.489362 | M5: 5169.829545 | N5: 5479.827362
A6: Kraken (taxonomy NCBI RefSeq V205) | B6: shannon | C6: 4.399749489 | D6: 4.142411578 | E6: 4.509110596 | F6: 4.637865686 | G6: 4.896398786 | H6: 5.322428819 | I6: 6.246939123 | J6: 6.252595155 | K6: 6.02949997 | L6: 5.692061123 | M6: 5.464398149 | N6: 5.318376873
A7: Kraken (taxonomy NCBI RefSeq V205) | B7: simpson | C7: 0.7428124771 | D7: 0.7177221565 | E7: 0.7579836057 | F7: 0.8140280649 | G7: 0.8506964666 | H7: 0.8968675991 | I7: 0.9226391958 | J7: 0.9227881292 | K7: 0.9020501069 | L7: 0.8793074463 | M7: 0.8616610094 | N7: 0.8497216102
A8: CARD (AMR) | B8: chao1 | C8: 388.588235 | D8: 385.666667 | E8: 378.315789 | F8: 391.12 | G8: 382.571429 | H8: 379.5 | I8: 393.894737 | J8: 380.882353 | K8: 384.909091 | L8: 372.4 | M8: 358.954545 | N8: 375.181818
A9: CARD (AMR) | B9: shannon | C9: 4.93244957 | D9: 4.80945204 | E9: 4.87331114 | F9: 5.18030251 | G9: 5.10806152 | H9: 5.26124895 | I9: 5.31601453 | J9: 5.28815697 | K9: 5.31501177 | L9: 6.33396742 | M9: 6.09535153 | N9: 6.22128894
A10: CARD (AMR) | B10: simpson | C10: 0.90110671 | D10: 0.8926328 | E10: 0.89856887 | F10: 0.92261407 | G10: 0.91632775 | H10: 0.92770669 | I10: 0.92215631 | J10: 0.92085367 | K10: 0.92308956 | L10: 0.96390314 | M10: 0.95279005 | N10: 0.95893144

Sheet S1E Abundance tax levels
A1: Table S1F. Numbers of reads and relative abundance at the domain, phylum, class, order or genus levels
A3: Domain name | B3: Reads domain level | S3: Relative abundance (%) domain level
B4: D7: LDPE | C4: D8: LDPE | D4: D9: LDPE | E4: D4: W-LDPE | F4: D5: W-LDPE | G4: D6: W-LDPE | H4: D1: Wood | I4: D2: Wood | J4: D3: Wood | K4: D10: Water | L4: D11: Water | M4: D12: Water | N4: LDPE mean | O4: W-LDPE mean | P4: Wood mean | Q4: Water mean | R4: Overall mean | S4: D7: LDPE | T4: D8: LDPE | U4: D9: LDPE | V4: D4: W-LDPE | W4: D5: W-LDPE | X4: D6: W-LDPE | Y4: D1: Wood | Z4: D2: Wood | AA4: D3: Wood | AB4: D10: Water | AC4: D11: Water | AD4: D12: Water | AE4: LDPE mean | AF4: W-LDPE mean | AG4: Wood mean | AH4: Water mean | AI4: Overall mean
A5: Archaea | B5: 3028 | C5: 1623 | D5: 2586 | E5: 2903 | F5: 1644 | G5: 2186 | H5: 3691 | I5: 4546 | J5: 3670 | K5: 2752 | L5: 1471 | M5: 1815 | N5: 2412 | O5: 2244 | P5: 3969 | Q5: 2013 | R5: 2660 | S5: 0.00625788164 | T5: 0.004670338019 | U5: 0.006410473315 | V5: 0.00580672224 | W5: 0.003395632098 | X5: 0.006662641651 | Y5: 0.01484328929 | Z5: 0.01601137547 | AA5: 0.01225710886 | AB5: 0.03073702974 | AC5: 0.02512940104 | AD5: 0.02240558453 | AE5: 0.01 | AF5: 0.01 | AG5: 0.01 | AH5: 0.03 | AI5: 0.01
A6: Bacteria | B6: 48215345 | C6: 34661580 | D6: 40226643 | E6: 49912427 | F6: 48298726 | G6: 32692638 | H6: 24617197 | I6: 28102703 | J6: 29723020 | K6: 8518554 | L6: 5708029 | M6: 7919558 | N6: 41034523 | O6: 43634597 | P6: 27480973 | Q6: 7382047 | R6: 29883035 | S6: 99.64528475 | T6: 99.74201778 | U6: 99.71841513 | V6: 99.83727176 | W6: 99.75955248 | X6: 99.64287814 | Y6: 98.99760947 | Z6: 98.9799669 | AA6: 99.26928928 | AB6: 95.1435493 | AC6: 97.51145472 | AD6: 97.76436707 | AE6: 99.70 | AF6: 99.75 | AG6: 99.08 | AH6: 96.81 | AI6: 98.83
A7: Eukaryota | B7: 160830 | C7: 83896 | D7: 105625 | E7: 70380 | F7: 106126 | G7: 108199 | H7: 234157 | I7: 271646 | J7: 203000 | K7: 378455 | L7: 115735 | M7: 144751 | N7: 116784 | O7: 94902 | P7: 236268 | Q7: 212980 | R7: 165233 | S7: 0.3323827953 | T7: 0.2414187791 | U7: 0.2618353611 | V7: 0.1407775099 | W7: 0.2192000316 | X7: 0.3297763788 | Y7: 0.9416581116 | Z7: 0.9567589313 | AA7: 0.6779817705 | AB7: 4.226955884 | AC7: 1.977125241 | AD7: 1.786904004 | AE7: 0.28 | AF7: 0.23 | AG7: 0.86 | AH7: 2.66 | AI7: 1.01
A8: Viruses | B8: 7778 | C8: 4133 | D8: 5381 | E8: 8071 | F8: 8643 | G8: 6786 | H8: 11411 | I8: 13419 | J8: 12118 | K8: 53609 | L8: 28466 | M8: 34535 | N8: 5764 | O8: 7833 | P8: 12316 | Q8: 38870 | R8: 16196 | S8: 0.01607457179 | T8: 0.01189310353 | U8: 0.01333903979 | V8: 0.01614400799 | W8: 0.01785185415 | X8: 0.02068283909 | Y8: 0.04588912871 | Z8: 0.04726279091 | AA8: 0.04047183791 | AB8: 0.5987577862 | AC8: 0.486290639 | AD8: 0.4263233399 | AE8: 0.01 | AF8: 0.02 | AG8: 0.04 | AH8: 0.50 | AI8: 0.15
A10: Phylum name | B10: Reads phylum level | S10: Relative abundance (%) phylum level
B11: D7: LDPE | C11: D8: LDPE | D11: D9: LDPE | E11: D4: W-LDPE | F11: D5: W-LDPE | G11: D6: W-LDPE | H11: D1: Wood | I11: D2: Wood | J11: D3: Wood | K11: D10: Water | L11: D11: Water | M11: D12: Water | N11: LDPE mean | O11: W-LDPE mean | P11: Wood mean | Q11: Water mean | R11: Overall mean | S11: D7: LDPE | T11: D8: LDPE | U11: D9: LDPE | V11: D4: W-LDPE | W11: D5: W-LDPE | X11: D6: W-LDPE | Y11: D1: Wood | Z11: D2: Wood | AA11: D3: Wood | AB11: D10: Water | AC11: D11: Water | AD11: D12: Water | AE11: LDPE mean | AF11: W-LDPE mean | AG11: Wood mean | AH11: Water mean | AI11: Overall mean
A12: Abditibacteriota | B12: 4005 | C12: 1918 | D12: 2251 | E12: 7685 | F12: 8092 | G12: 7190 | H12: 3253 | I12: 3343 | J12: 3517 | K12: 340 | L12: 331 | M12: 438 | N12: 2725 | O12: 7656 | P12: 3371 | Q12: 370 | R12: 3530 | S12: 0.008277019804 | T12: 0.005519228786 | U12: 0.005580036904 | V12: 0.01537191196 | W12: 0.01671378037 | X12: 0.02191417817 | Y12: 0.01308188026 | Z12: 0.01177431329 | AA12: 0.01174611767 | AB12: 0.003797452803 | AC12: 0.005654542314 | AD12: 0.005406967507 | AE12: 0.01 | AF12: 0.02 | AG12: 0.01 | AH12: 0.00 | AI12: 0.01
A13: Acidobacteria | B13: 2 | C13: 1 | D13: 2 | E13: 2 | F13: 0 | G13: 0 | H13: 7 | I13: 6 | J13: 12 | K13: 0 | L13: 0 | M13: 0 | N13: 2 | O13: 1 | P13: 8 | Q13: 0 | R13: 3 | S13: 4.13E-06 | T13: 2.88E-06 | U13: 4.96E-06 | V13: 4.00E-06 | W13: 0 | X13: 0 | Y13: 2.82E-05 | Z13: 2.11E-05 | AA13: 4.01E-05 | AB13: 0 | AC13: 0 | AD13: 0 | AE13: 0.00 | AF13: 0.00 | AG13: 0.00 | AH13: 0.00 | AI13: 0.00
A14: Acidobacteriota | B14: 5039 | C14: 2627 | D14: 3602 | E14: 3860 | F14: 2968 | G14: 2881 | H14: 3758 | I14: 4534 | J14: 5193 | K14: 278 | L14: 219 | M14: 295 | N14: 3756 | O14: 3236 | P14: 4495 | Q14: 264 | R14: 2938 | S14: 0.01041395825 | T14: 0.007559444223 | U14: 0.008929050612 | V14: 0.007720960333 | W14: 0.006130313909 | X14: 0.008780910611 | Y14: 0.01511272857 | Z14: 0.01596911051 | AA14: 0.01734364204 | AB14: 0.003104976115 | AC14: 0.003741222861 | AD14: 0.003641679029 | AE14: 0.01 | AF14: 0.01 | AG14: 0.02 | AH14: 0.00 | AI14: 0.01
A15: Actinobacteria | B15: 1074 | C15: 1319 | D15: 1728 | E15: 1015 | F15: 5365 | G15: 1663 | H15: 544 | I15: 688 | J15: 877 | K15: 182 | L15: 83 | M15: 145 | N15: 1374 | O15: 2681 | P15: 703 | Q15: 137 | R15: 1224 | S15: 0.002219605311 | T15: 0.003795548889 | U15: 0.004283564536 | V15: 0.002030252523 | W15: 0.01108124465 | X15: 0.00506860616 | Y15: 0.002187686094 | Z15: 0.002423191009 | AA15: 0.002929014841 | AB15: 0.002032754147 | AC15: 0.001417906381 | AD15: 0.001789977828 | AE15: 0.00 | AF15: 0.01 | AG15: 0.00 | AH15: 0.00 | AI15: 0.00
A16: Actinobacteriota | B16: 835413 | C16: 481871 | D16: 576842 | E16: 655014 | F16: 652620 | G16: 681191 | H16: 1095819 | I16: 1209407 | J16: 1379594 | K16: 469157 | L16: 330153 | M16: 418224 | N16: 631375 | O16: 662942 | P16: 1228273 | Q16: 405845 | R16: 732109 | S16: 1.726524331 | T16: 1.386629976 | U16: 1.429942091 | V16: 1.310190962 | W16: 1.3479668 | X16: 2.076180937 | Y16: 4.406816154 | Z16: 4.259628151 | AA16: 4.607584151 | AB16: 5.240004602 | AC16: 5.640072836 | AD16: 5.162839221 | AE16: 1.51 | AF16: 1.58 | AG16: 4.42 | AH16: 5.35 | AI16: 3.22
A17: Annelida | B17: 46 | C17: 268 | D17: 1149 | E17: 440 | F17: 173 | G17: 508 | H17: 10840 | I17: 18490 | J17: 1820 | K17: 0 | L17: 0 | M17: 19 | N17: 488 | O17: 374 | P17: 10383 | Q17: 6 | R17: 2813 | S17: 9.51E-05 | T17: 0.0007711956802 | U17: 0.002848272946 | V17: 0.000880109468 | W17: 0.0003573262487 | X17: 0.001548317456 | Y17: 0.04359286261 | Z17: 0.06512325836 | AA17: 0.006078457253 | AB17: 0 | AC17: 0 | AD17: 0.0002345488188 | AE17: 0.00 | AF17: 0.00 | AG17: 0.04 | AH17: 0.00 | AI17: 0.01
A18: Armatimonadetes | B18: 44 | C18: 14 | D18: 0 | E18: 20 | F18: 12 | G18: 12 | H18: 29 | I18: 39 | J18: 48 | K18: 249 | L18: 201 | M18: 183 | N18: 19 | O18: 15 | P18: 39 | Q18: 211 | R18: 71 | S18: 9.09E-05 | T18: 4.03E-05 | U18: 0 | V18: 4.00E-05 | W18: 2.48E-05 | X18: 3.66E-05 | Y18: 0.0001166229719 | Z18: 0.0001373611182 | AA18: 0.0001603109605 | AB18: 0.002781075729 | AC18: 0.003433725091 | AD18: 0.002259075465 | AE18: 0.00 | AF18: 0.00 | AG18: 0.00 | AH18: 0.00 | AI18: 0.00
A19: Armatimonadota | B19: 121 | C19: 64 | D19: 95 | E19: 57 | F19: 28 | G19: 38 | H19: 81 | I19: 124 | J19: 119 | K19: 39 | L19: 42 | M19: 32 | N19: 93 | O19: 41 | P19: 108 | Q19: 38 | R19: 70 | S19: 0.000250067265 | T19: 0.0001841661326 | U19: 0.0002354968929 | V19: 0.0001140141811 | W19: 5.78E-05 | X19: 0.0001158190223 | Y19: 0.000325740025 | Z19: 0.0004367379144 | AA19: 0.0003974375896 | AB19: 0.0004355901744 | AC19: 0.0007174947952 | AD19: 0.0003950295896 | AE19: 0.00 | AF19: 0.00 | AG19: 0.00 | AH19: 0.00 | AI19: 0.00
A20: Arthropoda | B20: 44832 | C20: 21233 | D20: 22661 | E20: 18428 | F20: 28879 | G20: 23474 | H20: 42422 | I20: 48456 | J20: 48310 | K20: 42433 | L20: 11920 | M20: 16968 | N20: 29575 | O20: 23594 | P20: 46396 | Q20: 23774 | R20: 30835 | S20: 0.09265302169 | T20: 0.06109999208 | U20: 0.05617468515 | V20: 0.03686058472 | W20: 0.0596486979 | X20: 0.07154567709 | Y20: 0.1705993005 | Z20: 0.1706659063 | AA20: 0.1613463021 | AB20: 0.4739332788 | AC20: 0.2036318562 | AD20: 0.2094644399 | AE20: 0.07 | AF20: 0.06 | AG20: 0.17 | AH20: 0.30 | AI20: 0.15
A21: Ascomycota | B21: 4109 | C21: 1153 | D21: 1675 | E21: 1306 | F21: 1114 | G21: 1104 | H21: 2161 | I21: 3560 | J21: 4522 | K21: 1065 | L21: 1300 | M21: 919 | N21: 2312 | O21: 1175 | P21: 3414 | Q21: 1095 | R21: 1999 | S21: 0.008491953652 | T21: 0.003317867982 | U21: 0.004152182058 | V21: 0.002612324921 | W21: 0.002300933185 | X21: 0.003364847385 | Y21: 0.008690422149 | Z21: 0.01253860464 | AA21: 0.01510262841 | AB21: 0.01189496246 | AC21: 0.02220817223 | AD21: 0.01134475603 | AE21: 0.01 | AF21: 0.00 | AG21: 0.01 | AH21: 0.02 | AI21: 0.01
A22: Atribacterota | B22: 71 | C22: 25 | D22: 47 | E22: 18 | F22: 9 | G22: 11 | H22: 35 | I22: 44 | J22: 27 | K22: 20 | L22: 8 | M22: 2 | N22: 48 | O22: 13 | P22: 35 | Q22: 10 | R22: 26 | S22: 0.0001467336844 | T22: 7.19E-05 | U22: 0.0001165089891 | V22: 3.60E-05 | W22: 1.86E-05 | X22: 3.35E-05 | Y22: 0.0001407518627 | Z22: 0.000154971518 | AA22: 9.02E-05 | AB22: 0.0002233795766 | AC22: 0.0001366656753 | AD22: 2.47E-05 | AE22: 0.00 | AF22: 0.00 | AG22: 0.00 | AH22: 0.00 | AI22: 0.00
A23: Bacillariophyta | B23: 19112 | C23: 9044 | D23: 12476 | E23: 7399 | F23: 9777 | G23: 8172 | H23: 25127 | I23: 28290 | J23: 25868 | K23: 116617 | L23: 40149 | M23: 50226 | N23: 13544 | O23: 8449 | P23: 26428 | Q23: 68997 | R23: 29355 | S23: 0.03949822784 | T23: 0.02602497661 | U23: 0.03092693932 | V23: 0.0147998408 | W23: 0.02019409673 | X23: 0.02490718553 | Y23: 0.101047773 | Z23: 0.09963964191 | AA23: 0.08639424847 | AB23: 1.302492804 | AC23: 0.6858737746 | AD23: 0.6200236302 | AE23: 0.03 | AF23: 0.02 | AG23: 0.10 | AH23: 0.87 | AI23: 0.25
A24: Bacteroidetes | B24: 16212 | C24: 9711 | D24: 12760 | E24: 8428 | F24: 8632 | G24: 7773 | H24: 19830 | I24: 28900 | J24: 31297 | K24: 46080 | L24: 16771 | M24: 32968 | N24: 12894 | O24: 8278 | P24: 26676 | Q24: 31940 | R24: 19947 | S24: 0.03350488017 | T24: 0.02794433302 | U24: 0.03163095108 | V24: 0.01685809681 | W24: 0.01782913398 | X24: 0.0236910858 | Y24: 0.07974598391 | Z24: 0.1017881107 | AA24: 0.1045260861 | AB24: 0.5146665446 | AC24: 0.286502505 | AD24: 0.4069792347 | AE24: 0.03 | AF24: 0.02 | AG24: 0.10 | AH24: 0.40 | AI24: 0.14
A25: Bacteroidota | B25: 2918525 | C25: 2061671 | D25: 2966903 | E25: 2218192 | F25: 2257169 | G25: 1352602 | H25: 1853831 | I25: 2216453 | J25: 2070426 | K25: 1044889 | L25: 427076 | M25: 507634 | N25: 2649033 | O25: 1942654 | P25: 2046903 | Q25: 659866 | R25: 1824614 | S25: 6.031632765 | T25: 5.932655855 | U25: 7.354699347 | V25: 4.436935866 | W25: 4.662114055 | X25: 4.122553716 | Y25: 7.455147609 | Z25: 7.806524681 | AA25: 6.914832932 | AB25: 11.67034312 | AC25: 7.295828742 | AD25: 6.266576583 | AE25: 6.44 | AF25: 4.41 | AG25: 7.39 | AH25: 8.41 | AI25: 6.66
A26: Basidiomycota | B26: 1505 | C26: 1393 | D26: 1062 | E26: 1091 | F26: 680 | G26: 1644 | H26: 2378 | I26: 2798 | J26: 3377 | K26: 10715 | L26: 3340 | M26: 2965 | N26: 1320 | O26: 1138 | P26: 2851 | Q26: 5673 | R26: 2746 | S26: 0.003110340775 | T26: 0.00400849098 | U26: 0.002632607371 | V26: 0.002182271431 | W26: 0.001404519359 | X26: 0.005010696649 | Y26: 0.009563083698 | Z26: 0.009854779713 | AA26: 0.01127854403 | AB26: 0.1196756082 | AC26: 0.05705791943 | AD26: 0.03660196041 | AE26: 0.00 | AF26: 0.00 | AG26: 0.01 | AH26: 0.07 | AI26: 0.02
A27: Bdellovibrionota | B27: 459 | C27: 295 | D27: 383 | E27: 404 | F27: 541 | G27: 336 | H27: 493 | I27: 597 | J27: 474 | K27: 558 | L27: 247 | M27: 347 | N27: 379 | O27: 427 | P27: 521 | Q27: 384 | R27: 428 | S27: 0.0009486022697 | T27: 0.0008488907674 | U27: 0.0009494243155 | V27: 0.0008081005115 | W27: 0.001117419078 | X27: 0.001024083987 | Y27: 0.001982590523 | Z27: 0.002102681733 | AA27: 0.001583070735 | AB27: 0.006232290188 | AC27: 0.004219552724 | AD27: 0.004283602112 | AE27: 0.00 | AF27: 0.00 | AG27: 0.00 | AH27: 0.00 | AI27: 0.00
A28: Bdellovibrionota_C | B28: 1 | C28: 5 | D28: 11 | E28: 9 | F28: 3 | G28: 1 | H28: 0 | I28: 4 | J28: 0 | K28: 2 | L28: 1 | M28: 0 | N28: 6 | O28: 4 | P28: 1 | Q28: 1 | R28: 3 | S28: 2.07E-06 | T28: 1.44E-05 | U28: 2.73E-05 | V28: 1.80E-05 | W28: 6.20E-06 | X28: 3.05E-06 | Y28: 0 | Z28: 1.41E-05 | AA28: 0 | AB28: 2.23E-05 | AC28: 1.71E-05 | AD28: 0 | AE28: 0.00 | AF28: 0.00 | AG28: 0.00 | AH28: 0.00 | AI28: 0.00
A29: Campylobacterota | B29: 242870 | C29: 157741 | D29: 217768 | E29: 173588 | F29: 187688 | G29: 124835 | H29: 127310 | I29: 152029 | J29: 132797 | K29: 119614 | L29: 45479 | M29: 60710 | N29: 206126 | O29: 162037 | P29: 137379 | Q29: 75268 | R29: 145202 | S29: 0.5019325343 | T29: 0.4539148425 | U29: 0.5398282881 | V29: 0.3472191871 | W29: 0.3876638669 | X29: 0.3804807276 | Y29: 0.5119748468 | Z29: 0.5354582934 | AA29: 0.4435169713 | AB29: 1.335966234 | AC29: 0.7769272807 | AD29: 0.7494451995 | AE29: 0.50 | AF29: 0.37 | AG29: 0.50 | AH29: 0.95 | AI29: 0.58
A30: Candidatus Absconditabacteria | B30: 0 | C30: 0 | D30: 0 | E30: 0 | F30: 0 | G30: 0 | H30: 0 | I30: 13 | J30: 0 | K30: 11 | L30: 0 | M30: 23 | N30: 0 | O30: 0 | P30: 4 | Q30: 11 | R30: 4 | S30: 0 | T30: 0 | U30: 0 | V30: 0 | W30: 0 | X30: 0 | Y30: 0 | Z30: 4.58E-05 | AA30: 0 | AB30: 0.0001228587671 | AC30: 0 | AD30: 0.0002839275175 | AE30: 0.00 | AF30: 0.00 | AG30: 0.00 | AH30: 0.00 | AI30: 0.00
A31: Candidatus Omnitrophica | B31: 0 | C31: 1 | D31: 0 | E31: 0 | F31: 0 | G31: 2 | H31: 0 | I31: 0 | J31: 0 | K31: 62 | L31: 15 | M31: 41 | N31: 0 | O31: 1 | P31: 0 | Q31: 39 | R31: 10 | S31: 0 | T31: 2.88E-06 | U31: 0 | V31: 0 | W31: 0 | X31: 6.10E-06 | Y31: 0 | Z31: 0 | AA31: 0 | AB31: 0.0006924766875 | AC31: 0.0002562481411 | AD31: 0.0005061316616 | AE31: 0.00 | AF31: 0.00 | AG31: 0.00 | AH31: 0.00 | AI31: 0.00
A32: Candidatus Saccharibacteria | B32: 7 | C32: 2 | D32: 17 | E32: 6 | F32: 2 | G32: 4 | H32: 4 | I32: 18 | J32: 0 | K32: 86 | L32: 123 | M32: 123 | N32: 9 | O32: 4 | P32: 7 | Q32: 111 | R32: 33 | S32: 1.45E-05 | T32: 5.76E-06 | U32: 4.21E-05 | V32: 1.20E-05 | W32: 4.13E-06 | X32: 1.22E-05 | Y32: 1.61E-05 | Z32: 6.34E-05 | AA32: 0 | AB32: 0.0009605321795 | AC32: 0.002101234757 | AD32: 0.001518394985 | AE32: 0.00 | AF32: 0.00 | AG32: 0.00 | AH32: 0.00 | AI32: 0.00
A33: Cercozoa | B33: 1038 | C33: 588 | D33: 818 | E33: 1762 | F33: 662 | G33: 916 | H33: 6949 | I33: 8859 | J33: 7578 | K33: 2957 | L33: 1266 | M33: 971 | N33: 815 | O33: 1113 | P33: 7795 | Q33: 1731 | R33: 2864 | S33: 0.002145205133 | T33: 0.001692026343 | U33: 0.002027752193 | V33: 0.00352443837 | W33: 0.001367340905 | X33: 0.002791848011 | Y33: 0.02794527696 | Z33: 0.03120210632 | AA33: 0.02530909289 | AB33: 0.0330266704 | AC33: 0.02162734311 | AD33: 0.01198667911 | AE33: 0.00 | AF33: 0.00 | AG33: 0.03 | AH33: 0.02 | AI33: 0.01
A34: Chlamydiae | B34: 50 | C34: 0 | D34: 13 | E34: 0 | F34: 0 | G34: 4 | H34: 4 | I34: 12 | J34: 0 | K34: 20 | L34: 7 | M34: 15 | N34: 21 | O34: 1 | P34: 5 | Q34: 14 | R34: 10 | S34: 0.0001033335806 | T34: 0 | U34: 3.22E-05 | V34: 0 | W34: 0 | X34: 1.22E-05 | Y34: 1.61E-05 | Z34: 4.23E-05 | AA34: 0 | AB34: 0.0002233795766 | AC34: 0.0001195824659 | AD34: 0.0001851701201 | AE34: 0.00 | AF34: 0.00 | AG34: 0.00 | AH34: 0.00 | AI34: 0.00
A35: Chlamydiota | B35: 2494 | C35: 231 | D35: 364 | E35: 205 | F35: 305 | G35: 112 | H35: 752 | I35: 774 | J35: 368 | K35: 3937 | L35: 2001 | M35: 2030 | N35: 1030 | O35: 207 | P35: 631 | Q35: 2656 | R35: 1131 | S35: 0.005154278999 | T35: 0.0006647246348 | U35: 0.0009023249369 | V35: 0.0004100510021 | W35: 0.000629968242 | X35: 0.0003413613289 | Y35: 0.003024154307 | Z35: 0.002726089885 | AA35: 0.001229050697 | AB35: 0.04397226966 | AC35: 0.03418350203 | AD35: 0.02505968959 | AE35: 0.00 | AF35: 0.00 | AG35: 0.00 | AH35: 0.03 | AI35: 0.01
A36: Chloroflexi | B36: 35 | C36: 9 | D36: 24 | E36: 14 | F36: 23 | G36: 25 | H36: 45 | I36: 54 | J36: 56 | K36: 5 | L36: 0 | M36: 1 | N36: 23 | O36: 21 | P36: 52 | Q36: 2 | R36: 24 | S36: 7.23E-05 | T36: 2.59E-05 | U36: 5.95E-05 | V36: 2.80E-05 | W36: 4.75E-05 | X36: 7.62E-05 | Y36: 0.0001809666806 | Z36: 0.0001901923175 | AA36: 0.0001870294539 | AB36: 5.58E-05 | AC36: 0 | AD36: 1.23E-05 | AE36: 0.00 | AF36: 0.00 | AG36: 0.00 | AH36: 0.00 | AI36: 0.00
A37: Chloroflexota | B37: 1073 | C37: 769 | D37: 897 | E37: 693 | F37: 526 | G37: 374 | H37: 2351 | I37: 3171 | J37: 1140 | K37: 2157 | L37: 1318 | M37: 1717 | N37: 913 | O37: 531 | P37: 2221 | Q37: 1731 | R37: 1349 | S37: 0.002217538639 | T37: 0.002212871187 | U37: 0.002223586452 | V37: 0.001386172412 | W37: 0.001086437034 | X37: 0.001139903009 | Y37: 0.00945450369 | Z37: 0.01116851554 | AA37: 0.003807385312 | AB37: 0.02409148734 | AC37: 0.02251567 | AD37: 0.02119580642 | AE37: 0.00 | AF37: 0.00 | AG37: 0.01 | AH37: 0.02 | AI37: 0.01
A38: Chlorophyta | B38: 1321 | C38: 816 | D38: 1169 | E38: 5251 | F38: 2980 | G38: 305 | H38: 2283 | I38: 453 | J38: 452 | K38: 709 | L38: 412 | M38: 452 | N38: 1102 | O38: 2845 | P38: 1063 | Q38: 524 | R38: 1384 | S38: 0.002730073199 | T38: 0.00234811819 | U38: 0.00289785124 | V38: 0.0105033064 | W38: 0.006155099544 | X38: 0.0009296000474 | Y38: 0.009181042928 | Z38: 0.001595502219 | AA38: 0.001509594878 | AB38: 0.007918805991 | AC38: 0.007038282276 | AD38: 0.005579792953 | AE38: 0.00 | AF38: 0.01 | AG38: 0.00 | AH38: 0.01 | AI38: 0.00
A39: Chordata | B39: 8445 | C39: 6752 | D39: 22414 | E39: 8381 | F39: 7414 | G39: 12081 | H39: 14906 | I39: 14677 | J39: 16142 | K39: 76711 | L39: 17096 | M39: 22344 | N39: 12537 | O39: 9292 | P39: 15242 | Q39: 38717 | R39: 18947 | S39: 0.01745304176 | T39: 0.01942952699 | U39: 0.05556239323 | V39: 0.01676408512 | W39: 0.01531339195 | X39: 0.03682130548 | Y39: 0.05994420757 | Z39: 0.05169356749 | AA39: 0.0539112401 | AB39: 0.8567835351 | AC39: 0.2920545481 | AD39: 0.2758294109 | AE39: 0.03 | AF39: 0.02 | AG39: 0.06 | AH39: 0.47 | AI39: 0.15
A40: Chytridiomycota | B40: 8 | C40: 114 | D40: 2 | E40: 0 | F40: 11 | G40: 26 | H40: 65 | I40: 66 | J40: 284 | K40: 3596 | L40: 600 | M40: 2388 | N40: 41 | O40: 12 | P40: 138 | Q40: 2195 | R40: 597 | S40: 1.65E-05 | T40: 0.0003280459237 | U40: 4.96E-06 | V40: 0 | W40: 2.27E-05 | X40: 7.92E-05 | Y40: 0.0002613963164 | Z40: 0.000232457277 | AA40: 0.0009485065164 | AB40: 0.04016364788 | AC40: 0.01024992565 | AD40: 0.02947908312 | AE40: 0.00 | AF40: 0.00 | AG40: 0.00 | AH40: 0.03 | AI40: 0.01
A41: Ciliophora | B41: 28844 | C41: 14184 | D41: 12768 | E41: 5153 | F41: 19390 | G41: 22836 | H41: 44722 | I41: 52124 | J41: 32787 | K41: 70589 | L41: 21755 | M41: 27056 | N41: 18599 | O41: 15793 | P41: 43211 | Q41: 39800 | R41: 29351 | S41: 0.05961107596 | T41: 0.04081581913 | U41: 0.0316507824 | V41: 0.01030728202 | W41: 0.04004945643 | X41: 0.06960113666 | Y41: 0.1798487086 | Z41: 0.1835848955 | AA41: 0.1095024055 | AB41: 0.7884070467 | AC41: 0.3716452207 | AD41: 0.333997518 | AE41: 0.04 | AF41: 0.04 | AG41: 0.16 | AH41: 0.50 | AI41: 0.18
A42: Cloacimonadota | B42: 104 | C42: 38 | D42: 68 | E42: 63 | F42: 50 | G42: 72 | H42: 150 | I42: 159 | J42: 85 | K42: 33 | L42: 13 | M42: 18 | N42: 70 | O42: 62 | P42: 131 | Q42: 21 | R42: 71 | S42: 0.0002149338476 | T42: 0.0001093486412 | U42: 0.000168566197 | V42: 0.0001260156738 | W42: 0.0001032734823 | X42: 0.0002194465686 | Y42: 0.0006032222686 | Z42: 0.0005600107128 | AA42: 0.0002838839926 | AB42: 0.0003685763014 | AC42: 0.0002220817223 | AD42: 0.0002222041441 | AE42: 0.00 | AF42: 0.00 | AG42: 0.00 | AH42: 0.00 | AI42: 0.00
A43: Cnidaria | B43: 948 | C43: 1893 | D43: 2661 | E43: 945 | F43: 880 | G43: 1062 | H43: 1750 | I43: 1912 | J43: 1916 | K43: 4971 | L43: 1145 | M43: 1427 | N43: 1834 | O43: 962 | P43: 1859 | Q43: 2514 | R43: 1793 | S43: 0.001959204688 | T43: 0.00544728889 | U43: 0.006596391915 | V43: 0.001890235107 | W43: 0.001817613288 | X43: 0.003236836886 | Y43: 0.007037593133 | Z43: 0.006734216873 | AA43: 0.006399079174 | AB43: 0.05552099377 | AC43: 0.01956027477 | AD43: 0.01761585076 | AE43: 0.00 | AF43: 0.00 | AG43: 0.01 | AH43: 0.03 | AI43: 0.01
A44: Coprothermobacterota | B44: 20 | C44: 2 | D44: 1 | E44: 1 | F44: 0 | G44: 0 | H44: 0 | I44: 6 | J44: 0 | K44: 5 | L44: 1 | M44: 2 | N44: 8 | O44: 0 | P44: 2 | Q44: 3 | R44: 3 | S44: 4.13E-05 | T44: 5.76E-06 | U44: 2.48E-06 | V44: 2.00E-06 | W44: 0 | X44: 0 | Y44: 0 | Z44: 2.11E-05 | AA44: 0 | AB44: 5.58E-05 | AC44: 1.71E-05 | AD44: 2.47E-05 | AE44: 0.00 | AF44: 0.00 | AG44: 0.00 | AH44: 0.00 | AI44: 0.00
A45: Cossaviricota | B45: 0 | C45: 0 | D45: 0 | E45: 0 | F45: 0 | G45: 0 | H45: 5 | I45: 12 | J45: 4 | K45: 82 | L45: 43 | M45: 72 | N45: 0 | O45: 0 | P45: 7 | Q45: 66 | R45: 18 | S45: 0 | T45: 0 | U45: 0 | V45: 0 | W45: 0 | X45: 0 | Y45: 2.01E-05 | Z45: 4.23E-05 | AA45: 1.34E-05 | AB45: 0.0009158562642 | AC45: 0.0007345780046 | AD45: 0.0008888165765 | AE45: 0.00 | AF45: 0.00 | AG45: 0.00 | AH45: 0.00 | AI45: 0.00
A46: Crenarchaeota | B46: 377 | C46: 313 | D46: 398 | E46: 319 | F46: 93 | G46: 138 | H46: 298 | I46: 370 | J46: 292 | K46: 134 | L46: 55 | M46: 96 | N46: 363 | O46: 183 | P46: 320 | Q46: 95 | R46: 240 | S46: 0.0007791351975 | T46: 0.0009006874922 | U46: 0.0009866080354 | V46: 0.0006380793643 | W46: 0.0001920886771 | X46: 0.0004206059231 | Y46: 0.001198401574 | Z46: 0.001303169583 | AA46: 0.0009752250098 | AB46: 0.001496643163 | AC46: 0.0009395765175 | AD46: 0.001185088769 | AE46: 0.00 | AF46: 0.00 | AG46: 0.00 | AH46: 0.00 | AI46: 0.00
A47: Cryptomycota | B47: 0 | C47: 54 | D47: 0 | E47: 62 | F47: 50 | G47: 67 | H47: 0 | I47: 0 | J47: 0 | K47: 247 | L47: 172 | M47: 30 | N47: 18 | O47: 60 | P47: 0 | Q47: 150 | R47: 57 | S47: 0 | T47: 0.0001553901744 | U47: 0 | V47: 0.000124015425 | W47: 0.0001032734823 | X47: 0.0002042072235 | Y47: 0 | Z47: 0 | AA47: 0 | AB47: 0.002758737771 | AC47: 0.002938312018 | AD47: 0.0003703402402 | AE47: 0.00 | AF47: 0.00 | AG47: 0.00 | AH47: 0.00 | AI47: 0.00
A48: Cyanobacteria | B48: 6137 | C48: 5857 | D48: 8716 | E48: 3947 | F48: 5027 | G48: 3993 | H48: 13505 | I48: 12214 | J48: 11965 | K48: 25047 | L48: 4773 | M48: 17516 | N48: 6903 | O48: 4322 | P48: 12561 | Q48: 15779 | R48: 9891 | S48: 0.01268316368 | T48: 0.01685407873 | U48: 0.02160622019 | V48: 0.007894981978 | W48: 0.01038311591 | X48: 0.01217014095 | Y48: 0.05431011158 | Z48: 0.04301868456 | AA48: 0.03996084672 | AB48: 0.2797494128 | AC48: 0.08153815851 | AD48: 0.2162293216 | AE48: 0.02 | AF48: 0.01 | AG48: 0.05 | AH48: 0.19 | AI48: 0.07
A49: Deinococcota | B49: 19573 | C49: 13971 | D49: 22343 | E49: 9246 | F49: 2126 | G49: 2641 | H49: 5330 | I49: 5643 | J49: 4626 | K49: 89 | L49: 24 | M49: 63 | N49: 18629 | O49: 4671 | P49: 5200 | Q49: 59 | R49: 7140 | S49: 0.04045096345 | T49: 0.04020289122 | U49: 0.05538639029 | V49: 0.01849430032 | W49: 0.004391188467 | X49: 0.008049422049 | Y49: 0.02143449794 | Z49: 0.01987509718 | AA49: 0.01544996882 | AB49: 0.000994039116 | AC49: 0.0004099970258 | AD49: 0.0007777145045 | AE49: 0.05 | AF49: 0.01 | AG49: 0.02 | AH49: 0.00 | AI49: 0.02
A50: Dependentiae | B50: 2 | C50: 2 | D50: 3 | E50: 4 | F50: 0 | G50: 0 | H50: 13 | I50: 15 | J50: 9 | K50: 186 | L50: 105 | M50: 113 | N50: 2 | O50: 1 | P50: 12 | Q50: 135 | R50: 38 | S50: 4.13E-06 | T50: 5.76E-06 | U50: 7.44E-06 | V50: 8.00E-06 | W50: 0 | X50: 0 | Y50: 5.23E-05 | Z50: 5.28E-05 | AA50: 3.01E-05 | AB50: 0.002077430063 | AC50: 0.001793736988 | AD50: 0.001394948238 | AE50: 0.00 | AF50: 0.00 | AG50: 0.00 | AH50: 0.00 | AI50: 0.00
A51: Desulfobacterota | B51: 73334 | C51: 41470 | D51: 54310 | E51: 25973 | F51: 34390 | G51: 29206 | H51: 48449 | I51: 61872 | J51: 140756 | K51: 2386 | L51: 801 | M51: 2188 | N51: 56371 | O51: 29856 | P51: 83692 | Q51: 1792 | R51: 42928 | S51: 0.151557296 | T51: 0.1193338987 | U51: 0.1346298553 | V51: 0.05195246185 | W51: 0.07103150112 | X51: 0.08901606224 | Y51: 0.1948367713 | Z51: 0.2179181309 | AA51: 0.4700985325 | AB51: 0.02664918349 | AC51: 0.01368365074 | AD51: 0.02701014819 | AE51: 0.14 | AF51: 0.07 | AG51: 0.29 | AH51: 0.02 | AI51: 0.13
A52: Desulfobacterota_G | B52: 3 | C52: 1 | D52: 11 | E52: 10 | F52: 5 | G52: 5 | H52: 2 | I52: 2 | J52: 18 | K52: 13 | L52: 8 | M52: 16 | N52: 5 | O52: 7 | P52: 7 | Q52: 12 | R52: 8 | S52: 6.20E-06 | T52: 2.88E-06 | U52: 2.73E-05 | V52: 2.00E-05 | W52: 1.03E-05 | X52: 1.52E-05 | Y52: 8.04E-06 | Z52: 7.04E-06 | AA52: 6.01E-05 | AB52: 0.0001451967248 | AC52: 0.0001366656753 | AD52: 0.0001975147948 | AE52: 0.00 | AF52: 0.00 | AG52: 0.00 | AH52: 0.00 | AI52: 0.00
A53: Desulfobacterota_I | B53: 1205 | C53: 662 | D53: 950 | E53: 833 | F53: 858 | G53: 380 | H53: 611 | I53: 819 | J53: 724 | K53: 150 | L53: 143 | M53: 193 | N53: 939 | O53: 690 | P53: 718 | Q53: 162 | R53: 627 | S53: 0.002490339292 | T53: 0.001904968434 | U53: 0.002354968929 | V53: 0.001666207243 | W53: 0.001772172956 | X53: 0.001158190223 | Y53: 0.002457125374 | Z53: 0.002884583483 | AA53: 0.002418023654 | AB53: 0.001675346825 | AC53: 0.002442898945 | AD53: 0.002382522212 | AE53: 0.00 | AF53: 0.00 | AG53: 0.00 | AH53: 0.00 | AI53: 0.00
A54: Discosea | B54: 26 | C54: 6 | D54: 49 | E54: 0 | F54: 44 | G54: 38 | H54: 32 | I54: 57 | J54: 31 | K54: 172 | L54: 76 | M54: 42 | N54: 27 | O54: 27 | P54: 40 | Q54: 97 | R54: 48 | S54: 5.37E-05 | T54: 1.73E-05 | U54: 0.0001214668184 | V54: 0 | W54: 9.09E-05 | X54: 0.0001158190223 | Y54: 0.0001286874173 | Z54: 0.0002007585574 | AA54: 0.000103534162 | AB54: 0.001921064359 | AC54: 0.001298323915 | AD54: 0.0005184763363 | AE54: 0.00 | AF54: 0.00 | AG54: 0.00 | AH54: 0.00 | AI54: 0.00
A55: Echinodermata | B55: 7 | C55: 0 | D55: 5 | E55: 0 | F55: 2 | G55: 0 | H55: 0 | I55: 1 | J55: 0 | K55: 62 | L55: 17 | M55: 25 | N55: 4 | O55: 1 | P55: 0 | Q55: 35 | R55: 10 | S55: 1.45E-05 | T55: 0 | U55: 1.24E-05 | V55: 0 | W55: 4.13E-06 | X55: 0 | Y55: 0 | Z55: 3.52E-06 | AA55: 0 | AB55: 0.0006924766875 | AC55: 0.00029041456 | AD55: 0.0003086168668 | AE55: 0.00 | AF55: 0.00 | AG55: 0.00 | AH55: 0.00 | AI55: 0.00
A56: Endomyxa | B56: 46399 | C56: 23451 | D56: 22780 | E56: 16876 | F56: 26837 | G56: 31841 | H56: 64797 | I56: 75331 | J56: 48200 | K56: 35286 | L56: 9406 | M56: 12511 | N56: 30877 | O56: 25185 | P56: 62776 | Q56: 19068 | R56: 34476 | S56: 0.0958914961 | T56: 0.06748249961 | U56: 0.05646967599 | V56: 0.0337561986 | W56: 0.05543100888 | X56: 0.09704719707 | Y56: 0.2605799556 | Z56: 0.265321805 | AA56: 0.1609789228 | AB56: 0.394108587 | AC56: 0.1606846677 | AD56: 0.1544442248 | AE56: 0.07 | AF56: 0.06 | AG56: 0.23 | AH56: 0.24 | AI56: 0.15
A57: Euglenozoa | B57: 903 | C57: 986 | D57: 1485 | E57: 1351 | F57: 1333 | G57: 1219 | H57: 7308 | I57: 7892 | J57: 5924 | K57: 1533 | L57: 678 | M57: 1184 | N57: 1125 | O57: 1301 | P57: 7041 | Q57: 1132 | R57: 2650 | S57: 0.001866204465 | T57: 0.00283730948 | U57: 0.003681188273 | V57: 0.002702336117 | W57: 0.002753271038 | X57: 0.00371535232 | Y57: 0.02938898893 | Z57: 0.027796255 | AA57: 0.01978504438 | AB57: 0.01712204455 | AC57: 0.01158241598 | AD57: 0.01461609481 | AE57: 0.00 | AF57: 0.00 | AG57: 0.03 | AH57: 0.01 | AI57: 0.01
A58: Fibrobacterota | B58: 64 | C58: 18 | D58: 44 | E58: 47 | F58: 52 | G58: 59 | H58: 368 | I58: 582 | J58: 217 | K58: 19 | L58: 21 | M58: 25 | N58: 42 | O58: 53 | P58: 389 | Q58: 22 | R58: 126 | S58: 0.0001322669831 | T58: 5.18E-05 | U58: 0.0001090722451 | V58: 9.40E-05 | W58: 0.0001074044216 | X58: 0.0001798242715 | Y58: 0.001479905299 | Z58: 0.002049850533 | AA58: 0.000724739134 | AB58: 0.0002122105978 | AC58: 0.0003587473976 | AD58: 0.0003086168668 | AE58: 0.00 | AF58: 0.00 | AG58: 0.00 | AH58: 0.00 | AI58: 0.00
A59: Firmicutes | B59: 86215 | C59: 76427 | D59: 73767 | E59: 67550 | F59: 61093 | G59: 59191 | H59: 145738 | I59: 168621 | J59: 194243 | K59: 360708 | L59: 213547 | M59: 289107 | N59: 78803 | O59: 62611 | P59: 169534 | Q59: 287787 | R59: 149684 | S59: 0.178178093 | T59: 0.2199260159 | U59: 0.1828620979 | V59: 0.1351168058 | W59: 0.1261857371 | X59: 0.1804064144 | Y59: 0.5860827132 | Z59: 0.593896644 | AA59: 0.6487350396 | AB59: 4.028740016 | AC59: 3.64806812 | AD59: 3.568931861 | AE59: 0.19 | AF59: 0.15 | AG59: 0.61 | AH59: 3.75 | AI59: 1.17
A60: Firmicutes_A | B60: 75033 | C60: 55863 | D60: 100923 | E60: 45488 | F60: 42331 | G60: 30920 | H60: 101253 | I60: 107289 | J60: 143355 | K60: 10347 | L60: 5655 | M60: 8256 | N60: 77273 | O60: 39580 | P60: 117299 | Q60: 8086 | R60: 60559 | S60: 0.155068571 | T60: 0.1607511354 | U60: 0.2501795044 | V60: 0.090987317 | W60: 0.08743339557 | X60: 0.09424010972 | Y60: 0.4071870957 | Z60: 0.3778804362 | AA60: 0.478778703 | AB60: 0.115565424 | AC60: 0.09660554921 | AD60: 0.1019176341 | AE60: 0.19 | AF60: 0.09 | AG60: 0.42 | AH60: 0.10 | AI60: 0.20
A61: Firmicutes_B | B61: 51 | C61: 42 | D61: 59 | E61: 41 | F61: 8 | G61: 121 | H61: 75 | I61: 88 | J61: 42 | K61: 22 | L61: 2 | M61: 3 | N61: 51 | O61: 57 | P61: 68 | Q61: 9 | R61: 46 | S61: 0.0001054002522 | T61: 0.0001208590245 | U61: 0.000146255965 | V61: 8.20E-05 | W61: 1.65E-05 | X61: 0.0003687921499 | Y61: 0.0003016111343 | Z61: 0.000309943036 | AA61: 0.0001402720904 | AB61: 0.0002457175343 | AC61: 3.42E-05 | AD61: 3.70E-05 | AE61: 0.00 | AF61: 0.00 | AG61: 0.00 | AH61: 0.00 | AI61: 0.00
A62: Firmicutes_C | B62: 10950 | C62: 6640 | D62: 11458 | E62: 7334 | F62: 3805 | G62: 2382 | H62: 5128 | I62: 5974 | J62: 5530 | K62: 2606 | L62: 1478 | M62: 1883 | N62: 9683 | O62: 4507 | P62: 5544 | Q62: 1989 | R62: 5431 | S62: 0.02263005415 | T62: 0.01910723626 | U62: 0.02840340419 | V62: 0.01466982463 | W62: 0.007859112002 | X62: 0.007260023976 | Y62: 0.02062215862 | Z62: 0.02104090565 | AA62: 0.01846915858 | AB62: 0.02910635883 | AC62: 0.02524898351 | AD62: 0.02324502241 | AE62: 0.02 | AF62: 0.01 | AG62: 0.02 | AH62: 0.03 | AI62: 0.02
A63: Firmicutes_E | B63: 13 | C63: 53 | D63: 44 | E63: 11 | F63: 6 | G63: 4 | H63: 19 | I63: 30 | J63: 13 | K63: 11 | L63: 3 | M63: 8 | N63: 37 | O63: 7 | P63: 21 | Q63: 7 | R63: 18 | S63: 2.69E-05 | T63: 0.0001525125785 | U63: 0.0001090722451 | V63: 2.20E-05 | W63: 1.24E-05 | X63: 1.22E-05 | Y63: 7.64E-05 | Z63: 0.0001056623986 | AA63: 4.34E-05 | AB63: 0.0001228587671 | AC63: 5.12E-05 | AD63: 9.88E-05 | AE63: 0.00 | AF63: 0.00 | AG63: 0.00 | AH63: 0.00 | AI63: 0.00
A64: Firmicutes_G | B64: 22 | C64: 0 | D64: 12 | E64: 2 | F64: 10 | G64: 0 | H64: 1 | I64: 8 | J64: 8 | K64: 5 | L64: 5 | M64: 9 | N64: 11 | O64: 4 | P64: 6 | Q64: 6 | R64: 7 | S64: 4.55E-05 | T64: 0 | U64: 2.97E-05 | V64: 4.00E-06 | W64: 2.07E-05 | X64: 0 | Y64: 4.02E-06 | Z64: 2.82E-05 | AA64: 2.67E-05 | AB64: 5.58E-05 | AC64: 8.54E-05 | AD64: 0.0001111020721 | AE64: 0.00 | AF64: 0.00 | AG64: 0.00 | AH64: 0.00 | AI64: 0.00
A65: Fornicata | B65: 0 | C65: 4 | D65: 2 | E65: 0 | F65: 1 | G65: 2 | H65: 2 | I65: 6 | J65: 0 | K65: 24 | L65: 21 | M65: 30 | N65: 2 | O65: 1 | P65: 3 | Q65: 25 | R65: 8 | S65: 0 | T65: 1.15E-05 | U65: 4.96E-06 | V65: 0 | W65: 2.07E-06 | X65: 6.10E-06 | Y65: 8.04E-06 | Z65: 2.11E-05 | AA65: 0 | AB65: 0.000268055492 | AC65: 0.0003587473976 | AD65: 0.0003703402402 | AE65: 0.00 | AF65: 0.00 | AG65: 0.00 | AH65: 0.00 | AI65: 0.00
A66: Fusobacteriota | B66: 266 | C66: 107 | D66: 215 | E66: 153 | F66: 126 | G66: 89 | H66: 243 | I66: 273 | J66: 258 | K66: 5727 | L66: 3184 | M66: 3996 | N66: 196 | O66: 123 | P66: 258 | Q66: 4302 | R66: 1220 | S66: 0.0005497346487 | T66: 0.0003079027529 | U66: 0.0005329666523 | V66: 0.000306038065 | W66: 0.0002602491754 | X66: 0.0002712603417 | Y66: 0.0009772200751 | Z66: 0.0009615278276 | AA66: 0.0008616714128 | AB66: 0.06396474177 | AC66: 0.05439293876 | AD66: 0.04932932 | AE66: 0.00 | AF66: 0.00 | AG66: 0.00 | AH66: 0.06 | AI66: 0.01
A67: Gemmatimonadetes | B67: 51 | C67: 41 | D67: 65 | E67: 119 | F67: 55 | G67: 0 | H67: 0 | I67: 0 | J67: 109 | K67: 45 | L67: 0 | M67: 0 | N67: 52 | O67: 58 | P67: 36 | Q67: 15 | R67: 40 | S67: 0.0001054002522 | T67: 0.0001179814287 | U67: 0.000161129453 | V67: 0.0002380296061 | W67: 0.0001136008305 | X67: 0 | Y67: 0 | Z67: 0 | AA67: 0.0003640394728 | AB67: 0.0005026040474 | AC67: 0 | AD67: 0 | AE67: 0.00 | AF67: 0.00 | AG67: 0.00 | AH67: 0.00 | AI67: 0.00
A68: Gemmatimonadota | B68: 1275 | C68: 638 | D68: 876 | E68: 864 | F68: 902 | G68: 646 | H68: 973 | I68: 1186 | J68: 1306 | K68: 1397 | L68: 1289 | M68: 1743 | N68: 930 | O68: 804 | P68: 1155 | Q68: 1476 | R68: 1091 | S68: 0.002635006305 | T68: 0.001835906134 | U68: 0.002171529244 | V68: 0.001728214955 | W68: 0.00186305362 | X68: 0.001968923379 | Y68: 0.003912901782 | Z68: 0.004177186826 | AA68: 0.004361794051 | AB68: 0.01560306343 | AC68: 0.02202025693 | AD68: 0.02151676796 | AE68: 0.00 | AF68: 0.00 | AG68: 0.00 | AH68: 0.02 | AI68: 0.01
A69: Halobacteriota | B69: 1709 | C69: 850 | D69: 1555 | E69: 2012 | F69: 1015 | G69: 1487 | H69: 1911 | I69: 2390 | J69: 2150 | K69: 1482 | L69: 906 | M69: 1120 | N69: 1371 | O69: 1505 | P69: 2150 | Q69: 1169 | R69: 1549 | S69: 0.003531941784 | T69: 0.002445956448 | U69: 0.003854712299 | V69: 0.004024500567 | W69: 0.00209645169 | X69: 0.004532181214 | Y69: 0.007685051702 | Z69: 0.008417771091 | AA69: 0.007180595106 | AB69: 0.01655242663 | AC69: 0.01547738772 | AD69: 0.01382603563 | AE69: 0.00 | AF69: 0.00 | AG69: 0.01 | AH69: 0.02 | AI69: 0.01
A70: Haptista | B70: 0 | C70: 0 | D70: 0 | E70: 0 | F70: 11 | G70: 0 | H70: 0 | I70: 17 | J70: 0 | K70: 144 | L70: 40 | M70: 0 | N70: 0 | O70: 4 | P70: 6 | Q70: 61 | R70: 18 | S70: 0 | T70: 0 | U70: 0 | V70: 0 | W70: 2.27E-05 | X70: 0 | Y70: 0 | Z70: 5.99E-05 | AA70: 0 | AB70: 0.001608332952 | AC70: 0.0006833283764 | AD70: 0 | AE70: 0.00 | AF70: 0.00 | AG70: 0.00 | AH70: 0.00 | AI70: 0.00
A71: Heterolobosea | B71: 121 | C71: 367 | D71: 461 | E71: 128 | F71: 250 | G71: 184 | H71: 382 | I71: 403 | J71: 290 | K71: 2650 | L71: 1423 | M71: 1528 | N71: 316 | O71: 187 | P71: 358 | Q71: 1867 | R71: 682 | S71: 0.000250067265 | T71: 0.001056077667 | U71: 0.001142779659 | V71: 0.0002560318452 | W71: 0.0005163674114 | X71: 0.0005608078974 | Y71: 0.001536206044 | Z71: 0.001419398222 | AA71: 0.0009685453864 | AB71: 0.0295977939 | AC71: 0.02430940699 | AD71: 0.0188626629 | AE71: 0.00 | AF71: 0.00 | AG71: 0.00 | AH71: 0.02 | AI71: 0.01
A72: Hofneiviricota | B72: 20 | C72: 35 | D72: 18 | E72: 23 | F72: 36 | G72: 29 | H72: 48 | I72: 33 | J72: 35 | K72: 1 | L72: 2 | M72: 0 | N72: 24 | O72: 29 | P72: 39 | Q72: 1 | R72: 23 | S72: 4.13E-05 | T72: 0.0001007158538 | U72: 4.46E-05 | V72: 4.60E-05 | W72: 7.44E-05 | X72: 8.84E-05 | Y72: 0.0001930311259 | Z72: 0.0001162286385 | AA72: 0.0001168934087 | AB72: 1.12E-05 | AC72: 3.42E-05 | AD72: 0 | AE72: 0.00 | AF72: 0.00 | AG72: 0.00 | AH72: 0.00 | AI72: 0.00
A73: Imbricatea | B73: 45 | C73: 95 | D73: 0 | E73: 0 | F73: 0 | G73: 88 | H73: 183 | I73: 402 | J73: 145 | K73: 636 | L73: 777 | M73: 660 | N73: 47 | O73: 29 | P73: 243 | Q73: 691 | R73: 253 | S73: 9.30E-05 | T73: 0.0002733716031 | U73: 0 | V73: 0 | W73: 0 | X73: 0.0002682124727 | Y73: 0.0007359311677 | Z73: 0.001415876142 | AA73: 0.0004842726932 | AB73: 0.007103470537 | AC73: 0.01327365371 | AD73: 0.008147485285 | AE73: 0.00 | AF73: 0.00 | AG73: 0.00 | AH73: 0.01 | AI73: 0.00
A74: Methanobacteriota | B74: 518 | C74: 214 | D74: 282 | E74: 188 | F74: 228 | G74: 281 | H74: 761 | I74: 894 | J74: 555 | K74: 257 | L74: 63 | M74: 115 | N74: 338 | O74: 232 | P74: 737 | Q74: 145 | R74: 363 | S74: 0.001070535895 | T74: 0.0006158055058 | U74: 0.0006990539346 | V74: 0.0003760467727 | W74: 0.0004709270792 | X74: 0.0008564511912 | Y74: 0.003060347643 | Z74: 0.003148739479 | AA74: 0.001853595481 | AB74: 0.00287042756 | AC74: 0.001076242193 | AD74: 0.001419637588 | AE74: 0.00 | AF74: 0.00 | AG74: 0.00 | AH74: 0.00 | AI74: 0.00
A75: Methylomirabilota | B75: 227 | C75: 735 | D75: 209 | E75: 292 | F75: 192 | G75: 226 | H75: 585 | I75: 699 | J75: 507 | K75: 87 | L75: 90 | M75: 121 | N75: 390 | O75: 237 | P75: 597 | Q75: 99 | R75: 331 | S75: 0.0004691344558 | T75: 0.002115032929 | U75: 0.0005180931643 | V75: 0.000584072647 | W75: 0.000396570172 | X75: 0.0006888183957 | Y75: 0.002352566847 | Z75: 0.002461933888 | AA75: 0.00169328452 | AB75: 0.0009717011583 | AC75: 0.001537488847 | AD75: 0.001493705636 | AE75: 0.00 | AF75: 0.00 | AG75: 0.00 | AH75: 0.00 | AI75: 0.00
A76: Microsporidia | B76: 1 | C76: 5 | D76: 0 | E76: 0 | F76: 8 | G76: 10 | H76: 30 | I76: 6 | J76: 145 | K76: 314 | L76: 323 | M76: 100 | N76: 2 | O76: 6 | P76: 60 | Q76: 246 | R76: 79 | S76: 2.07E-06 | T76: 1.44E-05 | U76: 0 | V76: 0 | W76: 1.65E-05 | X76: 3.05E-05 | Y76: 0.0001206444537 | Z76: 2.11E-05 | AA76: 0.0004842726932 | AB76: 0.003507059353 | AC76: 0.005517876639 | AD76: 0.001234467467 | AE76: 0.00 | AF76: 0.00 | AG76: 0.00 | AH76: 0.00 | AI76: 0.00
A77: Mollusca | B77: 60 | C77: 56 | D77: 9 | E77: 8 | F77: 49 | G77: 134 | H77: 272 | I77: 53 | J77: 268 | K77: 852 | L77: 265 | M77: 267 | N77: 42 | O77: 64 | P77: 198 | Q77: 461 | R77: 191 | S77: 0.0001240002967 | T77: 0.000161145366 | U77: 2.23E-05 | V77: 1.60E-05 | W77: 0.0001012080126 | X77: 0.000408414447 | Y77: 0.001093843047 | Z77: 0.0001866702376 | AA77: 0.0008950695295 | AB77: 0.009515969964 | AC77: 0.004527050493 | AD77: 0.003296028138 | AE77: 0.00 | AF77: 0.00 | AG77: 0.00 | AH77: 0.01 | AI77: 0.00
A78: Mucoromycota | B78: 95 | C78: 0 | D78: 15 | E78: 62 | F78: 3229 | G78: 0 | H78: 32 | I78: 25 | J78: 52 | K78: 439 | L78: 469 | M78: 119 | N78: 37 | O78: 1097 | P78: 36 | Q78: 342 | R78: 378 | S78: 0.0001963338031 | T78: 0 | U78: 3.72E-05 | V78: 0.000124015425 | W78: 0.006669401486 | X78: 0 | Y78: 0.0001286874173 | Z78: 8.81E-05 | AA78: 0.0001736702072 | AB78: 0.004903181707 | AC78: 0.008012025213 | AD78: 0.001469016286 | AE78: 0.00 | AF78: 0.00 | AG78: 0.00 | AH78: 0.00 | AI78: 0.00
A79: Myxococcota | B79: 8161 | C79: 2599 | D79: 2578 | E79: 3021 | F79: 4603 | G79: 4737 | H79: 9017 | I79: 9586 | J79: 8893 | K79: 887 | L79: 729 | M79: 1677 | N79: 4446 | O79: 4120 | P79: 9165 | Q79: 1098 | R79: 4707 | S79: 0.01686610702 | T79: 0.00747887154 | U79: 0.006390641998 | V79: 0.006042751597 | W79: 0.009507356779 | X79: 0.01443775549 | Y79: 0.03626170131 | Z79: 0.03376265844 | AA79: 0.02970094525 | AB79: 0.009906884223 | AC79: 0.01245365966 | AD79: 0.02070201943 | AE79: 0.01 | AF79: 0.01 | AG79: 0.03 | AH79: 0.01 | AI79: 0.02
A80: Nanoarchaeota | B80: 75 | C80: 59 | D80: 68 | E80: 64 | F80: 54 | G80: 35 | H80: 58 | I80: 81 | J80: 93 | K80: 55 | L80: 28 | M80: 57 | N80: 67 | O80: 51 | P80: 77 | Q80: 47 | R80: 61 | S80: 0.0001550003709 | T80: 0.0001697781535 | U80: 0.000168566197 | V80: 0.0001280159226 | W80: 0.0001115353609 | X80: 0.0001066754153 | Y80: 0.0002332459439 | Z80: 0.0002852884763 | AA80: 0.000310602486 | AB80: 0.0006142938357 | AC80: 0.0004783298634 | AD80: 0.0007036464564 | AE80: 0.00 | AF80: 0.00 | AG80: 0.00 | AH80: 0.00 | AI80: 0.00
A81: Nematoda | B81: 117 | C81: 16 | D81: 70 | E81: 142 | F81: 31 | G81: 109 | H81: 495 | I81: 594 | J81: 104 | K81: 92 | L81: 882 | M81: 261 | N81: 68 | O81: 94 | P81: 398 | Q81: 412 | R81: 243 | S81: 0.0002418005785 | T81: 4.60E-05 | U81: 0.0001735240263 | V81: 0.0002840353283 | W81: 6.40E-05 | X81: 0.0003322177218 | Y81: 0.001990633486 | Z81: 0.002092115493 | AA81: 0.0003473404144 | AB81: 0.001027546052 | AC81: 0.0150673907 | AD81: 0.00322196009 | AE81: 0.00 | AF81: 0.00 | AG81: 0.00 | AH81: 0.01 | AI81: 0.00
A82: Nitrospirota | B82: 59325 | C82: 14628 | D82: 13052 | E82: 13047 | F82: 26686 | G82: 23965 | H82: 69805 | I82: 76198 | J82: 58742 | K82: 1772 | L82: 1254 | M82: 1905 | N82: 29002 | O82: 21233 | P82: 68248 | Q82: 1644 | R82: 30032 | S82: 0.1226052934 | T82: 0.04209347168 | U82: 0.03235479417 | V82: 0.02609724598 | W82: 0.05511912297 | X82: 0.07304218077 | Y82: 0.2807195364 | Z82: 0.2683754484 | AA82: 0.1961872176 | AB82: 0.01979143049 | AC82: 0.0214223446 | AD82: 0.02351660525 | AE82: 0.07 | AF82: 0.05 | AG82: 0.25 | AH82: 0.02 | AI82: 0.10
A83: Nucleocytoviricota | B83: 6 | C83: 10 | D83: 12 | E83: 0 | F83: 11 | G83: 22 | H83: 14 | I83: 13 | J83: 23 | K83: 1432 | L83: 552 | M83: 589 | N83: 9 | O83: 11 | P83: 17 | Q83: 858 | R83: 224 | S83: 1.24E-05 | T83: 2.88E-05 | U83: 2.97E-05 | V83: 0 | W83: 2.27E-05 | X83: 6.71E-05 | Y83: 5.63E-05 | Z83: 4.58E-05 | AA83: 7.68E-05 | AB83: 0.01599397769 | AC83: 0.009429931594 | AD83: 0.007271013383 | AE83: 0.00 | AF83: 0.00 | AG83: 0.00 | AH83: 0.01 | AI83: 0.00
A84: Omnitrophota | B84: 0 | C84: 0 | D84: 0 | E84: 0 | F84: 1 | G84: 0 | H84: 1 | I84: 2 | J84: 0 | K84: 11 | L84: 8 | M84: 11 | N84: 0 | O84: 0 | P84: 1 | Q84: 10 | R84: 3 | S84: 0 | T84: 0 | U84: 0 | V84: 0 | W84: 2.07E-06 | X84: 0 | Y84: 4.02E-06 | Z84: 7.04E-06 | AA84: 0 | AB84: 0.0001228587671 | AC84: 0.0001366656753 | AD84: 0.0001357914214 | AE84: 0.00 | AF84: 0.00 | AG84: 0.00 | AH84: 0.00 | AI84: 0.00
A85: Oomycota | B85: 250 | C85: 156 | D85: 255 | E85: 37 | F85: 69 | G85: 241 | H85: 862 | I85: 1173 | J85: 862 | K85: 1291 | L85: 900 | M85: 221 | N85: 220 | O85: 116 | P85: 966 | Q85: 804 | R85: 526 | S85: 0.0005166679029 | T85: 0.0004489049482 | U85: 0.0006321232387 | V85: 7.40E-05 | W85: 0.0001425174056 | X85: 0.0007345364309 | Y85: 0.003466517303 | Z85: 0.004131399787 | AA85: 0.002878917666 | AB85: 0.01441915167 | AC85: 0.01537488847 | AD85: 0.002728173103 | AE85: 0.00 | AF85: 0.00 | AG85: 0.00 | AH85: 0.01 | AI85: 0.00
A86: Patescibacteria | B86: 301 | C86: 163 | D86: 153 | E86: 175 | F86: 169 | G86: 126 | H86: 352 | I86: 375 | J86: 292 | K86: 2658 | L86: 1497 | M86: 1887 | N86: 206 | O86: 157 | P86: 340 | Q86: 2014 | R86: 679 | S86: 0.0006220681551 | T86: 0.0004690481189 | U86: 0.0003792739432 | V86: 0.0003500435384 | W86: 0.0003490643701 | X86: 0.000384031495 | Y86: 0.00141556159 | Z86: 0.001320779983 | AA86: 0.0009752250098 | AB86: 0.02968714573 | AC86: 0.02557356449 | AD86: 0.02329440111 | AE86: 0.00 | AF86: 0.00 | AG86: 0.00 | AH86: 0.03 | AI86: 0.01
A87: Phixviricota | B87: 0 | C87: 0 | D87: 0 | E87: 2 | F87: 0 | G87: 0 | H87: 0 | I87: 0 | J87: 0 | K87: 22 | L87: 14 | M87: 25 | N87: 0 | O87: 1 | P87: 0 | Q87: 20 | R87: 5 | S87: 0 | T87: 0 | U87: 0 | V87: 4.00E-06 | W87: 0 | X87: 0 | Y87: 0 | Z87: 0 | AA87: 0 | AB87: 0.0002457175343 | AC87: 0.0002391649317 | AD87: 0.0003086168668 | AE87: 0.00 | AF87: 0.00 | AG87: 0.00 | AH87: 0.00 | AI87: 0.00
A88: Planctomycetes | B88: 12 | C88: 0 | D88: 15 | E88: 0 | F88: 0 | G88: 0 | H88: 4 | I88: 0 | J88: 3 | K88: 0 | L88: 0 | M88: 0 | N88: 9 | O88: 0 | P88: 2 | Q88: 0 | R88: 3 | S88: 2.48E-05 | T88: 0 | U88: 3.72E-05 | V88: 0 | W88: 0 | X88: 0 | Y88: 1.61E-05 | Z88: 0 | AA88: 1.00E-05 | AB88: 0 | AC88: 0 | AD88: 0 | AE88: 0.00 | AF88: 0.00 | AG88: 0.00 | AH88: 0.00 | AI88: 0.00
A89: Planctomycetota | B89: 2534 | C89: 1175 | D89: 1343 | E89: 1041 | F89: 1716 | G89: 1764 | H89: 3550 | I89: 3545 | J89: 3578 | K89: 959 | L89: 1222 | M89: 2671 | N89: 1684 | O89: 1507 | P89: 3558 | Q89: 1617 | R89: 2092 | S89: 0.005236945864 | T89: 0.00338117509 | U89: 0.003329182391 | V89: 0.002082258991 | W89: 0.003544345912 | X89: 0.00537644093 | Y89: 0.01427626036 | Z89: 0.01248577344 | AA89: 0.01194984618 | AB89: 0.0107110507 | AC89: 0.0208756819 | AD89: 0.03297262605 | AE89: 0.00 | AF89: 0.00 | AG89: 0.01 | AH89: 0.02 | AI89: 0.01
A90: Platyhelminthes | B90: 325 | C90: 182 | D90: 337 | E90: 21 | F90: 152 | G90: 127 | H90: 242 | I90: 27 | J90: 193 | K90: 0 | L90: 0 | M90: 419 | N90: 281 | O90: 100 | P90: 154 | Q90: 140 | R90: 169 | S90: 0.0006716682737 | T90: 0.0005237224395 | U90: 0.000835394241 | V90: 4.20E-05 | W90: 0.0003139513862 | X90: 0.000387079364 | Y90: 0.0009731985933 | Z90: 9.51E-05 | AA90: 0.0006445836537 | AB90: 0 | AC90: 0 | AD90: 0.005172418688 | AE90: 0.00 | AF90: 0.00 | AG90: 0.00 | AH90: 0.00 | AI90: 0.00
A91: Porifera | B91: 77 | C91: 20 | D91: 0 | E91: 0 | F91: 0 | G91: 296 | H91: 1183 | I91: 845 | J91: 32 | K91: 58 | L91: 2 | M91: 4 | N91: 32 | O91: 99 | P91: 687 | Q91: 21 | R91: 210 | S91: 0.0001591337141 | T91: 5.76E-05 | U91: 0 | V91: 0 | W91: 0 | X91: 0.0009021692263 | Y91: 0.004757412958 | Z91: 0.002976157562 | AA91: 0.0001068739737 | AB91: 0.0006478007722 | AC91: 3.42E-05 | AD91: 4.94E-05 | AE91: 0.00 | AF91: 0.00 | AG91: 0.00 | AH91: 0.00 | AI91: 0.00
A92: Preplasmiviricota | B92: 2267 | C92: 1272 | D92: 1981 | E92: 4604 | F92: 5425 | G92: 3270 | H92: 3533 | I92: 4141 | J92: 4332 | K92: 1171 | L92: 734 | M92: 1017 | N92: 1840 | O92: 4433 | P92: 4002 | Q92: 974 | R92: 2812 | S92: 0.004685144543 | T92: 0.003660301885 | U92: 0.004910729945 | V92: 0.009209145434 | W92: 0.01120517283 | X92: 0.009966531655 | Y92: 0.01420789517 | Z92: 0.01458493309 | AA92: 0.01446806419 | AB92: 0.01307887421 | AC92: 0.01253907571 | AD92: 0.01255453414 | AE92: 0.00 | AF92: 0.01 | AG92: 0.01 | AH92: 0.01 | AI92: 0.01
A93: Priapulida | B93: 15 | C93: 4 | D93: 17 | E93: 5 | F93: 5 | G93: 1 | H93: 19 | I93: 29 | J93: 18 | K93: 1588 | L93: 658 | M93: 541 | N93: 12 | O93: 4 | P93: 22 | Q93: 929 | R93: 242 | S93: 3.10E-05 | T93: 1.15E-05 | U93: 4.21E-05 | V93: 1.00E-05 | W93: 1.03E-05 | X93: 3.05E-06 | Y93: 7.64E-05 | Z93: 0.0001021403187 | AA93: 6.01E-05 | AB93: 0.01773633838 | AC93: 0.01124075179 | AD93: 0.006678468999 | AE93: 0.00 | AF93: 0.00 | AG93: 0.00 | AH93: 0.01 | AI93: 0.00
A94: Proteobacteria | B94: 43817598 | C94: 31710037 | D94: 36134659 | E94: 46646445 | F94: 44964841 | G94: 30332341 | H94: 21064069 | I94: 23982772 | J94: 25483344 | K94: 6399665 | L94: 4634439 | M94: 6543902 | N94: 37220765 | O94: 40647876 | P94: 23510062 | Q94: 5859335 | R94: 26809509 | S94: 90.55658587 | T94: 91.24866998 | U94: 89.57473599 | V94: 93.30449521 | W94: 92.87351421 | X94: 92.44900207 | Y94: 84.70876992 | Z94: 84.46924051 | AA94: 85.10956987 | AB94: 71.47772291 | AC94: 79.17109193 | AD94: 80.78234129 | AE94: 90.46 | AF94: 92.88 | AG94: 84.76 | AH94: 77.14 | AI94: 86.31
A95: Rhodophyta | B95: 111 | C95: 94 | D95: 6 | E95: 3 | F95: 25 | G95: 80 | H95: 228 | I95: 436 | J95: 129 | K95: 878 | L95: 133 | M95: 15 | N95: 70 | O95: 36 | P95: 264 | Q95: 342 | R95: 178 | S95: 0.0002294005489 | T95: 0.0002704940072 | U95: 1.49E-05 | V95: 6.00E-06 | W95: 5.16E-05 | X95: 0.0002438295206 | Y95: 0.0009168978482 | Z95: 0.00153562686 | AA95: 0.0004308357064 | AB95: 0.009806363414 | AC95: 0.002272066851 | AD95: 0.0001851701201 | AE95: 0.00 | AF95: 0.00 | AG95: 0.00 | AH95: 0.00 | AI95: 0.00
A96: Rotifera | B96: 0 | C96: 7 | D96: 0 | E96: 0 | F96: 0 | G96: 37 | H96: 23 | I96: 0 | J96: 16 | K96: 0 | L96: 0 | M96: 0 | N96: 2 | O96: 12 | P96: 13 | Q96: 0 | R96: 7 | S96: 0 | T96: 2.01E-05 | U96: 0 | V96: 0 | W96: 0 | X96: 0.0001127711533 | Y96: 9.25E-05 | Z96: 0 | AA96: 5.34E-05 | AB96: 0 | AC96: 0 | AD96: 0 | AE96: 0.00 | AF96: 0.00 | AG96: 0.00 | AH96: 0.00 | AI96: 0.00
A97: Spirochaetes | B97: 21 | C97: 21 | D97: 34 | E97: 20 | F97: 63 | G97: 64 | H97: 70 | I97: 125 | J97: 41 | K97: 13 | L97: 4 | M97: 2 | N97: 25 | O97: 49 | P97: 79 | Q97: 6 | R97: 40 | S97: 4.34E-05 | T97: 6.04E-05 | U97: 8.43E-05 | V97: 4.00E-05 | W97: 0.0001301245877 | X97: 0.0001950636165 | Y97: 0.0002815037253 | Z97: 0.0004402599943 | AA97: 0.0001369322788 | AB97: 0.0001451967248 | AC97: 6.83E-05 | AD97: 2.47E-05 | AE97: 0.00 | AF97: 0.00 | AG97: 0.00 | AH97: 0.00 | AI97: 0.00
A98: Spirochaetota | B98: 10420 | C98: 4778 | D98: 6567 | E98: 5707 | F98: 10063 | G98: 8885 | H98: 16845 | I98: 18247 | J98: 12403 | K98: 2139 | L98: 1228 | M98: 2136 | N98: 7255 | O98: 8218 | P98: 15832 | Q98: 1834 | R98: 8285 | S98: 0.02153471819 | T98: 0.01374915284 | U98: 0.01627903258 | V98: 0.01141541985 | W98: 0.02078482105 | X98: 0.02708031613 | Y98: 0.06774186076 | Z98: 0.06426739293 | AA98: 0.04142368423 | AB98: 0.02389044572 | AC98: 0.02097818115 | AD98: 0.0263682251 | AE98: 0.02 | AF98: 0.02 | AG98: 0.06 | AH98: 0.02 | AI98: 0.03
A99: Streptophyta | B99: 1892 | C99: 917 | D99: 1193 | E99: 1347 | F99: 1989 | G99: 1358 | H99: 4180 | I99: 4407 | J99: 3381 | K99: 1512 | L99: 473 | M99: 866 | N99: 1334 | O99: 1565 | P99: 3989 | Q99: 950 | R99: 1960 | S99: 0.003910142689 | T99: 0.002638755368 | U99: 0.002957345191 | V99: 0.002694335121 | W99: 0.004108219125 | X99: 0.004139006112 | Y99: 0.01680979388 | Z99: 0.01552180636 | AA99: 0.01129190328 | AB99: 0.01688749599 | AC99: 0.00808035805 | AD99: 0.01069048827 | AE99: 0.00 | AF99: 0.00 | AG99: 0.01 | AH99: 0.01 | AI99: 0.01
A100: Synergistota | B100: 0 | C100: 9 | D100: 116 | E100: 12 | F100: 387 | G100: 2 | H100: 11 | I100: 0 | J100: 60 | K100: 7 | L100: 9 | M100: 5 | N100: 42 | O100: 134 | P100: 24 | Q100: 7 | R100: 52 | S100: 0 | T100: 2.59E-05 | U100: 0.0002875541008 | V100: 2.40E-05 | W100: 0.0007993367529 | X100: 6.10E-06 | Y100: 4.42E-05 | Z100: 0 | AA100: 0.0002003887006 | AB100: 7.82E-05 | AC100: 0.0001537488847 | AD100: 6.17E-05 | AE100: 0.00 | AF100: 0.00 | AG100: 0.00 | AH100: 0.00 | AI100: 0.00
A101: Thaumarchaeota | B101: 25 | C101: 29 | D101: 24 | E101: 34 | F101: 12 | G101: 16 | H101: 60 | I101: 41 | J101: 53 | K101: 31 | L101: 8 | M101: 9 | N101: 26 | O101: 21 | P101: 51 | Q101: 16 | R101: 29 | S101: 5.17E-05 | T101: 8.35E-05 | U101: 5.95E-05 | V101: 6.80E-05 | W101: 2.48E-05 | X101: 4.88E-05 | Y101: 0.0002412889074 | Z101: 0.0001444052781 | AA101: 0.0001770100189 | AB101: 0.0003462383438 | AC101: 0.0001366656753 | AD101: 0.0001111020721 | AE101: 0.00 | AF101: 0.00 | AG101: 0.00 | AH101: 0.00 | AI101: 0.00
A102: Thermoplasmatota | B102: 32 | C102: 16 | D102: 8 | E102: 12 | F102: 23 | G102: 19 | H102: 75 | I102: 68 | J102: 37 | K102: 8 | L102: 9 | M102: 6 | N102: 19 | O102: 18 | P102: 60 | Q102: 8 | R102: 26 | S102: 6.61E-05 | T102: 4.60E-05 | U102: 1.98E-05 | V102: 2.40E-05 | W102: 4.75E-05 | X102: 5.79E-05 | Y102: 0.0003016111343 | Z102: 0.0002395014369 | AA102: 0.0001235730321 | AB102: 8.94E-05 | AC102: 0.0001537488847 | AD102: 7.41E-05 | AE102: 0.00 | AF102: 0.00 | AG102: 0.00 | AH102: 0.00 | AI102: 0.00
A103: Thermoproteota | B103: 292 | C103: 142 | D103: 251 | E103: 274 | F103: 219 | G103: 210 | H103: 528 | I103: 702 | J103: 490 | K103: 785 | L103: 402 | M103: 412 | N103: 228 | O103: 234 | P103: 573 | Q103: 533 | R103: 392 | S103: 0.0006034681106 | T103: 0.0004086186067 | U103: 0.0006222075801 | V103: 0.0005480681687 | W103: 0.0004523378524 | X103: 0.0006400524916 | Y103: 0.002123342385 | Z103: 0.002472500128 | AA103: 0.001636507722 | AB103: 0.008767648383 | AC103: 0.006867450182 | AD103: 0.005086005966 | AE103: 0.00 | AF103: 0.00 | AG103: 0.00 | AH103: 0.01 | AI103: 0.00
A104: Tubulinea | B104: 151 | C104: 38 | D104: 86 | E104: 166 | F104: 81 | G104: 239 | H104: 264 | I104: 251 | J104: 134 | K104: 314 | L104: 37 | M104: 193 | N104: 92 | O104: 162 | P104: 216 | Q104: 181 | R104: 163 | S104: 0.0003120674133 | T104: 0.0001093486412 | U104: 0.0002131866609 | V104: 0.0003320412993 | W104: 0.0001673030413 | X104: 0.0007284406928 | Y104: 0.001061671193 | Z104: 0.0008840420686 | AA104: 0.0004475347648 | AB104: 0.003507059353 | AC104: 0.0006320787481 | AD104: 0.002382522212 | AE104: 0.00 | AF104: 0.00 | AG104: 0.00 | AH104: 0.00 | AI104: 0.00
A105: Uroviricota | B105: 5485 | C105: 2816 | D105: 3370 | E105: 3442 | F105: 3171 | G105: 3465 | H105: 7811 | I105: 9220 | J105: 7724 | K105: 50901 | L105: 27121 | M105: 32832 | N105: 3890 | O105: 3359 | P105: 8252 | Q105: 36951 | R105: 13113 | S105: 0.01133569379 | T105: 0.008103309834 | U105: 0.00835394241 | V105: 0.006884856338 | W105: 0.006549604247 | X105: 0.01056086611 | Y105: 0.03141179427 | Z105: 0.03247357718 | AA105: 0.0257967054 | AB105: 0.5685121915 | AC105: 0.4633137224 | AD105: 0.4053003589 | AE105: 0.01 | AF105: 0.01 | AG105: 0.03 | AH105: 0.48 | AI105: 0.13
A106: Verrucomicrobia | B106: 586 | C106: 0 | D106: 0 | E106: 0 | F106: 0 | G106: 644 | H106: 1281 | I106: 864 | J106: 382 | K106: 648 | L106: 1352 | M106: 540 | N106: 195 | O106: 215 | P106: 842 | Q106: 847 | R106: 525 | S106: 0.001211069564 | T106: 0 | U106: 0 | V106: 0 | W106: 0 | X106: 0.001962827641 | Y106: 0.005151518174 | Z106: 0.003043077081 | AA106: 0.001275808061 | AB106: 0.007237498283 | AC106: 0.02309649912 | AD106: 0.006666124324 | AE106: 0.00 | AF106: 0.00 | AG106: 0.00 | AH106: 0.01 | AI106: 0.00
A107: Verrucomicrobiota | B107: 14347 | C107: 7329 | D107: 10345 | E107: 11771 | F107: 15178 | G107: 11121 | H107: 21603 | I107: 25299 | J107: 25566 | K107: 13226 | L107: 11070 | M107: 14634 | N107: 10674 | O107: 12690 | P107: 24156 | Q107: 12977 | R107: 15124 | S107: 0.02965053761 | T107: 0.02108989978 | U107: 0.02564437218 | V107: 0.02354492852 | W107: 0.03134969828 | X107: 0.03389535123 | Y107: 0.08687607112 | Z107: 0.08910510077 | AA107: 0.08538562534 | AB107: 0.147720914 | AC107: 0.1891111282 | AD107: 0.1806519692 | AE107: 0.03 | AF107: 0.03 | AG107: 0.09 | AH107: 0.17 | AI107: 0.08
A108: Zoopagomycota | B108: 27 | C108: 0 | D108: 0 | E108: 16 | F108: 0 | G108: 0 | H108: 20 | I108: 6 | J108: 20 | K108: 0 | L108: 0 | M108: 0 | N108: 9 | O108: 5 | P108: 15 | Q108: 0 | R108: 7 | S108: 5.58E-05 | T108: 0 | U108: 0 | V108: 3.20E-05 | W108: 0 | X108: 0 | Y108: 8.04E-05 | Z108: 2.11E-05 | AA108: 6.68E-05 | AB108: 0 | AC108: 0 | AD108: 0 | AE108: 0.00 | AF108: 0.00 | AG108: 0.00 | AH108: 0.00 | AI108: 0.00
A110: Class name | B110: Reads class level | S110: Relative abundance (%) class level
B111: D7: LDPE | C111: D8: LDPE | D111: D9: LDPE | E111: D4: W-LDPE | F111: D5: W-LDPE | G111: D6: W-LDPE | H111: D1: Wood | I111: D2: Wood | J111: D3: Wood | K111: D10: Water | L111: D11: Water | M111: D12: Water | N111: LDPE mean | O111: W-LDPE mean | P111: Wood mean | Q111: Water mean | R111: Overall mean | S111: D7: LDPE | T111: D8: LDPE | U111: D9: LDPE | V111: D4: W-LDPE | W111: D5: W-LDPE | X111: D6: W-LDPE | Y111: D1: Wood | Z111: D2: Wood | AA111: D3: Wood | AB111: D10: Water | AC111: D11: Water | AD111: D12: Water | AE111: LDPE mean | AF111: W-LDPE mean | AG111: Wood mean | AH111: Water mean | AI111: Overall mean
A112: ABY1 | B112: 0 | C112: 0 | D112: 0 | E112: 4 | F112: 0 | G112: 0 | H112: 0 | I112: 0 | J112: 1 | K112: 22 | L112: 20 | M112: 19 | N112: 0 | O112: 1 | P112: 0 | Q112: 20 | R112: 6 | S112: 0 | T112: 0 | U112: 0 | V112: 8.00E-06 | W112: 0 | X112: 0 | Y112: 0 | Z112: 0 | AA112: 3.34E-06 | AB112: 0.0002457175343 | AC112: 0.0003416641882 | AD112: 0.0002345488188 | AE112: 0.00 | AF112: 0.00 | AG112: 0.00 | AH112: 0.00 | AI112: 0.00
A113: Abditibacteria | B113: 4005 | C113: 1918 | D113: 2251 | E113: 7685 | F113: 8092 | G113: 7190 | H113: 3253 | I113: 3343 | J113: 3517 | K113: 340 | L113: 331 | M113: 438 | N113: 2725 | O113: 7656 | P113: 3371 | Q113: 370 | R113: 3530 | S113: 0.008277019804 | T113: 0.005519228786 | U113: 0.005580036904 | V113: 0.01537191196 | W113: 0.01671378037 | X113: 0.02191417817 | Y113: 0.01308188026 | Z113: 0.01177431329 | AA113: 0.01174611767 | AB113: 0.003797452803 | AC113: 0.005654542314 | AD113: 0.005406967507 | AE113: 0.01 | AF113: 0.02 | AG113: 0.01 | AH113: 0.00 | AI113: 0.01
A114: Acidimicrobiia | B114: 180552 | C114: 102388 | D114: 157075 | E114: 72163 | F114: 77155 | G114: 101690 | H114: 411226 | I114: 463324 | J114: 680673 | K114: 1591 | L114: 429 | M114: 1034 | N114: 146672 | O114: 83669 | P114: 518408 | Q114: 1018 | R114: 187442 | S114: 0.3731416928 | T114: 0.294631281 | U114: 0.3893755205 | V114: 0.1443439535 | W114: 0.1593613105 | X114: 0.3099377994 | Y114: 1.653737871 | Z114: 1.631864173 | AA114: 2.273319634 | AB114: 0.01776984532 | AC114: 0.007328696836 | AD114: 0.01276439361 | AE114: 0.35 | AF114: 0.20 | AG114: 1.85 | AH114: 0.01 | AI114: 0.61
A115: Acidithiobacillia | B115: 145 | C115: 52 | D115: 140 | E115: 74 | F115: 88 | G115: 40 | H115: 61 | I115: 53 | J115: 42 | K115: 0 | L115: 0 | M115: 0 | N115: 112 | O115: 67 | P115: 52 | Q115: 0 | R115: 58 | S115: 0.0002996673837 | T115: 0.0001496349827 | U115: 0.0003470480526 | V115: 0.0001480184105 | W115: 0.0001817613288 | X115: 0.0001219147603 | Y115: 0.0002453103892 | Z115: 0.0001866702376 | AA115: 0.0001402720904 | AB115: 0 | AC115: 0 | AD115: 0 | AE115: 0.00 | AF115: 0.00 | AG115: 0.00 | AH115: 0.00 | AI115: 0.00
A116: Acidobacteriae | B116: 1037 | C116: 641 | D116: 885 | E116: 782 | F116: 429 | G116: 529 | H116: 662 | I116: 807 | J116: 785 | K116: 113 | L116: 48 | M116: 89 | N116: 854 | O116: 580 | P116: 751 | Q116: 83 | R116: 567 | S116: 0.002143138461 | T116: 0.001844538922 | U116: 0.002193839476 | V116: 0.001564194555 | W116: 0.000886086478 | X116: 0.001612322705 | Y116: 0.002662220945 | Z116: 0.002842318523 | AA116: 0.002621752167 | AB116: 0.001262094608 | AC116: 0.0008199940516 | AD116: 0.001098676046 | AE116: 0.00 | AF116: 0.00 | AG116: 0.00 | AH116: 0.00 | AI116: 0.00
A117: Acidobacteriia | B117: 7 | C117: 3 | D117: 19 | E117: 8 | F117: 1 | G117: 4 | H117: 11 | I117: 14 | J117: 12 | K117: 37 | L117: 109 | M117: 122 | N117: 10 | O117: 4 | P117: 12 | Q117: 89 | R117: 29 | S117: 1.45E-05 | T117: 8.63E-06 | U117: 4.71E-05 | V117: 1.60E-05 | W117: 2.07E-06 | X117: 1.22E-05 | Y117: 4.42E-05 | Z117: 4.93E-05 | AA117: 4.01E-05 | AB117: 0.0004132522168 | AC117: 0.001862069826 | AD117: 0.00150605031 | AE117: 0.00 | AF117: 0.00 | AG117: 0.00 | AH117: 0.00 | AI117: 0.00
A118: Aconoidasida | B118: 692 | C118: 565 | D118: 680 | E118: 1277 | F118: 565 | G118: 743 | H118: 5260 | I118: 7334 | J118: 6565 | K118: 2008 | L118: 1091 | M118: 659 | N118: 646 | O118: 862 | P118: 6386 | Q118: 1253 | R118: 2287 | S118: 0.001430136755 | T118: 0.001625841639 | U118: 0.00168566197 | V118: 0.002554317706 | W118: 0.00116699035 | X118: 0.002264566673 | Y118: 0.02115299422 | Z118: 0.02583093439 | AA118: 0.02192586366 | AB118: 0.02242730949 | AC118: 0.01863778147 | AD118: 0.00813514061 | AE118: 0.00 | AF118: 0.00 | AG118: 0.02 | AH118: 0.02 | AI118: 0.01
A119: Actinomycetia | B119: 564433 | C119: 324542 | D119: 338536 | E119: 210957 | F119: 264295 | G119: 287695 | H119: 617073 | I119: 664684 | J119: 624756 | K119: 447499 | L119: 315975 | M119: 398049 | N119: 409170 | O119: 254316 | P119: 635504 | Q119: 387174 | R119: 421541 | S119: 1.166497658 | T119: 0.9339007031 | U119: 0.8392018539 | V119: 0.4219664842 | W119: 0.5458933 | X119: 0.8768566742 | Y119: 2.481547833 | Z119: 2.341070192 | AA119: 2.086567384 | AB119: 4.998106858 | AC119: 5.397867093 | AD119: 4.913785409 | AE119: 0.98 | AF119: 0.61 | AG119: 2.30 | AH119: 5.10 | AI119: 2.25
A120: Actinopteri | B120: 6596 | C120: 4721 | D120: 19753 | E120: 3513 | F120: 4134 | G120: 4120 | H120: 6143 | I120: 6183 | J120: 5617 | K120: 20397 | L120: 5209 | M120: 6423 | N120: 10357 | O120: 3922 | P120: 5981 | Q120: 10676 | R120: 7734 | S120: 0.01363176595 | T120: 0.01358512987 | U120: 0.04896600131 | V120: 0.007026874003 | W120: 0.008538651516 | X120: 0.01255722031 | Y120: 0.02470396264 | Z120: 0.02177702036 | AA120: 0.01875972219 | AB120: 0.2278136612 | AC120: 0.08898643781 | AD120: 0.07928984543 | AE120: 0.03 | AF120: 0.01 | AG120: 0.02 | AH120: 0.13 | AI120: 0.05
A121: Agaricomycetes | B121: 335 | C121: 520 | D121: 458 | E121: 240 | F121: 138 | G121: 243 | H121: 357 | I121: 124 | J121: 537 | K121: 0 | L121: 0 | M121: 0 | N121: 438 | O121: 207 | P121: 339 | Q121: 0 | R121: 246 | S121: 0.0006923349899 | T121: 0.001496349827 | U121: 0.001135342915 | V121: 0.0004800597098 | W121: 0.0002850348111 | X121: 0.0007406321689 | Y121: 0.001435668999 | Z121: 0.0004367379144 | AA121: 0.001793478871 | AB121: 0 | AC121: 0 | AD121: 0 | AE121: 0.00 | AF121: 0.00 | AG121: 0.00 | AH121: 0.00 | AI121: 0.00
A122: Alphaproteobacteria | B122: 1339571 | C122: 821746 | D122: 903021 | E122: 720435 | F122: 755780 | G122: 568619 | H122: 824621 | I122: 967698 | J122: 1095173 | K122: 133680 | L122: 98300 | M122: 132437 | N122: 1021446 | O122: 681611 | P122: 962497 | Q122: 121472 | R122: 696757 | S122: 2.768453357 | T122: 2.364652856 | U122: 2.238511997 | V122: 1.441049238 | W122: 1.561040649 | X122: 1.733076227 | Y122: 3.316198336 | Z122: 3.408309728 | AA122: 3.657671574 | AB122: 1.49306909 | AC122: 1.679279485 | AD122: 1.63489168 | AE122: 2.46 | AF122: 1.58 | AG122: 3.46 | AH122: 1.60 | AI122: 2.27
A123: Amphibia | B123: 347 | C123: 24 | D123: 6 | E123: 33 | F123: 3 | G123: 27 | H123: 143 | I123: 338 | J123: 407 | K123: 669 | L123: 161 | M123: 251 | N123: 126 | O123: 21 | P123: 296 | Q123: 360 | R123: 201 | S123: 0.0007171350492 | T123: 6.91E-05 | U123: 1.49E-05 | V123: 6.60E-05 | W123: 6.20E-06 | X123: 8.23E-05 | Y123: 0.0005750718961 | Z123: 0.001190463025 | AA123: 0.001359303353 | AB123: 0.007472046838 | AC123: 0.002750396715 | AD123: 0.003098513343 | AE123: 0.00 | AF123: 0.00 | AG123: 0.00 | AH123: 0.00 | AI123: 0.00
A124: Anaerolineae | B124: 852 | C124: 619 | D124: 770 | E124: 492 | F124: 401 | G124: 259 | H124: 673 | I124: 668 | J124: 687 | K124: 2127 | L124: 1304 | M124: 1702 | N124: 747 | O124: 384 | P124: 676 | Q124: 1711 | R124: 880 | S124: 0.001760804213 | T124: 0.001781231814 | U124: 0.00190876429 | V124: 0.0009841224051 | W124: 0.000828253328 | X124: 0.000789398073 | Y124: 0.002706457245 | Z124: 0.00235274941 | AA124: 0.002294450622 | AB124: 0.02375641797 | AC124: 0.02227650507 | AD124: 0.0210106363 | AE124: 0.00 | AF124: 0.00 | AG124: 0.00 | AH124: 0.02 | AI124: 0.01
A125: Anthozoa | B125: 32 | C125: 80 | D125: 92 | E125: 594 | F125: 605 | G125: 700 | H125: 234 | I125: 202 | J125: 650 | K125: 75 | L125: 102 | M125: 43 | N125: 68 | O125: 633 | P125: 362 | Q125: 73 | R125: 284 | S125: 6.61E-05 | T125: 0.0002302076657 | U125: 0.0002280601489 | V125: 0.001188147782 | W125: 0.001249609136 | X125: 0.002133508305 | Y125: 0.000941026739 | Z125: 0.0007114601508 | AA125: 0.00217087759 | AB125: 0.0008376734124 | AC125: 0.00174248736 | AD125: 0.000530821011 | AE125: 0.00 | AF125: 0.00 | AG125: 0.00 | AH125: 0.00 | AI125: 0.00
A126: Arachnida | B126: 203 | C126: 197 | D126: 174 | E126: 190 | F126: 61 | G126: 169 | H126: 500 | I126: 841 | J126: 451 | K126: 2454 | L126: 1617 | M126: 1070 | N126: 191 | O126: 140 | P126: 597 | Q126: 1714 | R126: 661 | S126: 0.0004195343371 | T126: 0.0005668863769 | U126: 0.0004313311511 | V126: 0.0003800472703 | W126: 0.0001259936484 | X126: 0.0005150898623 | Y126: 0.002010740895 | Z126: 0.002962069242 | AA126: 0.001506255066 | AB126: 0.02740867405 | AC126: 0.02762354961 | AD126: 0.0132088019 | AE126: 0.00 | AF126: 0.00 | AG126: 0.00 | AH126: 0.02 | AI126: 0.01
A127: Armatimonadia | B127: 129 | C127: 61 | D127: 67 | E127: 53 | F127: 40 | G127: 43 | H127: 101 | I127: 143 | J127: 147 | K127: 108 | L127: 103 | M127: 69 | N127: 86 | O127: 45 | P127: 130 | Q127: 93 | R127: 89 | S127: 0.0002666006379 | T127: 0.0001755333451 | U127: 0.0001660872823 | V127: 0.0001060131859 | W127: 8.26E-05 | X127: 0.0001310583673 | Y127: 0.0004061696608 | Z127: 0.0005036574335 | AA127: 0.0004909523166 | AB127: 0.001206249714 | AC127: 0.001759570569 | AD127: 0.0008517825525 | AE127: 0.00 | AF127: 0.00 | AG127: 0.00 | AH127: 0.00 | AI127: 0.00
A128: Asteroidea | B128: 7 | C128: 0 | D128: 0 | E128: 0 | F128: 0 | G128: 0 | H128: 0 | I128: 1 | J128: 0 | K128: 62 | L128: 6 | M128: 25 | N128: 2 | O128: 0 | P128: 0 | Q128: 31 | R128: 8 | S128: 1.45E-05 | T128: 0 | U128: 0 | V128: 0 | W128: 0 | X128: 0 | Y128: 0 | Z128: 3.52E-06 | AA128: 0 | AB128: 0.0006924766875 | AC128: 0.0001024992565 | AD128: 0.0003086168668 | AE128: 0.00 | AF128: 0.00 | AG128: 0.00 | AH128: 0.00 | AI128: 0.00
A129: Atribacteria | B129: 71 | C129: 25 | D129: 47 | E129: 18 | F129: 9 | G129: 11 | H129: 35 | I129: 44 | J129: 27 | K129: 20 | L129: 8 | M129: 2 | N129: 48 | O129: 13 | P129: 35 | Q129: 10 | R129: 26 | S129: 0.0001467336844 | T129: 7.19E-05 | U129: 0.0001165089891 | V129: 3.60E-05 | W129: 1.86E-05 | X129: 3.35E-05 | Y129: 0.0001407518627 | Z129: 0.000154971518 | AA129: 9.02E-05 | AB129: 0.0002233795766 | AC129: 0.0001366656753 | AD129: 2.47E-05 | AE129: 0.00 | AF129: 0.00 | AG129: 0.00 | AH129: 0.00 | AI129: 0.00
A130: Aves | B130: 423 | C130: 409 | D130: 172 | E130: 533 | F130: 581 | G130: 478 | H130: 1400 | I130: 1458 | J130: 1618 | K130: 2757 | L130: 1266 | M130: 1097 | N130: 335 | O130: 531 | P130: 1492 | Q130: 1707 | R130: 1016 | S130: 0.0008742020917 | T130: 0.001176936691 | U130: 0.0004263733218 | V130: 0.001066132606 | W130: 0.001200037864 | X130: 0.001456881386 | Y130: 0.005630074507 | Z130: 0.005135192574 | AA130: 0.005403815294 | AB130: 0.03079287464 | AC130: 0.02162734311 | AD130: 0.01354210812 | AE130: 0.00 | AF130: 0.00 | AG130: 0.01 | AH130: 0.02 | AI130: 0.01
A131: Babeliae | B131: 2 | C131: 2 | D131: 3 | E131: 4 | F131: 0 | G131: 0 | H131: 13 | I131: 15 | J131: 9 | K131: 186 | L131: 105 | M131: 113 | N131: 2 | O131: 1 | P131: 12 | Q131: 135 | R131: 38 | S131: 4.13E-06 | T131: 5.76E-06 | U131: 7.44E-06 | V131: 8.00E-06 | W131: 0 | X131: 0 | Y131: 5.23E-05 | Z131: 5.28E-05 | AA131: 3.01E-05 | AB131: 0.002077430063 | AC131: 0.001793736988 | AD131: 0.001394948238 | AE131: 0.00 | AF131: 0.00 | AG131: 0.00 | AH131: 0.00 | AI131: 0.00
A132: Bacillariophyceae | B132: 6193 | C132: 3116 | D132: 4828 | E132: 3251 | F132: 2329 | G132: 2168 | H132: 6379 | I132: 6290 | J132: 5023 | K132: 542 | L132: 126 | M132: 128 | N132: 4712 | O132: 2583 | P132: 5897 | Q132: 265 | R132: 3364 | S132: 0.01279889729 | T132: 0.00896658858 | U132: 0.01196819999 | V132: 0.006502808819 | W132: 0.004810478805 | X132: 0.006607780009 | Y132: 0.02565303234 | Z132: 0.02215388291 | AA132: 0.01677587406 | AB132: 0.006053586527 | AC132: 0.002152484386 | AD132: 0.001580118358 | AE132: 0.01 | AF132: 0.01 | AG132: 0.02 | AH132: 0.00 | AI132: 0.01
A133: Bacilli | B133: 86202 | C133: 76427 | D133: 73767 | E133: 67550 | F133: 61093 | G133: 59191 | H133: 145730 | I133: 168621 | J133: 194237 | K133: 360708 | L133: 213547 | M133: 289107 | N133: 78799 | O133: 62611 | P133: 169529 | Q133: 287787 | R133: 149682 | S133: 0.1781512263 | T133: 0.2199260159 | U133: 0.1828620979 | V133: 0.1351168058 | W133: 0.1261857371 | X133: 0.1804064144 | Y133: 0.5860505413 | Z133: 0.593896644 | AA133: 0.6487150008 | AB133: 4.028740016 | AC133: 3.64806812 | AD133: 3.568931861 | AE133: 0.19 | AF133: 0.15 | AG133: 0.61 | AH133: 3.75 | AI133: 1.17
A134: Bacteriovoracia | B134: 140 | C134: 105 | D134: 131 | E134: 153 | F134: 192 | G134: 124 | H134: 280 | I134: 287 | J134: 230 | K134: 205 | L134: 86 | M134: 134 | N134: 125 | O134: 156 | P134: 266 | Q134: 142 | R134: 172 | S134: 0.0002893340256 | T134: 0.0003021475613 | U134: 0.0003247378207 | V134: 0.000306038065 | W134: 0.000396570172 | X134: 0.000377935757 | Y134: 0.001126014901 | Z134: 0.001010836947 | AA134: 0.0007681566858 | AB134: 0.00228964066 | AC134: 0.001469156009 | AD134: 0.001654186406 | AE134: 0.00 | AF134: 0.00 | AG134: 0.00 | AH134: 0.00 | AI134: 0.00
A135: Bacteroidia | B135: 2917964 | C135: 2061544 | D135: 2967132 | E135: 2218887 | F135: 2257862 | G135: 1352778 | H135: 1852019 | I135: 2214531 | J135: 2067786 | K135: 1044956 | L135: 427274 | M135: 507870 | N135: 2648880 | O135: 1943176 | P135: 2044779 | Q135: 660033 | R135: 1824217 | S135: 6.030473362 | T135: 5.932290401 | U135: 7.355267018 | V135: 4.438326039 | W135: 4.663545425 | X135: 4.123090141 | Y135: 7.447860684 | Z135: 7.799755244 | AA135: 6.906015829 | AB135: 11.67109144 | AC135: 7.299211217 | AD135: 6.269489927 | AE135: 6.44 | AF135: 4.41 | AG135: 7.38 | AH135: 8.41 | AI135: 6.66
A136: Bdellovibrionia | B136: 314 | C136: 182 | D136: 233 | E136: 247 | F136: 336 | G136: 207 | H136: 204 | I136: 295 | J136: 243 | K136: 222 | L136: 126 | M136: 166 | N136: 243 | O136: 263 | P136: 247 | Q136: 171 | R136: 231 | S136: 0.000648934886 | T136: 0.0005237224395 | U136: 0.0005775871162 | V136: 0.0004940614514 | W136: 0.000693997801 | X136: 0.0006309088846 | Y136: 0.0008203822853 | Z136: 0.001039013587 | AA136: 0.0008115742376 | AB136: 0.002479513301 | AC136: 0.002152484386 | AD136: 0.002049215996 | AE136: 0.00 | AF136: 0.00 | AG136: 0.00 | AH136: 0.00 | AI136: 0.00
A137: Betaproteobacteria | B137: 51866 | C137: 36874 | D137: 59271 | E137: 76306 | F137: 105338 | G137: 79722 | H137: 41679 | I137: 45326 | J137: 30752 | K137: 142418 | L137: 126942 | M137: 170342 | N137: 49337 | O137: 87122 | P137: 39252 | Q137: 146567 | R137: 80570 | S137: 0.1071899898 | T137: 0.1061084683 | U137: 0.1469277509 | V137: 0.1526309842 | W137: 0.2175724415 | X137: 0.242982213 | Y137: 0.1676113395 | Z137: 0.159641796 | AA137: 0.1027058887 | AB137: 1.590663627 | AC137: 2.168576769 | AD137: 2.102816573 | AE137: 0.12 | AF137: 0.20 | AG137: 0.14 | AH137: 1.95 | AI137: 0.61
A138: Bigyra | B138: 193 | C138: 124 | D138: 40 | E138: 273 | F138: 44 | G138: 120 | H138: 1764 | I138: 1462 | J138: 877 | K138: 974 | L138: 1039 | M138: 736 | N138: 119 | O138: 146 | P138: 1368 | Q138: 916 | R138: 637 | S138: 0.000398867621 | T138: 0.0003568218819 | U138: 9.92E-05 | V138: 0.0005460679199 | W138: 9.09E-05 | X138: 0.0003657442809 | Y138: 0.007093893879 | Z138: 0.005149280893 | AA138: 0.002929014841 | AB138: 0.01087858538 | AC138: 0.01774945458 | AD138: 0.00908568056 | AE138: 0.00 | AF138: 0.00 | AG138: 0.01 | AH138: 0.01 | AI138: 0.00
A139: Bivalvia | B139: 0 | C139: 35 | D139: 0 | E139: 0 | F139: 0 | G139: 32 | H139: 141 | I139: 32 | J139: 232 | K139: 0 | L139: 0 | M139: 1 | N139: 12 | O139: 11 | P139: 135 | Q139: 0 | R139: 39 | S139: 0 | T139: 0.0001007158538 | U139: 0 | V139: 0 | W139: 0 | X139: 9.75E-05 | Y139: 0.0005670289325 | Z139: 0.0001127065585 | AA139: 0.0007748363091 | AB139: 0 | AC139: 0 | AD139: 1.23E-05 | AE139: 0.00 | AF139: 0.00 | AG139: 0.00 | AH139: 0.00 | AI139: 0.00
A140: Blastocatellia | B140: 0 | C140: 0 | D140: 0 | E140: 0 | F140: 1 | G140: 0 | H140: 0 | I140: 10 | J140: 0 | K140: 38 | L140: 12 | M140: 0 | N140: 0 | O140: 0 | P140: 3 | Q140: 17 | R140: 5 | S140: 0 | T140: 0 | U140: 0 | V140: 0 | W140: 2.07E-06 | X140: 0 | Y140: 0 | Z140: 3.52E-05 | AA140: 0 | AB140: 0.0004244211956 | AC140: 0.0002049985129 | AD140: 0 | AE140: 0.00 | AF140: 0.00 | AG140: 0.00 | AH140: 0.00 | AI140: 0.00
A141: Bolidophyceae | B141: 0 | C141: 128 | D141: 0 | E141: 0 | F141: 0 | G141: 28 | H141: 191 | I141: 171 | J141: 294 | K141: 243 | L141: 49 | M141: 25 | N141: 43 | O141: 9 | P141: 219 | Q141: 106 | R141: 94 | S141: 0 | T141: 0.0003683322652 | U141: 0 | V141: 0 | W141: 0 | X141: 8.53E-05 | Y141: 0.000768103022 | Z141: 0.0006022756722 | AA141: 0.0009819046331 | AB141: 0.002714061856 | AC141: 0.000837077261 | AD141: 0.0003086168668 | AE141: 0.00 | AF141: 0.00 | AG141: 0.00 | AH141: 0.00 | AI141: 0.00
A142: Brachyspirae | B142: 46 | C142: 7 | D142: 6 | E142: 15 | F142: 8 | G142: 2 | H142: 17 | I142: 26 | J142: 32 | K142: 20 | L142: 13 | M142: 9 | N142: 20 | O142: 8 | P142: 25 | Q142: 14 | R142: 17 | S142: 9.51E-05 | T142: 2.01E-05 | U142: 1.49E-05 | V142: 3.00E-05 | W142: 1.65E-05 | X142: 6.10E-06 | Y142: 6.84E-05 | Z142: 9.16E-05 | AA142: 0.0001068739737 | AB142: 0.0002233795766 | AC142: 0.0002220817223 | AD142: 0.0001111020721 | AE142: 0.00 | AF142: 0.00 | AG142: 0.00 | AH142: 0.00 | AI142: 0.00
A143: Bradymonadia | B143: 4 | C143: 1 | D143: 2 | E143: 5 | F143: 2 | G143: 1 | H143: 20 | I143: 0 | J143: 2 | K143: 0 | L143: 0 | M143: 3 | N143: 2 | O143: 3 | P143: 7 | Q143: 1 | R143: 3 | S143: 8.27E-06 | T143: 2.88E-06 | U143: 4.96E-06 | V143: 1.00E-05 | W143: 4.13E-06 | X143: 3.05E-06 | Y143: 8.04E-05 | Z143: 0 | AA143: 6.68E-06 | AB143: 0 | AC143: 0 | AD143: 3.70E-05 | AE143: 0.00 | AF143: 0.00 | AG143: 0.00 | AH143: 0.00 | AI143: 0.00
A144: Branchiopoda | B144: 96 | C144: 53 | D144: 55 | E144: 46 | F144: 25 | G144: 17 | H144: 37 | I144: 70 | J144: 54 | K144: 11 | L144: 7 | M144: 0 | N144: 68 | O144: 29 | P144: 54 | Q144: 6 | R144: 39 | S144: 0.0001984004747 | T144: 0.0001525125785 | U144: 0.0001363403064 | V144: 9.20E-05 | W144: 5.16E-05 | X144: 5.18E-05 | Y144: 0.0001487948263 | Z144: 0.0002465455968 | AA144: 0.0001803498306 | AB144: 0.0001228587671 | AC144: 0.0001195824659 | AD144: 0 | AE144: 0.00 | AF144: 0.00 | AG144: 0.00 | AH144: 0.00 | AI144: 0.00
A145: Brocadiae | B145: 34 | C145: 42 | D145: 4 | E145: 15 | F145: 17 | G145: 2 | H145: 49 | I145: 22 | J145: 7 | K145: 187 | L145: 37 | M145: 37 | N145: 27 | O145: 11 | P145: 26 | Q145: 87 | R145: 38 | S145: 7.03E-05 | T145: 0.0001208590245 | U145: 9.92E-06 | V145: 3.00E-05 | W145: 3.51E-05 | X145: 6.10E-06 | Y145: 0.0001970526077 | Z145: 7.75E-05 | AA145: 2.34E-05 | AB145: 0.002088599041 | AC145: 0.0006320787481 | AD145: 0.0004567529629 | AE145: 0.00 | AF145: 0.00 | AG145: 0.00 | AH145: 0.00 | AI145: 0.00
A146: Campylobacteria | B146: 242870 | C146: 157741 | D146: 217768 | E146: 173588 | F146: 187688 | G146: 124835 | H146: 127310 | I146: 152029 | J146: 132797 | K146: 119614 | L146: 45479 | M146: 60710 | N146: 206126 | O146: 162037 | P146: 137379 | Q146: 75268 | R146: 145202 | S146: 0.5019325343 | T146: 0.4539148425 | U146: 0.5398282881 | V146: 0.3472191871 | W146: 0.3876638669 | X146: 0.3804807276 | Y146: 0.5119748468 | Z146: 0.5354582934 | AA146: 0.4435169713 | AB146: 1.335966234 | AC146: 0.7769272807 | AD146: 0.7494451995 | AE146: 0.50 | AF146: 0.37 | AG146: 0.50 | AH146: 0.95 | AI146: 0.58
A147: Candidatus Nanosyncoccalia | B147: 0 | C147: 0 | D147: 0 | E147: 0 | F147: 0 | G147: 0 | H147: 0 | I147: 13 | J147: 0 | K147: 11 | L147: 0 | M147: 23 | N147: 0 | O147: 0 | P147: 4 | Q147: 11 | R147: 4 | S147: 0 | T147: 0 | U147: 0 | V147: 0 | W147: 0 | X147: 0 | Y147: 0 | Z147: 4.58E-05 | AA147: 0 | AB147: 0.0001228587671 | AC147: 0 | AD147: 0.0002839275175 | AE147: 0.00 | AF147: 0.00 | AG147: 0.00 | AH147: 0.00 | AI147: 0.00
A148: Candidatus Saccharimonia | B148: 2 | C148: 0 | D148: 0 | E148: 0 | F148: 0 | G148: 0 | H148: 0 | I148: 0 | J148: 0 | K148: 11 | L148: 2 | M148: 1 | N148: 1 | O148: 0 | P148: 0 | Q148: 5 | R148: 1 | S148: 4.13E-06 | T148: 0 | U148: 0 | V148: 0 | W148: 0 | X148: 0 | Y148: 0 | Z148: 0 | AA148: 0 | AB148: 0.0001228587671 | AC148: 3.42E-05 | AD148: 1.23E-05 | AE148: 0.00 | AF148: 0.00 | AG148: 0.00 | AH148: 0.00 | AI148: 0.00
A149: Caudoviricetes | B149: 5485 | C149: 2816 | D149: 3370 | E149: 3442 | F149: 3171 | G149: 3465 | H149: 7811 | I149: 9220 | J149: 7724 | K149: 50901 | L149: 27121 | M149: 32832 | N149: 3890 | O149: 3359 | P149: 8252 | Q149: 36951 | R149: 13113 | S149: 0.01133569379 | T149: 0.008103309834 | U149: 0.00835394241 | V149: 0.006884856338 | W149: 0.006549604247 | X149: 0.01056086611 | Y149: 0.03141179427 | Z149: 0.03247357718 | AA149: 0.0257967054 | AB149: 0.5685121915 | AC149: 0.4633137224 | AD149: 0.4053003589 | AE149: 0.01 | AF149: 0.01 | AG149: 0.03 | AH149: 0.48 | AI149: 0.13
A150: Centroplasthelida | B150: 0 | C150: 0 | D150: 0 | E150: 0 | F150: 11 | G150: 0 | H150: 0 | I150: 17 | J150: 0 | K150: 144 | L150: 40 | M150: 0 | N150: 0 | O150: 4 | P150: 6 | Q150: 61 | R150: 18 | S150: 0 | T150: 0 | U150: 0 | V150: 0 | W150: 2.27E-05 | X150: 0 | Y150: 0 | Z150: 5.99E-05 | AA150: 0 | AB150: 0.001608332952 | AC150: 0.0006833283764 | AD150: 0 | AE150: 0.00 | AF150: 0.00 | AG150: 0.00 | AH150: 0.00 | AI150: 0.00
A151: Cephalopoda | B151: 0 | C151: 6 | D151: 0 | E151: 0 | F151: 13 | G151: 6 | H151: 3 | I151: 4 | J151: 3 | K151: 191 | L151: 40 | M151: 62 | N151: 2 | O151: 6 | P151: 3 | Q151: 98 | R151: 27 | S151: 0 | T151: 1.73E-05 | U151: 0 | V151: 0 | W151: 2.69E-05 | X151: 1.83E-05 | Y151: 1.21E-05 | Z151: 1.41E-05 | AA151: 1.00E-05 | AB151: 0.002133274957 | AC151: 0.0006833283764 | AD151: 0.0007653698298 | AE151: 0.00 | AF151: 0.00 | AG151: 0.00 | AH151: 0.00 | AI151: 0.00
A152: Chlamydiia | B152: 2544 | C152: 231 | D152: 377 | E152: 205 | F152: 305 | G152: 116 | H152: 756 | I152: 786 | J152: 368 | K152: 3957 | L152: 2008 | M152: 2045 | N152: 1051 | O152: 209 | P152: 637 | Q152: 2670 | R152: 1142 | S152: 0.00525761258 | T152: 0.0006647246348 | U152: 0.0009345508275 | V152: 0.0004100510021 | W152: 0.000629968242 | X152: 0.0003535528049 | Y152: 0.003040240234 | Z152: 0.002768354844 | AA152: 0.001229050697 | AB152: 0.04419564924 | AC152: 0.03430308449 | AD152: 0.02524485971 | AE152: 0.00 | AF152: 0.00 | AG152: 0.00 | AH152: 0.03 | AI152: 0.01
A153: Chlorobia | B153: 1933 | C153: 1011 | D153: 953 | E153: 450 | F153: 473 | G153: 570 | H153: 3356 | I153: 3835 | J153: 4481 | K153: 583 | L153: 170 | M153: 241 | N153: 1299 | O153: 498 | P153: 3891 | Q153: 331 | R153: 1505 | S153: 0.003994876225 | T153: 0.002909249376 | U153: 0.002362405673 | V153: 0.0009001119559 | W153: 0.0009769671424 | X153: 0.001737285334 | Y153: 0.01349609289 | Z153: 0.01350717663 | AA153: 0.01496569613 | AB153: 0.006511514659 | AC153: 0.0029041456 | AD153: 0.002975066596 | AE153: 0.00 | AF153: 0.00 | AG153: 0.01 | AH153: 0.00 | AI153: 0.01
A154: Chloroflexia | B154: 202 | C154: 137 | D154: 104 | E154: 171 | F154: 112 | G154: 108 | H154: 1662 | I154: 2478 | J154: 421 | K154: 4 | L154: 7 | M154: 5 | N154: 148 | O154: 130 | P154: 1520 | Q154: 5 | R154: 451 | S154: 0.0004174676655 | T154: 0.0003942306276 | U154: 0.0002578071248 | V154: 0.0003420425433 | W154: 0.0002313326003 | X154: 0.0003291698528 | Y154: 0.006683702736 | Z154: 0.008727714127 | AA154: 0.001406060716 | AB154: 4.47E-05 | AC154: 0.0001195824659 | AD154: 6.17E-05 | AE154: 0.00 | AF154: 0.00 | AG154: 0.01 | AH154: 0.00 | AI154: 0.00
A155: Chlorophyceae | B155: 312 | C155: 188 | D155: 271 | E155: 4604 | F155: 2911 | G155: 68 | H155: 2003 | I155: 163 | J155: 162 | K155: 302 | L155: 164 | M155: 148 | N155: 257 | O155: 2528 | P155: 776 | Q155: 205 | R155: 941 | S155: 0.0006448015428 | T155: 0.0005409880145 | U155: 0.0006717858733 | V155: 0.009209145434 | W155: 0.006012582139 | X155: 0.0002072550925 | Y155: 0.008055028027 | Z155: 0.0005740990326 | AA155: 0.0005410494917 | AB155: 0.003373031607 | AC155: 0.002801646343 | AD155: 0.001827011852 | AE155: 0.00 | AF155: 0.01 | AG155: 0.00 | AH155: 0.00 | AI155: 0.00
A156: Choanoflagellata | B156: 86 | C156: 0 | D156: 15 | E156: 0 | F156: 0 | G156: 0 | H156: 19 | I156: 0 | J156: 141 | K156: 0 | L156: 282 | M156: 82 | N156: 34 | O156: 0 | P156: 53 | Q156: 121 | R156: 52 | S156: 0.0001777337586 | T156: 0 | U156: 3.72E-05 | V156: 0 | W156: 0 | X156: 0 | Y156: 7.64E-05 | Z156: 0 | AA156: 0.0004709134465 | AB156: 0 | AC156: 0.004817465053 | AD156: 0.001012263323 | AE156: 0.00 | AF156: 0.00 | AG156: 0.00 | AH156: 0.00 | AI156: 0.00
A157: Chondrichthyes | B157: 5 | C157: 0 | D157: 29 | E157: 0 | F157: 1 | G157: 0 | H157: 14 | I157: 0 | J157: 1 | K157: 67 | L157: 14 | M157: 33 | N157: 11 | O157: 0 | P157: 5 | Q157: 38 | R157: 14 | S157: 1.03E-05 | T157: 0 | U157: 7.19E-05 | V157: 0 | W157: 2.07E-06 | X157: 0 | Y157: 5.63E-05 | Z157: 0 | AA157: 3.34E-06 | AB157: 0.0007483215817 | AC157: 0.0002391649317 | AD157: 0.0004073742642 | AE157: 0.00 | AF157: 0.00 | AG157: 0.00 | AH157: 0.00 | AI157: 0.00
A158: Chromadorea | B158: 117 | C158: 16 | D158: 70 | E158: 26 | F158: 31 | G158: 53 | H158: 306 | I158: 133 | J158: 104 | K158: 92 | L158: 30 | M158: 31 | N158: 68 | O158: 37 | P158: 181 | Q158: 51 | R158: 84 | S158: 0.0002418005785 | T158: 4.60E-05 | U158: 0.0001735240263 | V158: 5.20E-05 | W158: 6.40E-05 | X158: 0.0001615370574 | Y158: 0.001230573428 | Z158: 0.0004684366339 | AA158: 0.0003473404144 | AB158: 0.001027546052 | AC158: 0.0005124962823 | AD158: 0.0003826849149 | AE158: 0.00 | AF158: 0.00 | AG158: 0.00 | AH158: 0.00 | AI158: 0.00
A159: Chrysophyceae | B159: 854 | C159: 436 | D159: 301 | E159: 818 | F159: 460 | G159: 780 | H159: 1685 | I159: 2516 | J159: 2109 | K159: 5668 | L159: 2504 | M159: 2952 | N159: 530 | O159: 686 | P159: 2103 | Q159: 3708 | R159: 1757 | S159: 0.001764937556 | T159: 0.001254631778 | U159: 0.0007461533132 | V159: 0.001636203511 | W159: 0.0009501160371 | X159: 0.002377337826 | Y159: 0.006776196817 | Z159: 0.008861553165 | AA159: 0.007043662828 | AB159: 0.06330577202 | AC159: 0.04277635636 | AD159: 0.03644147964 | AE159: 0.00 | AF159: 0.00 | AG159: 0.01 | AH159: 0.05 | AI159: 0.01
A160: Chytridiomycetes | B160: 8 | C160: 114 | D160: 2 | E160: 0 | F160: 11 | G160: 26 | H160: 65 | I160: 66 | J160: 284 | K160: 147 | L160: 65 | M160: 345 | N160: 41 | O160: 12 | P160: 138 | Q160: 186 | R160: 94 | S160: 1.65E-05 | T160: 0.0003280459237 | U160: 4.96E-06 | V160: 0 | W160: 2.27E-05 | X160: 7.92E-05 | Y160: 0.0002613963164 | Z160: 0.000232457277 | AA160: 0.0009485065164 | AB160: 0.001641839888 | AC160: 0.001110408612 | AD160: 0.004258912763 | AE160: 0.00 | AF160: 0.00 | AG160: 0.00 | AH160: 0.00 | AI160: 0.00
A161: Cladistia | B161: 2 | C161: 0 | D161: 7 | E161: 0 | F161: 0 | G161: 0 | H161: 5 | I161: 5 | J161: 0 | K161: 23 | L161: 12 | M161: 0 | N161: 3 | O161: 0 | P161: 3 | Q161: 12 | R161: 5 | S161: 4.13E-06 | T161: 0 | U161: 1.74E-05 | V161: 0 | W161: 0 | X161: 0 | Y161: 2.01E-05 | Z161: 1.76E-05 | AA161: 0 | AB161: 0.0002568865131 | AC161: 0.0002049985129 | AD161: 0 | AE161: 0.00 | AF161: 0.00 | AG161: 0.00 | AH161: 0.00 | AI161: 0.00
A162: Clitellata | B162: 46 | C162: 268 | D162: 1149 | E162: 440 | F162: 173 | G162: 508 | H162: 10840 | I162: 18490 | J162: 1820 | K162: 0 | L162: 0 | M162: 19 | N162: 488 | O162: 374 | P162: 10383 | Q162: 6 | R162: 2813 | S162: 9.51E-05 | T162: 0.0007711956802 | U162: 0.002848272946 | V162: 0.000880109468 | W162: 0.0003573262487 | X162: 0.001548317456 | Y162: 0.04359286261 | Z162: 0.06512325836 | AA162: 0.006078457253 | AB162: 0 | AC162: 0 | AD162: 0.0002345488188 | AE162: 0.00 | AF162: 0.00 | AG162: 0.04 | AH162: 0.00 | AI162: 0.01
A163: Cloacimonadia | B163: 104 | C163: 38 | D163: 68 | E163: 63 | F163: 50 | G163: 72 | H163: 150 | I163: 159 | J163: 85 | K163: 33 | L163: 13 | M163: 18 | N163: 70 | O163: 62 | P163: 131 | Q163: 21 | R163: 71 | S163: 0.0002149338476 | T163: 0.0001093486412 | U163: 0.000168566197 | V163: 0.0001260156738 | W163: 0.0001032734823 | X163: 0.0002194465686 | Y163: 0.0006032222686 | Z163: 0.0005600107128 | AA163: 0.0002838839926 | AB163: 0.0003685763014 | AC163: 0.0002220817223 | AD163: 0.0002222041441 | AE163: 0.00 | AF163: 0.00 | AG163: 0.00 | AH163: 0.00 | AI163: 0.00
A164: Clostridia | B164: 75046 | C164: 55863 | D164: 100923 | E164: 45488 | F164: 42331 | G164: 30920 | H164: 101261 | I164: 107289 | J164: 143361 | K164: 10347 | L164: 5655 | M164: 8256 | N164: 77277 | O164: 39580 | P164: 117304 | Q164: 8086 | R164: 60562 | S164: 0.1550954378 | T164: 0.1607511354 | U164: 0.2501795044 | V164: 0.090987317 | W164: 0.08743339557 | X164: 0.09424010972 | Y164: 0.4072192676 | Z164: 0.3778804362 | AA164: 0.4787987419 | AB164: 0.115565424 | AC164: 0.09660554921 | AD164: 0.1019176341 | AE164: 0.19 | AF164: 0.09 | AG164: 0.42 | AH164: 0.10 | AI164: 0.20
A165: Conoidasida | B165: 0 | C165: 0 | D165: 0 | E165: 0 | F165: 0 | G165: 0 | H165: 0 | I165: 0 | J165: 121 | K165: 718 | L165: 0 | M165: 283 | N165: 0 | O165: 0 | P165: 40 | Q165: 334 | R165: 94 | S165: 0 | T165: 0 | U165: 0 | V165: 0 | W165: 0 | X165: 0 | Y165: 0 | Z165: 0 | AA165: 0.000404117213 | AB165: 0.008019326801 | AC165: 0 | AD165: 0.003493542933 | AE165: 0.00 | AF165: 0.00 | AG165: 0.00 | AH165: 0.00 | AI165: 0.00
A166: Coprothermobacteria | B166: 20 | C166: 2 | D166: 1 | E166: 1 | F166: 0 | G166: 0 | H166: 0 | I166: 6 | J166: 0 | K166: 5 | L166: 1 | M166: 2 | N166: 8 | O166: 0 | P166: 2 | Q166: 3 | R166: 3 | S166: 4.13E-05 | T166: 5.76E-06 | U166: 2.48E-06 | V166: 2.00E-06 | W166: 0 | X166: 0 | Y166: 0 | Z166: 2.11E-05 | AA166: 0 | AB166: 5.58E-05 | AC166: 1.71E-05 | AD166: 2.47E-05 | AE166: 0.00 | AF166: 0.00 | AG166: 0.00 | AH166: 0.00 | AI166: 0.00
A167: Coriobacteriia | B167: 89102 | C167: 54382 | D167: 79933 | E167: 371964 | F167: 315649 | G167: 292814 | H167: 67112 | I167: 80852 | J167: 73670 | K167: 20138 | L167: 13710 | M167: 19150 | N167: 74472 | O167: 326809 | P167: 73878 | Q167: 17666 | R167: 123206 | S167: 0.1841445739 | T167: 0.156489416 | U167: 0.1981470857 | V167: 0.7440205413 | W167: 0.6519634282 | X167: 0.8924587156 | Y167: 0.2698896859 | Z167: 0.2847672085 | AA167: 0.2460439263 | AB167: 0.2249208957 | AC167: 0.234210801 | AD167: 0.23640052 | AE167: 0.18 | AF167: 0.76 | AG167: 0.27 | AH167: 0.23 | AI167: 0.36
A168: Coscinodiscophyceae | B168: 11120 | C168: 4797 | D168: 6778 | E168: 2699 | F168: 6272 | G168: 4309 | H168: 15451 | I168: 17798 | J168: 17661 | K168: 109598 | L168: 37384 | M168: 46980 | N168: 7565 | O168: 4427 | P168: 16970 | Q168: 64654 | R168: 23404 | S168: 0.02298138832 | T168: 0.01380382716 | U168: 0.01680208358 | V168: 0.005398671487 | W168: 0.01295462562 | X168: 0.01313326755 | Y168: 0.06213591515 | Z168: 0.06268597903 | AA168: 0.05898441403 | AB168: 1.224097742 | AC168: 0.6386387005 | AD168: 0.5799528162 | AE168: 0.02 | AF168: 0.01 | AG168: 0.06 | AH168: 0.81 | AI168: 0.23
A169: Cryptophyceae | B169: 264 | C169: 411 | D169: 519 | E169: 116 | F169: 184 | G169: 262 | H169: 267 | I169: 298 | J169: 118 | K169: 7186 | L169: 2103 | M169: 3712 | N169: 398 | O169: 187 | P169: 228 | Q169: 4334 | R169: 1287 | S169: 0.0005456013054 | T169: 0.001182691883 | U169: 0.001286556709 | V169: 0.0002320288597 | W169: 0.0003800464148 | X169: 0.00079854168 | Y169: 0.001073735638 | Z169: 0.001049579826 | AA169: 0.0003940977779 | AB169: 0.08026028188 | AC169: 0.03592598939 | AD169: 0.04582343239 | AE169: 0.00 | AF169: 0.00 | AG169: 0.00 | AH169: 0.05 | AI169: 0.01
A170: Cyanobacteriia | B170: 6049 | C170: 5814 | D170: 8668 | E170: 3910 | F170: 4963 | G170: 3936 | H170: 13326 | I170: 11997 | J170: 11881 | K170: 24826 | L170: 4707 | M170: 17425 | N170: 6844 | O170: 4270 | P170: 12401 | Q170: 15653 | R170: 9792 | S170: 0.01250129658 | T170: 0.01673034211 | U170: 0.02148723229 | V170: 0.007820972773 | W170: 0.01025092585 | X170: 0.01199641241 | Y170: 0.05359026634 | Z170: 0.04225439321 | AA170: 0.03968030254 | AB170: 0.2772810685 | AC170: 0.08041066669 | AD170: 0.2151059562 | AE170: 0.02 | AF170: 0.01 | AG170: 0.05 | AH170: 0.19 | AI170: 0.07
A171: Cytophagia | B171: 4838 | C171: 3641 | D171: 3884 | E171: 2161 | F171: 3126 | G171: 1782 | H171: 12610 | I171: 15332 | J171: 15843 | K171: 2441 | L171: 1068 | M171: 1357 | N171: 4121 | O171: 2356 | P171: 14595 | Q171: 1622 | R171: 5674 | S171: 0.009998557257 | T171: 0.01047732639 | U171: 0.009628104546 | V171: 0.004322537637 | W171: 0.006456658113 | X171: 0.005431302572 | Y171: 0.05071088538 | Z171: 0.05400052986 | AA171: 0.0529126364 | AB171: 0.02726347733 | AC171: 0.01824486765 | AD171: 0.01675172353 | AE171: 0.01 | AF171: 0.01 | AG171: 0.05 | AH171: 0.02 | AI171: 0.02
A172: DSM-4660 | B172: 6 | C172: 4 | D172: 12 | E172: 0 | F172: 20 | G172: 18 | H172: 22 | I172: 27 | J172: 22 | K172: 0 | L172: 0 | M172: 5 | N172: 7 | O172: 13 | P172: 24 | Q172: 2 | R172: 11 | S172: 1.24E-05 | T172: 1.15E-05 | U172: 2.97E-05 | V172: 0 | W172: 4.13E-05 | X172: 5.49E-05 | Y172: 8.85E-05 | Z172: 9.51E-05 | AA172: 7.35E-05 | AB172: 0 | AC172: 0 | AD172: 6.17E-05 | AE172: 0.00 | AF172: 0.00 | AG172: 0.00 | AH172: 0.00 | AI172: 0.00
A173: Dehalobacteriia | B173: 16 | C173: 0 | D173: 1 | E173: 0 | F173: 1 | G173: 0 | H173: 1 | I173: 2 | J173: 6 | K173: 1 | L173: 0 | M173: 0 | N173: 6 | O173: 0 | P173: 3 | Q173: 0 | R173: 2 | S173: 3.31E-05 | T173: 0 | U173: 2.48E-06 | V173: 0 | W173: 2.07E-06 | X173: 0 | Y173: 4.02E-06 | Z173: 7.04E-06 | AA173: 2.00E-05 | AB173: 1.12E-05 | AC173: 0 | AD173: 0 | AE173: 0.00 | AF173: 0.00 | AG173: 0.00 | AH173: 0.00 | AI173: 0.00
A174: Dehalococcoidia | B174: 9 | C174: 13 | D174: 14 | E174: 16 | F174: 13 | G174: 7 | H174: 16 | I174: 25 | J174: 32 | K174: 26 | L174: 7 | M174: 10 | N174: 12 | O174: 12 | P174: 24 | Q174: 14 | R174: 16 | S174: 1.86E-05 | T174: 3.74E-05 | U174: 3.47E-05 | V174: 3.20E-05 | W174: 2.69E-05 | X174: 2.13E-05 | Y174: 6.43E-05 | Z174: 8.81E-05 | AA174: 0.0001068739737 | AB174: 0.0002903934496 | AC174: 0.0001195824659 | AD174: 0.0001234467467 | AE174: 0.00 | AF174: 0.00 | AG174: 0.00 | AH174: 0.00 | AI174: 0.00
A175: Deinococci | B175: 19573 | C175: 13971 | D175: 22343 | E175: 9246 | F175: 2126 | G175: 2641 | H175: 5330 | I175: 5643 | J175: 4626 | K175: 89 | L175: 24 | M175: 63 | N175: 18629 | O175: 4671 | P175: 5200 | Q175: 59 | R175: 7140 | S175: 0.04045096345 | T175: 0.04020289122 | U175: 0.05538639029 | V175: 0.01849430032 | W175: 0.004391188467 | X175: 0.008049422049 | Y175: 0.02143449794 | Z175: 0.01987509718 | AA175: 0.01544996882 | AB175: 0.000994039116 | AC175: 0.0004099970258 | AD175: 0.0007777145045 | AE175: 0.05 | AF175: 0.01 | AG175: 0.02 | AH175: 0.00 | AI175: 0.02
A176: Deltaproteobacteria | B176: 770 | C176: 191 | D176: 451 | E176: 228 | F176: 158 | G176: 298 | H176: 399 | I176: 738 | J176: 702 | K176: 66 | L176: 84 | M176: 185 | N176: 471 | O176: 228 | P176: 613 | Q176: 112 | R176: 356 | S176: 0.001591337141 | T176: 0.0005496208019 | U176: 0.001117990512 | V176: 0.0004560567243 | W176: 0.000326344204 | X176: 0.0009082649643 | Y176: 0.001604571234 | Z176: 0.002599295006 | AA176: 0.002344547798 | AB176: 0.0007371526029 | AC176: 0.00143498959 | AD176: 0.002283764815 | AE176: 0.00 | AF176: 0.00 | AG176: 0.00 | AH176: 0.00 | AI176: 0.00
A177: Demospongiae | B177: 77 | C177: 20 | D177: 0 | E177: 0 | F177: 0 | G177: 296 | H177: 1183 | I177: 845 | J177: 32 | K177: 58 | L177: 2 | M177: 4 | N177: 32 | O177: 99 | P177: 687 | Q177: 21 | R177: 210 | S177: 0.0001591337141 | T177: 5.76E-05 | U177: 0 | V177: 0 | W177: 0 | X177: 0.0009021692263 | Y177: 0.004757412958 | Z177: 0.002976157562 | AA177: 0.0001068739737 | AB177: 0.0006478007722 | AC177: 3.42E-05 | AD177: 4.94E-05 | AE177: 0.00 | AF177: 0.00 | AG177: 0.00 | AH177: 0.00 | AI177: 0.00
A178: Desulfitobacteriia | B178: 25 | C178: 31 | D178: 32 | E178: 17 | F178: 4 | G178: 3 | H178: 10 | I178: 32 | J178: 22 | K178: 8 | L178: 1 | M178: 2 | N178: 29 | O178: 8 | P178: 21 | Q178: 4 | R178: 16 | S178: 5.17E-05 | T178: 8.92E-05 | U178: 7.93E-05 | V178: 3.40E-05 | W178: 8.26E-06 | X178: 9.14E-06 | Y178: 4.02E-05 | Z178: 0.0001127065585 | AA178: 7.35E-05 | AB178: 8.94E-05 | AC178: 1.71E-05 | AD178: 2.47E-05 | AE178: 0.00 | AF178: 0.00 | AG178: 0.00 | AH178: 0.00 | AI178: 0.00
A179: Desulfobacteria | B179: 68787 | C179: 37811 | D179: 50065 | E179: 23910 | F179: 32152 | G179: 26479 | H179: 45036 | I179: 58064 | J179: 137435 | K179: 2132 | L179: 515 | M179: 1706 | N179: 52221 | O179: 27514 | P179: 80178 | Q179: 1451 | R179: 40341 | S179: 0.1421601401 | T179: 0.1088047756 | U179: 0.1241068625 | V179: 0.04782594859 | W179: 0.06640898005 | X179: 0.08070452346 | Y179: 0.1811114539 | Z179: 0.2045060505 | AA179: 0.4590070179 | AB179: 0.02381226287 | AC179: 0.008797852846 | AD179: 0.02106001499 | AE179: 0.13 | AF179: 0.06 | AG179: 0.28 | AH179: 0.02 | AI179: 0.12
A180: Desulfobulbia | B180: 2312 | C180: 2777 | D180: 2976 | E180: 765 | F180: 373 | G180: 676 | H180: 1884 | I180: 2080 | J180: 975 | K180: 36 | L180: 151 | M180: 178 | N180: 2688 | O180: 605 | P180: 1646 | Q180: 122 | R180: 1265 | S180: 0.004778144766 | T180: 0.007991083597 | U180: 0.007377250033 | V180: 0.001530190325 | W180: 0.0007704201779 | X180: 0.002060359449 | Y180: 0.007576471693 | Z180: 0.007325926305 | AA180: 0.003256316385 | AB180: 0.0004020832379 | AC180: 0.002579564621 | AD180: 0.002197352092 | AE180: 0.01 | AF180: 0.00 | AG180: 0.01 | AH180: 0.00 | AI180: 0.00
A181: Desulfovibrionia | B181: 1205 | C181: 662 | D181: 950 | E181: 833 | F181: 858 | G181: 380 | H181: 611 | I181: 819 | J181: 724 | K181: 150 | L181: 143 | M181: 193 | N181: 939 | O181: 690 | P181: 718 | Q181: 162 | R181: 627 | S181: 0.002490339292 | T181: 0.001904968434 | U181: 0.002354968929 | V181: 0.001666207243 | W181: 0.001772172956 | X181: 0.001158190223 | Y181: 0.002457125374 | Z181: 0.002884583483 | AA181: 0.002418023654 | AB181: 0.001675346825 | AC181: 0.002442898945 | AD181: 0.002382522212 | AE181: 0.00 | AF181: 0.00 | AG181: 0.00 | AH181: 0.00 | AI181: 0.00
A182: Desulfuromonadia | B182: 2166 | C182: 878 | D182: 1257 | E182: 1298 | F182: 1834 | G182: 2033 | H182: 1507 | I182: 1701 | J182: 2300 | K182: 215 | L182: 130 | M182: 286 | N182: 1434 | O182: 1722 | P182: 1836 | Q182: 210 | R182: 1300 | S182: 0.004476410711 | T182: 0.002526529131 | U182: 0.00311599573 | V182: 0.002596322931 | W182: 0.00378807133 | X182: 0.006196317693 | Y182: 0.006060373058 | Z182: 0.005991058003 | AA182: 0.007681566858 | AB182: 0.002401330449 | AC182: 0.002220817223 | AD182: 0.003530576957 | AE182: 0.00 | AF182: 0.00 | AG182: 0.01 | AH182: 0.00 | AI182: 0.00
A183: Dictyochophyceae | B183: 0 | C183: 0 | D183: 0 | E183: 0 | F183: 0 | G183: 2 | H183: 0 | I183: 0 | J183: 0 | K183: 769 | L183: 106 | M183: 151 | N183: 0 | O183: 1 | P183: 0 | Q183: 342 | R183: 86 | S183: 0 | T183: 0 | U183: 0 | V183: 0 | W183: 0 | X183: 6.10E-06 | Y183: 0 | Z183: 0 | AA183: 0 | AB183: 0.008588944721 | AC183: 0.001810820197 | AD183: 0.001864045876 | AE183: 0.00 | AF183: 0.00 | AG183: 0.00 | AH183: 0.00 | AI183: 0.00
A184: Dinophyceae | B184: 106 | C184: 116 | D184: 21 | E184: 75 | F184: 54 | G184: 52 | H184: 95 | I184: 132 | J184: 188 | K184: 64 | L184: 14 | M184: 0 | N184: 81 | O184: 60 | P184: 138 | Q184: 26 | R184: 76 | S184: 0.0002190671908 | T184: 0.0003338011153 | U184: 5.21E-05 | V184: 0.0001500186593 | W184: 0.0001115353609 | X184: 0.0001584891884 | Y184: 0.0003820407701 | Z184: 0.000464914554 | AA184: 0.0006278845953 | AB184: 0.0007148146452 | AC184: 0.0002391649317 | AD184: 0 | AE184: 0.00 | AF184: 0.00 | AG184: 0.00 | AH184: 0.00 | AI184: 0.00
A185: Dothideomycetes | B185: 2921 | C185: 685 | D185: 695 | E185: 379 | F185: 144 | G185: 290 | H185: 607 | I185: 2080 | J185: 1533 | K185: 30 | L185: 961 | M185: 383 | N185: 1434 | O185: 271 | P185: 1407 | Q185: 458 | R185: 892 | S185: 0.006036747777 | T185: 0.001971153138 | U185: 0.00172284569 | V185: 0.0007580942918 | W185: 0.000297427629 | X185: 0.0008838820122 | Y185: 0.002441039447 | Z185: 0.007325926305 | AA185: 0.005119931301 | AB185: 0.0003350693649 | AC185: 0.01641696424 | AD185: 0.0047280104 | AE185: 0.00 | AF185: 0.00 | AG185: 0.00 | AH185: 0.01 | AI185: 0.00
A186: Echinamoebida | B186: 52 | C186: 6 | D186: 0 | E186: 49 | F186: 26 | G186: 65 | H186: 45 | I186: 133 | J186: 39 | K186: 68 | L186: 76 | M186: 42 | N186: 19 | O186: 47 | P186: 72 | Q186: 62 | R186: 50 | S186: 0.0001074669238 | T186: 1.73E-05 | U186: 0 | V186: 9.80E-05 | W186: 5.37E-05 | X186: 0.0001981114855 | Y186: 0.0001809666806 | Z186: 0.0004684366339 | AA186: 0.0001302526554 | AB186: 0.0007594905605 | AC186: 0.001298323915 | AD186: 0.0005184763363 | AE186: 0.00 | AF186: 0.00 | AG186: 0.00 | AH186: 0.00 | AI186: 0.00
A187: Echinoidea | B187: 0 | C187: 0 | D187: 5 | E187: 0 | F187: 2 | G187: 0 | H187: 0 | I187: 0 | J187: 0 | K187: 0 | L187: 11 | M187: 0 | N187: 2 | O187: 1 | P187: 0 | Q187: 4 | R187: 2 | S187: 0 | T187: 0 | U187: 1.24E-05 | V187: 0 | W187: 4.13E-06 | X187: 0 | Y187: 0 | Z187: 0 | AA187: 0 | AB187: 0 | AC187: 0.0001879153035 | AD187: 0 | AE187: 0.00 | AF187: 0.00 | AG187: 0.00 | AH187: 0.00 | AI187: 0.00
A188: Elardia | B188: 41 | C188: 8 | D188: 13 | E188: 14 | F188: 27 | G188: 24 | H188: 111 | I188: 157 | J188: 108 | K188: 0 | L188: 0 | M188: 8 | N188: 21 | O188: 22 | P188: 125 | Q188: 3 | R188: 43 | S188: 8.47E-05 | T188: 2.30E-05 | U188: 3.22E-05 | V188: 2.80E-05 | W188: 5.58E-05 | X188: 7.31E-05 | Y188: 0.0004463844788 | Z188: 0.0005529665528 | AA188: 0.0003606996612 | AB188: 0 | AC188: 0 | AD188: 9.88E-05 | AE188: 0.00 | AF188: 0.00 | AG188: 0.00 | AH188: 0.00 | AI188: 0.00
A189: Euglenida | B189: 2 | C189: 1 | D189: 0 | E189: 21 | F189: 2 | G189: 4 | H189: 14 | I189: 0 | J189: 15 | K189: 71 | L189: 14 | M189: 23 | N189: 1 | O189: 9 | P189: 10 | Q189: 36 | R189: 14 | S189: 4.13E-06 | T189: 2.88E-06 | U189: 0 | V189: 4.20E-05 | W189: 4.13E-06 | X189: 1.22E-05 | Y189: 5.63E-05 | Z189: 0 | AA189: 5.01E-05 | AB189: 0.000792997497 | AC189: 0.0002391649317 | AD189: 0.0002839275175 | AE189: 0.00 | AF189: 0.00 | AG189: 0.00 | AH189: 0.00 | AI189: 0.00
A190: Eurotatoria | B190: 0 | C190: 7 | D190: 0 | E190: 0 | F190: 0 | G190: 37 | H190: 23 | I190: 0 | J190: 16 | K190: 0 | L190: 0 | M190: 0 | N190: 2 | O190: 12 | P190: 13 | Q190: 0 | R190: 7 | S190: 0 | T190: 2.01E-05 | U190: 0 | V190: 0 | W190: 0 | X190: 0.0001127711533 | Y190: 9.25E-05 | Z190: 0 | AA190: 5.34E-05 | AB190: 0 | AC190: 0 | AD190: 0 | AE190: 0.00 | AF190: 0.00 | AG190: 0.00 | AH190: 0.00 | AI190: 0.00
A191: Eurotiomycetes | B191: 154 | C191: 12 | D191: 17 | E191: 462 | F191: 785 | G191: 211 | H191: 518 | I191: 164 | J191: 392 | K191: 97 | L191: 197 | M191: 59 | N191: 61 | O191: 486 | P191: 358 | Q191: 118 | R191: 256 | S191: 0.0003182674282 | T191: 3.45E-05 | U191: 4.21E-05 | V191: 0.0009241149414 | W191: 0.001621393672 | X191: 0.0006431003606 | Y191: 0.002083127568 | Z191: 0.0005776211125 | AA191: 0.001309206178 | AB191: 0.001083390947 | AC191: 0.003365392254 | AD191: 0.0007283358058 | AE191: 0.00 | AF191: 0.00 | AG191: 0.00 | AH191: 0.00 | AI191: 0.00
A192: Exobasidiomycetes | B192: 1149 | C192: 696 | D192: 583 | E192: 680 | F192: 435 | G192: 1367 | H192: 1993 | I192: 2460 | J192: 2515 | K192: 10705 | L192: 3315 | M192: 2789 | N192: 809 | O192: 827 | P192: 2323 | Q192: 5603 | R192: 2391 | S192: 0.002374605682 | T192: 0.002002806692 | U192: 0.001445207248 | V192: 0.001360169178 | W192: 0.0008984792959 | X192: 0.004166436934 | Y192: 0.008014813209 | Z192: 0.008664316688 | AA192: 0.008399626369 | AB192: 0.1195639184 | AC192: 0.05663083919 | AD192: 0.03442929767 | AE192: 0.00 | AF192: 0.00 | AG192: 0.01 | AH192: 0.07 | AI192: 0.02
A193: Faserviricetes | B193: 20 | C193: 35 | D193: 18 | E193: 23 | F193: 36 | G193: 29 | H193: 48 | I193: 33 | J193: 35 | K193: 1 | L193: 2 | M193: 0 | N193: 24 | O193: 29 | P193: 39 | Q193: 1 | R193: 23 | S193: 4.13E-05 | T193: 0.0001007158538 | U193: 4.46E-05 | V193: 4.60E-05 | W193: 7.44E-05 | X193: 8.84E-05 | Y193: 0.0001930311259 | Z193: 0.0001162286385 | AA193: 0.0001168934087 | AB193: 1.12E-05 | AC193: 3.42E-05 | AD193: 0 | AE193: 0.00 | AF193: 0.00 | AG193: 0.00 | AH193: 0.00 | AI193: 0.00
A194: Fibrobacteria | B194: 64 | C194: 18 | D194: 44 | E194: 47 | F194: 52 | G194: 59 | H194: 368 | I194: 582 | J194: 217 | K194: 19 | L194: 21 | M194: 25 | N194: 42 | O194: 53 | P194: 389 | Q194: 22 | R194: 126 | S194: 0.0001322669831 | T194: 5.18E-05 | U194: 0.0001090722451 | V194: 9.40E-05 | W194: 0.0001074044216 | X194: 0.0001798242715 | Y194: 0.001479905299 | Z194: 0.002049850533 | AA194: 0.000724739134 | AB194: 0.0002122105978 | AC194: 0.0003587473976 | AD194: 0.0003086168668 | AE194: 0.00 | AF194: 0.00 | AG194: 0.00 | AH194: 0.00 | AI194: 0.00
A195: Fimbriimonadia | B195: 36 | C195: 17 | D195: 28 | E195: 24 | F195: 0 | G195: 7 | H195: 9 | I195: 20 | J195: 20 | K195: 180 | L195: 140 | M195: 146 | N195: 27 | O195: 10 | P195: 16 | Q195: 155 | R195: 52 | S195: 7.44E-05 | T195: 4.89E-05 | U195: 6.94E-05 | V195: 4.80E-05 | W195: 0 | X195: 2.13E-05 | Y195: 3.62E-05 | Z195: 7.04E-05 | AA195: 6.68E-05 | AB195: 0.00201041619 | AC195: 0.002391649317 | AD195: 0.001802322502 | AE195: 0.00 | AF195: 0.00 | AG195: 0.00 | AH195: 0.00 | AI195: 0.00
A196: Flabellinia | B196: 0 | C196: 0 | D196: 49 | E196: 0 | F196: 29 | G196: 0 | H196: 0 | I196: 18 | J196: 18 | K196: 104 | L196: 0 | M196: 0 | N196: 16 | O196: 10 | P196: 12 | Q196: 35 | R196: 18 | S196: 0 | T196: 0 | U196: 0.0001214668184 | V196: 0 | W196: 5.99E-05 | X196: 0 | Y196: 0 | Z196: 6.34E-05 | AA196: 6.01E-05 | AB196: 0.001161573798 | AC196: 0 | AD196: 0 | AE196: 0.00 | AF196: 0.00 | AG196: 0.00 | AH196: 0.00 | AI196: 0.00
A197: Flavobacteriia | B197: 9883 | C197: 5138 | D197: 7625 | E197: 5057 | F197: 4300 | G197: 5214 | H197: 5635 | I197: 11566 | J197: 13533 | K197: 42965 | L197: 15323 | M197: 31109 | N197: 7549 | O197: 4857 | P197: 10245 | Q197: 29799 | R197: 13112 | S197: 0.02042491554 | T197: 0.01478508733 | U197: 0.0189017243 | V197: 0.01011525814 | W197: 0.008881519477 | X197: 0.01589158901 | Y197: 0.02266104989 | Z197: 0.04073637675 | AA197: 0.04519767143 | AB197: 0.4798751755 | AC197: 0.2617660178 | AD197: 0.3840304844 | AE197: 0.02 | AF197: 0.01 | AG197: 0.04 | AH197: 0.38 | AI197: 0.11
A198: Florideophyceae | B198: 52 | C198: 66 | D198: 6 | E198: 3 | F198: 25 | G198: 80 | H198: 191 | I198: 361 | J198: 103 | K198: 0 | L198: 0 | M198: 0 | N198: 41 | O198: 36 | P198: 218 | Q198: 0 | R198: 74 | S198: 0.0001074669238 | T198: 0.0001899213242 | U198: 1.49E-05 | V198: 6.00E-06 | W198: 5.16E-05 | X198: 0.0002438295206 | Y198: 0.000768103022 | Z198: 0.001271470864 | AA198: 0.0003440006028 | AB198: 0 | AC198: 0 | AD198: 0 | AE198: 0.00 | AF198: 0.00 | AG198: 0.00 | AH198: 0.00 | AI198: 0.00
A199: Fragilariophyceae | B199: 809 | C199: 584 | D199: 471 | E199: 554 | F199: 686 | G199: 869 | H199: 1543 | I199: 1648 | J199: 937 | K199: 40 | L199: 28 | M199: 15 | N199: 621 | O199: 703 | P199: 1376 | Q199: 28 | R199: 682 | S199: 0.001671937334 | T199: 0.00168051596 | U199: 0.001167568806 | V199: 0.00110813783 | W199: 0.001416912177 | X199: 0.002648598168 | Y199: 0.006205146403 | Z199: 0.005804387765 | AA199: 0.003129403542 | AB199: 0.0004467591533 | AC199: 0.0004783298634 | AD199: 0.0001851701201 | AE199: 0.00 | AF199: 0.00 | AG199: 0.01 | AH199: 0.00 | AI199: 0.00
A200: Fusobacteriia | B200: 266 | C200: 107 | D200: 215 | E200: 153 | F200: 126 | G200: 89 | H200: 243 | I200: 273 | J200: 258 | K200: 5727 | L200: 3184 | M200: 3996 | N200: 196 | O200: 123 | P200: 258 | Q200: 4302 | R200: 1220 | S200: 0.0005497346487 | T200: 0.0003079027529 | U200: 0.0005329666523 | V200: 0.000306038065 | W200: 0.0002602491754 | X200: 0.0002712603417 | Y200: 0.0009772200751 | Z200: 0.0009615278276 | AA200: 0.0008616714128 | AB200: 0.06396474177 | AC200: 0.05439293876 | AD200: 0.04932932 | AE200: 0.00 | AF200: 0.00 | AG200: 0.00 | AH200: 0.06 | AI200: 0.01
A201: Gammaproteobacteria | B201: 42425246 | C201: 30851171 | D201: 35171776 | E201: 45849402 | F201: 44103472 | G201: 29683652 | H201: 20197282 | I201: 22968957 | J201: 24356663 | K201: 6123388 | L201: 4409012 | M201: 6240785 | N201: 36149398 | O201: 39878842 | P201: 22507634 | Q201: 5591062 | R201: 26031734 | S201: 87.67905152 | T201: 88.77720076 | U201: 87.18783121 | V201: 91.71021092 | W201: 91.09438269 | X201: 90.47188297 | Y201: 81.22300178 | Z201: 80.89850302 | AA201: 81.34666751 | AB201: 68.39199095 | AC201: 75.32007528 | AD201: 77.04046054 | AE201: 87.88 | AF201: 91.09 | AG201: 81.16 | AH201: 73.58 | AI201: 83.43
A202: Gastropoda | B202: 60 | C202: 15 | D202: 9 | E202: 8 | F202: 36 | G202: 96 | H202: 128 | I202: 17 | J202: 33 | K202: 661 | L202: 225 | M202: 204 | N202: 28 | O202: 47 | P202: 59 | Q202: 363 | R202: 124 | S202: 0.0001240002967 | T202: 4.32E-05 | U202: 2.23E-05 | V202: 1.60E-05 | W202: 7.44E-05 | X202: 0.0002925954247 | Y202: 0.0005147496692 | Z202: 5.99E-05 | AA202: 0.0001102137854 | AB202: 0.007382695008 | AC202: 0.003843722117 | AD202: 0.002518313633 | AE202: 0.00 | AF202: 0.00 | AG202: 0.00 | AH202: 0.00 | AI202: 0.00
A203: Gemmatimonadetes | B203: 1326 | C203: 679 | D203: 941 | E203: 983 | F203: 957 | G203: 646 | H203: 973 | I203: 1186 | J203: 1415 | K203: 1442 | L203: 1289 | M203: 1743 | N203: 982 | O203: 862 | P203: 1191 | Q203: 1491 | R203: 1132 | S203: 0.002740406557 | T203: 0.001953887563 | U203: 0.002332658697 | V203: 0.001966244561 | W203: 0.001976654451 | X203: 0.001968923379 | Y203: 0.003912901782 | Z203: 0.004177186826 | AA203: 0.004725833523 | AB203: 0.01610566747 | AC203: 0.02202025693 | AD203: 0.02151676796 | AE203: 0.00 | AF203: 0.00 | AG203: 0.00 | AH203: 0.02 | AI203: 0.01
... 2044 more rows

Sheet S1F AMR annotation
A1: Table S1C. AMR annotation obtained from running CARD RGI, including whether ARGs were kept in the analysis after abundance and prevalence filtering and number of reads classified as well as abundance values converted to reads per million (RPM)
A3: ARO Term/ARG | B3: Removed | C3: ARO Accession | D3: Resistomes & Variants: Observed Pathogen(s) | E3: AMR Gene Family | F3: Resistance Mechanism | G3: Drug Class | H3: Drug Class broad | Y3: Reads per million (RPM)
I4: LDPE | L4: LDPE mean | M4: Weathered LDPE | P4: W-LDPE mean | Q4: Wood | T4: Wood mean | U4: Water | X4: Water mean | Y4: LDPE | AB4: LDPE mean | AC4: Weathered LDPE | AF4: W-LDPE mean | AG4: Wood | AJ4: Wood mean | AK4: Water | AN4: Water mean
I5: D7 | J5: D8 | K5: D9 | M5: D4 | N5: D5 | O5: D6 | Q5: D1 | R5: D2 | S5: D3 | U5: D10 | V5: D11 | W5: D12 | Y5: D7 | Z5: D8 | AA5: D9 | AC5: D4 | AD5: D5 | AE5: D6 | AG5: D1 | AH5: D2 | AI5: D3 | AK5: D10 | AL5: D11 | AM5: D12
A6: AAC(2')-Id | B6: Removed due to low prevalence (present in <3 samples) | C6: 3002526 | D6: Mycolicibacterium smegmatis | E6: AAC(2') | F6: antibiotic inactivation | G6: aminoglycoside antibiotic | H6: aminoglycoside antibiotic | I6: 1 | J6: 0 | K6: 0 | L6: 0.3333333333 | M6: 0 | N6: 2 | O6: 0 | P6: 0.6666666667 | Q6: 0 | R6: 0 | S6: 0 | T6: 0 | U6: 0 | V6: 0 | W6: 0 | X6: 0 | Y6: 0.005629063304 | Z6: 0 | AA6: 0 | AB6: 0.001876354435 | AC6: 0 | AD6: 0.01183640792 | AE6: 0 | AF6: 0.003945469306 | AG6: 0 | AH6: 0 | AI6: 0 | AJ6: 0 | AK6: 0 | AL6: 0 | AM6: 0 | AN6: 0
A7: AAC(3)-IIIb | B7: Removed due to low prevalence (present in <3 samples) | C7: 3002537 | D7: Pseudomonas aeruginosa | E7: AAC(3) | F7: antibiotic inactivation | G7: aminoglycoside antibiotic | H7: aminoglycoside antibiotic | I7: 2 | J7: 0 | K7: 0 | L7: 0.6666666667 | M7: 0 | N7: 0 | O7: 0 | P7: 0 | Q7: 0 | R7: 0 | S7: 1 | T7: 0.3333333333 | U7: 0 | V7: 0 | W7: 0 | X7: 0 | Y7: 0.01125812661 | Z7: 0 | AA7: 0 | AB7: 0.003752708869 | AC7: 0 | AD7: 0 | AE7: 0 | AF7: 0 | AG7: 0 | AH7: 0 | AI7: 0.007089205529 | AJ7: 0.00236306851 | AK7: 0 | AL7: 0 | AM7: 0 | AN7: 0
A8: AAC(3)-IIIc | B8: Removed due to low prevalence (present in <3 samples) | C8: 3002538 | D8: Pseudomonas aeruginosa | E8: AAC(3) | F8: antibiotic inactivation | G8: aminoglycoside antibiotic | H8: aminoglycoside antibiotic | I8: 2 | J8: 0 | K8: 1 | L8: 1 | M8: 0 | N8: 0 | O8: 0 | P8: 0 | Q8: 0 | R8: 0 | S8: 3 | T8: 1 | U8: 0 | V8: 0 | W8: 0 | X8: 0 | Y8: 0.01125812661 | Z8: 0 | AA8: 0.007079929415 | AB8: 0.006112685341 | AC8: 0 | AD8: 0 | AE8: 0 | AF8: 0 | AG8: 0 | AH8: 0 | AI8: 0.02126761659 | AJ8: 0.007089205529 | AK8: 0 | AL8: 0 | AM8: 0 | AN8: 0
A9: AAC(3)-IIe | B9: Removed due to low prevalence (present in <3 samples) | C9: 3004621 | D9: Escherichia coli | E9: AAC(3) | F9: antibiotic inactivation | G9: aminoglycoside antibiotic | H9: aminoglycoside antibiotic | I9: 6 | J9: 0 | K9: 0 | L9: 2 | M9: 4 | N9: 4 | O9: 0 | P9: 2.666666667 | Q9: 0 | R9: 0 | S9: 0 | T9: 0 | U9: 0 | V9: 0 | W9: 0 | X9: 0 | Y9: 0.03377437982 | Z9: 0 | AA9: 0 | AB9: 0.01125812661 | AC9: 0.02489822818 | AD9: 0.02367281583 | AE9: 0 | AF9: 0.01619034801 | AG9: 0 | AH9: 0 | AI9: 0 | AJ9: 0 | AK9: 0 | AL9: 0 | AM9: 0 | AN9: 0
A10: AAC(3)-IV | B10: Removed due to low prevalence (present in <3 samples) | C10: 3002539 | D10: Escherichia coli | E10: AAC(3) | F10: antibiotic inactivation | G10: aminoglycoside antibiotic | H10: aminoglycoside antibiotic | I10: 0 | J10: 0 | K10: 0 | L10: 0 | M10: 0 | N10: 0 | O10: 0 | P10: 0 | Q10: 0 | R10: 2 | S10: 0 | T10: 0.6666666667 | U10: 0 | V10: 0 | W10: 0 | X10: 0 | Y10: 0 | Z10: 0 | AA10: 0 | AB10: 0 | AC10: 0 | AD10: 0 | AE10: 0 | AF10: 0 | AG10: 0 | AH10: 0.01262416274 | AI10: 0 | AJ10: 0.004208054248 | AK10: 0 | AL10: 0 | AM10: 0 | AN10: 0
A11: AAC(3)-Ia | B11: Removed due to low prevalence (present in <3 samples) | C11: 3002528 | D11: Pseudomonas aeruginosa | E11: AAC(3) | F11: antibiotic inactivation | G11: aminoglycoside antibiotic | H11: aminoglycoside antibiotic | I11: 5 | J11: 8 | K11: 4 | L11: 5.666666667 | M11: 4 | N11: 10 | O11: 4 | P11: 6 | Q11: 4 | R11: 9 | S11: 2 | T11: 5 | U11: 0 | V11: 0 | W11: 0 | X11: 0 | Y11: 0.02814531652 | Z11: 0.0524157605 | AA11: 0.02831971766 | AB11: 0.03629359823 | AC11: 0.02489822818 | AD11: 0.05918203959 | AE11: 0.02866020191 | AF11: 0.03758015656 | AG11: 0.02881792641 | AH11: 0.05680873235 | AI11: 0.01417841106 | AJ11: 0.0332683566 | AK11: 0 | AL11: 0 | AM11: 0 | AN11: 0
A12: AAC(3)-Ib | B12: Removed due to low prevalence (present in <3 samples) | C12: 3002530 | D12: Pseudomonas aeruginosa | E12: AAC(3) | F12: antibiotic inactivation | G12: aminoglycoside antibiotic | H12: aminoglycoside antibiotic | I12: 0 | J12: 0 | K12: 0 | L12: 0 | M12: 1 | N12: 0 | O12: 0 | P12: 0.3333333333 | Q12: 0 | R12: 0 | S12: 1 | T12: 0.3333333333 | U12: 0 | V12: 0 | W12: 0 | X12: 0 | Y12: 0 | Z12: 0 | AA12: 0 | AB12: 0 | AC12: 0.006224557045 | AD12: 0 | AE12: 0 | AF12: 0.002074852348 | AG12: 0 | AH12: 0 | AI12: 0.007089205529 | AJ12: 0.00236306851 | AK12: 0 | AL12: 0 | AM12: 0 | AN12: 0
A13: AAC(3)-Ib/AAC(6')-Ib'' | B13: Removed due to low prevalence (present in <3 samples) | C13: 3002600 | D13: Pseudomonas aeruginosa | E13: AAC(3); AAC(6') | F13: antibiotic inactivation | G13: aminoglycoside antibiotic | H13: aminoglycoside antibiotic | I13: 0 | J13: 0 | K13: 0 | L13: 0 | M13: 1 | N13: 1 | O13: 0 | P13: 0.6666666667 | Q13: 2 | R13: 1 | S13: 0 | T13: 1 | U13: 0 | V13: 0 | W13: 0 | X13: 0 | Y13: 0 | Z13: 0 | AA13: 0 | AB13: 0 | AC13: 0.006224557045 | AD13: 0.005918203959 | AE13: 0 | AF13: 0.004047587001 | AG13: 0.01440896321 | AH13: 0.006312081372 | AI13: 0 | AJ13: 0.006907014859 | AK13: 0 | AL13: 0 | AM13: 0 | AN13: 0
A14: AAC(3)-VIa | B14: Removed due to low prevalence (present in <3 samples) | C14: 3002540 | D14: Enterobacter cloacae | E14: AAC(3) | F14: antibiotic inactivation | G14: aminoglycoside antibiotic | H14: aminoglycoside antibiotic | I14: 0 | J14: 0 | K14: 0 | L14: 0 | M14: 0 | N14: 0 | O14: 0 | P14: 0 | Q14: 0 | R14: 1 | S14: 0 | T14: 0.3333333333 | U14: 0 | V14: 0 | W14: 0 | X14: 0 | Y14: 0 | Z14: 0 | AA14: 0 | AB14: 0 | AC14: 0 | AD14: 0 | AE14: 0 | AF14: 0 | AG14: 0 | AH14: 0.006312081372 | AI14: 0 | AJ14: 0.002104027124 | AK14: 0 | AL14: 0 | AM14: 0 | AN14: 0
A15: AAC(6')-30/AAC(6')-Ib' fusion protein | B15: Removed due to low prevalence (present in <3 samples) | C15: 3002599 | D15: Pseudomonas aeruginosa | E15: AAC(6') | F15: antibiotic inactivation | G15: aminoglycoside antibiotic | H15: aminoglycoside antibiotic | I15: 0 | J15: 3 | K15: 2 | L15: 1.666666667 | M15: 4 | N15: 3 | O15: 2 | P15: 3 | Q15: 0 | R15: 0 | S15: 2 | T15: 0.6666666667 | U15: 0 | V15: 0 | W15: 0 | X15: 0 | Y15: 0 | Z15: 0.01965591019 | AA15: 0.01415985883 | AB15: 0.01127192301 | AC15: 0.02489822818 | AD15: 0.01775461188 | AE15: 0.01433010095 | AF15: 0.01899431367 | AG15: 0 | AH15: 0 | AI15: 0.01417841106 | AJ15: 0.004726137019 | AK15: 0 | AL15: 0 | AM15: 0 | AN15: 0
A16: AAC(6')-31 | B16: Removed due to low prevalence (present in <3 samples) | C16: 3002585 | D16: Pseudomonas putida | E16: AAC(6') | F16: antibiotic inactivation | G16: aminoglycoside antibiotic | H16: aminoglycoside antibiotic | I16: 0 | J16: 5 | K16: 4 | L16: 3 | M16: 0 | N16: 1 | O16: 0 | P16: 0.3333333333 | Q16: 2 | R16: 0 | S16: 8 | T16: 3.333333333 | U16: 0 | V16: 0 | W16: 0 | X16: 0 | Y16: 0 | Z16: 0.03275985031 | AA16: 0.02831971766 | AB16: 0.02035985599 | AC16: 0 | AD16: 0.005918203959 | AE16: 0 | AF16: 0.001972734653 | AG16: 0.01440896321 | AH16: 0 | AI16: 0.05671364423 | AJ16: 0.02370753581 | AK16: 0 | AL16: 0 | AM16: 0 | AN16: 0
A17: AAC(6')-32 | B17: Removed due to low prevalence (present in <3 samples) | C17: 3002586 | D17: Pseudomonas aeruginosa | E17: AAC(6') | F17: antibiotic inactivation | G17: aminoglycoside antibiotic | H17: aminoglycoside antibiotic | I17: 2 | J17: 6 | K17: 2 | L17: 3.333333333 | M17: 2 | N17: 2 | O17: 0 | P17: 1.333333333 | Q17: 0 | R17: 8 | S17: 2 | T17: 3.333333333 | U17: 0 | V17: 0 | W17: 0 | X17: 0 | Y17: 0.01125812661 | Z17: 0.03931182038 | AA17: 0.01415985883 | AB17: 0.02157660194 | AC17: 0.01244911409 | AD17: 0.01183640792 | AE17: 0 | AF17: 0.008095174003 | AG17: 0 | AH17: 0.05049665097 | AI17: 0.01417841106 | AJ17: 0.02155835401 | AK17: 0 | AL17: 0 | AM17: 0 | AN17: 0
A18: AAC(6')-IIa | B18: Removed due to low prevalence (present in <3 samples) | C18: 3002594 | D18: Salmonella enterica | E18: AAC(6') | F18: antibiotic inactivation | G18: aminoglycoside antibiotic | H18: aminoglycoside antibiotic | I18: 6 | J18: 2 | K18: 3 | L18: 3.666666667 | M18: 1 | N18: 0 | O18: 4 | P18: 1.666666667 | Q18: 0 | R18: 4 | S18: 10 | T18: 4.666666667 | U18: 0 | V18: 0 | W18: 0 | X18: 0 | Y18: 0.03377437982 | Z18: 0.01310394013 | AA18: 0.02123978825 | AB18: 0.02270603607 | AC18: 0.006224557045 | AD18: 0 | AE18: 0.02866020191 | AF18: 0.01162825298 | AG18: 0 | AH18: 0.02524832549 | AI18: 0.07089205529 | AJ18: 0.03204679359 | AK18: 0 | AL18: 0 | AM18: 0 | AN18: 0
A19: AAC(6')-IIc | B19: Removed due to low prevalence (present in <3 samples) | C19: 3002596 | D19: Pseudomonas aeruginosa | E19: AAC(6') | F19: antibiotic inactivation | G19: aminoglycoside antibiotic | H19: aminoglycoside antibiotic | I19: 1 | J19: 0 | K19: 1 | L19: 0.6666666667 | M19: 2 | N19: 0 | O19: 0 | P19: 0.6666666667 | Q19: 0 | R19: 1 | S19: 2 | T19: 1 | U19: 0 | V19: 0 | W19: 0 | X19: 0 | Y19: 0.005629063304 | Z19: 0 | AA19: 0.007079929415 | AB19: 0.004236330907 | AC19: 0.01244911409 | AD19: 0 | AE19: 0 | AF19: 0.004149704697 | AG19: 0 | AH19: 0.006312081372 | AI19: 0.01417841106 | AJ19: 0.006830164143 | AK19: 0 | AL19: 0 | AM19: 0 | AN19: 0
A20: AAC(6')-Iaf | B20: Removed due to low prevalence (present in <3 samples) | C20: 3002574 | D20: Pseudomonas aeruginosa | E20: AAC(6') | F20: antibiotic inactivation | G20: aminoglycoside antibiotic | H20: aminoglycoside antibiotic | I20: 0 | J20: 0 | K20: 0 | L20: 0 | M20: 0 | N20: 0 | O20: 0 | P20: 0 | Q20: 0 | R20: 0 | S20: 1 | T20: 0.3333333333 | U20: 0 | V20: 0 | W20: 0 | X20: 0 | Y20: 0 | Z20: 0 | AA20: 0 | AB20: 0 | AC20: 0 | AD20: 0 | AE20: 0 | AF20: 0 | AG20: 0 | AH20: 0 | AI20: 0.007089205529 | AJ20: 0.00236306851 | AK20: 0 | AL20: 0 | AM20: 0 | AN20: 0
A21: AAC(6')-Ib | B21: Removed due to low prevalence (present in <3 samples) | C21: 3002546 | D21: Klebsiella pneumoniae | E21: AAC(6') | F21: antibiotic inactivation | G21: aminoglycoside antibiotic | H21: aminoglycoside antibiotic | I21: 0 | J21: 0 | K21: 0 | L21: 0 | M21: 0 | N21: 0 | O21: 0 | P21: 0 | Q21: 0 | R21: 0 | S21: 2 | T21: 0.6666666667 | U21: 0 | V21: 0 | W21: 0 | X21: 0 | Y21: 0 | Z21: 0 | AA21: 0 | AB21: 0 | AC21: 0 | AD21: 0 | AE21: 0 | AF21: 0 | AG21: 0 | AH21: 0 | AI21: 0.01417841106 | AJ21: 0.004726137019 | AK21: 0 | AL21: 0 | AM21: 0 | AN21: 0
A22: AAC(6')-Ib' | B22: Removed due to low prevalence (present in <3 samples) | C22: 3003676 | D22: Pseudomonas aeruginosa | E22: AAC(6') | F22: antibiotic inactivation | G22: aminoglycoside antibiotic | H22: aminoglycoside antibiotic | I22: 2 | J22: 0 | K22: 0 | L22: 0.6666666667 | M22: 4 | N22: 0 | O22: 2 | P22: 2 | Q22: 1 | R22: 0 | S22: 2 | T22: 1 | U22: 0 | V22: 0 | W22: 0 | X22: 0 | Y22: 0.01125812661 | Z22: 0 | AA22: 0 | AB22: 0.003752708869 | AC22: 0.02489822818 | AD22: 0 | AE22: 0.01433010095 | AF22: 0.01307610971 | AG22: 0.007204481603 | AH22: 0 | AI22: 0.01417841106 | AJ22: 0.007127630887 | AK22: 0 | AL22: 0 | AM22: 0 | AN22: 0
A23: AAC(6')-Ib-Hangzhou | B23: Removed due to low prevalence (present in <3 samples) | C23: 3002592 | D23: Acinetobacter baumannii | E23: AAC(6') | F23: antibiotic inactivation | G23: aminoglycoside antibiotic | H23: aminoglycoside antibiotic | I23: 2 | J23: 0 | K23: 0 | L23: 0.6666666667 | M23: 0 | N23: 0 | O23: 0 | P23: 0 | Q23: 0 | R23: 1 | S23: 0 | T23: 0.3333333333 | U23: 0 | V23: 0 | W23: 0 | X23: 0 | Y23: 0.01125812661 | Z23: 0 | AA23: 0 | AB23: 0.003752708869 | AC23: 0 | AD23: 0 | AE23: 0 | AF23: 0 | AG23: 0 | AH23: 0.006312081372 | AI23: 0 | AJ23: 0.002104027124 | AK23: 0 | AL23: 0 | AM23: 0 | AN23: 0
A24: AAC(6')-Ib-cr6 | B24: Removed due to low prevalence (present in <3 samples) | C24: 3005116 | D24: Escherichia coli | E24: AAC(6')-Ib-cr | F24: antibiotic inactivation | G24: fluoroquinolone antibiotic; aminoglycoside antibiotic | H24: MDR | I24: 1 | J24: 0 | K24: 0 | L24: 0.3333333333 | M24: 0 | N24: 0 | O24: 0 | P24: 0 | Q24: 0 | R24: 0 | S24: 0 | T24: 0 | U24: 0 | V24: 1 | W24: 0 | X24: 0.3333333333 | Y24: 0.005629063304 | Z24: 0 | AA24: 0 | AB24: 0.001876354435 | AC24: 0 | AD24: 0 | AE24: 0 | AF24: 0 | AG24: 0 | AH24: 0 | AI24: 0 | AJ24: 0 | AK24: 0 | AL24: 0.007004927322 | AM24: 0 | AN24: 0.002334975774
A25: AAC(6')-Ib10 | B25: Removed due to low prevalence (present in <3 samples) | C25: 3002581 | D25: Pseudomonas aeruginosa | E25: AAC(6') | F25: antibiotic inactivation | G25: aminoglycoside antibiotic | H25: aminoglycoside antibiotic | I25: 2 | J25: 0 | K25: 0 | L25: 0.6666666667 | M25: 0 | N25: 0 | O25: 0 | P25: 0 | Q25: 0 | R25: 0 | S25: 4 | T25: 1.333333333 | U25: 0 | V25: 0 | W25: 0 | X25: 0 | Y25: 0.01125812661 | Z25: 0 | AA25: 0 | AB25: 0.003752708869 | AC25: 0 | AD25: 0 | AE25: 0 | AF25: 0 | AG25: 0 | AH25: 0 | AI25: 0.02835682212 | AJ25: 0.009452274039 | AK25: 0 | AL25: 0 | AM25: 0 | AN25: 0
A26: AAC(6')-Ib11 | B26: Removed due to low prevalence (present in <3 samples) | C26: 3002582 | D26: Salmonella enterica | E26: AAC(6') | F26: antibiotic inactivation | G26: aminoglycoside antibiotic | H26: aminoglycoside antibiotic | I26: 1 | J26: 0 | K26: 0 | L26: 0.3333333333 | M26: 0 | N26: 0 | O26: 0 | P26: 0 | Q26: 0 | R26: 1 | S26: 2 | T26: 1 | U26: 0 | V26: 0 | W26: 0 | X26: 0 | Y26: 0.005629063304 | Z26: 0 | AA26: 0 | AB26: 0.001876354435 | AC26: 0 | AD26: 0 | AE26: 0 | AF26: 0 | AG26: 0 | AH26: 0.006312081372 | AI26: 0.01417841106 | AJ26: 0.006830164143 | AK26: 0 | AL26: 0 | AM26: 0 | AN26: 0
A27: AAC(6')-Ib3 | B27: Removed due to low prevalence (present in <3 samples) | C27: 3002576 | D27: Acinetobacter baumannii | E27: AAC(6') | F27: antibiotic inactivation | G27: aminoglycoside antibiotic | H27: aminoglycoside antibiotic | I27: 0 | J27: 0 | K27: 0 | L27: 0 | M27: 0 | N27: 0 | O27: 2 | P27: 0.6666666667 | Q27: 0 | R27: 1 | S27: 0 | T27: 0.3333333333 | U27: 0 | V27: 0 | W27: 0 | X27: 0 | Y27: 0 | Z27: 0 | AA27: 0 | AB27: 0 | AC27: 0 | AD27: 0 | AE27: 0.01433010095 | AF27: 0.004776700318 | AG27: 0 | AH27: 0.006312081372 | AI27: 0 | AJ27: 0.002104027124 | AK27: 0 | AL27: 0 | AM27: 0 | AN27: 0
A28: AAC(6')-Ib4 | B28: Removed due to low prevalence (present in <3 samples) | C28: 3002577 | D28: Acinetobacter baumannii | E28: AAC(6') | F28: antibiotic inactivation | G28: aminoglycoside antibiotic | H28: aminoglycoside antibiotic | I28: 2 | J28: 2 | K28: 0 | L28: 1.333333333 | M28: 0 | N28: 0 | O28: 2 | P28: 0.6666666667 | Q28: 0 | R28: 0 | S28: 0 | T28: 0 | U28: 0 | V28: 0 | W28: 0 | X28: 0 | Y28: 0.01125812661 | Z28: 0.01310394013 | AA28: 0 | AB28: 0.008120688911 | AC28: 0 | AD28: 0 | AE28: 0.01433010095 | AF28: 0.004776700318 | AG28: 0 | AH28: 0 | AI28: 0 | AJ28: 0 | AK28: 0 | AL28: 0 | AM28: 0 | AN28: 0
A29: AAC(6')-Ib7 | B29: No | C29: 3002578 | D29: Salmonella enterica | E29: AAC(6') | F29: antibiotic inactivation | G29: aminoglycoside antibiotic | H29: aminoglycoside antibiotic | I29: 81 | J29: 56 | K29: 47 | L29: 61.33333333 | M29: 123 | N29: 185 | O29: 130 | P29: 146 | Q29: 99 | R29: 77 | S29: 89 | T29: 88.33333333 | U29: 21 | V29: 35 | W29: 44 | X29: 33.33333333 | Y29: 0.4559541276 | Z29: 0.3669103235 | AA29: 0.3327566825 | AB29: 0.3852070446 | AC29: 0.7656205166 | AD29: 1.094867732 | AE29: 0.931456562 | AF29: 0.9306482703 | AG29: 0.7132436787 | AH29: 0.4860302656 | AI29: 0.6309392921 | AJ29: 0.6100710788 | AK29: 0.1094611299 | AL29: 0.2451724563 | AM29: 0.2738627848 | AN29: 0.2094987903
A30: AAC(6')-Ib8 | B30: Removed due to low prevalence (present in <3 samples) | C30: 3002579 | D30: Enterobacter cloacae | E30: AAC(6') | F30: antibiotic inactivation | G30: aminoglycoside antibiotic | H30: aminoglycoside antibiotic | I30: 0 | J30: 0 | K30: 0 | L30: 0 | M30: 2 | N30: 0 | O30: 1 | P30: 1 | Q30: 0 | R30: 0 | S30: 0 | T30: 0 | U30: 0 | V30: 0 | W30: 0 | X30: 0 | Y30: 0 | Z30: 0 | AA30: 0 | AB30: 0 | AC30: 0.01244911409 | AD30: 0 | AE30: 0.007165050477 | AF30: 0.006538054856 | AG30: 0 | AH30: 0 | AI30: 0 | AJ30: 0 | AK30: 0 | AL30: 0 | AM30: 0 | AN30: 0
A31: AAC(6')-Ib9 | B31: Removed due to low prevalence (present in <3 samples) | C31: 3002580 | D31: Pseudomonas aeruginosa | E31: AAC(6') | F31: antibiotic inactivation | G31: aminoglycoside antibiotic | H31: aminoglycoside antibiotic | I31: 0 | J31: 4 | K31: 0 | L31: 1.333333333 | M31: 0 | N31: 0 | O31: 4 | P31: 1.333333333 | Q31: 1 | R31: 0 | S31: 2 | T31: 1 | U31: 0 | V31: 0 | W31: 0 | X31: 0 | Y31: 0 | Z31: 0.02620788025 | AA31: 0 | AB31: 0.008735960084 | AC31: 0 | AD31: 0 | AE31: 0.02866020191 | AF31: 0.009553400636 | AG31: 0.007204481603 | AH31: 0 | AI31: 0.01417841106 | AJ31: 0.007127630887 | AK31: 0 | AL31: 0 | AM31: 0 | AN31: 0
A32: AAC(6')-Ie-APH(2'')-Ia | B32: Removed due to low prevalence (present in <3 samples) | C32: 3002597 | D32: Staphylococcus aureus | E32: APH(2''); AAC(6') | F32: antibiotic inactivation | G32: aminoglycoside antibiotic | H32: aminoglycoside antibiotic | I32: 2 | J32: 0 | K32: 0 | L32: 0.6666666667 | M32: 0 | N32: 0 | O32: 0 | P32: 0 | Q32: 6 | R32: 0 | S32: 5 | T32: 3.666666667 | U32: 0 | V32: 0 | W32: 0 | X32: 0 | Y32: 0.01125812661 | Z32: 0 | AA32: 0 | AB32: 0.003752708869 | AC32: 0 | AD32: 0 | AE32: 0 | AF32: 0 | AG32: 0.04322688962 | AH32: 0 | AI32: 0.03544602765 | AJ32: 0.02622430575 | AK32: 0 | AL32: 0 | AM32: 0 | AN32: 0
A33: AAC(6')-Im | B33: Removed due to low prevalence (present in <3 samples) | C33: 3004629 | D33: Escherichia coli | E33: AAC(6') | F33: antibiotic inactivation | G33: aminoglycoside antibiotic | H33: aminoglycoside antibiotic | I33: 0 | J33: 0 | K33: 0 | L33: 0 | M33: 0 | N33: 0 | O33: 0 | P33: 0 | Q33: 1 | R33: 0 | S33: 0 | T33: 0.3333333333 | U33: 0 | V33: 0 | W33: 0 | X33: 0 | Y33: 0 | Z33: 0 | AA33: 0 | AB33: 0 | AC33: 0 | AD33: 0 | AE33: 0 | AF33: 0 | AG33: 0.007204481603 | AH33: 0 | AI33: 0 | AJ33: 0.002401493868 | AK33: 0 | AL33: 0 | AM33: 0 | AN33: 0
A34: ACC-3 | B34: Removed due to low prevalence (present in <3 samples) | C34: 3001817 | D34: Hafnia alvei | E34: ACC beta-lactamase | F34: antibiotic inactivation | G34: monobactam; cephalosporin; penam | H34: beta-lactam | I34: 0 | J34: 0 | K34: 0 | L34: 0 | M34: 0 | N34: 0 | O34: 0 | P34: 0 | Q34: 1 | R34: 0 | S34: 0 | T34: 0.3333333333 | U34: 0 | V34: 0 | W34: 0 | X34: 0 | Y34: 0 | Z34: 0 | AA34: 0 | AB34: 0 | AC34: 0 | AD34: 0 | AE34: 0 | AF34: 0 | AG34: 0.007204481603 | AH34: 0 | AI34: 0 | AJ34: 0.002401493868 | AK34: 0 | AL34: 0 | AM34: 0 | AN34: 0
A35: ACI-1 | B35: Removed due to low prevalence (present in <3 samples) | C35: 3004359 | D35: Acidaminococcus fermentans | E35: ACI beta-lactamase | F35: antibiotic inactivation | G35: cephalosporin; penam; penem | H35: beta-lactam | I35: 0 | J35: 0 | K35: 1 | L35: 0.3333333333 | M35: 0 | N35: 0 | O35: 2 | P35: 0.6666666667 | Q35: 0 | R35: 0 | S35: 0 | T35: 0 | U35: 0 | V35: 0 | W35: 0 | X35: 0 | Y35: 0 | Z35: 0 | AA35: 0.007079929415 | AB35: 0.002359976472 | AC35: 0 | AD35: 0 | AE35: 0.01433010095 | AF35: 0.004776700318 | AG35: 0 | AH35: 0 | AI35: 0 | AJ35: 0 | AK35: 0 | AL35: 0 | AM35: 0 | AN35: 0
A36: ACT-12 | B36: Removed due to low prevalence (present in <3 samples) | C36: 3001834 | D36: Enterobacter cloacae | E36: ACT beta-lactamase | F36: antibiotic inactivation | G36: carbapenem; cephalosporin; cephamycin; penam | H36: beta-lactam | I36: 0 | J36: 0 | K36: 0 | L36: 0 | M36: 0 | N36: 0 | O36: 0 | P36: 0 | Q36: 0 | R36: 0 | S36: 1 | T36: 0.3333333333 | U36: 0 | V36: 0 | W36: 0 | X36: 0 | Y36: 0 | Z36: 0 | AA36: 0 | AB36: 0 | AC36: 0 | AD36: 0 | AE36: 0 | AF36: 0 | AG36: 0 | AH36: 0 | AI36: 0.007089205529 | AJ36: 0.00236306851 | AK36: 0 | AL36: 0 | AM36: 0 | AN36: 0
A37: ACT-28 | B37: Removed due to low prevalence (present in <3 samples) | C37: 3001848 | D37: Enterobacter cloacae | E37: ACT beta-lactamase | F37: antibiotic inactivation | G37: carbapenem; cephalosporin; cephamycin; penam | H37: beta-lactam | I37: 2 | J37: 0 | K37: 0 | L37: 0.6666666667 | M37: 0 | N37: 0 | O37: 0 | P37: 0 | Q37: 0 | R37: 0 | S37: 0 | T37: 0 | U37: 0 | V37: 0 | W37: 0 | X37: 0 | Y37: 0.01125812661 | Z37: 0 | AA37: 0 | AB37: 0.003752708869 | AC37: 0 | AD37: 0 | AE37: 0 | AF37: 0 | AG37: 0 | AH37: 0 | AI37: 0 | AJ37: 0 | AK37: 0 | AL37: 0 | AM37: 0 | AN37: 0
A38: ACT-4 | B38: Removed due to low prevalence (present in <3 samples) | C38: 3001829 | D38: Enterobacter asburiae | E38: ACT beta-lactamase | F38: antibiotic inactivation | G38: carbapenem; cephalosporin; cephamycin; penam | H38: beta-lactam | I38: 1 | J38: 0 | K38: 0 | L38: 0.3333333333 | M38: 0 | N38: 0 | O38: 0 | P38: 0 | Q38: 0 | R38: 0 | S38: 0 | T38: 0 | U38: 0 | V38: 0 | W38: 0 | X38: 0 | Y38: 0.005629063304 | Z38: 0 | AA38: 0 | AB38: 0.001876354435 | AC38: 0 | AD38: 0 | AE38: 0 | AF38: 0 | AG38: 0 | AH38: 0 | AI38: 0 | AJ38: 0 | AK38: 0 | AL38: 0 | AM38: 0 | AN38: 0
A39: ADC-1 | B39: Removed due to low prevalence (present in <3 samples) | C39: 3003847 | D39: Acinetobacter baumannii | E39: ADC beta-lactamase without carbapenemase activity | F39: antibiotic inactivation | G39: cephalosporin | H39: beta-lactam | I39: 0 | J39: 0 | K39: 0 | L39: 0 | M39: 1 | N39: 0 | O39: 0 | P39: 0.3333333333 | Q39: 0 | R39: 0 | S39: 0 | T39: 0 | U39: 0 | V39: 0 | W39: 0 | X39: 0 | Y39: 0 | Z39: 0 | AA39: 0 | AB39: 0 | AC39: 0.006224557045 | AD39: 0 | AE39: 0 | AF39: 0.002074852348 | AG39: 0 | AH39: 0 | AI39: 0 | AJ39: 0 | AK39: 0 | AL39: 0 | AM39: 0 | AN39: 0
A40: ADC-159 | B40: Removed due to low prevalence (present in <3 samples) | C40: 3005037 | D40: Acinetobacter baumannii | E40: ADC beta-lactamase without carbapenemase activity | F40: antibiotic inactivation | G40: cephalosporin | H40: beta-lactam | I40: 0 | J40: 0 | K40: 0 | L40: 0 | M40: 1 | N40: 0 | O40: 0 | P40: 0.3333333333 | Q40: 1 | R40: 0 | S40: 0 | T40: 0.3333333333 | U40: 0 | V40: 0 | W40: 0 | X40: 0 | Y40: 0 | Z40: 0 | AA40: 0 | AB40: 0 | AC40: 0.006224557045 | AD40: 0 | AE40: 0 | AF40: 0.002074852348 | AG40: 0.007204481603 | AH40: 0 | AI40: 0 | AJ40: 0.002401493868 | AK40: 0 | AL40: 0 | AM40: 0 | AN40: 0
A41: ADC-56 | B41: Removed due to low prevalence (present in <3 samples) | C41: 3003878 | D41: Acinetobacter baumannii | E41: ADC beta-lactamase without carbapenemase activity | F41: antibiotic inactivation | G41: cephalosporin | H41: beta-lactam | I41: 0 | J41: 0 | K41: 0 | L41: 0 | M41: 0 | N41: 0 | O41: 0 | P41: 0 | Q41: 1 | R41: 0 | S41: 0 | T41: 0.3333333333 | U41: 0 | V41: 0 | W41: 0 | X41: 0 | Y41: 0 | Z41: 0 | AA41: 0 | AB41: 0 | AC41: 0 | AD41: 0 | AE41: 0 | AF41: 0 | AG41: 0.007204481603 | AH41: 0 | AI41: 0 | AJ41: 0.002401493868 | AK41: 0 | AL41: 0 | AM41: 0 | AN41: 0
A42: ADC-82 | B42: Removed due to low prevalence (present in <3 samples) | C42: 3003888 | D42: Acinetobacter baumannii | E42: ADC beta-lactamase without carbapenemase activity | F42: antibiotic inactivation | G42: cephalosporin | H42: beta-lactam | I42: 0 | J42: 0 | K42: 0 | L42: 0 | M42: 0 | N42: 0 | O42: 0 | P42: 0 | Q42: 0 | R42: 0 | S42: 1 | T42: 0.3333333333 | U42: 0 | V42: 0 | W42: 0 | X42: 0 | Y42: 0 | Z42: 0 | AA42: 0 | AB42: 0 | AC42: 0 | AD42: 0 | AE42: 0 | AF42: 0 | AG42: 0 | AH42: 0 | AI42: 0.007089205529 | AJ42: 0.00236306851 | AK42: 0 | AL42: 0 | AM42: 0 | AN42: 0
A43: AER-1 | B43: No | C43: 3002481 | D43: Aeromonas hydrophila | E43: AER beta-lactamase | F43: antibiotic inactivation | G43: penam | H43: beta-lactam | I43: 52 | J43: 19 | K43: 21 | L43: 30.66666667 | M43: 13 | N43: 25 | O43: 11 | P43: 16.33333333 | Q43: 16 | R43: 52 | S43: 26 | T43: 31.33333333 | U43: 4 | V43: 3 | W43: 6 | X43: 4.333333333 | Y43: 0.2927112918 | Z43: 0.1244874312 | AA43: 0.1486785177 | AB43: 0.1886257469 | AC43: 0.08091924159 | AD43: 0.147955099 | AE43: 0.07881555525 | AF43: 0.1025632986 | AG43: 0.1152717056 | AH43: 0.3282282313 | AI43: 0.1843193438 | AJ43: 0.2092730936 | AK43: 0.02084973904 | AL43: 0.02101478197 | AM43: 0.0373449252 | AN43: 0.02640314873
A44: AIM-1 | B44: Removed due to low prevalence (present in <3 samples) | C44: 3000853 | D44: Pseudomonas aeruginosa | E44: AIM beta-lactamase | F44: antibiotic inactivation | G44: cephalosporin; cephamycin; penam | H44: beta-lactam | I44: 0 | J44: 0 | K44: 0 | L44: 0 | M44: 1 | N44: 0 | O44: 0 | P44: 0.3333333333 | Q44: 0 | R44: 0 | S44: 0 | T44: 0 | U44: 0 | V44: 0 | W44: 0 | X44: 0 | Y44: 0 | Z44: 0 | AA44: 0 | AB44: 0 | AC44: 0.006224557045 | AD44: 0 | AE44: 0 | AF44: 0.002074852348 | AG44: 0 | AH44: 0 | AI44: 0 | AJ44: 0 | AK44: 0 | AL44: 0 | AM44: 0 | AN44: 0
A45: ANT(2'')-Ia | B45: Removed due to low prevalence (present in <3 samples) | C45: 3000230 | D45: Pseudomonas aeruginosa | E45: ANT(2'') | F45: antibiotic inactivation | G45: aminoglycoside antibiotic | H45: aminoglycoside antibiotic | I45: 0 | J45: 3 | K45: 0 | L45: 1 | M45: 0 | N45: 0 | O45: 0 | P45: 0 | Q45: 5 | R45: 9 | S45: 7 | T45: 7 | U45: 0 | V45: 0 | W45: 0 | X45: 0 | Y45: 0 | Z45: 0.01965591019 | AA45: 0 | AB45: 0.006551970063 | AC45: 0 | AD45: 0 | AE45: 0 | AF45: 0 | AG45: 0.03602240801 | AH45: 0.05680873235 | AI45: 0.0496244387 | AJ45: 0.04748519302 | AK45: 0 | AL45: 0 | AM45: 0 | AN45: 0
A46: ANT(3'')-IIa | B46: No | C46: 3004089 | D46: Escherichia coli | E46: ANT(3'') | F46: antibiotic inactivation | G46: aminoglycoside antibiotic | H46: aminoglycoside antibiotic | I46: 9 | J46: 2 | K46: 9 | L46: 6.666666667 | M46: 16 | N46: 24 | O46: 7 | P46: 15.66666667 | Q46: 12 | R46: 15 | S46: 19 | T46: 15.33333333 | U46: 5 | V46: 2 | W46: 3 | X46: 3.333333333 | Y46: 0.05066156974 | Z46: 0.01310394013 | AA46: 0.06371936474 | AB46: 0.0424949582 | AC46: 0.09959291272 | AD46: 0.142036895 | AE46: 0.05015535334 | AF46: 0.09726172036 | AG46: 0.08645377923 | AH46: 0.09468122058 | AI46: 0.1346949051 | AJ46: 0.105276635 | AK46: 0.0260621738 | AL46: 0.01400985464 | AM46: 0.0186724626 | AN46: 0.01958149701
A47: ANT(3'')-IIc | B47: Removed due to low prevalence (present in <3 samples) | C47: 3004091 | D47: Acinetobacter parvus | E47: ANT(3'') | F47: antibiotic inactivation | G47: aminoglycoside antibiotic | H47: aminoglycoside antibiotic | I47: 4 | J47: 0 | K47: 2 | L47: 2 | M47: 0 | N47: 0 | O47: 0 | P47: 0 | Q47: 0 | R47: 0 | S47: 0 | T47: 0 | U47: 0 | V47: 0 | W47: 0 | X47: 0 | Y47: 0.02251625322 | Z47: 0 | AA47: 0.01415985883 | AB47: 0.01222537068 | AC47: 0 | AD47: 0 | AE47: 0 | AF47: 0 | AG47: 0 | AH47: 0 | AI47: 0 | AJ47: 0 | AK47: 0 | AL47: 0 | AM47: 0 | AN47: 0
A48: ANT(3'')-Ii-AAC(6')-IId fusion protein | B48: No | C48: 3002598 | D48: Serratia marcescens | E48: AAC(6'); ANT(3'') | F48: antibiotic inactivation | G48: aminoglycoside antibiotic | H48: aminoglycoside antibiotic | I48: 2 | J48: 7 | K48: 2 | L48: 3.666666667 | M48: 11 | N48: 11 | O48: 0 | P48: 7.333333333 | Q48: 1 | R48: 4 | S48: 0 | T48: 1.666666667 | U48: 0 | V48: 0 | W48: 0 | X48: 0 | Y48: 0.01125812661 | Z48: 0.04586379044 | AA48: 0.01415985883 | AB48: 0.02376059196 | AC48: 0.0684701275 | AD48: 0.06510024354 | AE48: 0 | AF48: 0.04452345701 | AG48: 0.007204481603 | AH48: 0.02524832549 | AI48: 0 | AJ48: 0.01081760236 | AK48: 0 | AL48: 0 | AM48: 0 | AN48: 0
A49: ANT(6)-Ia | B49: Removed due to low prevalence (present in <3 samples) | C49: 3002626 | D49: Exiguobacterium sp. | E49: ANT(6) | F49: antibiotic inactivation | G49: aminoglycoside antibiotic | H49: aminoglycoside antibiotic | I49: 0 | J49: 2 | K49: 0 | L49: 0.6666666667 | M49: 0 | N49: 0 | O49: 1 | P49: 0.3333333333 | Q49: 0 | R49: 0 | S49: 1 | T49: 0.3333333333 | U49: 0 | V49: 0 | W49: 0 | X49: 0 | Y49: 0 | Z49: 0.01310394013 | AA49: 0 | AB49: 0.004367980042 | AC49: 0 | AD49: 0 | AE49: 0.007165050477 | AF49: 0.002388350159 | AG49: 0 | AH49: 0 | AI49: 0.007089205529 | AJ49: 0.00236306851 | AK49: 0 | AL49: 0 | AM49: 0 | AN49: 0
A50: ANT(6)-Ib | B50: Removed due to low prevalence (present in <3 samples) | C50: 3002629 | D50: Campylobacter fetus | E50: ANT(6) | F50: antibiotic inactivation | G50: aminoglycoside antibiotic | H50: aminoglycoside antibiotic | I50: 0 | J50: 0 | K50: 0 | L50: 0 | M50: 1 | N50: 0 | O50: 0 | P50: 0.3333333333 | Q50: 0 | R50: 2 | S50: 0 | T50: 0.6666666667 | U50: 2 | V50: 0 | W50: 0 | X50: 0.6666666667 | Y50: 0 | Z50: 0 | AA50: 0 | AB50: 0 | AC50: 0.006224557045 | AD50: 0 | AE50: 0 | AF50: 0.002074852348 | AG50: 0 | AH50: 0.01262416274 | AI50: 0 | AJ50: 0.004208054248 | AK50: 0.01042486952 | AL50: 0 | AM50: 0 | AN50: 0.003474956506
A51: APH(2'')-IIa | B51: Removed due to low prevalence (present in <3 samples) | C51: 3002635 | D51: Escherichia coli | E51: APH(2'') | F51: antibiotic inactivation | G51: aminoglycoside antibiotic | H51: aminoglycoside antibiotic | I51: 0 | J51: 0 | K51: 0 | L51: 0 | M51: 0 | N51: 0 | O51: 2 | P51: 0.6666666667 | Q51: 1 | R51: 0 | S51: 0 | T51: 0.3333333333 | U51: 0 | V51: 0 | W51: 0 | X51: 0 | Y51: 0 | Z51: 0 | AA51: 0 | AB51: 0 | AC51: 0 | AD51: 0 | AE51: 0.01433010095 | AF51: 0.004776700318 | AG51: 0.007204481603 | AH51: 0 | AI51: 0 | AJ51: 0.002401493868 | AK51: 0 | AL51: 0 | AM51: 0 | AN51: 0
A52: APH(3'')-Ib | B52: No | C52: 3002639 | D52: Pseudomonas aeruginosa | E52: APH(3'') | F52: antibiotic inactivation | G52: aminoglycoside antibiotic | H52: aminoglycoside antibiotic | I52: 49 | J52: 37 | K52: 21 | L52: 35.66666667 | M52: 103 | N52: 120 | O52: 77 | P52: 100 | Q52: 57 | R52: 93 | S52: 95 | T52: 81.66666667 | U52: 15 | V52: 3 | W52: 2 | X52: 6.666666667 | Y52: 0.2758241019 | Z52: 0.2424228923 | AA52: 0.1486785177 | AB52: 0.222308504 | AC52: 0.6411293757 | AD52: 0.710184475 | AE52: 0.5517088868 | AF52: 0.6343409125 | AG52: 0.4106554513 | AH52: 0.5870235676 | AI52: 0.6734745253 | AJ52: 0.5570511814 | AK52: 0.07818652139 | AL52: 0.02101478197 | AM52: 0.0124483084 | AN52: 0.03721653725
A53: APH(3')-IIIa | B53: Removed due to low prevalence (present in <3 samples) | C53: 3002647 | D53: Campylobacter coli | E53: APH(3') | F53: antibiotic inactivation | G53: aminoglycoside antibiotic | H53: aminoglycoside antibiotic | I53: 0 | J53: 0 | K53: 0 | L53: 0 | M53: 0 | N53: 0 | O53: 0 | P53: 0 | Q53: 0 | R53: 0 | S53: 2 | T53: 0.6666666667 | U53: 0 | V53: 0 | W53: 0 | X53: 0 | Y53: 0 | Z53: 0 | AA53: 0 | AB53: 0 | AC53: 0 | AD53: 0 | AE53: 0 | AF53: 0 | AG53: 0 | AH53: 0 | AI53: 0.01417841106 | AJ53: 0.004726137019 | AK53: 0 | AL53: 0 | AM53: 0 | AN53: 0
A54: APH(3')-IIa | B54: Removed due to low prevalence (present in <3 samples) | C54: 3002644 | D54: Escherichia coli | E54: APH(3') | F54: antibiotic inactivation | G54: aminoglycoside antibiotic | H54: aminoglycoside antibiotic | I54: 0 | J54: 0 | K54: 0 | L54: 0 | M54: 1 | N54: 4 | O54: 0 | P54: 1.666666667 | Q54: 0 | R54: 0 | S54: 2 | T54: 0.6666666667 | U54: 0 | V54: 0 | W54: 0 | X54: 0 | Y54: 0 | Z54: 0 | AA54: 0 | AB54: 0 | AC54: 0.006224557045 | AD54: 0.02367281583 | AE54: 0 | AF54: 0.00996579096 | AG54: 0 | AH54: 0 | AI54: 0.01417841106 | AJ54: 0.004726137019 | AK54: 0 | AL54: 0 | AM54: 0 | AN54: 0
A55: APH(3')-IIb | B55: Removed due to low prevalence (present in <3 samples) | C55: 3002645 | D55: Pseudomonas aeruginosa | E55: APH(3') | F55: antibiotic inactivation | G55: aminoglycoside antibiotic | H55: aminoglycoside antibiotic | I55: 0 | J55: 0 | K55: 0 | L55: 0 | M55: 0 | N55: 0 | O55: 0 | P55: 0 | Q55: 0 | R55: 0 | S55: 0 | T55: 0 | U55: 0 | V55: 0 | W55: 2 | X55: 0.6666666667 | Y55: 0 | Z55: 0 | AA55: 0 | AB55: 0 | AC55: 0 | AD55: 0 | AE55: 0 | AF55: 0 | AG55: 0 | AH55: 0 | AI55: 0 | AJ55: 0 | AK55: 0 | AL55: 0 | AM55: 0.0124483084 | AN55: 0.004149436133
A56: APH(3')-Ia | B56: No | C56: 3002641 | D56: Serratia marcescens | E56: APH(3') | F56: antibiotic inactivation | G56: aminoglycoside antibiotic | H56: aminoglycoside antibiotic | I56: 3 | J56: 0 | K56: 0 | L56: 1 | M56: 0 | N56: 2 | O56: 0 | P56: 0.6666666667 | Q56: 16 | R56: 5 | S56: 2 | T56: 7.666666667 | U56: 8283 | V56: 2418 | W56: 5019 | X56: 5240 | Y56: 0.01688718991 | Z56: 0 | AA56: 0 | AB56: 0.005629063304 | AC56: 0 | AD56: 0.01183640792 | AE56: 0 | AF56: 0.003945469306 | AG56: 0.1152717056 | AH56: 0.03156040686 | AI56: 0.01417841106 | AJ56: 0.05367017452 | AK56: 43.17459711 | AL56: 16.93791426 | AM56: 31.23902993 | AN56: 30.45051377
A57: APH(3')-VI | B57: Removed due to low prevalence (present in <3 samples) | C57: 3003687 | D57: Pseudomonas aeruginosa | E57: APH(3') | F57: antibiotic inactivation | G57: aminoglycoside antibiotic | H57: aminoglycoside antibiotic | I57: 0 | J57: 0 | K57: 0 | L57: 0 | M57: 0 | N57: 0 | O57: 0 | P57: 0 | Q57: 2 | R57: 1 | S57: 0 | T57: 1 | U57: 0 | V57: 0 | W57: 0 | X57: 0 | Y57: 0 | Z57: 0 | AA57: 0 | AB57: 0 | AC57: 0 | AD57: 0 | AE57: 0 | AF57: 0 | AG57: 0.01440896321 | AH57: 0.006312081372 | AI57: 0 | AJ57: 0.006907014859 | AK57: 0 | AL57: 0 | AM57: 0 | AN57: 0
A58: APH(6)-Ia | B58: Removed due to low prevalence (present in <3 samples) | C58: 3002657 | D58: Streptomyces griseus | E58: APH(6) | F58: antibiotic inactivation | G58: aminoglycoside antibiotic | H58: aminoglycoside antibiotic | I58: 0 | J58: 0 | K58: 0 | L58: 0 | M58: 0 | N58: 0 | O58: 0 | P58: 0 | Q58: 2 | R58: 2 | S58: 0 | T58: 1.333333333 | U58: 0 | V58: 0 | W58: 0 | X58: 0 | Y58: 0 | Z58: 0 | AA58: 0 | AB58: 0 | AC58: 0 | AD58: 0 | AE58: 0 | AF58: 0 | AG58: 0.01440896321 | AH58: 0.01262416274 | AI58: 0 | AJ58: 0.009011041983 | AK58: 0 | AL58: 0 | AM58: 0 | AN58: 0
A59: APH(6)-Ib | B59: Removed due to low prevalence (present in <3 samples) | C59: 3002658 | D59: Streptomyces glaucescens | E59: APH(6) | F59: antibiotic inactivation | G59: aminoglycoside antibiotic | H59: aminoglycoside antibiotic | I59: 0 | J59: 0 | K59: 3 | L59: 1 | M59: 0 | N59: 0 | O59: 0 | P59: 0 | Q59: 0 | R59: 0 | S59: 0 | T59: 0 | U59: 0 | V59: 0 | W59: 0 | X59: 0 | Y59: 0 | Z59: 0 | AA59: 0.02123978825 | AB59: 0.007079929415 | AC59: 0 | AD59: 0 | AE59: 0 | AF59: 0 | AG59: 0 | AH59: 0 | AI59: 0 | AJ59: 0 | AK59: 0 | AL59: 0 | AM59: 0 | AN59: 0
A60: APH(6)-Ic | B60: Removed due to low prevalence (present in <3 samples) | C60: 3002659 | D60: Escherichia coli | E60: APH(6) | F60: antibiotic inactivation | G60: aminoglycoside antibiotic | H60: aminoglycoside antibiotic | I60: 0 | J60: 0 | K60: 0 | L60: 0 | M60: 2 | N60: 0 | O60: 4 | P60: 2 | Q60: 0 | R60: 2 | S60: 1 | T60: 1 | U60: 0 | V60: 0 | W60: 0 | X60: 0 | Y60: 0 | Z60: 0 | AA60: 0 | AB60: 0 | AC60: 0.01244911409 | AD60: 0 | AE60: 0.02866020191 | AF60: 0.01370310533 | AG60: 0 | AH60: 0.01262416274 | AI60: 0.007089205529 | AJ60: 0.006571122757 | AK60: 0 | AL60: 0 | AM60: 0 | AN60: 0
A61: APH(6)-Id | B61: No | C61: 3002660 | D61: Pseudomonas aeruginosa | E61: APH(6) | F61: antibiotic inactivation | G61: aminoglycoside antibiotic | H61: aminoglycoside antibiotic | I61: 39 | J61: 33 | K61: 30 | L61: 34 | M61: 91 | N61: 120 | O61: 63 | P61: 91.33333333 | Q61: 67 | R61: 38 | S61: 65 | T61: 56.66666667 | U61: 12 | V61: 2 | W61: 11 | X61: 8.333333333 | Y61: 0.2195334689 | Z61: 0.2162150121 | AA61: 0.2123978825 | AB61: 0.2160487878 | AC61: 0.5664346911 | AD61: 0.710184475 | AE61: 0.4513981801 | AF61: 0.5760057821 | AG61: 0.4827002674 | AH61: 0.2398590921 | AI61: 0.4607983594 | AJ61: 0.394452573 | AK61: 0.06254921711 | AL61: 0.01400985464 | AM61: 0.0684656962 | AN61: 0.04834158932
A62: AQU-1 | B62: Removed due to low prevalence (present in <3 samples) | C62: 3002993 | D62: Aeromonas dhakensis | E62: AQU beta-lactamase | F62: antibiotic inactivation | G62: cephalosporin | H62: beta-lactam | I62: 0 | J62: 0 | K62: 0 | L62: 0 | M62: 2 | N62: 0 | O62: 0 | P62: 0.6666666667 | Q62: 1 | R62: 0 | S62: 0 | T62: 0.3333333333 | U62: 0 | V62: 0 | W62: 0 | X62: 0 | Y62: 0 | Z62: 0 | AA62: 0 | AB62: 0 | AC62: 0.01244911409 | AD62: 0 | AE62: 0 | AF62: 0.004149704697 | AG62: 0.007204481603 | AH62: 0 | AI62: 0 | AJ62: 0.002401493868 | AK62: 0 | AL62: 0 | AM62: 0 | AN62: 0
A63: AQU-2 | B63: Removed due to low prevalence (present in <3 samples) | C63: 3004647 | D63: Aeromonas hydrophila | E63: AQU beta-lactamase | F63: antibiotic inactivation | G63: cephalosporin | H63: beta-lactam | I63: 0 | J63: 0 | K63: 0 | L63: 0 | M63: 0 | N63: 0 | O63: 2 | P63: 0.6666666667 | Q63: 2 | R63: 0 | S63: 0 | T63: 0.6666666667 | U63: 0 | V63: 0 | W63: 1 | X63: 0.3333333333 | Y63: 0 | Z63: 0 | AA63: 0 | AB63: 0 | AC63: 0 | AD63: 0 | AE63: 0.01433010095 | AF63: 0.004776700318 | AG63: 0.01440896321 | AH63: 0 | AI63: 0 | AJ63: 0.004802987735 | AK63: 0 | AL63: 0 | AM63: 0.0062241542 | AN63: 0.002074718067
A64: AQU-3 | B64: Removed due to low prevalence (present in <3 samples) | C64: 3004648 | D64: Aeromonas dhakensis | E64: AQU beta-lactamase | F64: antibiotic inactivation | G64: cephalosporin | H64: beta-lactam | I64: 0 | J64: 0 | K64: 0 | L64: 0 | M64: 0 | N64: 4 | O64: 1 | P64: 1.666666667 | Q64: 1 | R64: 0 | S64: 0 | T64: 0.3333333333 | U64: 0 | V64: 0 | W64: 0 | X64: 0 | Y64: 0 | Z64: 0 | AA64: 0 | AB64: 0 | AC64: 0 | AD64: 0.02367281583 | AE64: 0.007165050477 | AF64: 0.01027928877 | AG64: 0.007204481603 | AH64: 0 | AI64: 0 | AJ64: 0.002401493868 | AK64: 0 | AL64: 0 | AM64: 0 | AN64: 0
A65: AST-1 | B65: Removed due to low prevalence (present in <3 samples) | C65: 3004740 | D65: Nocardia asteroides | E65: AST Beta-lactamase | F65: antibiotic inactivation | G65: cephalosporin; penam | H65: beta-lactam | I65: 0 | J65: 0 | K65: 0 | L65: 0 | M65: 2 | N65: 0 | O65: 0 | P65: 0.6666666667 | Q65: 0 | R65: 1 | S65: 0 | T65: 0.3333333333 | U65: 0 | V65: 2 | W65: 3 | X65: 1.666666667 | Y65: 0 | Z65: 0 | AA65: 0 | AB65: 0 | AC65: 0.01244911409 | AD65: 0 | AE65: 0 | AF65: 0.004149704697 | AG65: 0 | AH65: 0.006312081372 | AI65: 0 | AJ65: 0.002104027124 | AK65: 0 | AL65: 0.01400985464 | AM65: 0.0186724626 | AN65: 0.01089410575
A66: Acinetobacter OprD conferring resistance to imipenem | B66: Removed due to being a mutation/species-specific resistance | C66: 3003809 | D66: Acinetobacter baumannii | E66: Outer Membrane Porin (Opr) | F66: reduced permeability to antibiotic; resistance by absence | G66: monobactam; carbapenem; cephalosporin; cephamycin; penam; penem | H66: beta-lactam | I66: 5 | J66: 14 | K66: 6 | L66: 8.333333333 | M66: 15 | N66: 2 | O66: 4 | P66: 7 | Q66: 32 | R66: 21 | S66: 14 | T66: 22.33333333 | U66: 2 | V66: 0 | W66: 0 | X66: 0.6666666667 | Y66: 0.02814531652 | Z66: 0.09172758088 | AA66: 0.04247957649 | AB66: 0.0541174913 | AC66: 0.09336835568 | AD66: 0.01183640792 | AE66: 0.02866020191 | AF66: 0.04462165517 | AG66: 0.2305434113 | AH66: 0.1325537088 | AI66: 0.09924887741 | AJ66: 0.1541153325 | AK66: 0.01042486952 | AL66: 0 | AM66: 0 | AN66: 0.003474956506
A67: Acinetobacter baumannii AbaQ | B67: Removed due to low prevalence (present in <3 samples) | C67: 3004574 | D67: Acinetobacter baumannii | E67: major facilitator superfamily (MFS) antibiotic efflux pump | F67: antibiotic efflux | G67: fluoroquinolone antibiotic | H67: fluoroquinolone antibiotic | I67: 0 | J67: 0 | K67: 2 | L67: 0.6666666667 | M67: 1 | N67: 0 | O67: 2 | P67: 1 | Q67: 1 | R67: 4 | S67: 0 | T67: 1.666666667 | U67: 0 | V67: 0 | W67: 0 | X67: 0 | Y67: 0 | Z67: 0 | AA67: 0.01415985883 | AB67: 0.004719952944 | AC67: 0.006224557045 | AD67: 0 | AE67: 0.01433010095 | AF67: 0.006851552667 | AG67: 0.007204481603 | AH67: 0.02524832549 | AI67: 0 | AJ67: 0.01081760236 | AK67: 0 | AL67: 0 | AM67: 0 | AN67: 0
A68: Acinetobacter baumannii AbuO | B68: Removed due to low prevalence (present in <3 samples) | C68: 3004578 | D68: Acinetobacter baumannii | E68: resistance-nodulation-cell division (RND) antibiotic efflux pump | F68: antibiotic efflux | G68: aminoglycoside antibiotic; carbapenem; cephalosporin; glycylcycline; penam; tetracycline antibiotic; benzalkonium chloride | H68: MDR | I68: 1 | J68: 3 | K68: 1 | L68: 1.666666667 | M68: 1 | N68: 0 | O68: 1 | P68: 0.6666666667 | Q68: 1 | R68: 0 | S68: 2 | T68: 1 | U68: 0 | V68: 0 | W68: 0 | X68: 0 | Y68: 0.005629063304 | Z68: 0.01965591019 | AA68: 0.007079929415 | AB68: 0.01078830097 | AC68: 0.006224557045 | AD68: 0 | AE68: 0.007165050477 | AF68: 0.004463202508 | AG68: 0.007204481603 | AH68: 0 | AI68: 0.01417841106 | AJ68: 0.007127630887 | AK68: 0 | AL68: 0 | AM68: 0 | AN68: 0
A69: Acinetobacter baumannii AmvA | B69: Removed due to low prevalence (present in <3 samples) | C69: 3004577 | D69: Acinetobacter baumannii | E69: major facilitator superfamily (MFS) antibiotic efflux pump | F69: antibiotic efflux | G69: macrolide antibiotic; acridine dye; disinfecting agents and intercalating dyes | H69: MDR | I69: 4 | J69: 0 | K69: 0 | L69: 1.333333333 | M69: 0 | N69: 0 | O69: 2 | P69: 0.6666666667 | Q69: 0 | R69: 0 | S69: 0 | T69: 0 | U69: 0 | V69: 0 | W69: 0 | X69: 0 | Y69: 0.02251625322 | Z69: 0 | AA69: 0 | AB69: 0.007505417739 | AC69: 0 | AD69: 0 | AE69: 0.01433010095 | AF69: 0.004776700318 | AG69: 0 | AH69: 0 | AI69: 0 | AJ69: 0 | AK69: 0 | AL69: 0 | AM69: 0 | AN69: 0
A70: Acinetobacter baumannii gyrA conferring resistance to fluoroquinolones | B70: Removed due to being a mutation/species-specific resistance | C70: 3003817 | D70: Acinetobacter baumannii | E70: fluoroquinolone resistant gyrA | F70: antibiotic target alteration | G70: fluoroquinolone antibiotic | H70: fluoroquinolone antibiotic | I70: 330 | J70: 154 | K70: 300 | L70: 261.3333333 | M70: 336 | N70: 249 | O70: 189 | P70: 258 | Q70: 292 | R70: 307 | S70: 296 | T70: 298.3333333 | U70: 52 | V70: 24 | W70: 37 | X70: 37.66666667 | Y70: 1.85759089 | Z70: 1.00900339 | AA70: 2.123978825 | AB70: 1.663524368 | AC70: 2.091451167 | AD70: 1.473632786 | AE70: 1.35419454 | AF70: 1.639759498 | AG70: 2.103708628 | AH70: 1.937808981 | AI70: 2.098404837 | AJ70: 2.046640815 | AK70: 0.2710466075 | AL70: 0.1681182557 | AM70: 0.2302937054 | AN70: 0.2231528562
A71: Acinetobacter baumannii parC conferring resistance to fluoroquinolone | B71: Removed due to being a mutation/species-specific resistance | C71: 3003818 | D71: Acinetobacter | E71: fluoroquinolone resistant parC | F71: antibiotic target alteration | G71: fluoroquinolone antibiotic | H71: fluoroquinolone antibiotic | I71: 225 | J71: 100 | K71: 284 | L71: 203 | M71: 122 | N71: 123 | O71: 69 | P71: 104.6666667 | Q71: 71 | R71: 89 | S71: 89 | T71: 83 | U71: 17 | V71: 9 | W71: 14 | X71: 13.33333333 | Y71: 1.266539243 | Z71: 0.6551970063 | AA71: 2.010699954 | AB71: 1.310812068 | AC71: 0.7593959595 | AD71: 0.7279390869 | AE71: 0.4943884829 | AF71: 0.6605745098 | AG71: 0.5115181938 | AH71: 0.5617752421 | AI71: 0.6309392921 | AJ71: 0.568077576 | AK71: 0.08861139091 | AL71: 0.0630443459 | AM71: 0.0871381588 | AN71: 0.0795979652
A72: Agrobacterium fabrum chloramphenicol acetyltransferase | B72: Removed due to low prevalence (present in <3 samples) | C72: 3004451 | D72: Agrobacterium fabrum | E72: chloramphenicol acetyltransferase (CAT) | F72: antibiotic inactivation | G72: phenicol antibiotic | H72: phenicol antibiotic | I72: 0 | J72: 0 | K72: 0 | L72: 0 | M72: 0 | N72: 2 | O72: 0 | P72: 0.6666666667 | Q72: 0 | R72: 3 | S72: 1 | T72: 1.333333333 | U72: 0 | V72: 0 | W72: 1 | X72: 0.3333333333 | Y72: 0 | Z72: 0 | AA72: 0 | AB72: 0 | AC72: 0 | AD72: 0.01183640792 | AE72: 0 | AF72: 0.003945469306 | AG72: 0 | AH72: 0.01893624412 | AI72: 0.007089205529 | AJ72: 0.008675149881 | AK72: 0 | AL72: 0 | AM72: 0.0062241542 | AN72: 0.002074718067
A73: ArnT | B73: Removed due to low prevalence (present in <3 samples) | C73: 3005053 | D73: Klebsiella pneumoniae | E73: pmr phosphoethanolamine transferase | F73: antibiotic target alteration | G73: peptide antibiotic | H73: peptide antibiotic | I73: 0 | J73: 0 | K73: 2 | L73: 0.6666666667 | M73: 0 | N73: 4 | O73: 0 | P73: 1.333333333 | Q73: 0 | R73: 4 | S73: 4 | T73: 2.666666667 | U73: 0 | V73: 0 | W73: 0 | X73: 0 | Y73: 0 | Z73: 0 | AA73: 0.01415985883 | AB73: 0.004719952944 | AC73: 0 | AD73: 0.02367281583 | AE73: 0 | AF73: 0.007890938611 | AG73: 0 | AH73: 0.02524832549 | AI73: 0.02835682212 | AJ73: 0.01786838253 | AK73: 0 | AL73: 0 | AM73: 0 | AN73: 0
A74: AxyX | B74: No | C74: 3004143 | D74: Achromobacter insuavis | E74: resistance-nodulation-cell division (RND) antibiotic efflux pump | F74: antibiotic efflux | G74: macrolide antibiotic; fluoroquinolone antibiotic; aminoglycoside antibiotic; cephalosporin | H74: MDR | I74: 38 | J74: 24 | K74: 27 | L74: 29.66666667 | M74: 27 | N74: 37 | O74: 27 | P74: 30.33333333 | Q74: 9 | R74: 25 | S74: 11 | T74: 15 | U74: 1 | V74: 2 | W74: 6 | X74: 3 | Y74: 0.2139044056 | Z74: 0.1572472815 | AA74: 0.1911580942 | AB74: 0.1874365938 | AC74: 0.1680630402 | AD74: 0.2189735465 | AE74: 0.1934563629 | AF74: 0.1934976499 | AG74: 0.06484033442 | AH74: 0.1578020343 | AI74: 0.07798126082 | AJ74: 0.1002078765 | AK74: 0.005212434759 | AL74: 0.01400985464 | AM74: 0.0373449252 | AN74: 0.0188557382
A75: AxyY | B75: No | C75: 3004144 | D75: Achromobacter insuavis | E75: resistance-nodulation-cell division (RND) antibiotic efflux pump | F75: antibiotic efflux | G75: macrolide antibiotic; fluoroquinolone antibiotic; aminoglycoside antibiotic; cephalosporin | H75: MDR | I75: 5897 | J75: 4414 | K75: 5123 | L75: 5144.666667 | M75: 5515 | N75: 5180 | O75: 3500 | P75: 4731.666667 | Q75: 2137 | R75: 2580 | S75: 2575 | T75: 2430.666667 | U75: 329 | V75: 271 | W75: 346 | X75: 315.3333333 | Y75: 33.1945863 | Z75: 28.92039586 | AA75: 36.27047839 | AB75: 32.79515352 | AC75: 34.3284321 | AD75: 30.65629651 | AE75: 25.07767667 | AF75: 30.02080176 | AG75: 15.39597718 | AH75: 16.28516994 | AI75: 18.25470424 | AJ75: 16.64528379 | AK75: 1.714891036 | AL75: 1.898335304 | AM75: 2.153557353 | AN75: 1.922261231
A76: BEL-1 | B76: Removed due to low prevalence (present in <3 samples) | C76: 3002385 | D76: Pseudomonas aeruginosa | E76: BEL beta-lactamase | F76: antibiotic inactivation | G76: monobactam; cephalosporin; penam | H76: beta-lactam | I76: 0 | J76: 1 | K76: 0 | L76: 0.3333333333 | M76: 0 | N76: 0 | O76: 0 | P76: 0 | Q76: 0 | R76: 0 | S76: 0 | T76: 0 | U76: 0 | V76: 0 | W76: 0 | X76: 0 | Y76: 0 | Z76: 0.006551970063 | AA76: 0 | AB76: 0.002183990021 | AC76: 0 | AD76: 0 | AE76: 0 | AF76: 0 | AG76: 0 | AH76: 0 | AI76: 0 | AJ76: 0 | AK76: 0 | AL76: 0 | AM76: 0 | AN76: 0
A77: BEL-2 | B77: Removed due to low prevalence (present in <3 samples) | C77: 3002386 | D77: Pseudomonas aeruginosa | E77: BEL beta-lactamase | F77: antibiotic inactivation | G77: monobactam; cephalosporin; penam | H77: beta-lactam | I77: 1 | J77: 0 | K77: 0 | L77: 0.3333333333 | M77: 0 | N77: 0 | O77: 0 | P77: 0 | Q77: 0 | R77: 0 | S77: 2 | T77: 0.6666666667 | U77: 0 | V77: 0 | W77: 0 | X77: 0 | Y77: 0.005629063304 | Z77: 0 | AA77: 0 | AB77: 0.001876354435 | AC77: 0 | AD77: 0 | AE77: 0 | AF77: 0 | AG77: 0 | AH77: 0 | AI77: 0.01417841106 | AJ77: 0.004726137019 | AK77: 0 | AL77: 0 | AM77: 0 | AN77: 0
A78: BJP-1 beta-lactamase | B78: Removed due to low prevalence (present in <3 samples) | C78: 3000856 | D78: Bradyrhizobium diazoefficiens | E78: BJP beta-lactamase | F78: antibiotic inactivation | G78: carbapenem | H78: beta-lactam | I78: 1 | J78: 0 | K78: 1 | L78: 0.6666666667 | M78: 0 | N78: 3 | O78: 0 | P78: 1 | Q78: 2 | R78: 0 | S78: 0 | T78: 0.6666666667 | U78: 0 | V78: 0 | W78: 0 | X78: 0 | Y78: 0.005629063304 | Z78: 0 | AA78: 0.007079929415 | AB78: 0.004236330907 | AC78: 0 | AD78: 0.01775461188 | AE78: 0 | AF78: 0.005918203959 | AG78: 0.01440896321 | AH78: 0 | AI78: 0 | AJ78: 0.004802987735 | AK78: 0 | AL78: 0 | AM78: 0 | AN78: 0
A79: BKC-1 | B79: Removed due to low prevalence (present in <3 samples) | C79: 3004757 | D79: Klebsiella pneumoniae | E79: BKC Beta-lactamase | F79: antibiotic inactivation | G79: carbapenem | H79: beta-lactam | I79: 1 | J79: 3 | K79: 0 | L79: 1.333333333 | M79: 3 | N79: 1 | O79: 0 | P79: 1.333333333 | Q79: 1 | R79: 1 | S79: 5 | T79: 2.333333333 | U79: 0 | V79: 0 | W79: 1 | X79: 0.3333333333 | Y79: 0.005629063304 | Z79: 0.01965591019 | AA79: 0 | AB79: 0.008428324497 | AC79: 0.01867367114 | AD79: 0.005918203959 | AE79: 0 | AF79: 0.008197291698 | AG79: 0.007204481603 | AH79: 0.006312081372 | AI79: 0.03544602765 | AJ79: 0.01632086354 | AK79: 0 | AL79: 0 | AM79: 0.0062241542 | AN79: 0.002074718067
A80: BLMT | B80: Removed due to low prevalence (present in <3 samples) | C80: 3005036 | D80: Escherichia coli | E80: Bleomycin resistant protein | F80: antibiotic inactivation | G80: glycopeptide antibiotic | H80: glycopeptide antibiotic | I80: 0 | J80: 0 | K80: 0 | L80: 0 | M80: 1 | N80: 0 | O80: 0 | P80: 0.3333333333 | Q80: 0 | R80: 0 | S80: 0 | T80: 0 | U80: 0 | V80: 0 | W80: 0 | X80: 0 | Y80: 0 | Z80: 0 | AA80: 0 | AB80: 0 | AC80: 0.006224557045 | AD80: 0 | AE80: 0 | AF80: 0.002074852348 | AG80: 0 | AH80: 0 | AI80: 0 | AJ80: 0 | AK80: 0 | AL80: 0 | AM80: 0 | AN80: 0
A81: Bartonella bacilliformis gyrA conferring resistance to fluoroquinolones | B81: Removed due to being a mutation/species-specific resistance | C81: 3003297 | D81: Bartonella bacilliformis | E81: fluoroquinolone resistant gyrA | F81: antibiotic target alteration | G81: fluoroquinolone antibiotic | H81: fluoroquinolone antibiotic | I81: 18 | J81: 2 | K81: 5 | L81: 8.333333333 | M81: 1 | N81: 4 | O81: 12 | P81: 5.666666667 | Q81: 3 | R81: 10 | S81: 4 | T81: 5.666666667 | U81: 10 | V81: 13 | W81: 2 | X81: 8.333333333 | Y81: 0.1013231395 | Z81: 0.01310394013 | AA81: 0.03539964708 | AB81: 0.04994224223 | AC81: 0.006224557045 | AD81: 0.02367281583 | AE81: 0.08598060573 | AF81: 0.03862599287 | AG81: 0.02161344481 | AH81: 0.06312081372 | AI81: 0.02835682212 | AJ81: 0.03769702688 | AK81: 0.05212434759 | AL81: 0.09106405518 | AM81: 0.0124483084 | AN81: 0.05187890373
A82: Bartonella bacilliformis gyrB conferring resistance to aminocoumarin | B82: Removed due to being a mutation/species-specific resistance | C82: 3003302 | D82: Bartonella bacilliformis | E82: aminocoumarin resistant gyrB | F82: antibiotic target alteration | G82: aminocoumarin antibiotic | H82: aminocoumarin antibiotic | I82: 15 | J82: 18 | K82: 14 | L82: 15.66666667 | M82: 25 | N82: 8 | O82: 9 | P82: 14 | Q82: 11 | R82: 14 | S82: 17 | T82: 14 | U82: 8 | V82: 7 | W82: 13 | X82: 9.333333333 | Y82: 0.08443594956 | Z82: 0.1179354611 | AA82: 0.09911901182 | AB82: 0.1004968075 | AC82: 0.1556139261 | AD82: 0.04734563167 | AE82: 0.0644854543 | AF82: 0.08914833737 | AG82: 0.07924929763 | AH82: 0.0883691392 | AI82: 0.120516494 | AJ82: 0.09604497694 | AK82: 0.04169947807 | AL82: 0.04903449125 | AM82: 0.0809140046 | AN82: 0.05721599131
A83: Bifidobacteria intrinsic ileS conferring resistance to mupirocin | B83: Removed due to being a mutation/species-specific resistance | C83: 3003730 | D83: Bifidobacterium bifidum | E83: antibiotic-resistant isoleucyl-tRNA synthetase (ileS) | F83: antibiotic target alteration | G83: mupirocin | H83: mupirocin | I83: 73 | J83: 56 | K83: 53 | L83: 60.66666667 | M83: 22 | N83: 20 | O83: 29 | P83: 23.66666667 | Q83: 65 | R83: 55 | S83: 56 | T83: 58.66666667 | U83: 12 | V83: 7 | W83: 9 | X83: 9.333333333 | Y83: 0.4109216212 | Z83: 0.3669103235 | AA83: 0.375236259 | AB83: 0.3843560679 | AC83: 0.136940255 | AD83: 0.1183640792 | AE83: 0.2077864638 | AF83: 0.1543635993 | AG83: 0.4682913042 | AH83: 0.3471644754 | AI83: 0.3969955096 | AJ83: 0.4041504297 | AK83: 0.06254921711 | AL83: 0.04903449125 | AM83: 0.0560173878 | AN83: 0.05586703205
A84: Bifidobacterium adolescentis rpoB conferring resistance to rifampicin | B84: Removed due to being a mutation/species-specific resistance | C84: 3004480 | D84: Bifidobacterium adolescentis | E84: rifamycin-resistant beta-subunit of RNA polymerase (rpoB) | F84: antibiotic target alteration; antibiotic target replacement | G84: rifamycin antibiotic | H84: rifamycin antibiotic | I84: 2889 | J84: 2073 | K84: 2340 | L84: 2434 | M84: 2409 | N84: 2286 | O84: 1760 | P84: 2151.666667 | Q84: 1423 | R84: 1639 | S84: 1645 | T84: 1569 | U84: 347 | V84: 248 | W84: 326 | X84: 307 | Y84: 16.26236389 | Z84: 13.58223394 | AA84: 16.56703483 | AB84: 15.47054422 | AC84: 14.99495792 | AD84: 13.52901425 | AE84: 12.61048884 | AF84: 13.711487 | AG84: 10.25197732 | AH84: 10.34550137 | AI84: 11.6617431 | AJ84: 10.75307393 | AK84: 1.808714861 | AL84: 1.737221976 | AM84: 2.029074269 | AN84: 1.858337035
A85: Borreliella burgdorferi 16S rRNA mutation conferring resistance to gentamicin | B85: Removed due to being a mutation/species-specific resistance | C85: 3003504 | D85: Borreliella burgdorferi | E85: 16s rRNA with mutation conferring resistance to aminoglycoside antibiotics | F85: antibiotic target alteration | G85: aminoglycoside antibiotic | H85: aminoglycoside antibiotic | I85: 125 | J85: 97 | K85: 128 | L85: 116.6666667 | M85: 116 | N85: 135 | O85: 72 | P85: 107.6666667 | Q85: 201 | R85: 186 | S85: 197 | T85: 194.6666667 | U85: 73 | V85: 60 | W85: 64 | X85: 65.66666667 | Y85: 0.703632913 | Z85: 0.6355410961 | AA85: 0.9062309652 | AB85: 0.7484683248 | AC85: 0.7220486173 | AD85: 0.7989575344 | AE85: 0.5158836344 | AF85: 0.678963262 | AG85: 1.448100802 | AH85: 1.174047135 | AI85: 1.396573489 | AJ85: 1.339573809 | AK85: 0.3805077374 | AL85: 0.4202956393 | AM85: 0.3983458688 | AN85: 0.3997164152
A86: Borreliella burgdorferi 16S rRNA mutation conferring resistance to kanamycin | B86: Removed due to being a mutation/species-specific resistance | C86: 3003503 | D86: Borreliella burgdorferi | E86: 16s rRNA with mutation conferring resistance to aminoglycoside antibiotics | F86: antibiotic target alteration | G86: aminoglycoside antibiotic | H86: aminoglycoside antibiotic | I86: 150 | J86: 119 | K86: 139 | L86: 136 | M86: 98 | N86: 136 | O86: 79 | P86: 104.3333333 | Q86: 185 | R86: 209 | S86: 213 | T86: 202.3333333 | U86: 56 | V86: 40 | W86: 91 | X86: 62.33333333 | Y86: 0.8443594956 | Z86: 0.7796844375 | AA86: 0.9841101887 | AB86: 0.8693847073 | AC86: 0.6100065904 | AD86: 0.8048757384 | AE86: 0.5660389877 | AF86: 0.6603071055 | AG86: 1.332829096 | AH86: 1.319225007 | AI86: 1.510000778 | AJ86: 1.387351627 | AK86: 0.2918963465 | AL86: 0.2801970929 | AM86: 0.5663980322 | AN86: 0.3794971572
A87: Borreliella burgdorferi 16S rRNA mutation conferring resistance to spectinomycin | B87: Removed due to being a mutation/species-specific resistance | C87: 3003502 | D87: Borreliella burgdorferi | E87: 16s rRNA with mutation conferring resistance to aminoglycoside antibiotics | F87: antibiotic target alteration | G87: aminoglycoside antibiotic | H87: aminoglycoside antibiotic | I87: 146 | J87: 109 | K87: 109 | L87: 121.3333333 | M87: 102 | N87: 96 | O87: 64 | P87: 87.33333333 | Q87: 140 | R87: 189 | S87: 225 | T87: 184.6666667 | U87: 80 | V87: 36 | W87: 74 | X87: 63.33333333 | Y87: 0.8218432424 | Z87: 0.7141647368 | AA87: 0.7717123063 | AB87: 0.7692400952 | AC87: 0.6349048186 | AD87: 0.56814758 | AE87: 0.4585632305 | AF87: 0.5538718764 | AG87: 1.008627424 | AH87: 1.192983379 | AI87: 1.595071244 | AJ87: 1.265560683 | AK87: 0.4169947807 | AL87: 0.2521773836 | AM87: 0.4605874108 | AN87: 0.376586525
A88: Borreliella burgdorferi murA with mutation conferring resistance to fosfomycin | B88: Removed due to low prevalence (present in <3 samples) | C88: 3003777 | D88: Borreliella burgdorferi | E88: antibiotic-resistant murA transferase | F88: antibiotic target alteration | G88: fosfomycin | H88: fosfomycin | I88: 0 | J88: 0 | K88: 2 | L88: 0.6666666667 | M88: 1 | N88: 1 | O88: 0 | P88: 0.6666666667 | Q88: 0 | R88: 0 | S88: 2 | T88: 0.6666666667 | U88: 0 | V88: 0 | W88: 2 | X88: 0.6666666667 | Y88: 0 | Z88: 0 | AA88: 0.01415985883 | AB88: 0.004719952944 | AC88: 0.006224557045 | AD88: 0.005918203959 | AE88: 0 | AF88: 0.004047587001 | AG88: 0 | AH88: 0 | AI88: 0.01417841106 | AJ88: 0.004726137019 | AK88: 0 | AL88: 0 | AM88: 0.0124483084 | AN88: 0.004149436133
A89: Brachyspira hyodysenteriae 23S rRNA with mutation conferring resistance to tylosin | B89: Removed due to being a mutation/species-specific resistance | C89: 3004133 | D89: Brachyspira hyodysenteriae | E89: 23S rRNA with mutation conferring resistance to macrolide antibiotics | F89: antibiotic target alteration | G89: macrolide antibiotic | H89: MLS | I89: 2938 | J89: 1920 | K89: 2454 | L89: 2437.333333 | M89: 2163 | N89: 2221 | O89: 1605 | P89: 1996.333333 | Q89: 3448 | R89: 4093 | S89: 3771 | T89: 3770.666667 | U89: 1694 | V89: 1040 | W89: 1474 | X89: 1402.666667 | Y89: 16.53818799 | Z89: 12.57978252 | AA89: 17.37414679 | AB89: 15.49737243 | AC89: 13.46371689 | AD89: 13.14433099 | AE89: 11.49990602 | AF89: 12.7026513 | AG89: 24.84105257 | AH89: 25.83534905 | AI89: 26.73339405 | AJ89: 25.80326522 | AK89: 8.829864482 | AL89: 7.285124415 | AM89: 9.17440329 | AN89: 8.429797396
A90: Burkholderia dolosa gyrA conferring resistance to fluoroquinolones | B90: Removed due to being a mutation/species-specific resistance | C90: 3004860 | D90: Burkholderia dolosa | E90: fluoroquinolone resistant gyrA | F90: antibiotic target alteration | G90: fluoroquinolone antibiotic | H90: fluoroquinolone antibiotic | I90: 11954 | J90: 8804 | K90: 10006 | L90: 10254.66667 | M90: 10182 | N90: 9427 | O90: 5882 | P90: 8497 | Q90: 4859 | R90: 5421 | S90: 5782 | T90: 5354 | U90: 960 | V90: 732 | W90: 1079 | X90: 923.6666667 | Y90: 67.28982274 | Z90: 57.68354443 | AA90: 70.84177373 | AB90: 65.27171363 | AC90: 63.37843983 | AD90: 55.79090872 | AE90: 42.14482691 | AF90: 53.77139182 | AG90: 35.00657611 | AH90: 34.21779312 | AI90: 40.98978637 | AJ90: 36.73805186 | AK90: 5.003937369 | AL90: 5.1276068 | AM90: 6.715862381 | AN90: 5.615802183
A91: Burkholderia pseudomallei Omp38 | B91: Removed due to being a mutation/species-specific resistance | C91: 3004123 | D91: Burkholderia pseudomallei | E91: General Bacterial Porin with reduced permeability to beta-lactams | F91: reduced permeability to antibiotic | G91: monobactam; carbapenem; cephalosporin; cephamycin; penam; penem | H91: beta-lactam | I91: 4 | J91: 1 | K91: 11 | L91: 5.333333333 | M91: 14 | N91: 11 | O91: 5 | P91: 10 | Q91: 9 | R91: 4 | S91: 8 | T91: 7 | U91: 1 | V91: 0 | W91: 0 | X91: 0.3333333333 | Y91: 0.02251625322 | Z91: 0.006551970063 | AA91: 0.07787922357 | AB91: 0.03564914895 | AC91: 0.08714379863 | AD91: 0.06510024354 | AE91: 0.03582525239 | AF91: 0.06268976485 | AG91: 0.06484033442 | AH91: 0.02524832549 | AI91: 0.05671364423 | AJ91: 0.04893410138 | AK91: 0.005212434759 | AL91: 0 | AM91: 0 | AN91: 0.001737478253
A92: CAM-1 | B92: Removed due to low prevalence (present in <3 samples) | C92: 3004559 | D92: Pseudomonas aeruginosa | E92: CAM beta-lactamase | F92: antibiotic inactivation | G92: carbapenem; cephalosporin; cephamycin; penam | H92: beta-lactam | I92: 0 | J92: 1 | K92: 2 | L92: 1 | M92: 0 | N92: 0 | O92: 0 | P92: 0 | Q92: 0 | R92: 0 | S92: 0 | T92: 0 | U92: 0 | V92: 0 | W92: 0 | X92: 0 | Y92: 0 | Z92: 0.006551970063 | AA92: 0.01415985883 | AB92: 0.006903942964 | AC92: 0 | AD92: 0 | AE92: 0 | AF92: 0 | AG92: 0 | AH92: 0 | AI92: 0 | AJ92: 0 | AK92: 0 | AL92: 0 | AM92: 0 | AN92: 0
A93: CARB-10 | B93: No | C93: 3002249 | D93: Acinetobacter baumannii | E93: CARB beta-lactamase | F93: antibiotic inactivation | G93: penam | H93: beta-lactam | I93: 0 | J93: 0 | K93: 0 | L93: 0 | M93: 0 | N93: 2 | O93: 0 | P93: 0.6666666667 | Q93: 2 | R93: 0 | S93: 11 | T93: 4.333333333 | U93: 0 | V93: 0 | W93: 0 | X93: 0 | Y93: 0 | Z93: 0 | AA93: 0 | AB93: 0 | AC93: 0 | AD93: 0.01183640792 | AE93: 0 | AF93: 0.003945469306 | AG93: 0.01440896321 | AH93: 0 | AI93: 0.07798126082 | AJ93: 0.03079674134 | AK93: 0 | AL93: 0 | AM93: 0 | AN93: 0
A94: CARB-12 | B94: Removed due to low prevalence (present in <3 samples) | C94: 3002250 | D94: Proteus mirabilis | E94: CARB beta-lactamase | F94: antibiotic inactivation | G94: penam | H94: beta-lactam | I94: 1 | J94: 0 | K94: 1 | L94: 0.6666666667 | M94: 0 | N94: 0 | O94: 0 | P94: 0 | Q94: 0 | R94: 0 | S94: 0 | T94: 0 | U94: 0 | V94: 0 | W94: 0 | X94: 0 | Y94: 0.005629063304 | Z94: 0 | AA94: 0.007079929415 | AB94: 0.004236330907 | AC94: 0 | AD94: 0 | AE94: 0 | AF94: 0 | AG94: 0 | AH94: 0 | AI94: 0 | AJ94: 0 | AK94: 0 | AL94: 0 | AM94: 0 | AN94: 0
A95: CARB-14 | B95: Removed due to low prevalence (present in <3 samples) | C95: 3002252 | D95: Acinetobacter baumannii | E95: CARB beta-lactamase | F95: antibiotic inactivation | G95: penam | H95: beta-lactam | I95: 0 | J95: 0 | K95: 0 | L95: 0 | M95: 2 | N95: 0 | O95: 0 | P95: 0.6666666667 | Q95: 0 | R95: 0 | S95: 0 | T95: 0 | U95: 0 | V95: 0 | W95: 0 | X95: 0 | Y95: 0 | Z95: 0 | AA95: 0 | AB95: 0 | AC95: 0.01244911409 | AD95: 0 | AE95: 0 | AF95: 0.004149704697 | AG95: 0 | AH95: 0 | AI95: 0 | AJ95: 0 | AK95: 0 | AL95: 0 | AM95: 0 | AN95: 0
A96: CARB-16 | B96: Removed due to low prevalence (present in <3 samples) | C96: 3002255 | D96: Psychrobacter maritimus | E96: CARB beta-lactamase | F96: antibiotic inactivation | G96: penam | H96: beta-lactam | I96: 0 | J96: 0 | K96: 0 | L96: 0 | M96: 0 | N96: 0 | O96: 0 | P96: 0 | Q96: 2 | R96: 0 | S96: 1 | T96: 1 | U96: 0 | V96: 0 | W96: 0 | X96: 0 | Y96: 0 | Z96: 0 | AA96: 0 | AB96: 0 | AC96: 0 | AD96: 0 | AE96: 0 | AF96: 0 | AG96: 0.01440896321 | AH96: 0 | AI96: 0.007089205529 | AJ96: 0.007166056245 | AK96: 0 | AL96: 0 | AM96: 0 | AN96: 0
A97: CARB-5 | B97: Removed due to low prevalence (present in <3 samples) | C97: 3002244 | D97: Acinetobacter calcoaceticus | E97: CARB beta-lactamase | F97: antibiotic inactivation | G97: penam | H97: beta-lactam | I97: 0 | J97: 2 | K97: 0 | L97: 0.6666666667 | M97: 2 | N97: 0 | O97: 0 | P97: 0.6666666667 | Q97: 0 | R97: 2 | S97: 3 | T97: 1.666666667 | U97: 0 | V97: 0 | W97: 0 | X97: 0 | Y97: 0 | Z97: 0.01310394013 | AA97: 0 | AB97: 0.004367980042 | AC97: 0.01244911409 | AD97: 0 | AE97: 0 | AF97: 0.004149704697 | AG97: 0 | AH97: 0.01262416274 | AI97: 0.02126761659 | AJ97: 0.01129725978 | AK97: 0 | AL97: 0 | AM97: 0 | AN97: 0
